Workbook

Sheet Report - ALL (DASHBOARD)
A2: Dashboard | B2: Select Parameter: | F2: Select Statistic: | I2: Select Seasonal Period: | L2: Do you want to convert CFS values to TAF/Mon? | W2: 26
W3: 1
W4: 16
L5: News | W5: TRUE
L6: - parameter list updated to include all items on the appendix list (in addition to other locations of interest)
L7: - year type sorting is now done by calendar year
L8: - year type sorting is provided for 60-20-20 index as well as 40-30-30 index
L9: - format modified to be consistent with appendix reports
L10: - check out the new spinners!
B13: =CONCATENATE('Report Data'!$P$7," / seasonal statistics (",$W$2,"-",$W$3,"-",$W$4,"-",IF(NOT($W$5),1,2),"a):") -> Total Sites Diversion to Fill / seasonal statistics (26-1-16-2a):
C17: ='Report Data'!P6 -> October-September
C18: ='Report Data'!P7 -> Total Sites Diversion to Fill
C19: ='Report Data'!P9 -> (C17601/FLOW-CHANNEL)
C20: ='Report Data'!P8 -> Averages
C21: ='Report Data'!P11 -> Volume (TAF) | F21: =CONCATENATE("Difference from ",'Report Data'!Q13) -> Difference from NAA 041222 2035 CT
C25: =IF('Report Data'!O14=0,"",'Report Data'!O14) -> NAA 041222 2035 CT | E25: =IFERROR('Report Data'!P14,"") -> 0
C26: =IF('Report Data'!O15=0,"",'Report Data'!O15) -> ALT 3A 041122 2035 CT | E26: =IFERROR('Report Data'!P15,"") -> 302.5989673 | F26: =IFERROR('Report Data'!Q15,"") -> 302.5989673
C27: =IF('Report Data'!O16=0,"",'Report Data'!O16) -> ALT 3B 041122 2035 CT | E27: =IFERROR('Report Data'!P16,"") -> 294.3017229 | F27: =IFERROR('Report Data'!Q16,"") -> 294.3017229
C28: =IF('Report Data'!O17=0,"",'Report Data'!O17) -> ALT 1A 062222 2035 CT | E28: =IFERROR('Report Data'!P17,"") -> 265.4597172 | F28: =IFERROR('Report Data'!Q17,"") -> 265.4597172
C29: =IF('Report Data'!O18=0,"",'Report Data'!O18) -> ALT 1A 062222 noShaEXCH 2035 CT | E29: =IFERROR('Report Data'!P18,"") -> 256.4261078 | F29: =IFERROR('Report Data'!Q18,"") -> 256.4261078
C30: =IF('Report Data'!O19=0,"",'Report Data'!O19) ->  | E30: =IFERROR('Report Data'!P19,"") ->  | F30: =IFERROR('Report Data'!Q19,"") -> 
B60: =CONCATENATE('Report Data'!$P$7," / monthly statistics (",$W$2,"-",$W$3,"-",$W$4,"-",IF(NOT($W$5),1,2),"b):") -> Total Sites Diversion to Fill / monthly statistics (26-1-16-2b):
B88: =CONCATENATE('Report Data'!$P$7," / time series (",$W$2,"-",$W$3,"-",$W$4,"-",IF(NOT($W$5),1,2),"c):") -> Total Sites Diversion to Fill / time series (26-1-16-2c):

Sheet Chart - Prob Exc
S2: Select Parameter: | X2: Select Statistic: | AB2: Select Seasonal Period: | AE2: Do you want to convert CFS values to TAF/Mon?

Sheet Chart - Pattern
S2: Select Parameter: | X2: Select Statistic: | AB2: Select Seasonal Period: | AE2: Do you want to convert CFS values to TAF/Mon?

Sheet Chart - WYT
S2: Select Parameter: | X2: Select Statistic: | AB2: Select Seasonal Period: | AE2: Do you want to convert CFS values to TAF/Mon?

Sheet Report Data
A2: Information, Tables and Calculations for Reports
A4: Table of Selected Values for Monthly Chart: | O4: Trend Evaluation: | U4: Water Year Type Averages:
A6: Title: | B6: ='Compile Data'!$B$5 -> Total Sites Diversion to Fill | O6: Title: | P6: =INDEX(Other!$B$9:$B$33,'Report - ALL (DASHBOARD)'!$W$4) -> October-September | U6: Title: | V6: =INDEX(Other!$B$9:$B$33,'Report - ALL (DASHBOARD)'!$W$4) -> October-September
B7: =INDEX(Other!$C$9:$C$35,'Report - ALL (DASHBOARD)'!$W$3) -> Averages | P7: ='Compile Data'!$B$5 -> Total Sites Diversion to Fill | V7: ='Compile Data'!$B$5 -> Total Sites Diversion to Fill
B8: =CONCATENATE("(",'Compile Data'!$B$6,"/",'Compile Data'!$B$7,")") -> (C17601/FLOW-CHANNEL) | P8: =CONCATENATE(INDEX(Other!$C$9:$C$35,'Report - ALL (DASHBOARD)'!$W$3)," ",IF('Report - ALL (DASHBOARD)'!$W$3>4,IF(AND('Compile Data'!$B$10="TAF",'Compile Data'!$B$8="PER-AVER"),"Totals","Averages"),"")) -> Averages | V8: =CONCATENATE(INDEX(Other!$C$9:$C$35,'Report - ALL (DASHBOARD)'!$W$3)," ",IF('Report - ALL (DASHBOARD)'!$W$3>4,IF(AND('Compile Data'!$B$10="TAF",'Compile Data'!$B$8="PER-AVER"),"Totals","Averages"),"")) -> Averages
P9: =CONCATENATE("(",'Compile Data'!$B$6,"/",'Compile Data'!$B$7,")") -> (C17601/FLOW-CHANNEL) | V9: =CONCATENATE("(",'Compile Data'!$B$6,"/",'Compile Data'!$B$7,")") -> (C17601/FLOW-CHANNEL)
A11: Y-axis: | B11: =IF('Compile Data'!$B$10="CFS","Flow (CFS)",IF('Compile Data'!$B$10="TAF","Volume (TAF)",IF('Compile Data'!$B$10="KM","POSITION (KM)",""))) -> Volume (TAF) | P11: =IF('Compile Data'!$B$10="CFS","Flow (CFS)",IF('Compile Data'!$B$10="TAF","Volume (TAF)",IF('Compile Data'!$B$10="KM","POSITION (KM)",""))) -> Volume (TAF) | V11: =IF('Compile Data'!$B$10="CFS","Flow (CFS)",IF('Compile Data'!$B$10="TAF","Volume (TAF)",IF('Compile Data'!$B$10="KM","POSITION (KM)",""))) -> Volume (TAF)
Q12: Diff from | R12: Diff from
B13: OCT | C13: NOV | D13: DEC | E13: JAN | F13: FEB | G13: MAR | H13: APR | I13: MAY | J13: JUN | K13: JUL | L13: AUG | M13: SEP | P13: Value | Q13: =$O$14 -> NAA 041222 2035 CT | R13: =$O$15 -> ALT 3A 041122 2035 CT | V13: Wet | W13: Above Normal | X13: Below Normal | Y13: Dry | Z13: Critically Dry
A14: ='Compile Data'!$B$1 -> NAA 041222 2035 CT | B14: =INDEX('Compile Data'!L$95:L$120,'Report - ALL (DASHBOARD)'!$W$3) -> 0 | C14: =INDEX('Compile Data'!M$95:M$120,'Report - ALL (DASHBOARD)'!$W$3) -> 0 | D14: =INDEX('Compile Data'!N$95:N$120,'Report - ALL (DASHBOARD)'!$W$3) -> 0 | E14: =INDEX('Compile Data'!O$95:O$120,'Report - ALL (DASHBOARD)'!$W$3) -> 0 | F14: =INDEX('Compile Data'!P$95:P$120,'Report - ALL (DASHBOARD)'!$W$3) -> 0 | G14: =INDEX('Compile Data'!Q$95:Q$120,'Report - ALL (DASHBOARD)'!$W$3) -> 0 | H14: =INDEX('Compile Data'!R$95:R$120,'Report - ALL (DASHBOARD)'!$W$3) -> 0 | I14: =INDEX('Compile Data'!S$95:S$120,'Report - ALL (DASHBOARD)'!$W$3) -> 0 | J14: =INDEX('Compile Data'!T$95:T$120,'Report - ALL (DASHBOARD)'!$W$3) -> 0 | K14: =INDEX('Compile Data'!U$95:U$120,'Report - ALL (DASHBOARD)'!$W$3) -> 0 | L14: =INDEX('Compile Data'!V$95:V$120,'Report - ALL (DASHBOARD)'!$W$3) -> 0 | M14: =INDEX('Compile Data'!W$95:W$120,'Report - ALL (DASHBOARD)'!$W$3) -> 0 | O14: ='Compile Data'!$B$1 -> NAA 041222 2035 CT | P14: =INDEX('Compile Data'!$L$95:$AI$120,'Report - ALL (DASHBOARD)'!$W$3,'Report - ALL (DASHBOARD)'!$W$4) -> 0 | U14: ='Compile Data'!$B$1 -> NAA 041222 2035 CT | V14: =INDEX('Compile Data'!$L$95:$AI$120,14,'Report - ALL (DASHBOARD)'!$W$4) -> 0 | W14: =INDEX('Compile Data'!$L$95:$AI$120,15,'Report - ALL (DASHBOARD)'!$W$4) -> 0 | X14: =INDEX('Compile Data'!$L$95:$AI$120,16,'Report - ALL (DASHBOARD)'!$W$4) -> 0 | Y14: =INDEX('Compile Data'!$L$95:$AI$120,17,'Report - ALL (DASHBOARD)'!$W$4) -> 0 | Z14: =INDEX('Compile Data'!$L$95:$AI$120,18,'Report - ALL (DASHBOARD)'!$W$4) -> 0
A15: ='Compile Data'!$C$1 -> ALT 3A 041122 2035 CT | B15: =INDEX('Compile Data'!AL$95:AL$120,'Report - ALL (DASHBOARD)'!$W$3) -> 1.104349159 | C15: =INDEX('Compile Data'!AM$95:AM$120,'Report - ALL (DASHBOARD)'!$W$3) -> 10.6886304 | D15: =INDEX('Compile Data'!AN$95:AN$120,'Report - ALL (DASHBOARD)'!$W$3) -> 55.15317167 | E15: =INDEX('Compile Data'!AO$95:AO$120,'Report - ALL (DASHBOARD)'!$W$3) -> 65.76662889 | F15: =INDEX('Compile Data'!AP$95:AP$120,'Report - ALL (DASHBOARD)'!$W$3) -> 76.70158829 | G15: =INDEX('Compile Data'!AQ$95:AQ$120,'Report - ALL (DASHBOARD)'!$W$3) -> 67.94576353 | H15: =INDEX('Compile Data'!AR$95:AR$120,'Report - ALL (DASHBOARD)'!$W$3) -> 23.03694115 | I15: =INDEX('Compile Data'!AS$95:AS$120,'Report - ALL (DASHBOARD)'!$W$3) -> 2.158167653 | J15: =INDEX('Compile Data'!AT$95:AT$120,'Report - ALL (DASHBOARD)'!$W$3) -> 0.04367890551 | K15: =INDEX('Compile Data'!AU$95:AU$120,'Report - ALL (DASHBOARD)'!$W$3) -> 0 | L15: =INDEX('Compile Data'!AV$95:AV$120,'Report - ALL (DASHBOARD)'!$W$3) -> 0 | M15: =INDEX('Compile Data'!AW$95:AW$120,'Report - ALL (DASHBOARD)'!$W$3) -> 4.761077096e-05 | O15: ='Compile Data'!$C$1 -> ALT 3A 041122 2035 CT | P15: =INDEX('Compile Data'!$AL$95:$BI$120,'Report - ALL (DASHBOARD)'!$W$3,'Report - ALL (DASHBOARD)'!$W$4) -> 302.5989673 | Q15: =$P15-$P$14 -> 302.5989673 | U15: ='Compile Data'!$C$1 -> ALT 3A 041122 2035 CT | V15: =INDEX('Compile Data'!$AL$95:$BI$120,14,'Report - ALL (DASHBOARD)'!$W$4) -> 483.1426413 | W15: =INDEX('Compile Data'!$AL$95:$BI$120,15,'Report - ALL (DASHBOARD)'!$W$4) -> 461.420341 | X15: =INDEX('Compile Data'!$AL$95:$BI$120,16,'Report - ALL (DASHBOARD)'!$W$4) -> 227.2021516 | Y15: =INDEX('Compile Data'!$AL$95:$BI$120,17,'Report - ALL (DASHBOARD)'!$W$4) -> 162.2629752 | Z15: =INDEX('Compile Data'!$AL$95:$BI$120,18,'Report - ALL (DASHBOARD)'!$W$4) -> 51.06657278
A16: ='Compile Data'!$D$1 -> ALT 3B 041122 2035 CT | B16: =INDEX('Compile Data'!BL$95:BL$120,'Report - ALL (DASHBOARD)'!$W$3) -> 1.457795361 | C16: =INDEX('Compile Data'!BM$95:BM$120,'Report - ALL (DASHBOARD)'!$W$3) -> 10.46127397 | D16: =INDEX('Compile Data'!BN$95:BN$120,'Report - ALL (DASHBOARD)'!$W$3) -> 55.47322729 | E16: =INDEX('Compile Data'!BO$95:BO$120,'Report - ALL (DASHBOARD)'!$W$3) -> 63.13396969 | F16: =INDEX('Compile Data'!BP$95:BP$120,'Report - ALL (DASHBOARD)'!$W$3) -> 74.27568886 | G16: =INDEX('Compile Data'!BQ$95:BQ$120,'Report - ALL (DASHBOARD)'!$W$3) -> 65.03396151 | H16: =INDEX('Compile Data'!BR$95:BR$120,'Report - ALL (DASHBOARD)'!$W$3) -> 21.07413743 | I16: =INDEX('Compile Data'!BS$95:BS$120,'Report - ALL (DASHBOARD)'!$W$3) -> 2.164150092 | J16: =INDEX('Compile Data'!BT$95:BT$120,'Report - ALL (DASHBOARD)'!$W$3) -> 0.03842655426 | K16: =INDEX('Compile Data'!BU$95:BU$120,'Report - ALL (DASHBOARD)'!$W$3) -> 0 | L16: =INDEX('Compile Data'!BV$95:BV$120,'Report - ALL (DASHBOARD)'!$W$3) -> 0 | M16: =INDEX('Compile Data'!BW$95:BW$120,'Report - ALL (DASHBOARD)'!$W$3) -> 1.18909215 | O16: ='Compile Data'!$D$1 -> ALT 3B 041122 2035 CT | P16: =INDEX('Compile Data'!$BL$95:$CI$120,'Report - ALL (DASHBOARD)'!$W$3,'Report - ALL (DASHBOARD)'!$W$4) -> 294.3017229 | Q16: 294.3017229 | R16: =$P16-$P$15 -> -8.297244359 | U16: ='Compile Data'!$D$1 -> ALT 3B 041122 2035 CT | V16: =INDEX('Compile Data'!$BL$95:$CI$120,14,'Report - ALL (DASHBOARD)'!$W$4) -> 453.7302467 | W16: =INDEX('Compile Data'!$BL$95:$CI$120,15,'Report - ALL (DASHBOARD)'!$W$4) -> 477.6953212 | X16: =INDEX('Compile Data'!$BL$95:$CI$120,16,'Report - ALL (DASHBOARD)'!$W$4) -> 225.0958985 | Y16: =INDEX('Compile Data'!$BL$95:$CI$120,17,'Report - ALL (DASHBOARD)'!$W$4) -> 157.9709936 | Z16: =INDEX('Compile Data'!$BL$95:$CI$120,18,'Report - ALL (DASHBOARD)'!$W$4) -> 50.71587886
A17: ='Compile Data'!$E$1 -> ALT 1A 062222 2035 CT | B17: =INDEX('Compile Data'!CL$95:CL$120,'Report - ALL (DASHBOARD)'!$W$3) -> 1.238100069 | C17: =INDEX('Compile Data'!CM$95:CM$120,'Report - ALL (DASHBOARD)'!$W$3) -> 9.284378507 | D17: =INDEX('Compile Data'!CN$95:CN$120,'Report - ALL (DASHBOARD)'!$W$3) -> 49.64458543 | E17: =INDEX('Compile Data'!CO$95:CO$120,'Report - ALL (DASHBOARD)'!$W$3) -> 59.50657845 | F17: =INDEX('Compile Data'!CP$95:CP$120,'Report - ALL (DASHBOARD)'!$W$3) -> 66.72722636 | G17: =INDEX('Compile Data'!CQ$95:CQ$120,'Report - ALL (DASHBOARD)'!$W$3) -> 57.17268841 | H17: =INDEX('Compile Data'!CR$95:CR$120,'Report - ALL (DASHBOARD)'!$W$3) -> 19.65448106 | I17: =INDEX('Compile Data'!CS$95:CS$120,'Report - ALL (DASHBOARD)'!$W$3) -> 2.186410505 | J17: =INDEX('Compile Data'!CT$95:CT$120,'Report - ALL (DASHBOARD)'!$W$3) -> 0.04521187869 | K17: =INDEX('Compile Data'!CU$95:CU$120,'Report - ALL (DASHBOARD)'!$W$3) -> 0 | L17: =INDEX('Compile Data'!CV$95:CV$120,'Report - ALL (DASHBOARD)'!$W$3) -> 0 | M17: =INDEX('Compile Data'!CW$95:CW$120,'Report - ALL (DASHBOARD)'!$W$3) -> 5.654681926e-05 | O17: ='Compile Data'!$E$1 -> ALT 1A 062222 2035 CT | P17: =INDEX('Compile Data'!$CL$95:$DI$120,'Report - ALL (DASHBOARD)'!$W$3,'Report - ALL (DASHBOARD)'!$W$4) -> 265.4597172 | Q17: 265.4597172 | R17: =$P17-$P$15 -> -37.13925004 | U17: ='Compile Data'!$E$1 -> ALT 1A 062222 2035 CT | V17: =INDEX('Compile Data'!$CL$95:$DI$120,14,'Report - ALL (DASHBOARD)'!$W$4) -> 384.773807 | W17: =INDEX('Compile Data'!$CL$95:$DI$120,15,'Report - ALL (DASHBOARD)'!$W$4) -> 447.5673567 | X17: =INDEX('Compile Data'!$CL$95:$DI$120,16,'Report - ALL (DASHBOARD)'!$W$4) -> 226.2886482 | Y17: =INDEX('Compile Data'!$CL$95:$DI$120,17,'Report - ALL (DASHBOARD)'!$W$4) -> 145.5463267 | Z17: =INDEX('Compile Data'!$CL$95:$DI$120,18,'Report - ALL (DASHBOARD)'!$W$4) -> 50.40788292
A18: ='Compile Data'!$F$1 -> ALT 1A 062222 noShaEXCH 2035 CT | B18: =INDEX('Compile Data'!DL$95:DL$120,'Report - ALL (DASHBOARD)'!$W$3) -> 1.068911505 | C18: =INDEX('Compile Data'!DM$95:DM$120,'Report - ALL (DASHBOARD)'!$W$3) -> 8.760190036 | D18: =INDEX('Compile Data'!DN$95:DN$120,'Report - ALL (DASHBOARD)'!$W$3) -> 48.89878378 | E18: =INDEX('Compile Data'!DO$95:DO$120,'Report - ALL (DASHBOARD)'!$W$3) -> 56.2029575 | F18: =INDEX('Compile Data'!DP$95:DP$120,'Report - ALL (DASHBOARD)'!$W$3) -> 64.71114835 | G18: =INDEX('Compile Data'!DQ$95:DQ$120,'Report - ALL (DASHBOARD)'!$W$3) -> 54.89795245 | H18: =INDEX('Compile Data'!DR$95:DR$120,'Report - ALL (DASHBOARD)'!$W$3) -> 19.65448542 | I18: =INDEX('Compile Data'!DS$95:DS$120,'Report - ALL (DASHBOARD)'!$W$3) -> 2.186410505 | J18: =INDEX('Compile Data'!DT$95:DT$120,'Report - ALL (DASHBOARD)'!$W$3) -> 0.04521187869 | K18: =INDEX('Compile Data'!DU$95:DU$120,'Report - ALL (DASHBOARD)'!$W$3) -> 0 | L18: =INDEX('Compile Data'!DV$95:DV$120,'Report - ALL (DASHBOARD)'!$W$3) -> 0 | M18: =INDEX('Compile Data'!DW$95:DW$120,'Report - ALL (DASHBOARD)'!$W$3) -> 5.63501925e-05 | O18: ='Compile Data'!$F$1 -> ALT 1A 062222 noShaEXCH 2035 CT | P18: =INDEX('Compile Data'!$DL$95:$EI$120,'Report - ALL (DASHBOARD)'!$W$3,'Report - ALL (DASHBOARD)'!$W$4) -> 256.4261078 | Q18: =$P18-$P$14 -> 256.4261078 | R18: =$P18-$P$15 -> -46.17285947 | U18: ='Compile Data'!$F$1 -> ALT 1A 062222 noShaEXCH 2035 CT | V18: =INDEX('Compile Data'!$DL$95:$EI$120,14,'Report - ALL (DASHBOARD)'!$W$4) -> 367.5293978 | W18: =INDEX('Compile Data'!$DL$95:$EI$120,15,'Report - ALL (DASHBOARD)'!$W$4) -> 434.0505577 | X18: =INDEX('Compile Data'!$DL$95:$EI$120,16,'Report - ALL (DASHBOARD)'!$W$4) -> 224.1439298 | Y18: =INDEX('Compile Data'!$DL$95:$EI$120,17,'Report - ALL (DASHBOARD)'!$W$4) -> 140.0551082 | Z18: =INDEX('Compile Data'!$DL$95:$EI$120,18,'Report - ALL (DASHBOARD)'!$W$4) -> 50.29690329
A19: ='Compile Data'!$G$1 -> 0 | B19: =INDEX('Compile Data'!EL$95:EL$120,'Report - ALL (DASHBOARD)'!$W$3) ->  | C19: =INDEX('Compile Data'!EM$95:EM$120,'Report - ALL (DASHBOARD)'!$W$3) ->  | D19: =INDEX('Compile Data'!EN$95:EN$120,'Report - ALL (DASHBOARD)'!$W$3) ->  | E19: =INDEX('Compile Data'!EO$95:EO$120,'Report - ALL (DASHBOARD)'!$W$3) ->  | F19: =INDEX('Compile Data'!EP$95:EP$120,'Report - ALL (DASHBOARD)'!$W$3) ->  | G19: =INDEX('Compile Data'!EQ$95:EQ$120,'Report - ALL (DASHBOARD)'!$W$3) ->  | H19: =INDEX('Compile Data'!ER$95:ER$120,'Report - ALL (DASHBOARD)'!$W$3) ->  | I19: =INDEX('Compile Data'!ES$95:ES$120,'Report - ALL (DASHBOARD)'!$W$3) ->  | J19: =INDEX('Compile Data'!ET$95:ET$120,'Report - ALL (DASHBOARD)'!$W$3) ->  | K19: =INDEX('Compile Data'!EU$95:EU$120,'Report - ALL (DASHBOARD)'!$W$3) ->  | L19: =INDEX('Compile Data'!EV$95:EV$120,'Report - ALL (DASHBOARD)'!$W$3) ->  | M19: =INDEX('Compile Data'!EW$95:EW$120,'Report - ALL (DASHBOARD)'!$W$3) ->  | O19: ='Compile Data'!$G$1 -> 0 | P19: =INDEX('Compile Data'!$EL$95:$FI$120,'Report - ALL (DASHBOARD)'!$W$3,'Report - ALL (DASHBOARD)'!$W$4) ->  | R19: =$P19-$P$15 ->  | U19: ='Compile Data'!$G$1 -> 0 | V19: =INDEX('Compile Data'!$EL$95:$FI$120,14,'Report - ALL (DASHBOARD)'!$W$4) ->  | W19: =INDEX('Compile Data'!$EL$95:$FI$120,15,'Report - ALL (DASHBOARD)'!$W$4) ->  | X19: =INDEX('Compile Data'!$EL$95:$FI$120,16,'Report - ALL (DASHBOARD)'!$W$4) ->  | Y19: =INDEX('Compile Data'!$EL$95:$FI$120,17,'Report - ALL (DASHBOARD)'!$W$4) ->  | Z19: =INDEX('Compile Data'!$EL$95:$FI$120,18,'Report - ALL (DASHBOARD)'!$W$4) -> 
A21: Annuals Plot: | O21: Exceedence Plot:
A23: Title: | B23: =INDEX(Other!$B$9:$B$33,'Report - ALL (DASHBOARD)'!$W$4) -> October-September | O23: Title: | P23: =INDEX(Other!$B$9:$B$33,'Report - ALL (DASHBOARD)'!$W$4) -> October-September
B24: ='Compile Data'!$B$5 -> Total Sites Diversion to Fill | P24: ='Compile Data'!$B$5 -> Total Sites Diversion to Fill
B25: =IF('Compile Data'!$B$10="CFS","Flow (CFS)",IF('Compile Data'!$B$10="TAF","Volume (TAF)",IF('Compile Data'!$B$10="KM","POSITION (KM)",""))) -> Volume (TAF) | P25: =IF('Compile Data'!$B$10="CFS","Flow (CFS)",IF('Compile Data'!$B$10="TAF","Volume (TAF)",IF('Compile Data'!$B$10="KM","POSITION (KM)",""))) -> Volume (TAF)
B27: ='Compile Data'!$B$1 -> NAA 041222 2035 CT | C27: ='Compile Data'!$C$1 -> ALT 3A 041122 2035 CT | D27: ='Compile Data'!$D$1 -> ALT 3B 041122 2035 CT | E27: ='Compile Data'!$E$1 -> ALT 1A 062222 2035 CT | F27: ='Compile Data'!$F$1 -> ALT 1A 062222 noShaEXCH 2035 CT | G27: ='Compile Data'!$G$1 -> 0 | Q27: ='Compile Data'!$B$1 -> NAA 041222 2035 CT | R27: ='Compile Data'!$C$1 -> ALT 3A 041122 2035 CT | S27: ='Compile Data'!$D$1 -> ALT 3B 041122 2035 CT | T27: ='Compile Data'!$E$1 -> ALT 1A 062222 2035 CT | U27: ='Compile Data'!$F$1 -> ALT 1A 062222 noShaEXCH 2035 CT | V27: ='Compile Data'!$G$1 -> 0
A28: 1922 | B28: =INDEX('Compile Data'!$L$12:$AI$93,$A28-1921,'Report - ALL (DASHBOARD)'!$W$4) -> 0 | C28: =INDEX('Compile Data'!$AL$12:$BI$93,$A28-1921,'Report - ALL (DASHBOARD)'!$W$4) -> 143.7024793 | D28: =INDEX('Compile Data'!$BL$12:$CI$93,$A28-1921,'Report - ALL (DASHBOARD)'!$W$4) -> 143.7024793 | E28: =INDEX('Compile Data'!$CL$12:$DI$93,$A28-1921,'Report - ALL (DASHBOARD)'!$W$4) -> 143.7024793 | F28: =INDEX('Compile Data'!$DL$12:$EI$93,$A28-1921,'Report - ALL (DASHBOARD)'!$W$4) -> 143.7024793 | G28: =INDEX('Compile Data'!$EL$12:$FI$93,$A28-1921,'Report - ALL (DASHBOARD)'!$W$4) ->  | I28: =C28-$B28 -> 143.7024793 | J28: =D28-$B28 -> 143.7024793 | L28: =Flags_Scn1!C12 -> 2 | O28: 1 | P28: =(O28-1)/81 -> 0 | Q28: =INDEX('Compile Data'!$L$123:$AI$204,$O28,'Report - ALL (DASHBOARD)'!$W$4) -> 0 | R28: =INDEX('Compile Data'!$AL$123:$BI$204,$O28,'Report - ALL (DASHBOARD)'!$W$4) -> 967.1308494 | S28: =INDEX('Compile Data'!$BL$123:$CI$204,$O28,'Report - ALL (DASHBOARD)'!$W$4) -> 942.8615313 | T28: =INDEX('Compile Data'!$CL$123:$DI$204,$O28,'Report - ALL (DASHBOARD)'!$W$4) -> 923.9081729 | U28: =INDEX('Compile Data'!$DL$123:$EI$204,$O28,'Report - ALL (DASHBOARD)'!$W$4) -> 923.9152511 | V28: =INDEX('Compile Data'!$EL$123:$FI$204,$O28,'Report - ALL (DASHBOARD)'!$W$4) -> 
A29: =A28+1 -> 1923 | B29: =INDEX('Compile Data'!$L$12:$AI$93,$A29-1921,'Report - ALL (DASHBOARD)'!$W$4) -> 0 | C29: =INDEX('Compile Data'!$AL$12:$BI$93,$A29-1921,'Report - ALL (DASHBOARD)'!$W$4) -> 177.0508472 | D29: =INDEX('Compile Data'!$BL$12:$CI$93,$A29-1921,'Report - ALL (DASHBOARD)'!$W$4) -> 177.0452349 | E29: =INDEX('Compile Data'!$CL$12:$DI$93,$A29-1921,'Report - ALL (DASHBOARD)'!$W$4) -> 174.5984138 | F29: =INDEX('Compile Data'!$DL$12:$EI$93,$A29-1921,'Report - ALL (DASHBOARD)'!$W$4) -> 174.5984138 | G29: =INDEX('Compile Data'!$EL$12:$FI$93,$A29-1921,'Report - ALL (DASHBOARD)'!$W$4) ->  | I29: =C29-$B29 -> 177.0508472 | J29: =D29-$B29 -> 177.0452349 | L29: =Flags_Scn1!C13 -> 3 | O29: 2 | P29: 0.01234567901 | Q29: =INDEX('Compile Data'!$L$123:$AI$204,$O29,'Report - ALL (DASHBOARD)'!$W$4) -> 0 | R29: =INDEX('Compile Data'!$AL$123:$BI$204,$O29,'Report - ALL (DASHBOARD)'!$W$4) -> 930.8273737 | S29: =INDEX('Compile Data'!$BL$123:$CI$204,$O29,'Report - ALL (DASHBOARD)'!$W$4) -> 931.0116641 | T29: =INDEX('Compile Data'!$CL$123:$DI$204,$O29,'Report - ALL (DASHBOARD)'!$W$4) -> 903.9527918 | U29: =INDEX('Compile Data'!$DL$123:$EI$204,$O29,'Report - ALL (DASHBOARD)'!$W$4) -> 902.4169705 | V29: =INDEX('Compile Data'!$EL$123:$FI$204,$O29,'Report - ALL (DASHBOARD)'!$W$4) -> 
A30: =A29+1 -> 1924 | B30: =INDEX('Compile Data'!$L$12:$AI$93,$A30-1921,'Report - ALL (DASHBOARD)'!$W$4) -> 0 | C30: =INDEX('Compile Data'!$AL$12:$BI$93,$A30-1921,'Report - ALL (DASHBOARD)'!$W$4) -> 0 | D30: =INDEX('Compile Data'!$BL$12:$CI$93,$A30-1921,'Report - ALL (DASHBOARD)'!$W$4) -> 0 | E30: =INDEX('Compile Data'!$CL$12:$DI$93,$A30-1921,'Report - ALL (DASHBOARD)'!$W$4) -> 0 | F30: =INDEX('Compile Data'!$DL$12:$EI$93,$A30-1921,'Report - ALL (DASHBOARD)'!$W$4) -> 0 | G30: =INDEX('Compile Data'!$EL$12:$FI$93,$A30-1921,'Report - ALL (DASHBOARD)'!$W$4) ->  | I30: 0 | J30: 0 | L30: =Flags_Scn1!C14 -> 5 | O30: 3 | P30: 0.02469135802 | Q30: =INDEX('Compile Data'!$L$123:$AI$204,$O30,'Report - ALL (DASHBOARD)'!$W$4) -> 0 | R30: =INDEX('Compile Data'!$AL$123:$BI$204,$O30,'Report - ALL (DASHBOARD)'!$W$4) -> 921.2830961 | S30: =INDEX('Compile Data'!$BL$123:$CI$204,$O30,'Report - ALL (DASHBOARD)'!$W$4) -> 902.4584956 | T30: =INDEX('Compile Data'!$CL$123:$DI$204,$O30,'Report - ALL (DASHBOARD)'!$W$4) -> 902.4166618 | U30: =INDEX('Compile Data'!$DL$123:$EI$204,$O30,'Report - ALL (DASHBOARD)'!$W$4) -> 900.5310848 | V30: =INDEX('Compile Data'!$EL$123:$FI$204,$O30,'Report - ALL (DASHBOARD)'!$W$4) -> 
A31: 1925 | B31: =INDEX('Compile Data'!$L$12:$AI$93,$A31-1921,'Report - ALL (DASHBOARD)'!$W$4) -> 0 | C31: =INDEX('Compile Data'!$AL$12:$BI$93,$A31-1921,'Report - ALL (DASHBOARD)'!$W$4) -> 164.231405 | D31: =INDEX('Compile Data'!$BL$12:$CI$93,$A31-1921,'Report - ALL (DASHBOARD)'!$W$4) -> 164.231405 | E31: =INDEX('Compile Data'!$CL$12:$DI$93,$A31-1921,'Report - ALL (DASHBOARD)'!$W$4) -> 164.231405 | F31: =INDEX('Compile Data'!$DL$12:$EI$93,$A31-1921,'Report - ALL (DASHBOARD)'!$W$4) -> 164.231405 | G31: =INDEX('Compile Data'!$EL$12:$FI$93,$A31-1921,'Report - ALL (DASHBOARD)'!$W$4) ->  | I31: 164.231405 | J31: 164.231405 | L31: =Flags_Scn1!C15 -> 4 | O31: 4 | P31: 0.03703703704 | Q31: =INDEX('Compile Data'!$L$123:$AI$204,$O31,'Report - ALL (DASHBOARD)'!$W$4) -> 0 | R31: =INDEX('Compile Data'!$AL$123:$BI$204,$O31,'Report - ALL (DASHBOARD)'!$W$4) -> 902.4883961 | S31: =INDEX('Compile Data'!$BL$123:$CI$204,$O31,'Report - ALL (DASHBOARD)'!$W$4) -> 828.8901097 | T31: =INDEX('Compile Data'!$CL$123:$DI$204,$O31,'Report - ALL (DASHBOARD)'!$W$4) -> 828.8897433 | U31: =INDEX('Compile Data'!$DL$123:$EI$204,$O31,'Report - ALL (DASHBOARD)'!$W$4) -> 828.8897433 | V31: =INDEX('Compile Data'!$EL$123:$FI$204,$O31,'Report - ALL (DASHBOARD)'!$W$4) -> 
A32: 1926 | B32: =INDEX('Compile Data'!$L$12:$AI$93,$A32-1921,'Report - ALL (DASHBOARD)'!$W$4) -> 0 | C32: =INDEX('Compile Data'!$AL$12:$BI$93,$A32-1921,'Report - ALL (DASHBOARD)'!$W$4) -> 189.2707438 | D32: =INDEX('Compile Data'!$BL$12:$CI$93,$A32-1921,'Report - ALL (DASHBOARD)'!$W$4) -> 189.2707438 | E32: =INDEX('Compile Data'!$CL$12:$DI$93,$A32-1921,'Report - ALL (DASHBOARD)'!$W$4) -> 189.2707438 | F32: =INDEX('Compile Data'!$DL$12:$EI$93,$A32-1921,'Report - ALL (DASHBOARD)'!$W$4) -> 189.2707438 | G32: =INDEX('Compile Data'!$EL$12:$FI$93,$A32-1921,'Report - ALL (DASHBOARD)'!$W$4) ->  | I32: 189.2707438 | J32: 189.2707438 | L32: =Flags_Scn1!C16 -> 4 | O32: 5 | P32: 0.04938271605 | Q32: =INDEX('Compile Data'!$L$123:$AI$204,$O32,'Report - ALL (DASHBOARD)'!$W$4) -> 0 | R32: =INDEX('Compile Data'!$AL$123:$BI$204,$O32,'Report - ALL (DASHBOARD)'!$W$4) -> 889.5263265 | S32: =INDEX('Compile Data'!$BL$123:$CI$204,$O32,'Report - ALL (DASHBOARD)'!$W$4) -> 803.7689948 | T32: =INDEX('Compile Data'!$CL$123:$DI$204,$O32,'Report - ALL (DASHBOARD)'!$W$4) -> 803.7162847 | U32: =INDEX('Compile Data'!$DL$123:$EI$204,$O32,'Report - ALL (DASHBOARD)'!$W$4) -> 803.7165478 | V32: =INDEX('Compile Data'!$EL$123:$FI$204,$O32,'Report - ALL (DASHBOARD)'!$W$4) -> 
A33: 1927 | B33: =INDEX('Compile Data'!$L$12:$AI$93,$A33-1921,'Report - ALL (DASHBOARD)'!$W$4) -> 0 | C33: =INDEX('Compile Data'!$AL$12:$BI$93,$A33-1921,'Report - ALL (DASHBOARD)'!$W$4) -> 967.1308494 | D33: =INDEX('Compile Data'!$BL$12:$CI$93,$A33-1921,'Report - ALL (DASHBOARD)'!$W$4) -> 942.8615313 | E33: =INDEX('Compile Data'!$CL$12:$DI$93,$A33-1921,'Report - ALL (DASHBOARD)'!$W$4) -> 903.9527918 | F33: =INDEX('Compile Data'!$DL$12:$EI$93,$A33-1921,'Report - ALL (DASHBOARD)'!$W$4) -> 900.5310848 | G33: =INDEX('Compile Data'!$EL$12:$FI$93,$A33-1921,'Report - ALL (DASHBOARD)'!$W$4) ->  | I33: 967.1308494 | J33: 942.8615313 | L33: =Flags_Scn1!C17 -> 1 | O33: 6 | P33: 0.06172839506 | Q33: =INDEX('Compile Data'!$L$123:$AI$204,$O33,'Report - ALL (DASHBOARD)'!$W$4) -> 0 | R33: =INDEX('Compile Data'!$AL$123:$BI$204,$O33,'Report - ALL (DASHBOARD)'!$W$4) -> 889.0153731 | S33: =INDEX('Compile Data'!$BL$123:$CI$204,$O33,'Report - ALL (DASHBOARD)'!$W$4) -> 794.4007573 | T33: =INDEX('Compile Data'!$CL$123:$DI$204,$O33,'Report - ALL (DASHBOARD)'!$W$4) -> 729.7767199 | U33: =INDEX('Compile Data'!$DL$123:$EI$204,$O33,'Report - ALL (DASHBOARD)'!$W$4) -> 729.914263 | V33: =INDEX('Compile Data'!$EL$123:$FI$204,$O33,'Report - ALL (DASHBOARD)'!$W$4) -> 
A34: 1928 | B34: =INDEX('Compile Data'!$L$12:$AI$93,$A34-1921,'Report - ALL (DASHBOARD)'!$W$4) -> 0 | C34: =INDEX('Compile Data'!$AL$12:$BI$93,$A34-1921,'Report - ALL (DASHBOARD)'!$W$4) -> 321.3763104 | D34: =INDEX('Compile Data'!$BL$12:$CI$93,$A34-1921,'Report - ALL (DASHBOARD)'!$W$4) -> 315.9099834 | E34: =INDEX('Compile Data'!$CL$12:$DI$93,$A34-1921,'Report - ALL (DASHBOARD)'!$W$4) -> 301.1197811 | F34: =INDEX('Compile Data'!$DL$12:$EI$93,$A34-1921,'Report - ALL (DASHBOARD)'!$W$4) -> 301.1194748 | G34: =INDEX('Compile Data'!$EL$12:$FI$93,$A34-1921,'Report - ALL (DASHBOARD)'!$W$4) ->  | I34: 321.3763104 | J34: 315.9099834 | L34: =Flags_Scn1!C18 -> 2 | O34: 7 | P34: 0.07407407407 | Q34: =INDEX('Compile Data'!$L$123:$AI$204,$O34,'Report - ALL (DASHBOARD)'!$W$4) -> 0 | R34: =INDEX('Compile Data'!$AL$123:$BI$204,$O34,'Report - ALL (DASHBOARD)'!$W$4) -> 828.8901188 | S34: =INDEX('Compile Data'!$BL$123:$CI$204,$O34,'Report - ALL (DASHBOARD)'!$W$4) -> 759.4347453 | T34: =INDEX('Compile Data'!$CL$123:$DI$204,$O34,'Report - ALL (DASHBOARD)'!$W$4) -> 723.7678609 | U34: =INDEX('Compile Data'!$DL$123:$EI$204,$O34,'Report - ALL (DASHBOARD)'!$W$4) -> 719.9547356 | V34: =INDEX('Compile Data'!$EL$123:$FI$204,$O34,'Report - ALL (DASHBOARD)'!$W$4) -> 
A35: 1929 | B35: =INDEX('Compile Data'!$L$12:$AI$93,$A35-1921,'Report - ALL (DASHBOARD)'!$W$4) -> 0 | C35: =INDEX('Compile Data'!$AL$12:$BI$93,$A35-1921,'Report - ALL (DASHBOARD)'!$W$4) -> 0 | D35: =INDEX('Compile Data'!$BL$12:$CI$93,$A35-1921,'Report - ALL (DASHBOARD)'!$W$4) -> 0 | E35: =INDEX('Compile Data'!$CL$12:$DI$93,$A35-1921,'Report - ALL (DASHBOARD)'!$W$4) -> 0 | F35: =INDEX('Compile Data'!$DL$12:$EI$93,$A35-1921,'Report - ALL (DASHBOARD)'!$W$4) -> 0 | G35: =INDEX('Compile Data'!$EL$12:$FI$93,$A35-1921,'Report - ALL (DASHBOARD)'!$W$4) ->  | I35: 0 | J35: 0 | L35: =Flags_Scn1!C19 -> 5 | O35: 8 | P35: 0.08641975309 | Q35: =INDEX('Compile Data'!$L$123:$AI$204,$O35,'Report - ALL (DASHBOARD)'!$W$4) -> 0 | R35: =INDEX('Compile Data'!$AL$123:$BI$204,$O35,'Report - ALL (DASHBOARD)'!$W$4) -> 803.7741249 | S35: =INDEX('Compile Data'!$BL$123:$CI$204,$O35,'Report - ALL (DASHBOARD)'!$W$4) -> 759.3512236 | T35: =INDEX('Compile Data'!$CL$123:$DI$204,$O35,'Report - ALL (DASHBOARD)'!$W$4) -> 719.9548776 | U35: =INDEX('Compile Data'!$DL$123:$EI$204,$O35,'Report - ALL (DASHBOARD)'!$W$4) -> 718.5350682 | V35: =INDEX('Compile Data'!$EL$123:$FI$204,$O35,'Report - ALL (DASHBOARD)'!$W$4) -> 
A36: 1930 | B36: =INDEX('Compile Data'!$L$12:$AI$93,$A36-1921,'Report - ALL (DASHBOARD)'!$W$4) -> 0 | C36: =INDEX('Compile Data'!$AL$12:$BI$93,$A36-1921,'Report - ALL (DASHBOARD)'!$W$4) -> 122.6906765 | D36: =INDEX('Compile Data'!$BL$12:$CI$93,$A36-1921,'Report - ALL (DASHBOARD)'!$W$4) -> 122.6926496 | E36: =INDEX('Compile Data'!$CL$12:$DI$93,$A36-1921,'Report - ALL (DASHBOARD)'!$W$4) -> 122.7162421 | F36: =INDEX('Compile Data'!$DL$12:$EI$93,$A36-1921,'Report - ALL (DASHBOARD)'!$W$4) -> 122.5622041 | G36: =INDEX('Compile Data'!$EL$12:$FI$93,$A36-1921,'Report - ALL (DASHBOARD)'!$W$4) ->  | I36: 122.6906765 | J36: 122.6926496 | L36: =Flags_Scn1!C20 -> 4 | O36: 9 | P36: 0.0987654321 | Q36: =INDEX('Compile Data'!$L$123:$AI$204,$O36,'Report - ALL (DASHBOARD)'!$W$4) -> 0 | R36: =INDEX('Compile Data'!$AL$123:$BI$204,$O36,'Report - ALL (DASHBOARD)'!$W$4) -> 752.108067 | S36: =INDEX('Compile Data'!$BL$123:$CI$204,$O36,'Report - ALL (DASHBOARD)'!$W$4) -> 750.657958 | T36: =INDEX('Compile Data'!$CL$123:$DI$204,$O36,'Report - ALL (DASHBOARD)'!$W$4) -> 679.8344636 | U36: =INDEX('Compile Data'!$DL$123:$EI$204,$O36,'Report - ALL (DASHBOARD)'!$W$4) -> 679.0634846 | V36: =INDEX('Compile Data'!$EL$123:$FI$204,$O36,'Report - ALL (DASHBOARD)'!$W$4) -> 
A37: 1931 | B37: =INDEX('Compile Data'!$L$12:$AI$93,$A37-1921,'Report - ALL (DASHBOARD)'!$W$4) -> 0 | C37: =INDEX('Compile Data'!$AL$12:$BI$93,$A37-1921,'Report - ALL (DASHBOARD)'!$W$4) -> 0 | D37: =INDEX('Compile Data'!$BL$12:$CI$93,$A37-1921,'Report - ALL (DASHBOARD)'!$W$4) -> 0 | E37: =INDEX('Compile Data'!$CL$12:$DI$93,$A37-1921,'Report - ALL (DASHBOARD)'!$W$4) -> 0 | F37: =INDEX('Compile Data'!$DL$12:$EI$93,$A37-1921,'Report - ALL (DASHBOARD)'!$W$4) -> 0 | G37: =INDEX('Compile Data'!$EL$12:$FI$93,$A37-1921,'Report - ALL (DASHBOARD)'!$W$4) ->  | I37: 0 | J37: 0 | L37: =Flags_Scn1!C21 -> 5 | O37: 10 | P37: 0.1111111111 | Q37: =INDEX('Compile Data'!$L$123:$AI$204,$O37,'Report - ALL (DASHBOARD)'!$W$4) -> 0 | R37: =INDEX('Compile Data'!$AL$123:$BI$204,$O37,'Report - ALL (DASHBOARD)'!$W$4) -> 723.9646643 | S37: =INDEX('Compile Data'!$BL$123:$CI$204,$O37,'Report - ALL (DASHBOARD)'!$W$4) -> 723.938711 | T37: =INDEX('Compile Data'!$CL$123:$DI$204,$O37,'Report - ALL (DASHBOARD)'!$W$4) -> 589.1994172 | U37: =INDEX('Compile Data'!$DL$123:$EI$204,$O37,'Report - ALL (DASHBOARD)'!$W$4) -> 589.1983207 | V37: =INDEX('Compile Data'!$EL$123:$FI$204,$O37,'Report - ALL (DASHBOARD)'!$W$4) -> 
A38: 1932 | B38: =INDEX('Compile Data'!$L$12:$AI$93,$A38-1921,'Report - ALL (DASHBOARD)'!$W$4) -> 0 | C38: =INDEX('Compile Data'!$AL$12:$BI$93,$A38-1921,'Report - ALL (DASHBOARD)'!$W$4) -> 45.7028649 | D38: =INDEX('Compile Data'!$BL$12:$CI$93,$A38-1921,'Report - ALL (DASHBOARD)'!$W$4) -> 46.09807788 | E38: =INDEX('Compile Data'!$CL$12:$DI$93,$A38-1921,'Report - ALL (DASHBOARD)'!$W$4) -> 46.10832632 | F38: =INDEX('Compile Data'!$DL$12:$EI$93,$A38-1921,'Report - ALL (DASHBOARD)'!$W$4) -> 46.10545975 | G38: =INDEX('Compile Data'!$EL$12:$FI$93,$A38-1921,'Report - ALL (DASHBOARD)'!$W$4) ->  | I38: 45.7028649 | J38: 46.09807788 | L38: =Flags_Scn1!C22 -> 4 | O38: 11 | P38: 0.1234567901 | Q38: =INDEX('Compile Data'!$L$123:$AI$204,$O38,'Report - ALL (DASHBOARD)'!$W$4) -> 0 | R38: =INDEX('Compile Data'!$AL$123:$BI$204,$O38,'Report - ALL (DASHBOARD)'!$W$4) -> 719.7662778 | S38: =INDEX('Compile Data'!$BL$123:$CI$204,$O38,'Report - ALL (DASHBOARD)'!$W$4) -> 719.9868051 | T38: =INDEX('Compile Data'!$CL$123:$DI$204,$O38,'Report - ALL (DASHBOARD)'!$W$4) -> 569.5044521 | U38: =INDEX('Compile Data'!$DL$123:$EI$204,$O38,'Report - ALL (DASHBOARD)'!$W$4) -> 569.5044521 | V38: =INDEX('Compile Data'!$EL$123:$FI$204,$O38,'Report - ALL (DASHBOARD)'!$W$4) -> 
A39: 1933 | B39: =INDEX('Compile Data'!$L$12:$AI$93,$A39-1921,'Report - ALL (DASHBOARD)'!$W$4) -> 0 | C39: =INDEX('Compile Data'!$AL$12:$BI$93,$A39-1921,'Report - ALL (DASHBOARD)'!$W$4) -> 1.844266989 | D39: =INDEX('Compile Data'!$BL$12:$CI$93,$A39-1921,'Report - ALL (DASHBOARD)'!$W$4) -> 0.007695745382 | E39: =INDEX('Compile Data'!$CL$12:$DI$93,$A39-1921,'Report - ALL (DASHBOARD)'!$W$4) -> 0 | F39: =INDEX('Compile Data'!$DL$12:$EI$93,$A39-1921,'Report - ALL (DASHBOARD)'!$W$4) -> 0 | G39: =INDEX('Compile Data'!$EL$12:$FI$93,$A39-1921,'Report - ALL (DASHBOARD)'!$W$4) ->  | I39: 1.844266989 | J39: 0.007695745382 | L39: =Flags_Scn1!C23 -> 5 | O39: 12 | P39: 0.1358024691 | Q39: =INDEX('Compile Data'!$L$123:$AI$204,$O39,'Report - ALL (DASHBOARD)'!$W$4) -> 0 | R39: =INDEX('Compile Data'!$AL$123:$BI$204,$O39,'Report - ALL (DASHBOARD)'!$W$4) -> 718.6739231 | S39: =INDEX('Compile Data'!$BL$123:$CI$204,$O39,'Report - ALL (DASHBOARD)'!$W$4) -> 699.8205096 | T39: =INDEX('Compile Data'!$CL$123:$DI$204,$O39,'Report - ALL (DASHBOARD)'!$W$4) -> 540.0602831 | U39: =INDEX('Compile Data'!$DL$123:$EI$204,$O39,'Report - ALL (DASHBOARD)'!$W$4) -> 534.3737921 | V39: =INDEX('Compile Data'!$EL$123:$FI$204,$O39,'Report - ALL (DASHBOARD)'!$W$4) -> 
A40: 1934 | B40: =INDEX('Compile Data'!$L$12:$AI$93,$A40-1921,'Report - ALL (DASHBOARD)'!$W$4) -> 0 | C40: =INDEX('Compile Data'!$AL$12:$BI$93,$A40-1921,'Report - ALL (DASHBOARD)'!$W$4) -> 7.842748178 | D40: =INDEX('Compile Data'!$BL$12:$CI$93,$A40-1921,'Report - ALL (DASHBOARD)'!$W$4) -> 5.369624766 | E40: =INDEX('Compile Data'!$CL$12:$DI$93,$A40-1921,'Report - ALL (DASHBOARD)'!$W$4) -> 1.543471711 | F40: =INDEX('Compile Data'!$DL$12:$EI$93,$A40-1921,'Report - ALL (DASHBOARD)'!$W$4) -> 0.2299417939 | G40: =INDEX('Compile Data'!$EL$12:$FI$93,$A40-1921,'Report - ALL (DASHBOARD)'!$W$4) ->  | I40: 7.842748178 | J40: 5.369624766 | L40: =Flags_Scn1!C24 -> 5 | O40: 13 | P40: 0.1481481481 | Q40: =INDEX('Compile Data'!$L$123:$AI$204,$O40,'Report - ALL (DASHBOARD)'!$W$4) -> 0 | R40: =INDEX('Compile Data'!$AL$123:$BI$204,$O40,'Report - ALL (DASHBOARD)'!$W$4) -> 675.0339074 | S40: =INDEX('Compile Data'!$BL$123:$CI$204,$O40,'Report - ALL (DASHBOARD)'!$W$4) -> 651.0497732 | T40: =INDEX('Compile Data'!$CL$123:$DI$204,$O40,'Report - ALL (DASHBOARD)'!$W$4) -> 536.1557601 | U40: =INDEX('Compile Data'!$DL$123:$EI$204,$O40,'Report - ALL (DASHBOARD)'!$W$4) -> 533.7059493 | V40: =INDEX('Compile Data'!$EL$123:$FI$204,$O40,'Report - ALL (DASHBOARD)'!$W$4) -> 
A41: 1935 | B41: =INDEX('Compile Data'!$L$12:$AI$93,$A41-1921,'Report - ALL (DASHBOARD)'!$W$4) -> 0 | C41: =INDEX('Compile Data'!$AL$12:$BI$93,$A41-1921,'Report - ALL (DASHBOARD)'!$W$4) -> 443.4880324 | D41: =INDEX('Compile Data'!$BL$12:$CI$93,$A41-1921,'Report - ALL (DASHBOARD)'!$W$4) -> 443.4867611 | E41: =INDEX('Compile Data'!$CL$12:$DI$93,$A41-1921,'Report - ALL (DASHBOARD)'!$W$4) -> 443.482626 | F41: =INDEX('Compile Data'!$DL$12:$EI$93,$A41-1921,'Report - ALL (DASHBOARD)'!$W$4) -> 443.4822084 | G41: =INDEX('Compile Data'!$EL$12:$FI$93,$A41-1921,'Report - ALL (DASHBOARD)'!$W$4) ->  | I41: 443.4880324 | J41: 443.4867611 | L41: =Flags_Scn1!C25 -> 3 | O41: 14 | P41: 0.1604938272 | Q41: =INDEX('Compile Data'!$L$123:$AI$204,$O41,'Report - ALL (DASHBOARD)'!$W$4) -> 0 | R41: =INDEX('Compile Data'!$AL$123:$BI$204,$O41,'Report - ALL (DASHBOARD)'!$W$4) -> 656.6846172 | S41: =INDEX('Compile Data'!$BL$123:$CI$204,$O41,'Report - ALL (DASHBOARD)'!$W$4) -> 649.1560795 | T41: =INDEX('Compile Data'!$CL$123:$DI$204,$O41,'Report - ALL (DASHBOARD)'!$W$4) -> 533.7064775 | U41: =INDEX('Compile Data'!$DL$123:$EI$204,$O41,'Report - ALL (DASHBOARD)'!$W$4) -> 509.4275068 | V41: =INDEX('Compile Data'!$EL$123:$FI$204,$O41,'Report - ALL (DASHBOARD)'!$W$4) -> 
A42: 1936 | B42: =INDEX('Compile Data'!$L$12:$AI$93,$A42-1921,'Report - ALL (DASHBOARD)'!$W$4) -> 0 | C42: =INDEX('Compile Data'!$AL$12:$BI$93,$A42-1921,'Report - ALL (DASHBOARD)'!$W$4) -> 206.2953107 | D42: =INDEX('Compile Data'!$BL$12:$CI$93,$A42-1921,'Report - ALL (DASHBOARD)'!$W$4) -> 207.2242168 | E42: =INDEX('Compile Data'!$CL$12:$DI$93,$A42-1921,'Report - ALL (DASHBOARD)'!$W$4) -> 205.5792937 | F42: =INDEX('Compile Data'!$DL$12:$EI$93,$A42-1921,'Report - ALL (DASHBOARD)'!$W$4) -> 206.1846357 | G42: =INDEX('Compile Data'!$EL$12:$FI$93,$A42-1921,'Report - ALL (DASHBOARD)'!$W$4) ->  | I42: 206.2953107 | J42: 207.2242168 | L42: =Flags_Scn1!C26 -> 3 | O42: 15 | P42: 0.1728395062 | Q42: =INDEX('Compile Data'!$L$123:$AI$204,$O42,'Report - ALL (DASHBOARD)'!$W$4) -> 0 | R42: =INDEX('Compile Data'!$AL$123:$BI$204,$O42,'Report - ALL (DASHBOARD)'!$W$4) -> 608.5012458 | S42: =INDEX('Compile Data'!$BL$123:$CI$204,$O42,'Report - ALL (DASHBOARD)'!$W$4) -> 589.4571598 | T42: =INDEX('Compile Data'!$CL$123:$DI$204,$O42,'Report - ALL (DASHBOARD)'!$W$4) -> 531.946094 | U42: =INDEX('Compile Data'!$DL$123:$EI$204,$O42,'Report - ALL (DASHBOARD)'!$W$4) -> 459.1925964 | V42: =INDEX('Compile Data'!$EL$123:$FI$204,$O42,'Report - ALL (DASHBOARD)'!$W$4) -> 
A43: 1937 | B43: =INDEX('Compile Data'!$L$12:$AI$93,$A43-1921,'Report - ALL (DASHBOARD)'!$W$4) -> 0 | C43: =INDEX('Compile Data'!$AL$12:$BI$93,$A43-1921,'Report - ALL (DASHBOARD)'!$W$4) -> 295.0756416 | D43: =INDEX('Compile Data'!$BL$12:$CI$93,$A43-1921,'Report - ALL (DASHBOARD)'!$W$4) -> 295.0341064 | E43: =INDEX('Compile Data'!$CL$12:$DI$93,$A43-1921,'Report - ALL (DASHBOARD)'!$W$4) -> 294.2042667 | F43: =INDEX('Compile Data'!$DL$12:$EI$93,$A43-1921,'Report - ALL (DASHBOARD)'!$W$4) -> 294.2047038 | G43: =INDEX('Compile Data'!$EL$12:$FI$93,$A43-1921,'Report - ALL (DASHBOARD)'!$W$4) ->  | I43: 295.0756416 | J43: 295.0341064 | L43: =Flags_Scn1!C27 -> 3 | O43: 16 | P43: 0.1851851852 | Q43: =INDEX('Compile Data'!$L$123:$AI$204,$O43,'Report - ALL (DASHBOARD)'!$W$4) -> 0 | R43: =INDEX('Compile Data'!$AL$123:$BI$204,$O43,'Report - ALL (DASHBOARD)'!$W$4) -> 589.5332405 | S43: =INDEX('Compile Data'!$BL$123:$CI$204,$O43,'Report - ALL (DASHBOARD)'!$W$4) -> 569.5044521 | T43: =INDEX('Compile Data'!$CL$123:$DI$204,$O43,'Report - ALL (DASHBOARD)'!$W$4) -> 456.6429131 | U43: =INDEX('Compile Data'!$DL$123:$EI$204,$O43,'Report - ALL (DASHBOARD)'!$W$4) -> 448.0124243 | V43: =INDEX('Compile Data'!$EL$123:$FI$204,$O43,'Report - ALL (DASHBOARD)'!$W$4) -> 
A44: 1938 | B44: =INDEX('Compile Data'!$L$12:$AI$93,$A44-1921,'Report - ALL (DASHBOARD)'!$W$4) -> 0 | C44: =INDEX('Compile Data'!$AL$12:$BI$93,$A44-1921,'Report - ALL (DASHBOARD)'!$W$4) -> 930.8273737 | D44: =INDEX('Compile Data'!$BL$12:$CI$93,$A44-1921,'Report - ALL (DASHBOARD)'!$W$4) -> 931.0116641 | E44: =INDEX('Compile Data'!$CL$12:$DI$93,$A44-1921,'Report - ALL (DASHBOARD)'!$W$4) -> 923.9081729 | F44: =INDEX('Compile Data'!$DL$12:$EI$93,$A44-1921,'Report - ALL (DASHBOARD)'!$W$4) -> 923.9152511 | G44: =INDEX('Compile Data'!$EL$12:$FI$93,$A44-1921,'Report - ALL (DASHBOARD)'!$W$4) ->  | I44: 930.8273737 | J44: 931.0116641 | L44: =Flags_Scn1!C28 -> 1 | O44: 17 | P44: 0.1975308642 | Q44: =INDEX('Compile Data'!$L$123:$AI$204,$O44,'Report - ALL (DASHBOARD)'!$W$4) -> 0 | R44: =INDEX('Compile Data'!$AL$123:$BI$204,$O44,'Report - ALL (DASHBOARD)'!$W$4) -> 581.6580664 | S44: =INDEX('Compile Data'!$BL$123:$CI$204,$O44,'Report - ALL (DASHBOARD)'!$W$4) -> 566.7223131 | T44: =INDEX('Compile Data'!$CL$123:$DI$204,$O44,'Report - ALL (DASHBOARD)'!$W$4) -> 456.349986 | U44: =INDEX('Compile Data'!$DL$123:$EI$204,$O44,'Report - ALL (DASHBOARD)'!$W$4) -> 444.8712461 | V44: =INDEX('Compile Data'!$EL$123:$FI$204,$O44,'Report - ALL (DASHBOARD)'!$W$4) -> 
A45: 1939 | B45: =INDEX('Compile Data'!$L$12:$AI$93,$A45-1921,'Report - ALL (DASHBOARD)'!$W$4) -> 0 | C45: =INDEX('Compile Data'!$AL$12:$BI$93,$A45-1921,'Report - ALL (DASHBOARD)'!$W$4) -> 0 | D45: =INDEX('Compile Data'!$BL$12:$CI$93,$A45-1921,'Report - ALL (DASHBOARD)'!$W$4) -> 0 | E45: =INDEX('Compile Data'!$CL$12:$DI$93,$A45-1921,'Report - ALL (DASHBOARD)'!$W$4) -> 0 | F45: =INDEX('Compile Data'!$DL$12:$EI$93,$A45-1921,'Report - ALL (DASHBOARD)'!$W$4) -> 0 | G45: =INDEX('Compile Data'!$EL$12:$FI$93,$A45-1921,'Report - ALL (DASHBOARD)'!$W$4) ->  | I45: 0 | J45: 0 | L45: =Flags_Scn1!C29 -> 4 | O45: 18 | P45: 0.2098765432 | Q45: =INDEX('Compile Data'!$L$123:$AI$204,$O45,'Report - ALL (DASHBOARD)'!$W$4) -> 0 | R45: =INDEX('Compile Data'!$AL$123:$BI$204,$O45,'Report - ALL (DASHBOARD)'!$W$4) -> 580.7184232 | S45: =INDEX('Compile Data'!$BL$123:$CI$204,$O45,'Report - ALL (DASHBOARD)'!$W$4) -> 557.793808 | T45: =INDEX('Compile Data'!$CL$123:$DI$204,$O45,'Report - ALL (DASHBOARD)'!$W$4) -> 444.866461 | U45: =INDEX('Compile Data'!$DL$123:$EI$204,$O45,'Report - ALL (DASHBOARD)'!$W$4) -> 443.4822084 | V45: =INDEX('Compile Data'!$EL$123:$FI$204,$O45,'Report - ALL (DASHBOARD)'!$W$4) -> 
A46: 1940 | B46: =INDEX('Compile Data'!$L$12:$AI$93,$A46-1921,'Report - ALL (DASHBOARD)'!$W$4) -> 0 | C46: =INDEX('Compile Data'!$AL$12:$BI$93,$A46-1921,'Report - ALL (DASHBOARD)'!$W$4) -> 803.7741249 | D46: =INDEX('Compile Data'!$BL$12:$CI$93,$A46-1921,'Report - ALL (DASHBOARD)'!$W$4) -> 803.7689948 | E46: =INDEX('Compile Data'!$CL$12:$DI$93,$A46-1921,'Report - ALL (DASHBOARD)'!$W$4) -> 803.7162847 | F46: =INDEX('Compile Data'!$DL$12:$EI$93,$A46-1921,'Report - ALL (DASHBOARD)'!$W$4) -> 803.7165478 | G46: =INDEX('Compile Data'!$EL$12:$FI$93,$A46-1921,'Report - ALL (DASHBOARD)'!$W$4) ->  | I46: 803.7741249 | J46: 803.7689948 | L46: =Flags_Scn1!C30 -> 2 | O46: 19 | P46: 0.2222222222 | Q46: =INDEX('Compile Data'!$L$123:$AI$204,$O46,'Report - ALL (DASHBOARD)'!$W$4) -> 0 | R46: =INDEX('Compile Data'!$AL$123:$BI$204,$O46,'Report - ALL (DASHBOARD)'!$W$4) -> 569.5044521 | S46: =INDEX('Compile Data'!$BL$123:$CI$204,$O46,'Report - ALL (DASHBOARD)'!$W$4) -> 544.6378672 | T46: =INDEX('Compile Data'!$CL$123:$DI$204,$O46,'Report - ALL (DASHBOARD)'!$W$4) -> 443.482626 | U46: =INDEX('Compile Data'!$DL$123:$EI$204,$O46,'Report - ALL (DASHBOARD)'!$W$4) -> 419.5061157 | V46: =INDEX('Compile Data'!$EL$123:$FI$204,$O46,'Report - ALL (DASHBOARD)'!$W$4) -> 
A47: 1941 | B47: =INDEX('Compile Data'!$L$12:$AI$93,$A47-1921,'Report - ALL (DASHBOARD)'!$W$4) -> 0 | C47: =INDEX('Compile Data'!$AL$12:$BI$93,$A47-1921,'Report - ALL (DASHBOARD)'!$W$4) -> 889.0153731 | D47: =INDEX('Compile Data'!$BL$12:$CI$93,$A47-1921,'Report - ALL (DASHBOARD)'!$W$4) -> 759.4347453 | E47: =INDEX('Compile Data'!$CL$12:$DI$93,$A47-1921,'Report - ALL (DASHBOARD)'!$W$4) -> 456.349986 | F47: =INDEX('Compile Data'!$DL$12:$EI$93,$A47-1921,'Report - ALL (DASHBOARD)'!$W$4) -> 448.0124243 | G47: =INDEX('Compile Data'!$EL$12:$FI$93,$A47-1921,'Report - ALL (DASHBOARD)'!$W$4) ->  | I47: 889.0153731 | J47: 759.4347453 | L47: =Flags_Scn1!C31 -> 1 | O47: 20 | P47: 0.2345679012 | Q47: =INDEX('Compile Data'!$L$123:$AI$204,$O47,'Report - ALL (DASHBOARD)'!$W$4) -> 0 | R47: =INDEX('Compile Data'!$AL$123:$BI$204,$O47,'Report - ALL (DASHBOARD)'!$W$4) -> 550.9279276 | S47: =INDEX('Compile Data'!$BL$123:$CI$204,$O47,'Report - ALL (DASHBOARD)'!$W$4) -> 478.6397481 | T47: =INDEX('Compile Data'!$CL$123:$DI$204,$O47,'Report - ALL (DASHBOARD)'!$W$4) -> 425.2674499 | U47: =INDEX('Compile Data'!$DL$123:$EI$204,$O47,'Report - ALL (DASHBOARD)'!$W$4) -> 387.8596299 | V47: =INDEX('Compile Data'!$EL$123:$FI$204,$O47,'Report - ALL (DASHBOARD)'!$W$4) -> 
A48: 1942 | B48: =INDEX('Compile Data'!$L$12:$AI$93,$A48-1921,'Report - ALL (DASHBOARD)'!$W$4) -> 0 | C48: =INDEX('Compile Data'!$AL$12:$BI$93,$A48-1921,'Report - ALL (DASHBOARD)'!$W$4) -> 124.6407162 | D48: =INDEX('Compile Data'!$BL$12:$CI$93,$A48-1921,'Report - ALL (DASHBOARD)'!$W$4) -> 124.6363504 | E48: =INDEX('Compile Data'!$CL$12:$DI$93,$A48-1921,'Report - ALL (DASHBOARD)'!$W$4) -> 124.6361099 | F48: =INDEX('Compile Data'!$DL$12:$EI$93,$A48-1921,'Report - ALL (DASHBOARD)'!$W$4) -> 124.6361097 | G48: =INDEX('Compile Data'!$EL$12:$FI$93,$A48-1921,'Report - ALL (DASHBOARD)'!$W$4) ->  | I48: 124.6407162 | J48: 124.6363504 | L48: =Flags_Scn1!C32 -> 1 | O48: 21 | P48: 0.2469135802 | Q48: =INDEX('Compile Data'!$L$123:$AI$204,$O48,'Report - ALL (DASHBOARD)'!$W$4) -> 0 | R48: =INDEX('Compile Data'!$AL$123:$BI$204,$O48,'Report - ALL (DASHBOARD)'!$W$4) -> 544.6378672 | S48: =INDEX('Compile Data'!$BL$123:$CI$204,$O48,'Report - ALL (DASHBOARD)'!$W$4) -> 443.9772678 | T48: =INDEX('Compile Data'!$CL$123:$DI$204,$O48,'Report - ALL (DASHBOARD)'!$W$4) -> 419.5061157 | U48: =INDEX('Compile Data'!$DL$123:$EI$204,$O48,'Report - ALL (DASHBOARD)'!$W$4) -> 384.686281 | V48: =INDEX('Compile Data'!$EL$123:$FI$204,$O48,'Report - ALL (DASHBOARD)'!$W$4) -> 
A49: 1943 | B49: =INDEX('Compile Data'!$L$12:$AI$93,$A49-1921,'Report - ALL (DASHBOARD)'!$W$4) -> 0 | C49: =INDEX('Compile Data'!$AL$12:$BI$93,$A49-1921,'Report - ALL (DASHBOARD)'!$W$4) -> 126.1965415 | D49: =INDEX('Compile Data'!$BL$12:$CI$93,$A49-1921,'Report - ALL (DASHBOARD)'!$W$4) -> 126.7077009 | E49: =INDEX('Compile Data'!$CL$12:$DI$93,$A49-1921,'Report - ALL (DASHBOARD)'!$W$4) -> 122.670385 | F49: =INDEX('Compile Data'!$DL$12:$EI$93,$A49-1921,'Report - ALL (DASHBOARD)'!$W$4) -> 122.6703848 | G49: =INDEX('Compile Data'!$EL$12:$FI$93,$A49-1921,'Report - ALL (DASHBOARD)'!$W$4) ->  | I49: 126.1965415 | J49: 126.7077009 | L49: =Flags_Scn1!C33 -> 1 | O49: 22 | P49: 0.2592592593 | Q49: =INDEX('Compile Data'!$L$123:$AI$204,$O49,'Report - ALL (DASHBOARD)'!$W$4) -> 0 | R49: =INDEX('Compile Data'!$AL$123:$BI$204,$O49,'Report - ALL (DASHBOARD)'!$W$4) -> 443.4880324 | S49: =INDEX('Compile Data'!$BL$123:$CI$204,$O49,'Report - ALL (DASHBOARD)'!$W$4) -> 443.4867611 | T49: =INDEX('Compile Data'!$CL$123:$DI$204,$O49,'Report - ALL (DASHBOARD)'!$W$4) -> 384.686281 | U49: =INDEX('Compile Data'!$DL$123:$EI$204,$O49,'Report - ALL (DASHBOARD)'!$W$4) -> 381.3994954 | V49: =INDEX('Compile Data'!$EL$123:$FI$204,$O49,'Report - ALL (DASHBOARD)'!$W$4) -> 
A50: 1944 | B50: =INDEX('Compile Data'!$L$12:$AI$93,$A50-1921,'Report - ALL (DASHBOARD)'!$W$4) -> 0 | C50: =INDEX('Compile Data'!$AL$12:$BI$93,$A50-1921,'Report - ALL (DASHBOARD)'!$W$4) -> 38.53672587 | D50: =INDEX('Compile Data'!$BL$12:$CI$93,$A50-1921,'Report - ALL (DASHBOARD)'!$W$4) -> 38.54883809 | E50: =INDEX('Compile Data'!$CL$12:$DI$93,$A50-1921,'Report - ALL (DASHBOARD)'!$W$4) -> 38.65172758 | F50: =INDEX('Compile Data'!$DL$12:$EI$93,$A50-1921,'Report - ALL (DASHBOARD)'!$W$4) -> 38.65192223 | G50: =INDEX('Compile Data'!$EL$12:$FI$93,$A50-1921,'Report - ALL (DASHBOARD)'!$W$4) ->  | I50: 38.53672587 | J50: 38.54883809 | L50: =Flags_Scn1!C34 -> 4 | O50: 23 | P50: 0.2716049383 | Q50: =INDEX('Compile Data'!$L$123:$AI$204,$O50,'Report - ALL (DASHBOARD)'!$W$4) -> 0 | R50: =INDEX('Compile Data'!$AL$123:$BI$204,$O50,'Report - ALL (DASHBOARD)'!$W$4) -> 419.5061157 | S50: =INDEX('Compile Data'!$BL$123:$CI$204,$O50,'Report - ALL (DASHBOARD)'!$W$4) -> 419.5061157 | T50: =INDEX('Compile Data'!$CL$123:$DI$204,$O50,'Report - ALL (DASHBOARD)'!$W$4) -> 381.3990212 | U50: =INDEX('Compile Data'!$DL$123:$EI$204,$O50,'Report - ALL (DASHBOARD)'!$W$4) -> 330.1130742 | V50: =INDEX('Compile Data'!$EL$123:$FI$204,$O50,'Report - ALL (DASHBOARD)'!$W$4) -> 
A51: 1945 | B51: =INDEX('Compile Data'!$L$12:$AI$93,$A51-1921,'Report - ALL (DASHBOARD)'!$W$4) -> 0 | C51: =INDEX('Compile Data'!$AL$12:$BI$93,$A51-1921,'Report - ALL (DASHBOARD)'!$W$4) -> 177.9173554 | D51: =INDEX('Compile Data'!$BL$12:$CI$93,$A51-1921,'Report - ALL (DASHBOARD)'!$W$4) -> 177.9173554 | E51: =INDEX('Compile Data'!$CL$12:$DI$93,$A51-1921,'Report - ALL (DASHBOARD)'!$W$4) -> 177.9173554 | F51: =INDEX('Compile Data'!$DL$12:$EI$93,$A51-1921,'Report - ALL (DASHBOARD)'!$W$4) -> 177.9173554 | G51: =INDEX('Compile Data'!$EL$12:$FI$93,$A51-1921,'Report - ALL (DASHBOARD)'!$W$4) ->  | I51: 177.9173554 | J51: 177.9173554 | L51: =Flags_Scn1!C35 -> 3 | O51: 24 | P51: 0.2839506173 | Q51: =INDEX('Compile Data'!$L$123:$AI$204,$O51,'Report - ALL (DASHBOARD)'!$W$4) -> 0 | R51: =INDEX('Compile Data'!$AL$123:$BI$204,$O51,'Report - ALL (DASHBOARD)'!$W$4) -> 386.2186726 | S51: =INDEX('Compile Data'!$BL$123:$CI$204,$O51,'Report - ALL (DASHBOARD)'!$W$4) -> 384.686281 | T51: =INDEX('Compile Data'!$CL$123:$DI$204,$O51,'Report - ALL (DASHBOARD)'!$W$4) -> 357.969746 | U51: =INDEX('Compile Data'!$DL$123:$EI$204,$O51,'Report - ALL (DASHBOARD)'!$W$4) -> 323.7765746 | V51: =INDEX('Compile Data'!$EL$123:$FI$204,$O51,'Report - ALL (DASHBOARD)'!$W$4) -> 
A52: 1946 | B52: =INDEX('Compile Data'!$L$12:$AI$93,$A52-1921,'Report - ALL (DASHBOARD)'!$W$4) -> 0 | C52: =INDEX('Compile Data'!$AL$12:$BI$93,$A52-1921,'Report - ALL (DASHBOARD)'!$W$4) -> 384.686281 | D52: =INDEX('Compile Data'!$BL$12:$CI$93,$A52-1921,'Report - ALL (DASHBOARD)'!$W$4) -> 384.686281 | E52: =INDEX('Compile Data'!$CL$12:$DI$93,$A52-1921,'Report - ALL (DASHBOARD)'!$W$4) -> 384.686281 | F52: =INDEX('Compile Data'!$DL$12:$EI$93,$A52-1921,'Report - ALL (DASHBOARD)'!$W$4) -> 384.686281 | G52: =INDEX('Compile Data'!$EL$12:$FI$93,$A52-1921,'Report - ALL (DASHBOARD)'!$W$4) ->  | I52: 384.686281 | J52: 384.686281 | L52: =Flags_Scn1!C36 -> 3 | O52: 25 | P52: 0.2962962963 | Q52: =INDEX('Compile Data'!$L$123:$AI$204,$O52,'Report - ALL (DASHBOARD)'!$W$4) -> 0 | R52: =INDEX('Compile Data'!$AL$123:$BI$204,$O52,'Report - ALL (DASHBOARD)'!$W$4) -> 384.686281 | S52: =INDEX('Compile Data'!$BL$123:$CI$204,$O52,'Report - ALL (DASHBOARD)'!$W$4) -> 384.5385099 | T52: =INDEX('Compile Data'!$CL$123:$DI$204,$O52,'Report - ALL (DASHBOARD)'!$W$4) -> 326.5105419 | U52: =INDEX('Compile Data'!$DL$123:$EI$204,$O52,'Report - ALL (DASHBOARD)'!$W$4) -> 301.1194748 | V52: =INDEX('Compile Data'!$EL$123:$FI$204,$O52,'Report - ALL (DASHBOARD)'!$W$4) -> 
A53: 1947 | B53: =INDEX('Compile Data'!$L$12:$AI$93,$A53-1921,'Report - ALL (DASHBOARD)'!$W$4) -> 0 | C53: =INDEX('Compile Data'!$AL$12:$BI$93,$A53-1921,'Report - ALL (DASHBOARD)'!$W$4) -> 0 | D53: =INDEX('Compile Data'!$BL$12:$CI$93,$A53-1921,'Report - ALL (DASHBOARD)'!$W$4) -> 0 | E53: =INDEX('Compile Data'!$CL$12:$DI$93,$A53-1921,'Report - ALL (DASHBOARD)'!$W$4) -> 0 | F53: =INDEX('Compile Data'!$DL$12:$EI$93,$A53-1921,'Report - ALL (DASHBOARD)'!$W$4) -> 0 | G53: =INDEX('Compile Data'!$EL$12:$FI$93,$A53-1921,'Report - ALL (DASHBOARD)'!$W$4) ->  | I53: 0 | J53: 0 | L53: =Flags_Scn1!C37 -> 4 | O53: 26 | P53: 0.3086419753 | Q53: =INDEX('Compile Data'!$L$123:$AI$204,$O53,'Report - ALL (DASHBOARD)'!$W$4) -> 0 | R53: =INDEX('Compile Data'!$AL$123:$BI$204,$O53,'Report - ALL (DASHBOARD)'!$W$4) -> 361.669608 | S53: =INDEX('Compile Data'!$BL$123:$CI$204,$O53,'Report - ALL (DASHBOARD)'!$W$4) -> 355.6452634 | T53: =INDEX('Compile Data'!$CL$123:$DI$204,$O53,'Report - ALL (DASHBOARD)'!$W$4) -> 301.1197811 | U53: =INDEX('Compile Data'!$DL$123:$EI$204,$O53,'Report - ALL (DASHBOARD)'!$W$4) -> 294.2047038 | V53: =INDEX('Compile Data'!$EL$123:$FI$204,$O53,'Report - ALL (DASHBOARD)'!$W$4) -> 
A54: 1948 | B54: =INDEX('Compile Data'!$L$12:$AI$93,$A54-1921,'Report - ALL (DASHBOARD)'!$W$4) -> 0 | C54: =INDEX('Compile Data'!$AL$12:$BI$93,$A54-1921,'Report - ALL (DASHBOARD)'!$W$4) -> 0 | D54: =INDEX('Compile Data'!$BL$12:$CI$93,$A54-1921,'Report - ALL (DASHBOARD)'!$W$4) -> 0 | E54: =INDEX('Compile Data'!$CL$12:$DI$93,$A54-1921,'Report - ALL (DASHBOARD)'!$W$4) -> 0.001765744794 | F54: =INDEX('Compile Data'!$DL$12:$EI$93,$A54-1921,'Report - ALL (DASHBOARD)'!$W$4) -> 0.001762309258 | G54: =INDEX('Compile Data'!$EL$12:$FI$93,$A54-1921,'Report - ALL (DASHBOARD)'!$W$4) ->  | I54: 0 | J54: 0 | L54: =Flags_Scn1!C38 -> 3 | O54: 27 | P54: 0.3209876543 | Q54: =INDEX('Compile Data'!$L$123:$AI$204,$O54,'Report - ALL (DASHBOARD)'!$W$4) -> 0 | R54: =INDEX('Compile Data'!$AL$123:$BI$204,$O54,'Report - ALL (DASHBOARD)'!$W$4) -> 337.3946195 | S54: =INDEX('Compile Data'!$BL$123:$CI$204,$O54,'Report - ALL (DASHBOARD)'!$W$4) -> 338.9300935 | T54: =INDEX('Compile Data'!$CL$123:$DI$204,$O54,'Report - ALL (DASHBOARD)'!$W$4) -> 294.2042667 | U54: =INDEX('Compile Data'!$DL$123:$EI$204,$O54,'Report - ALL (DASHBOARD)'!$W$4) -> 278.0442382 | V54: =INDEX('Compile Data'!$EL$123:$FI$204,$O54,'Report - ALL (DASHBOARD)'!$W$4) -> 
A55: 1949 | B55: =INDEX('Compile Data'!$L$12:$AI$93,$A55-1921,'Report - ALL (DASHBOARD)'!$W$4) -> 0 | C55: =INDEX('Compile Data'!$AL$12:$BI$93,$A55-1921,'Report - ALL (DASHBOARD)'!$W$4) -> 213.9292562 | D55: =INDEX('Compile Data'!$BL$12:$CI$93,$A55-1921,'Report - ALL (DASHBOARD)'!$W$4) -> 213.9292562 | E55: =INDEX('Compile Data'!$CL$12:$DI$93,$A55-1921,'Report - ALL (DASHBOARD)'!$W$4) -> 213.9292562 | F55: =INDEX('Compile Data'!$DL$12:$EI$93,$A55-1921,'Report - ALL (DASHBOARD)'!$W$4) -> 213.9292562 | G55: =INDEX('Compile Data'!$EL$12:$FI$93,$A55-1921,'Report - ALL (DASHBOARD)'!$W$4) ->  | I55: 213.9292562 | J55: 213.9292562 | L55: =Flags_Scn1!C39 -> 4 | O55: 28 | P55: 0.3333333333 | Q55: =INDEX('Compile Data'!$L$123:$AI$204,$O55,'Report - ALL (DASHBOARD)'!$W$4) -> 0 | R55: =INDEX('Compile Data'!$AL$123:$BI$204,$O55,'Report - ALL (DASHBOARD)'!$W$4) -> 332.3653493 | S55: =INDEX('Compile Data'!$BL$123:$CI$204,$O55,'Report - ALL (DASHBOARD)'!$W$4) -> 337.4428066 | T55: =INDEX('Compile Data'!$CL$123:$DI$204,$O55,'Report - ALL (DASHBOARD)'!$W$4) -> 293.4552784 | U55: =INDEX('Compile Data'!$DL$123:$EI$204,$O55,'Report - ALL (DASHBOARD)'!$W$4) -> 254.1952111 | V55: =INDEX('Compile Data'!$EL$123:$FI$204,$O55,'Report - ALL (DASHBOARD)'!$W$4) -> 
A56: 1950 | B56: =INDEX('Compile Data'!$L$12:$AI$93,$A56-1921,'Report - ALL (DASHBOARD)'!$W$4) -> 0 | C56: =INDEX('Compile Data'!$AL$12:$BI$93,$A56-1921,'Report - ALL (DASHBOARD)'!$W$4) -> 142.8876633 | D56: =INDEX('Compile Data'!$BL$12:$CI$93,$A56-1921,'Report - ALL (DASHBOARD)'!$W$4) -> 142.8642309 | E56: =INDEX('Compile Data'!$CL$12:$DI$93,$A56-1921,'Report - ALL (DASHBOARD)'!$W$4) -> 142.0787713 | F56: =INDEX('Compile Data'!$DL$12:$EI$93,$A56-1921,'Report - ALL (DASHBOARD)'!$W$4) -> 142.0787272 | G56: =INDEX('Compile Data'!$EL$12:$FI$93,$A56-1921,'Report - ALL (DASHBOARD)'!$W$4) ->  | I56: 142.8876633 | J56: 142.8642309 | L56: =Flags_Scn1!C40 -> 3 | O56: 29 | P56: 0.3456790123 | Q56: =INDEX('Compile Data'!$L$123:$AI$204,$O56,'Report - ALL (DASHBOARD)'!$W$4) -> 0 | R56: =INDEX('Compile Data'!$AL$123:$BI$204,$O56,'Report - ALL (DASHBOARD)'!$W$4) -> 321.3763104 | S56: =INDEX('Compile Data'!$BL$123:$CI$204,$O56,'Report - ALL (DASHBOARD)'!$W$4) -> 334.597482 | T56: =INDEX('Compile Data'!$CL$123:$DI$204,$O56,'Report - ALL (DASHBOARD)'!$W$4) -> 254.1924375 | U56: =INDEX('Compile Data'!$DL$123:$EI$204,$O56,'Report - ALL (DASHBOARD)'!$W$4) -> 217.6419485 | V56: =INDEX('Compile Data'!$EL$123:$FI$204,$O56,'Report - ALL (DASHBOARD)'!$W$4) -> 
A57: 1951 | B57: =INDEX('Compile Data'!$L$12:$AI$93,$A57-1921,'Report - ALL (DASHBOARD)'!$W$4) -> 0 | C57: =INDEX('Compile Data'!$AL$12:$BI$93,$A57-1921,'Report - ALL (DASHBOARD)'!$W$4) -> 719.7662778 | D57: =INDEX('Compile Data'!$BL$12:$CI$93,$A57-1921,'Report - ALL (DASHBOARD)'!$W$4) -> 719.9868051 | E57: =INDEX('Compile Data'!$CL$12:$DI$93,$A57-1921,'Report - ALL (DASHBOARD)'!$W$4) -> 719.9548776 | F57: =INDEX('Compile Data'!$DL$12:$EI$93,$A57-1921,'Report - ALL (DASHBOARD)'!$W$4) -> 719.9547356 | G57: =INDEX('Compile Data'!$EL$12:$FI$93,$A57-1921,'Report - ALL (DASHBOARD)'!$W$4) ->  | I57: 719.7662778 | J57: 719.9868051 | L57: =Flags_Scn1!C41 -> 2 | O57: 30 | P57: 0.3580246914 | Q57: =INDEX('Compile Data'!$L$123:$AI$204,$O57,'Report - ALL (DASHBOARD)'!$W$4) -> 0 | R57: =INDEX('Compile Data'!$AL$123:$BI$204,$O57,'Report - ALL (DASHBOARD)'!$W$4) -> 295.0756416 | S57: =INDEX('Compile Data'!$BL$123:$CI$204,$O57,'Report - ALL (DASHBOARD)'!$W$4) -> 315.9099834 | T57: =INDEX('Compile Data'!$CL$123:$DI$204,$O57,'Report - ALL (DASHBOARD)'!$W$4) -> 248.4229119 | U57: =INDEX('Compile Data'!$DL$123:$EI$204,$O57,'Report - ALL (DASHBOARD)'!$W$4) -> 213.9292562 | V57: =INDEX('Compile Data'!$EL$123:$FI$204,$O57,'Report - ALL (DASHBOARD)'!$W$4) -> 
A58: 1952 | B58: =INDEX('Compile Data'!$L$12:$AI$93,$A58-1921,'Report - ALL (DASHBOARD)'!$W$4) -> 0 | C58: =INDEX('Compile Data'!$AL$12:$BI$93,$A58-1921,'Report - ALL (DASHBOARD)'!$W$4) -> 752.108067 | D58: =INDEX('Compile Data'!$BL$12:$CI$93,$A58-1921,'Report - ALL (DASHBOARD)'!$W$4) -> 750.657958 | E58: =INDEX('Compile Data'!$CL$12:$DI$93,$A58-1921,'Report - ALL (DASHBOARD)'!$W$4) -> 729.7767199 | F58: =INDEX('Compile Data'!$DL$12:$EI$93,$A58-1921,'Report - ALL (DASHBOARD)'!$W$4) -> 729.914263 | G58: =INDEX('Compile Data'!$EL$12:$FI$93,$A58-1921,'Report - ALL (DASHBOARD)'!$W$4) ->  | I58: 752.108067 | J58: 750.657958 | L58: =Flags_Scn1!C42 -> 1 | O58: 31 | P58: 0.3703703704 | Q58: =INDEX('Compile Data'!$L$123:$AI$204,$O58,'Report - ALL (DASHBOARD)'!$W$4) -> 0 | R58: =INDEX('Compile Data'!$AL$123:$BI$204,$O58,'Report - ALL (DASHBOARD)'!$W$4) -> 254.8374728 | S58: =INDEX('Compile Data'!$BL$123:$CI$204,$O58,'Report - ALL (DASHBOARD)'!$W$4) -> 295.0341064 | T58: =INDEX('Compile Data'!$CL$123:$DI$204,$O58,'Report - ALL (DASHBOARD)'!$W$4) -> 232.3564148 | U58: =INDEX('Compile Data'!$DL$123:$EI$204,$O58,'Report - ALL (DASHBOARD)'!$W$4) -> 206.1846357 | V58: =INDEX('Compile Data'!$EL$123:$FI$204,$O58,'Report - ALL (DASHBOARD)'!$W$4) -> 
A59: 1953 | B59: =INDEX('Compile Data'!$L$12:$AI$93,$A59-1921,'Report - ALL (DASHBOARD)'!$W$4) -> 0 | C59: =INDEX('Compile Data'!$AL$12:$BI$93,$A59-1921,'Report - ALL (DASHBOARD)'!$W$4) -> 96.355668 | D59: =INDEX('Compile Data'!$BL$12:$CI$93,$A59-1921,'Report - ALL (DASHBOARD)'!$W$4) -> 123.7495501 | E59: =INDEX('Compile Data'!$CL$12:$DI$93,$A59-1921,'Report - ALL (DASHBOARD)'!$W$4) -> 123.4313454 | F59: =INDEX('Compile Data'!$DL$12:$EI$93,$A59-1921,'Report - ALL (DASHBOARD)'!$W$4) -> 123.4313454 | G59: =INDEX('Compile Data'!$EL$12:$FI$93,$A59-1921,'Report - ALL (DASHBOARD)'!$W$4) ->  | I59: 96.355668 | J59: 123.7495501 | L59: =Flags_Scn1!C43 -> 1 | O59: 32 | P59: 0.3827160494 | Q59: =INDEX('Compile Data'!$L$123:$AI$204,$O59,'Report - ALL (DASHBOARD)'!$W$4) -> 0 | R59: =INDEX('Compile Data'!$AL$123:$BI$204,$O59,'Report - ALL (DASHBOARD)'!$W$4) -> 254.6584844 | S59: =INDEX('Compile Data'!$BL$123:$CI$204,$O59,'Report - ALL (DASHBOARD)'!$W$4) -> 253.7028526 | T59: =INDEX('Compile Data'!$CL$123:$DI$204,$O59,'Report - ALL (DASHBOARD)'!$W$4) -> 215.7475435 | U59: =INDEX('Compile Data'!$DL$123:$EI$204,$O59,'Report - ALL (DASHBOARD)'!$W$4) -> 191.1321983 | V59: =INDEX('Compile Data'!$EL$123:$FI$204,$O59,'Report - ALL (DASHBOARD)'!$W$4) -> 
A60: 1954 | B60: =INDEX('Compile Data'!$L$12:$AI$93,$A60-1921,'Report - ALL (DASHBOARD)'!$W$4) -> 0 | C60: =INDEX('Compile Data'!$AL$12:$BI$93,$A60-1921,'Report - ALL (DASHBOARD)'!$W$4) -> 135.2884739 | D60: =INDEX('Compile Data'!$BL$12:$CI$93,$A60-1921,'Report - ALL (DASHBOARD)'!$W$4) -> 145.8327432 | E60: =INDEX('Compile Data'!$CL$12:$DI$93,$A60-1921,'Report - ALL (DASHBOARD)'!$W$4) -> 145.0718187 | F60: =INDEX('Compile Data'!$DL$12:$EI$93,$A60-1921,'Report - ALL (DASHBOARD)'!$W$4) -> 144.2463297 | G60: =INDEX('Compile Data'!$EL$12:$FI$93,$A60-1921,'Report - ALL (DASHBOARD)'!$W$4) ->  | I60: 135.2884739 | J60: 145.8327432 | L60: =Flags_Scn1!C44 -> 2 | O60: 33 | P60: 0.3950617284 | Q60: =INDEX('Compile Data'!$L$123:$AI$204,$O60,'Report - ALL (DASHBOARD)'!$W$4) -> 0 | R60: =INDEX('Compile Data'!$AL$123:$BI$204,$O60,'Report - ALL (DASHBOARD)'!$W$4) -> 245.4627633 | S60: =INDEX('Compile Data'!$BL$123:$CI$204,$O60,'Report - ALL (DASHBOARD)'!$W$4) -> 237.0695065 | T60: =INDEX('Compile Data'!$CL$123:$DI$204,$O60,'Report - ALL (DASHBOARD)'!$W$4) -> 213.9292562 | U60: =INDEX('Compile Data'!$DL$123:$EI$204,$O60,'Report - ALL (DASHBOARD)'!$W$4) -> 189.5518526 | V60: =INDEX('Compile Data'!$EL$123:$FI$204,$O60,'Report - ALL (DASHBOARD)'!$W$4) -> 
A61: 1955 | B61: =INDEX('Compile Data'!$L$12:$AI$93,$A61-1921,'Report - ALL (DASHBOARD)'!$W$4) -> 0 | C61: =INDEX('Compile Data'!$AL$12:$BI$93,$A61-1921,'Report - ALL (DASHBOARD)'!$W$4) -> 122.6056001 | D61: =INDEX('Compile Data'!$BL$12:$CI$93,$A61-1921,'Report - ALL (DASHBOARD)'!$W$4) -> 62.82751468 | E61: =INDEX('Compile Data'!$CL$12:$DI$93,$A61-1921,'Report - ALL (DASHBOARD)'!$W$4) -> 20.63627019 | F61: =INDEX('Compile Data'!$DL$12:$EI$93,$A61-1921,'Report - ALL (DASHBOARD)'!$W$4) -> 8.85028729 | G61: =INDEX('Compile Data'!$EL$12:$FI$93,$A61-1921,'Report - ALL (DASHBOARD)'!$W$4) ->  | I61: 122.6056001 | J61: 62.82751468 | L61: =Flags_Scn1!C45 -> 4 | O61: 34 | P61: 0.4074074074 | Q61: =INDEX('Compile Data'!$L$123:$AI$204,$O61,'Report - ALL (DASHBOARD)'!$W$4) -> 0 | R61: =INDEX('Compile Data'!$AL$123:$BI$204,$O61,'Report - ALL (DASHBOARD)'!$W$4) -> 228.9658371 | S61: =INDEX('Compile Data'!$BL$123:$CI$204,$O61,'Report - ALL (DASHBOARD)'!$W$4) -> 229.0720132 | T61: =INDEX('Compile Data'!$CL$123:$DI$204,$O61,'Report - ALL (DASHBOARD)'!$W$4) -> 207.077384 | U61: =INDEX('Compile Data'!$DL$123:$EI$204,$O61,'Report - ALL (DASHBOARD)'!$W$4) -> 189.2707438 | V61: =INDEX('Compile Data'!$EL$123:$FI$204,$O61,'Report - ALL (DASHBOARD)'!$W$4) -> 
A62: 1956 | B62: =INDEX('Compile Data'!$L$12:$AI$93,$A62-1921,'Report - ALL (DASHBOARD)'!$W$4) -> 0 | C62: =INDEX('Compile Data'!$AL$12:$BI$93,$A62-1921,'Report - ALL (DASHBOARD)'!$W$4) -> 723.9646643 | D62: =INDEX('Compile Data'!$BL$12:$CI$93,$A62-1921,'Report - ALL (DASHBOARD)'!$W$4) -> 723.938711 | E62: =INDEX('Compile Data'!$CL$12:$DI$93,$A62-1921,'Report - ALL (DASHBOARD)'!$W$4) -> 723.7678609 | F62: =INDEX('Compile Data'!$DL$12:$EI$93,$A62-1921,'Report - ALL (DASHBOARD)'!$W$4) -> 718.5350682 | G62: =INDEX('Compile Data'!$EL$12:$FI$93,$A62-1921,'Report - ALL (DASHBOARD)'!$W$4) ->  | I62: 723.9646643 | J62: 723.938711 | L62: =Flags_Scn1!C46 -> 1 | O62: 35 | P62: 0.4197530864 | Q62: =INDEX('Compile Data'!$L$123:$AI$204,$O62,'Report - ALL (DASHBOARD)'!$W$4) -> 0 | R62: =INDEX('Compile Data'!$AL$123:$BI$204,$O62,'Report - ALL (DASHBOARD)'!$W$4) -> 213.9292562 | S62: =INDEX('Compile Data'!$BL$123:$CI$204,$O62,'Report - ALL (DASHBOARD)'!$W$4) -> 213.9292562 | T62: =INDEX('Compile Data'!$CL$123:$DI$204,$O62,'Report - ALL (DASHBOARD)'!$W$4) -> 205.5792937 | U62: =INDEX('Compile Data'!$DL$123:$EI$204,$O62,'Report - ALL (DASHBOARD)'!$W$4) -> 188.155361 | V62: =INDEX('Compile Data'!$EL$123:$FI$204,$O62,'Report - ALL (DASHBOARD)'!$W$4) -> 
A63: 1957 | B63: =INDEX('Compile Data'!$L$12:$AI$93,$A63-1921,'Report - ALL (DASHBOARD)'!$W$4) -> 0 | C63: =INDEX('Compile Data'!$AL$12:$BI$93,$A63-1921,'Report - ALL (DASHBOARD)'!$W$4) -> 245.4627633 | D63: =INDEX('Compile Data'!$BL$12:$CI$93,$A63-1921,'Report - ALL (DASHBOARD)'!$W$4) -> 334.597482 | E63: =INDEX('Compile Data'!$CL$12:$DI$93,$A63-1921,'Report - ALL (DASHBOARD)'!$W$4) -> 232.3564148 | F63: =INDEX('Compile Data'!$DL$12:$EI$93,$A63-1921,'Report - ALL (DASHBOARD)'!$W$4) -> 139.7600859 | G63: =INDEX('Compile Data'!$EL$12:$FI$93,$A63-1921,'Report - ALL (DASHBOARD)'!$W$4) ->  | I63: 245.4627633 | J63: 334.597482 | L63: =Flags_Scn1!C47 -> 2 | O63: 36 | P63: 0.4320987654 | Q63: =INDEX('Compile Data'!$L$123:$AI$204,$O63,'Report - ALL (DASHBOARD)'!$W$4) -> 0 | R63: =INDEX('Compile Data'!$AL$123:$BI$204,$O63,'Report - ALL (DASHBOARD)'!$W$4) -> 206.2953107 | S63: =INDEX('Compile Data'!$BL$123:$CI$204,$O63,'Report - ALL (DASHBOARD)'!$W$4) -> 207.2242168 | T63: =INDEX('Compile Data'!$CL$123:$DI$204,$O63,'Report - ALL (DASHBOARD)'!$W$4) -> 191.1321932 | U63: =INDEX('Compile Data'!$DL$123:$EI$204,$O63,'Report - ALL (DASHBOARD)'!$W$4) -> 184.8088308 | V63: =INDEX('Compile Data'!$EL$123:$FI$204,$O63,'Report - ALL (DASHBOARD)'!$W$4) -> 
A64: 1958 | B64: =INDEX('Compile Data'!$L$12:$AI$93,$A64-1921,'Report - ALL (DASHBOARD)'!$W$4) -> 0 | C64: =INDEX('Compile Data'!$AL$12:$BI$93,$A64-1921,'Report - ALL (DASHBOARD)'!$W$4) -> 608.5012458 | D64: =INDEX('Compile Data'!$BL$12:$CI$93,$A64-1921,'Report - ALL (DASHBOARD)'!$W$4) -> 337.4428066 | E64: =INDEX('Compile Data'!$CL$12:$DI$93,$A64-1921,'Report - ALL (DASHBOARD)'!$W$4) -> 293.4552784 | F64: =INDEX('Compile Data'!$DL$12:$EI$93,$A64-1921,'Report - ALL (DASHBOARD)'!$W$4) -> 189.5518526 | G64: =INDEX('Compile Data'!$EL$12:$FI$93,$A64-1921,'Report - ALL (DASHBOARD)'!$W$4) ->  | I64: 608.5012458 | J64: 337.4428066 | L64: =Flags_Scn1!C48 -> 1 | O64: 37 | P64: 0.4444444444 | Q64: =INDEX('Compile Data'!$L$123:$AI$204,$O64,'Report - ALL (DASHBOARD)'!$W$4) -> 0 | R64: =INDEX('Compile Data'!$AL$123:$BI$204,$O64,'Report - ALL (DASHBOARD)'!$W$4) -> 189.2707438 | S64: =INDEX('Compile Data'!$BL$123:$CI$204,$O64,'Report - ALL (DASHBOARD)'!$W$4) -> 189.2707438 | T64: =INDEX('Compile Data'!$CL$123:$DI$204,$O64,'Report - ALL (DASHBOARD)'!$W$4) -> 189.2707438 | U64: =INDEX('Compile Data'!$DL$123:$EI$204,$O64,'Report - ALL (DASHBOARD)'!$W$4) -> 183.8544931 | V64: =INDEX('Compile Data'!$EL$123:$FI$204,$O64,'Report - ALL (DASHBOARD)'!$W$4) -> 
A65: 1959 | B65: =INDEX('Compile Data'!$L$12:$AI$93,$A65-1921,'Report - ALL (DASHBOARD)'!$W$4) -> 0 | C65: =INDEX('Compile Data'!$AL$12:$BI$93,$A65-1921,'Report - ALL (DASHBOARD)'!$W$4) -> 139.3142956 | D65: =INDEX('Compile Data'!$BL$12:$CI$93,$A65-1921,'Report - ALL (DASHBOARD)'!$W$4) -> 139.5518277 | E65: =INDEX('Compile Data'!$CL$12:$DI$93,$A65-1921,'Report - ALL (DASHBOARD)'!$W$4) -> 139.3177168 | F65: =INDEX('Compile Data'!$DL$12:$EI$93,$A65-1921,'Report - ALL (DASHBOARD)'!$W$4) -> 139.3207534 | G65: =INDEX('Compile Data'!$EL$12:$FI$93,$A65-1921,'Report - ALL (DASHBOARD)'!$W$4) ->  | I65: 139.3142956 | J65: 139.5518277 | L65: =Flags_Scn1!C49 -> 3 | O65: 38 | P65: 0.4567901235 | Q65: =INDEX('Compile Data'!$L$123:$AI$204,$O65,'Report - ALL (DASHBOARD)'!$W$4) -> 0 | R65: =INDEX('Compile Data'!$AL$123:$BI$204,$O65,'Report - ALL (DASHBOARD)'!$W$4) -> 188.107494 | S65: =INDEX('Compile Data'!$BL$123:$CI$204,$O65,'Report - ALL (DASHBOARD)'!$W$4) -> 188.1217267 | T65: =INDEX('Compile Data'!$CL$123:$DI$204,$O65,'Report - ALL (DASHBOARD)'!$W$4) -> 188.1557444 | U65: =INDEX('Compile Data'!$DL$123:$EI$204,$O65,'Report - ALL (DASHBOARD)'!$W$4) -> 183.3679339 | V65: =INDEX('Compile Data'!$EL$123:$FI$204,$O65,'Report - ALL (DASHBOARD)'!$W$4) -> 
A66: 1960 | B66: =INDEX('Compile Data'!$L$12:$AI$93,$A66-1921,'Report - ALL (DASHBOARD)'!$W$4) -> 0 | C66: =INDEX('Compile Data'!$AL$12:$BI$93,$A66-1921,'Report - ALL (DASHBOARD)'!$W$4) -> 332.3653493 | D66: =INDEX('Compile Data'!$BL$12:$CI$93,$A66-1921,'Report - ALL (DASHBOARD)'!$W$4) -> 338.9300935 | E66: =INDEX('Compile Data'!$CL$12:$DI$93,$A66-1921,'Report - ALL (DASHBOARD)'!$W$4) -> 248.4229119 | F66: =INDEX('Compile Data'!$DL$12:$EI$93,$A66-1921,'Report - ALL (DASHBOARD)'!$W$4) -> 217.6419485 | G66: =INDEX('Compile Data'!$EL$12:$FI$93,$A66-1921,'Report - ALL (DASHBOARD)'!$W$4) ->  | I66: 332.3653493 | J66: 338.9300935 | L66: =Flags_Scn1!C50 -> 4 | O66: 39 | P66: 0.4691358025 | Q66: =INDEX('Compile Data'!$L$123:$AI$204,$O66,'Report - ALL (DASHBOARD)'!$W$4) -> 0 | R66: =INDEX('Compile Data'!$AL$123:$BI$204,$O66,'Report - ALL (DASHBOARD)'!$W$4) -> 186.7991105 | S66: =INDEX('Compile Data'!$BL$123:$CI$204,$O66,'Report - ALL (DASHBOARD)'!$W$4) -> 185.7414336 | T66: =INDEX('Compile Data'!$CL$123:$DI$204,$O66,'Report - ALL (DASHBOARD)'!$W$4) -> 185.5820176 | U66: =INDEX('Compile Data'!$DL$123:$EI$204,$O66,'Report - ALL (DASHBOARD)'!$W$4) -> 183.3679339 | V66: =INDEX('Compile Data'!$EL$123:$FI$204,$O66,'Report - ALL (DASHBOARD)'!$W$4) -> 
A67: 1961 | B67: =INDEX('Compile Data'!$L$12:$AI$93,$A67-1921,'Report - ALL (DASHBOARD)'!$W$4) -> 0 | C67: =INDEX('Compile Data'!$AL$12:$BI$93,$A67-1921,'Report - ALL (DASHBOARD)'!$W$4) -> 361.669608 | D67: =INDEX('Compile Data'!$BL$12:$CI$93,$A67-1921,'Report - ALL (DASHBOARD)'!$W$4) -> 355.6452634 | E67: =INDEX('Compile Data'!$CL$12:$DI$93,$A67-1921,'Report - ALL (DASHBOARD)'!$W$4) -> 326.5105419 | F67: =INDEX('Compile Data'!$DL$12:$EI$93,$A67-1921,'Report - ALL (DASHBOARD)'!$W$4) -> 323.7765746 | G67: =INDEX('Compile Data'!$EL$12:$FI$93,$A67-1921,'Report - ALL (DASHBOARD)'!$W$4) ->  | I67: 361.669608 | J67: 355.6452634 | L67: =Flags_Scn1!C51 -> 4 | O67: 40 | P67: 0.4814814815 | Q67: =INDEX('Compile Data'!$L$123:$AI$204,$O67,'Report - ALL (DASHBOARD)'!$W$4) -> 0 | R67: =INDEX('Compile Data'!$AL$123:$BI$204,$O67,'Report - ALL (DASHBOARD)'!$W$4) -> 185.6666147 | S67: =INDEX('Compile Data'!$BL$123:$CI$204,$O67,'Report - ALL (DASHBOARD)'!$W$4) -> 185.6666042 | T67: =INDEX('Compile Data'!$CL$123:$DI$204,$O67,'Report - ALL (DASHBOARD)'!$W$4) -> 184.8088308 | U67: =INDEX('Compile Data'!$DL$123:$EI$204,$O67,'Report - ALL (DASHBOARD)'!$W$4) -> 177.9173554 | V67: =INDEX('Compile Data'!$EL$123:$FI$204,$O67,'Report - ALL (DASHBOARD)'!$W$4) -> 
A68: 1962 | B68: =INDEX('Compile Data'!$L$12:$AI$93,$A68-1921,'Report - ALL (DASHBOARD)'!$W$4) -> 0 | C68: =INDEX('Compile Data'!$AL$12:$BI$93,$A68-1921,'Report - ALL (DASHBOARD)'!$W$4) -> 254.8374728 | D68: =INDEX('Compile Data'!$BL$12:$CI$93,$A68-1921,'Report - ALL (DASHBOARD)'!$W$4) -> 253.7028526 | E68: =INDEX('Compile Data'!$CL$12:$DI$93,$A68-1921,'Report - ALL (DASHBOARD)'!$W$4) -> 254.1924375 | F68: =INDEX('Compile Data'!$DL$12:$EI$93,$A68-1921,'Report - ALL (DASHBOARD)'!$W$4) -> 254.1952111 | G68: =INDEX('Compile Data'!$EL$12:$FI$93,$A68-1921,'Report - ALL (DASHBOARD)'!$W$4) ->  | I68: 254.8374728 | J68: 253.7028526 | L68: =Flags_Scn1!C52 -> 3 | O68: 41 | P68: 0.4938271605 | Q68: =INDEX('Compile Data'!$L$123:$AI$204,$O68,'Report - ALL (DASHBOARD)'!$W$4) -> 0 | R68: =INDEX('Compile Data'!$AL$123:$BI$204,$O68,'Report - ALL (DASHBOARD)'!$W$4) -> 183.7617067 | S68: =INDEX('Compile Data'!$BL$123:$CI$204,$O68,'Report - ALL (DASHBOARD)'!$W$4) -> 183.9691001 | T68: =INDEX('Compile Data'!$CL$123:$DI$204,$O68,'Report - ALL (DASHBOARD)'!$W$4) -> 183.3679339 | U68: =INDEX('Compile Data'!$DL$123:$EI$204,$O68,'Report - ALL (DASHBOARD)'!$W$4) -> 174.5984138 | V68: =INDEX('Compile Data'!$EL$123:$FI$204,$O68,'Report - ALL (DASHBOARD)'!$W$4) -> 
A69: 1963 | B69: =INDEX('Compile Data'!$L$12:$AI$93,$A69-1921,'Report - ALL (DASHBOARD)'!$W$4) -> 0 | C69: =INDEX('Compile Data'!$AL$12:$BI$93,$A69-1921,'Report - ALL (DASHBOARD)'!$W$4) -> 675.0339074 | D69: =INDEX('Compile Data'!$BL$12:$CI$93,$A69-1921,'Report - ALL (DASHBOARD)'!$W$4) -> 699.8205096 | E69: =INDEX('Compile Data'!$CL$12:$DI$93,$A69-1921,'Report - ALL (DASHBOARD)'!$W$4) -> 679.8344636 | F69: =INDEX('Compile Data'!$DL$12:$EI$93,$A69-1921,'Report - ALL (DASHBOARD)'!$W$4) -> 679.0634846 | G69: =INDEX('Compile Data'!$EL$12:$FI$93,$A69-1921,'Report - ALL (DASHBOARD)'!$W$4) ->  | I69: 675.0339074 | J69: 699.8205096 | L69: =Flags_Scn1!C53 -> 1 | O69: 42 | P69: 0.5061728395 | Q69: =INDEX('Compile Data'!$L$123:$AI$204,$O69,'Report - ALL (DASHBOARD)'!$W$4) -> 0 | R69: =INDEX('Compile Data'!$AL$123:$BI$204,$O69,'Report - ALL (DASHBOARD)'!$W$4) -> 183.3679339 | S69: =INDEX('Compile Data'!$BL$123:$CI$204,$O69,'Report - ALL (DASHBOARD)'!$W$4) -> 183.3679339 | T69: =INDEX('Compile Data'!$CL$123:$DI$204,$O69,'Report - ALL (DASHBOARD)'!$W$4) -> 183.3679339 | U69: =INDEX('Compile Data'!$DL$123:$EI$204,$O69,'Report - ALL (DASHBOARD)'!$W$4) -> 173.4180124 | V69: =INDEX('Compile Data'!$EL$123:$FI$204,$O69,'Report - ALL (DASHBOARD)'!$W$4) -> 
A70: 1964 | B70: =INDEX('Compile Data'!$L$12:$AI$93,$A70-1921,'Report - ALL (DASHBOARD)'!$W$4) -> 0 | C70: =INDEX('Compile Data'!$AL$12:$BI$93,$A70-1921,'Report - ALL (DASHBOARD)'!$W$4) -> 15.15175218 | D70: =INDEX('Compile Data'!$BL$12:$CI$93,$A70-1921,'Report - ALL (DASHBOARD)'!$W$4) -> 15.85046534 | E70: =INDEX('Compile Data'!$CL$12:$DI$93,$A70-1921,'Report - ALL (DASHBOARD)'!$W$4) -> 12.20164873 | F70: =INDEX('Compile Data'!$DL$12:$EI$93,$A70-1921,'Report - ALL (DASHBOARD)'!$W$4) -> 11.90103753 | G70: =INDEX('Compile Data'!$EL$12:$FI$93,$A70-1921,'Report - ALL (DASHBOARD)'!$W$4) ->  | I70: 15.15175218 | J70: 15.85046534 | L70: =Flags_Scn1!C54 -> 4 | O70: 43 | P70: 0.5185185185 | Q70: =INDEX('Compile Data'!$L$123:$AI$204,$O70,'Report - ALL (DASHBOARD)'!$W$4) -> 0 | R70: =INDEX('Compile Data'!$AL$123:$BI$204,$O70,'Report - ALL (DASHBOARD)'!$W$4) -> 183.3679339 | S70: =INDEX('Compile Data'!$BL$123:$CI$204,$O70,'Report - ALL (DASHBOARD)'!$W$4) -> 183.3679339 | T70: =INDEX('Compile Data'!$CL$123:$DI$204,$O70,'Report - ALL (DASHBOARD)'!$W$4) -> 177.9173554 | U70: =INDEX('Compile Data'!$DL$123:$EI$204,$O70,'Report - ALL (DASHBOARD)'!$W$4) -> 171.5908905 | V70: =INDEX('Compile Data'!$EL$123:$FI$204,$O70,'Report - ALL (DASHBOARD)'!$W$4) -> 
A71: 1965 | B71: =INDEX('Compile Data'!$L$12:$AI$93,$A71-1921,'Report - ALL (DASHBOARD)'!$W$4) -> 0 | C71: =INDEX('Compile Data'!$AL$12:$BI$93,$A71-1921,'Report - ALL (DASHBOARD)'!$W$4) -> 550.9279276 | D71: =INDEX('Compile Data'!$BL$12:$CI$93,$A71-1921,'Report - ALL (DASHBOARD)'!$W$4) -> 557.793808 | E71: =INDEX('Compile Data'!$CL$12:$DI$93,$A71-1921,'Report - ALL (DASHBOARD)'!$W$4) -> 533.7064775 | F71: =INDEX('Compile Data'!$DL$12:$EI$93,$A71-1921,'Report - ALL (DASHBOARD)'!$W$4) -> 533.7059493 | G71: =INDEX('Compile Data'!$EL$12:$FI$93,$A71-1921,'Report - ALL (DASHBOARD)'!$W$4) ->  | I71: 550.9279276 | J71: 557.793808 | L71: =Flags_Scn1!C55 -> 1 | O71: 44 | P71: 0.5308641975 | Q71: =INDEX('Compile Data'!$L$123:$AI$204,$O71,'Report - ALL (DASHBOARD)'!$W$4) -> 0 | R71: =INDEX('Compile Data'!$AL$123:$BI$204,$O71,'Report - ALL (DASHBOARD)'!$W$4) -> 177.9173554 | S71: =INDEX('Compile Data'!$BL$123:$CI$204,$O71,'Report - ALL (DASHBOARD)'!$W$4) -> 177.9173554 | T71: =INDEX('Compile Data'!$CL$123:$DI$204,$O71,'Report - ALL (DASHBOARD)'!$W$4) -> 174.5984138 | U71: =INDEX('Compile Data'!$DL$123:$EI$204,$O71,'Report - ALL (DASHBOARD)'!$W$4) -> 164.3918305 | V71: =INDEX('Compile Data'!$EL$123:$FI$204,$O71,'Report - ALL (DASHBOARD)'!$W$4) -> 
A72: 1966 | B72: =INDEX('Compile Data'!$L$12:$AI$93,$A72-1921,'Report - ALL (DASHBOARD)'!$W$4) -> 0 | C72: =INDEX('Compile Data'!$AL$12:$BI$93,$A72-1921,'Report - ALL (DASHBOARD)'!$W$4) -> 544.6378672 | D72: =INDEX('Compile Data'!$BL$12:$CI$93,$A72-1921,'Report - ALL (DASHBOARD)'!$W$4) -> 544.6378672 | E72: =INDEX('Compile Data'!$CL$12:$DI$93,$A72-1921,'Report - ALL (DASHBOARD)'!$W$4) -> 540.0602831 | F72: =INDEX('Compile Data'!$DL$12:$EI$93,$A72-1921,'Report - ALL (DASHBOARD)'!$W$4) -> 509.4275068 | G72: =INDEX('Compile Data'!$EL$12:$FI$93,$A72-1921,'Report - ALL (DASHBOARD)'!$W$4) ->  | I72: 544.6378672 | J72: 544.6378672 | L72: =Flags_Scn1!C56 -> 3 | O72: 45 | P72: 0.5432098765 | Q72: =INDEX('Compile Data'!$L$123:$AI$204,$O72,'Report - ALL (DASHBOARD)'!$W$4) -> 0 | R72: =INDEX('Compile Data'!$AL$123:$BI$204,$O72,'Report - ALL (DASHBOARD)'!$W$4) -> 177.0508472 | S72: =INDEX('Compile Data'!$BL$123:$CI$204,$O72,'Report - ALL (DASHBOARD)'!$W$4) -> 177.0452349 | T72: =INDEX('Compile Data'!$CL$123:$DI$204,$O72,'Report - ALL (DASHBOARD)'!$W$4) -> 173.418545 | U72: =INDEX('Compile Data'!$DL$123:$EI$204,$O72,'Report - ALL (DASHBOARD)'!$W$4) -> 164.231405 | V72: =INDEX('Compile Data'!$EL$123:$FI$204,$O72,'Report - ALL (DASHBOARD)'!$W$4) -> 
A73: 1967 | B73: =INDEX('Compile Data'!$L$12:$AI$93,$A73-1921,'Report - ALL (DASHBOARD)'!$W$4) -> 0 | C73: =INDEX('Compile Data'!$AL$12:$BI$93,$A73-1921,'Report - ALL (DASHBOARD)'!$W$4) -> 889.5263265 | D73: =INDEX('Compile Data'!$BL$12:$CI$93,$A73-1921,'Report - ALL (DASHBOARD)'!$W$4) -> 759.3512236 | E73: =INDEX('Compile Data'!$CL$12:$DI$93,$A73-1921,'Report - ALL (DASHBOARD)'!$W$4) -> 357.969746 | F73: =INDEX('Compile Data'!$DL$12:$EI$93,$A73-1921,'Report - ALL (DASHBOARD)'!$W$4) -> 278.0442382 | G73: =INDEX('Compile Data'!$EL$12:$FI$93,$A73-1921,'Report - ALL (DASHBOARD)'!$W$4) ->  | I73: 889.5263265 | J73: 759.3512236 | L73: =Flags_Scn1!C57 -> 1 | O73: 46 | P73: 0.5555555556 | Q73: =INDEX('Compile Data'!$L$123:$AI$204,$O73,'Report - ALL (DASHBOARD)'!$W$4) -> 0 | R73: =INDEX('Compile Data'!$AL$123:$BI$204,$O73,'Report - ALL (DASHBOARD)'!$W$4) -> 173.3897683 | S73: =INDEX('Compile Data'!$BL$123:$CI$204,$O73,'Report - ALL (DASHBOARD)'!$W$4) -> 173.3855302 | T73: =INDEX('Compile Data'!$CL$123:$DI$204,$O73,'Report - ALL (DASHBOARD)'!$W$4) -> 171.6040824 | U73: =INDEX('Compile Data'!$DL$123:$EI$204,$O73,'Report - ALL (DASHBOARD)'!$W$4) -> 149.4695759 | V73: =INDEX('Compile Data'!$EL$123:$FI$204,$O73,'Report - ALL (DASHBOARD)'!$W$4) -> 
A74: 1968 | B74: =INDEX('Compile Data'!$L$12:$AI$93,$A74-1921,'Report - ALL (DASHBOARD)'!$W$4) -> 0 | C74: =INDEX('Compile Data'!$AL$12:$BI$93,$A74-1921,'Report - ALL (DASHBOARD)'!$W$4) -> 118.7427067 | D74: =INDEX('Compile Data'!$BL$12:$CI$93,$A74-1921,'Report - ALL (DASHBOARD)'!$W$4) -> 89.11409788 | E74: =INDEX('Compile Data'!$CL$12:$DI$93,$A74-1921,'Report - ALL (DASHBOARD)'!$W$4) -> 115.6253898 | F74: =INDEX('Compile Data'!$DL$12:$EI$93,$A74-1921,'Report - ALL (DASHBOARD)'!$W$4) -> 115.6253894 | G74: =INDEX('Compile Data'!$EL$12:$FI$93,$A74-1921,'Report - ALL (DASHBOARD)'!$W$4) ->  | I74: 118.7427067 | J74: 89.11409788 | L74: =Flags_Scn1!C58 -> 3 | O74: 47 | P74: 0.5679012346 | Q74: =INDEX('Compile Data'!$L$123:$AI$204,$O74,'Report - ALL (DASHBOARD)'!$W$4) -> 0 | R74: =INDEX('Compile Data'!$AL$123:$BI$204,$O74,'Report - ALL (DASHBOARD)'!$W$4) -> 171.4962843 | S74: =INDEX('Compile Data'!$BL$123:$CI$204,$O74,'Report - ALL (DASHBOARD)'!$W$4) -> 171.4955097 | T74: =INDEX('Compile Data'!$CL$123:$DI$204,$O74,'Report - ALL (DASHBOARD)'!$W$4) -> 164.231405 | U74: =INDEX('Compile Data'!$DL$123:$EI$204,$O74,'Report - ALL (DASHBOARD)'!$W$4) -> 146.8224927 | V74: =INDEX('Compile Data'!$EL$123:$FI$204,$O74,'Report - ALL (DASHBOARD)'!$W$4) -> 
A75: 1969 | B75: =INDEX('Compile Data'!$L$12:$AI$93,$A75-1921,'Report - ALL (DASHBOARD)'!$W$4) -> 0 | C75: =INDEX('Compile Data'!$AL$12:$BI$93,$A75-1921,'Report - ALL (DASHBOARD)'!$W$4) -> 718.6739231 | D75: =INDEX('Compile Data'!$BL$12:$CI$93,$A75-1921,'Report - ALL (DASHBOARD)'!$W$4) -> 649.1560795 | E75: =INDEX('Compile Data'!$CL$12:$DI$93,$A75-1921,'Report - ALL (DASHBOARD)'!$W$4) -> 425.2674499 | F75: =INDEX('Compile Data'!$DL$12:$EI$93,$A75-1921,'Report - ALL (DASHBOARD)'!$W$4) -> 330.1130742 | G75: =INDEX('Compile Data'!$EL$12:$FI$93,$A75-1921,'Report - ALL (DASHBOARD)'!$W$4) ->  | I75: 718.6739231 | J75: 649.1560795 | L75: =Flags_Scn1!C59 -> 1 | O75: 48 | P75: 0.5802469136 | Q75: =INDEX('Compile Data'!$L$123:$AI$204,$O75,'Report - ALL (DASHBOARD)'!$W$4) -> 0 | R75: =INDEX('Compile Data'!$AL$123:$BI$204,$O75,'Report - ALL (DASHBOARD)'!$W$4) -> 164.231405 | S75: =INDEX('Compile Data'!$BL$123:$CI$204,$O75,'Report - ALL (DASHBOARD)'!$W$4) -> 169.4561619 | T75: =INDEX('Compile Data'!$CL$123:$DI$204,$O75,'Report - ALL (DASHBOARD)'!$W$4) -> 149.4695771 | U75: =INDEX('Compile Data'!$DL$123:$EI$204,$O75,'Report - ALL (DASHBOARD)'!$W$4) -> 144.2463297 | V75: =INDEX('Compile Data'!$EL$123:$FI$204,$O75,'Report - ALL (DASHBOARD)'!$W$4) -> 
A76: 1970 | B76: =INDEX('Compile Data'!$L$12:$AI$93,$A76-1921,'Report - ALL (DASHBOARD)'!$W$4) -> 0 | C76: =INDEX('Compile Data'!$AL$12:$BI$93,$A76-1921,'Report - ALL (DASHBOARD)'!$W$4) -> 134.7268908 | D76: =INDEX('Compile Data'!$BL$12:$CI$93,$A76-1921,'Report - ALL (DASHBOARD)'!$W$4) -> 134.0989498 | E76: =INDEX('Compile Data'!$CL$12:$DI$93,$A76-1921,'Report - ALL (DASHBOARD)'!$W$4) -> 133.8774836 | F76: =INDEX('Compile Data'!$DL$12:$EI$93,$A76-1921,'Report - ALL (DASHBOARD)'!$W$4) -> 133.8774836 | G76: =INDEX('Compile Data'!$EL$12:$FI$93,$A76-1921,'Report - ALL (DASHBOARD)'!$W$4) ->  | I76: 134.7268908 | J76: 134.0989498 | L76: =Flags_Scn1!C60 -> 1 | O76: 49 | P76: 0.5925925926 | Q76: =INDEX('Compile Data'!$L$123:$AI$204,$O76,'Report - ALL (DASHBOARD)'!$W$4) -> 0 | R76: =INDEX('Compile Data'!$AL$123:$BI$204,$O76,'Report - ALL (DASHBOARD)'!$W$4) -> 149.8468741 | S76: =INDEX('Compile Data'!$BL$123:$CI$204,$O76,'Report - ALL (DASHBOARD)'!$W$4) -> 164.231405 | T76: =INDEX('Compile Data'!$CL$123:$DI$204,$O76,'Report - ALL (DASHBOARD)'!$W$4) -> 146.8268972 | U76: =INDEX('Compile Data'!$DL$123:$EI$204,$O76,'Report - ALL (DASHBOARD)'!$W$4) -> 143.7024793 | V76: =INDEX('Compile Data'!$EL$123:$FI$204,$O76,'Report - ALL (DASHBOARD)'!$W$4) -> 
A77: 1971 | B77: =INDEX('Compile Data'!$L$12:$AI$93,$A77-1921,'Report - ALL (DASHBOARD)'!$W$4) -> 0 | C77: =INDEX('Compile Data'!$AL$12:$BI$93,$A77-1921,'Report - ALL (DASHBOARD)'!$W$4) -> 228.9658371 | D77: =INDEX('Compile Data'!$BL$12:$CI$93,$A77-1921,'Report - ALL (DASHBOARD)'!$W$4) -> 229.0720132 | E77: =INDEX('Compile Data'!$CL$12:$DI$93,$A77-1921,'Report - ALL (DASHBOARD)'!$W$4) -> 184.8088308 | F77: =INDEX('Compile Data'!$DL$12:$EI$93,$A77-1921,'Report - ALL (DASHBOARD)'!$W$4) -> 184.8088308 | G77: =INDEX('Compile Data'!$EL$12:$FI$93,$A77-1921,'Report - ALL (DASHBOARD)'!$W$4) ->  | I77: 228.9658371 | J77: 229.0720132 | L77: =Flags_Scn1!C61 -> 1 | O77: 50 | P77: 0.6049382716 | Q77: =INDEX('Compile Data'!$L$123:$AI$204,$O77,'Report - ALL (DASHBOARD)'!$W$4) -> 0 | R77: =INDEX('Compile Data'!$AL$123:$BI$204,$O77,'Report - ALL (DASHBOARD)'!$W$4) -> 149.619929 | S77: =INDEX('Compile Data'!$BL$123:$CI$204,$O77,'Report - ALL (DASHBOARD)'!$W$4) -> 148.9839985 | T77: =INDEX('Compile Data'!$CL$123:$DI$204,$O77,'Report - ALL (DASHBOARD)'!$W$4) -> 145.0718187 | U77: =INDEX('Compile Data'!$DL$123:$EI$204,$O77,'Report - ALL (DASHBOARD)'!$W$4) -> 142.0787272 | V77: =INDEX('Compile Data'!$EL$123:$FI$204,$O77,'Report - ALL (DASHBOARD)'!$W$4) -> 
A78: 1972 | B78: =INDEX('Compile Data'!$L$12:$AI$93,$A78-1921,'Report - ALL (DASHBOARD)'!$W$4) -> 0 | C78: =INDEX('Compile Data'!$AL$12:$BI$93,$A78-1921,'Report - ALL (DASHBOARD)'!$W$4) -> 148.6463075 | D78: =INDEX('Compile Data'!$BL$12:$CI$93,$A78-1921,'Report - ALL (DASHBOARD)'!$W$4) -> 148.9839985 | E78: =INDEX('Compile Data'!$CL$12:$DI$93,$A78-1921,'Report - ALL (DASHBOARD)'!$W$4) -> 149.4695771 | F78: =INDEX('Compile Data'!$DL$12:$EI$93,$A78-1921,'Report - ALL (DASHBOARD)'!$W$4) -> 149.4695759 | G78: =INDEX('Compile Data'!$EL$12:$FI$93,$A78-1921,'Report - ALL (DASHBOARD)'!$W$4) ->  | I78: 148.6463075 | J78: 148.9839985 | L78: =Flags_Scn1!C62 -> 3 | O78: 51 | P78: 0.6172839506 | Q78: =INDEX('Compile Data'!$L$123:$AI$204,$O78,'Report - ALL (DASHBOARD)'!$W$4) -> 0 | R78: =INDEX('Compile Data'!$AL$123:$BI$204,$O78,'Report - ALL (DASHBOARD)'!$W$4) -> 148.6463075 | S78: =INDEX('Compile Data'!$BL$123:$CI$204,$O78,'Report - ALL (DASHBOARD)'!$W$4) -> 148.8473431 | T78: =INDEX('Compile Data'!$CL$123:$DI$204,$O78,'Report - ALL (DASHBOARD)'!$W$4) -> 143.7024793 | U78: =INDEX('Compile Data'!$DL$123:$EI$204,$O78,'Report - ALL (DASHBOARD)'!$W$4) -> 139.7600859 | V78: =INDEX('Compile Data'!$EL$123:$FI$204,$O78,'Report - ALL (DASHBOARD)'!$W$4) -> 
A79: 1973 | B79: =INDEX('Compile Data'!$L$12:$AI$93,$A79-1921,'Report - ALL (DASHBOARD)'!$W$4) -> 0 | C79: =INDEX('Compile Data'!$AL$12:$BI$93,$A79-1921,'Report - ALL (DASHBOARD)'!$W$4) -> 656.6846172 | D79: =INDEX('Compile Data'!$BL$12:$CI$93,$A79-1921,'Report - ALL (DASHBOARD)'!$W$4) -> 651.0497732 | E79: =INDEX('Compile Data'!$CL$12:$DI$93,$A79-1921,'Report - ALL (DASHBOARD)'!$W$4) -> 456.6429131 | F79: =INDEX('Compile Data'!$DL$12:$EI$93,$A79-1921,'Report - ALL (DASHBOARD)'!$W$4) -> 387.8596299 | G79: =INDEX('Compile Data'!$EL$12:$FI$93,$A79-1921,'Report - ALL (DASHBOARD)'!$W$4) ->  | I79: 656.6846172 | J79: 651.0497732 | L79: =Flags_Scn1!C63 -> 2 | O79: 52 | P79: 0.6296296296 | Q79: =INDEX('Compile Data'!$L$123:$AI$204,$O79,'Report - ALL (DASHBOARD)'!$W$4) -> 0 | R79: =INDEX('Compile Data'!$AL$123:$BI$204,$O79,'Report - ALL (DASHBOARD)'!$W$4) -> 147.2503408 | S79: =INDEX('Compile Data'!$BL$123:$CI$204,$O79,'Report - ALL (DASHBOARD)'!$W$4) -> 147.0937481 | T79: =INDEX('Compile Data'!$CL$123:$DI$204,$O79,'Report - ALL (DASHBOARD)'!$W$4) -> 142.0787713 | U79: =INDEX('Compile Data'!$DL$123:$EI$204,$O79,'Report - ALL (DASHBOARD)'!$W$4) -> 139.3207534 | V79: =INDEX('Compile Data'!$EL$123:$FI$204,$O79,'Report - ALL (DASHBOARD)'!$W$4) -> 
A80: 1974 | B80: =INDEX('Compile Data'!$L$12:$AI$93,$A80-1921,'Report - ALL (DASHBOARD)'!$W$4) -> 0 | C80: =INDEX('Compile Data'!$AL$12:$BI$93,$A80-1921,'Report - ALL (DASHBOARD)'!$W$4) -> 581.6580664 | D80: =INDEX('Compile Data'!$BL$12:$CI$93,$A80-1921,'Report - ALL (DASHBOARD)'!$W$4) -> 478.6397481 | E80: =INDEX('Compile Data'!$CL$12:$DI$93,$A80-1921,'Report - ALL (DASHBOARD)'!$W$4) -> 207.077384 | F80: =INDEX('Compile Data'!$DL$12:$EI$93,$A80-1921,'Report - ALL (DASHBOARD)'!$W$4) -> 129.8596809 | G80: =INDEX('Compile Data'!$EL$12:$FI$93,$A80-1921,'Report - ALL (DASHBOARD)'!$W$4) ->  | I80: 581.6580664 | J80: 478.6397481 | L80: =Flags_Scn1!C64 -> 1 | O80: 53 | P80: 0.6419753086 | Q80: =INDEX('Compile Data'!$L$123:$AI$204,$O80,'Report - ALL (DASHBOARD)'!$W$4) -> 0 | R80: =INDEX('Compile Data'!$AL$123:$BI$204,$O80,'Report - ALL (DASHBOARD)'!$W$4) -> 143.7024793 | S80: =INDEX('Compile Data'!$BL$123:$CI$204,$O80,'Report - ALL (DASHBOARD)'!$W$4) -> 145.8327432 | T80: =INDEX('Compile Data'!$CL$123:$DI$204,$O80,'Report - ALL (DASHBOARD)'!$W$4) -> 139.3177168 | U80: =INDEX('Compile Data'!$DL$123:$EI$204,$O80,'Report - ALL (DASHBOARD)'!$W$4) -> 135.7836469 | V80: =INDEX('Compile Data'!$EL$123:$FI$204,$O80,'Report - ALL (DASHBOARD)'!$W$4) -> 
A81: 1975 | B81: =INDEX('Compile Data'!$L$12:$AI$93,$A81-1921,'Report - ALL (DASHBOARD)'!$W$4) -> 0 | C81: =INDEX('Compile Data'!$AL$12:$BI$93,$A81-1921,'Report - ALL (DASHBOARD)'!$W$4) -> 149.8468741 | D81: =INDEX('Compile Data'!$BL$12:$CI$93,$A81-1921,'Report - ALL (DASHBOARD)'!$W$4) -> 169.4561619 | E81: =INDEX('Compile Data'!$CL$12:$DI$93,$A81-1921,'Report - ALL (DASHBOARD)'!$W$4) -> 122.7675386 | F81: =INDEX('Compile Data'!$DL$12:$EI$93,$A81-1921,'Report - ALL (DASHBOARD)'!$W$4) -> 122.7675386 | G81: =INDEX('Compile Data'!$EL$12:$FI$93,$A81-1921,'Report - ALL (DASHBOARD)'!$W$4) ->  | I81: 149.8468741 | J81: 169.4561619 | L81: =Flags_Scn1!C65 -> 1 | O81: 54 | P81: 0.6543209877 | Q81: =INDEX('Compile Data'!$L$123:$AI$204,$O81,'Report - ALL (DASHBOARD)'!$W$4) -> 0 | R81: =INDEX('Compile Data'!$AL$123:$BI$204,$O81,'Report - ALL (DASHBOARD)'!$W$4) -> 142.8876633 | S81: =INDEX('Compile Data'!$BL$123:$CI$204,$O81,'Report - ALL (DASHBOARD)'!$W$4) -> 143.7024793 | T81: =INDEX('Compile Data'!$CL$123:$DI$204,$O81,'Report - ALL (DASHBOARD)'!$W$4) -> 135.783638 | U81: =INDEX('Compile Data'!$DL$123:$EI$204,$O81,'Report - ALL (DASHBOARD)'!$W$4) -> 133.8774836 | V81: =INDEX('Compile Data'!$EL$123:$FI$204,$O81,'Report - ALL (DASHBOARD)'!$W$4) -> 
A82: 1976 | B82: =INDEX('Compile Data'!$L$12:$AI$93,$A82-1921,'Report - ALL (DASHBOARD)'!$W$4) -> 0 | C82: =INDEX('Compile Data'!$AL$12:$BI$93,$A82-1921,'Report - ALL (DASHBOARD)'!$W$4) -> 0 | D82: =INDEX('Compile Data'!$BL$12:$CI$93,$A82-1921,'Report - ALL (DASHBOARD)'!$W$4) -> 0 | E82: =INDEX('Compile Data'!$CL$12:$DI$93,$A82-1921,'Report - ALL (DASHBOARD)'!$W$4) -> 0 | F82: =INDEX('Compile Data'!$DL$12:$EI$93,$A82-1921,'Report - ALL (DASHBOARD)'!$W$4) -> 0 | G82: =INDEX('Compile Data'!$EL$12:$FI$93,$A82-1921,'Report - ALL (DASHBOARD)'!$W$4) ->  | I82: 0 | J82: 0 | L82: =Flags_Scn1!C66 -> 5 | O82: 55 | P82: 0.6666666667 | Q82: =INDEX('Compile Data'!$L$123:$AI$204,$O82,'Report - ALL (DASHBOARD)'!$W$4) -> 0 | R82: =INDEX('Compile Data'!$AL$123:$BI$204,$O82,'Report - ALL (DASHBOARD)'!$W$4) -> 139.3142956 | S82: =INDEX('Compile Data'!$BL$123:$CI$204,$O82,'Report - ALL (DASHBOARD)'!$W$4) -> 142.8642309 | T82: =INDEX('Compile Data'!$CL$123:$DI$204,$O82,'Report - ALL (DASHBOARD)'!$W$4) -> 133.8774836 | U82: =INDEX('Compile Data'!$DL$123:$EI$204,$O82,'Report - ALL (DASHBOARD)'!$W$4) -> 129.8596809 | V82: =INDEX('Compile Data'!$EL$123:$FI$204,$O82,'Report - ALL (DASHBOARD)'!$W$4) -> 
A83: 1977 | B83: =INDEX('Compile Data'!$L$12:$AI$93,$A83-1921,'Report - ALL (DASHBOARD)'!$W$4) -> 0 | C83: =INDEX('Compile Data'!$AL$12:$BI$93,$A83-1921,'Report - ALL (DASHBOARD)'!$W$4) -> 0 | D83: =INDEX('Compile Data'!$BL$12:$CI$93,$A83-1921,'Report - ALL (DASHBOARD)'!$W$4) -> 0 | E83: =INDEX('Compile Data'!$CL$12:$DI$93,$A83-1921,'Report - ALL (DASHBOARD)'!$W$4) -> 0 | F83: =INDEX('Compile Data'!$DL$12:$EI$93,$A83-1921,'Report - ALL (DASHBOARD)'!$W$4) -> 0 | G83: =INDEX('Compile Data'!$EL$12:$FI$93,$A83-1921,'Report - ALL (DASHBOARD)'!$W$4) ->  | I83: 0 | J83: 0 | L83: =Flags_Scn1!C67 -> 5 | O83: 56 | P83: 0.6790123457 | Q83: =INDEX('Compile Data'!$L$123:$AI$204,$O83,'Report - ALL (DASHBOARD)'!$W$4) -> 0 | R83: =INDEX('Compile Data'!$AL$123:$BI$204,$O83,'Report - ALL (DASHBOARD)'!$W$4) -> 135.2884739 | S83: =INDEX('Compile Data'!$BL$123:$CI$204,$O83,'Report - ALL (DASHBOARD)'!$W$4) -> 139.5518277 | T83: =INDEX('Compile Data'!$CL$123:$DI$204,$O83,'Report - ALL (DASHBOARD)'!$W$4) -> 124.6361099 | U83: =INDEX('Compile Data'!$DL$123:$EI$204,$O83,'Report - ALL (DASHBOARD)'!$W$4) -> 124.6361097 | V83: =INDEX('Compile Data'!$EL$123:$FI$204,$O83,'Report - ALL (DASHBOARD)'!$W$4) -> 
A84: 1978 | B84: =INDEX('Compile Data'!$L$12:$AI$93,$A84-1921,'Report - ALL (DASHBOARD)'!$W$4) -> 0 | C84: =INDEX('Compile Data'!$AL$12:$BI$93,$A84-1921,'Report - ALL (DASHBOARD)'!$W$4) -> 828.8901188 | D84: =INDEX('Compile Data'!$BL$12:$CI$93,$A84-1921,'Report - ALL (DASHBOARD)'!$W$4) -> 828.8901097 | E84: =INDEX('Compile Data'!$CL$12:$DI$93,$A84-1921,'Report - ALL (DASHBOARD)'!$W$4) -> 828.8897433 | F84: =INDEX('Compile Data'!$DL$12:$EI$93,$A84-1921,'Report - ALL (DASHBOARD)'!$W$4) -> 828.8897433 | G84: =INDEX('Compile Data'!$EL$12:$FI$93,$A84-1921,'Report - ALL (DASHBOARD)'!$W$4) ->  | I84: 828.8901188 | J84: 828.8901097 | L84: =Flags_Scn1!C68 -> 2 | O84: 57 | P84: 0.6913580247 | Q84: =INDEX('Compile Data'!$L$123:$AI$204,$O84,'Report - ALL (DASHBOARD)'!$W$4) -> 0 | R84: =INDEX('Compile Data'!$AL$123:$BI$204,$O84,'Report - ALL (DASHBOARD)'!$W$4) -> 134.7268908 | S84: =INDEX('Compile Data'!$BL$123:$CI$204,$O84,'Report - ALL (DASHBOARD)'!$W$4) -> 134.0989498 | T84: =INDEX('Compile Data'!$CL$123:$DI$204,$O84,'Report - ALL (DASHBOARD)'!$W$4) -> 123.4313454 | U84: =INDEX('Compile Data'!$DL$123:$EI$204,$O84,'Report - ALL (DASHBOARD)'!$W$4) -> 123.4313454 | V84: =INDEX('Compile Data'!$EL$123:$FI$204,$O84,'Report - ALL (DASHBOARD)'!$W$4) -> 
A85: 1979 | B85: =INDEX('Compile Data'!$L$12:$AI$93,$A85-1921,'Report - ALL (DASHBOARD)'!$W$4) -> 0 | C85: =INDEX('Compile Data'!$AL$12:$BI$93,$A85-1921,'Report - ALL (DASHBOARD)'!$W$4) -> 147.2503408 | D85: =INDEX('Compile Data'!$BL$12:$CI$93,$A85-1921,'Report - ALL (DASHBOARD)'!$W$4) -> 147.0937481 | E85: =INDEX('Compile Data'!$CL$12:$DI$93,$A85-1921,'Report - ALL (DASHBOARD)'!$W$4) -> 146.8268972 | F85: =INDEX('Compile Data'!$DL$12:$EI$93,$A85-1921,'Report - ALL (DASHBOARD)'!$W$4) -> 146.8224927 | G85: =INDEX('Compile Data'!$EL$12:$FI$93,$A85-1921,'Report - ALL (DASHBOARD)'!$W$4) ->  | I85: 147.2503408 | J85: 147.0937481 | L85: =Flags_Scn1!C69 -> 3 | O85: 58 | P85: 0.7037037037 | Q85: =INDEX('Compile Data'!$L$123:$AI$204,$O85,'Report - ALL (DASHBOARD)'!$W$4) -> 0 | R85: =INDEX('Compile Data'!$AL$123:$BI$204,$O85,'Report - ALL (DASHBOARD)'!$W$4) -> 126.1965415 | S85: =INDEX('Compile Data'!$BL$123:$CI$204,$O85,'Report - ALL (DASHBOARD)'!$W$4) -> 126.7077009 | T85: =INDEX('Compile Data'!$CL$123:$DI$204,$O85,'Report - ALL (DASHBOARD)'!$W$4) -> 123.3436172 | U85: =INDEX('Compile Data'!$DL$123:$EI$204,$O85,'Report - ALL (DASHBOARD)'!$W$4) -> 123.3436147 | V85: =INDEX('Compile Data'!$EL$123:$FI$204,$O85,'Report - ALL (DASHBOARD)'!$W$4) -> 
A86: 1980 | B86: =INDEX('Compile Data'!$L$12:$AI$93,$A86-1921,'Report - ALL (DASHBOARD)'!$W$4) -> 0 | C86: =INDEX('Compile Data'!$AL$12:$BI$93,$A86-1921,'Report - ALL (DASHBOARD)'!$W$4) -> 589.5332405 | D86: =INDEX('Compile Data'!$BL$12:$CI$93,$A86-1921,'Report - ALL (DASHBOARD)'!$W$4) -> 589.4571598 | E86: =INDEX('Compile Data'!$CL$12:$DI$93,$A86-1921,'Report - ALL (DASHBOARD)'!$W$4) -> 589.1994172 | F86: =INDEX('Compile Data'!$DL$12:$EI$93,$A86-1921,'Report - ALL (DASHBOARD)'!$W$4) -> 589.1983207 | G86: =INDEX('Compile Data'!$EL$12:$FI$93,$A86-1921,'Report - ALL (DASHBOARD)'!$W$4) ->  | I86: 589.5332405 | J86: 589.4571598 | L86: =Flags_Scn1!C70 -> 2 | O86: 59 | P86: 0.7160493827 | Q86: =INDEX('Compile Data'!$L$123:$AI$204,$O86,'Report - ALL (DASHBOARD)'!$W$4) -> 0 | R86: =INDEX('Compile Data'!$AL$123:$BI$204,$O86,'Report - ALL (DASHBOARD)'!$W$4) -> 124.6407162 | S86: =INDEX('Compile Data'!$BL$123:$CI$204,$O86,'Report - ALL (DASHBOARD)'!$W$4) -> 124.6363504 | T86: =INDEX('Compile Data'!$CL$123:$DI$204,$O86,'Report - ALL (DASHBOARD)'!$W$4) -> 122.7675386 | U86: =INDEX('Compile Data'!$DL$123:$EI$204,$O86,'Report - ALL (DASHBOARD)'!$W$4) -> 122.7675386 | V86: =INDEX('Compile Data'!$EL$123:$FI$204,$O86,'Report - ALL (DASHBOARD)'!$W$4) -> 
A87: 1981 | B87: =INDEX('Compile Data'!$L$12:$AI$93,$A87-1921,'Report - ALL (DASHBOARD)'!$W$4) -> 0 | C87: =INDEX('Compile Data'!$AL$12:$BI$93,$A87-1921,'Report - ALL (DASHBOARD)'!$W$4) -> 254.6584844 | D87: =INDEX('Compile Data'!$BL$12:$CI$93,$A87-1921,'Report - ALL (DASHBOARD)'!$W$4) -> 237.0695065 | E87: =INDEX('Compile Data'!$CL$12:$DI$93,$A87-1921,'Report - ALL (DASHBOARD)'!$W$4) -> 215.7475435 | F87: =INDEX('Compile Data'!$DL$12:$EI$93,$A87-1921,'Report - ALL (DASHBOARD)'!$W$4) -> 183.8544931 | G87: =INDEX('Compile Data'!$EL$12:$FI$93,$A87-1921,'Report - ALL (DASHBOARD)'!$W$4) ->  | I87: 254.6584844 | J87: 237.0695065 | L87: =Flags_Scn1!C71 -> 4 | O87: 60 | P87: 0.7283950617 | Q87: =INDEX('Compile Data'!$L$123:$AI$204,$O87,'Report - ALL (DASHBOARD)'!$W$4) -> 0 | R87: =INDEX('Compile Data'!$AL$123:$BI$204,$O87,'Report - ALL (DASHBOARD)'!$W$4) -> 122.6906765 | S87: =INDEX('Compile Data'!$BL$123:$CI$204,$O87,'Report - ALL (DASHBOARD)'!$W$4) -> 123.7495501 | T87: =INDEX('Compile Data'!$CL$123:$DI$204,$O87,'Report - ALL (DASHBOARD)'!$W$4) -> 122.7162421 | U87: =INDEX('Compile Data'!$DL$123:$EI$204,$O87,'Report - ALL (DASHBOARD)'!$W$4) -> 122.6703848 | V87: =INDEX('Compile Data'!$EL$123:$FI$204,$O87,'Report - ALL (DASHBOARD)'!$W$4) -> 
A88: 1982 | B88: =INDEX('Compile Data'!$L$12:$AI$93,$A88-1921,'Report - ALL (DASHBOARD)'!$W$4) -> 0 | C88: =INDEX('Compile Data'!$AL$12:$BI$93,$A88-1921,'Report - ALL (DASHBOARD)'!$W$4) -> 921.2830961 | D88: =INDEX('Compile Data'!$BL$12:$CI$93,$A88-1921,'Report - ALL (DASHBOARD)'!$W$4) -> 794.4007573 | E88: =INDEX('Compile Data'!$CL$12:$DI$93,$A88-1921,'Report - ALL (DASHBOARD)'!$W$4) -> 531.946094 | F88: =INDEX('Compile Data'!$DL$12:$EI$93,$A88-1921,'Report - ALL (DASHBOARD)'!$W$4) -> 459.1925964 | G88: =INDEX('Compile Data'!$EL$12:$FI$93,$A88-1921,'Report - ALL (DASHBOARD)'!$W$4) ->  | I88: 921.2830961 | J88: 794.4007573 | L88: =Flags_Scn1!C72 -> 1 | O88: 61 | P88: 0.7407407407 | Q88: =INDEX('Compile Data'!$L$123:$AI$204,$O88,'Report - ALL (DASHBOARD)'!$W$4) -> 0 | R88: =INDEX('Compile Data'!$AL$123:$BI$204,$O88,'Report - ALL (DASHBOARD)'!$W$4) -> 122.6056001 | S88: =INDEX('Compile Data'!$BL$123:$CI$204,$O88,'Report - ALL (DASHBOARD)'!$W$4) -> 122.6926496 | T88: =INDEX('Compile Data'!$CL$123:$DI$204,$O88,'Report - ALL (DASHBOARD)'!$W$4) -> 122.670385 | U88: =INDEX('Compile Data'!$DL$123:$EI$204,$O88,'Report - ALL (DASHBOARD)'!$W$4) -> 122.5622041 | V88: =INDEX('Compile Data'!$EL$123:$FI$204,$O88,'Report - ALL (DASHBOARD)'!$W$4) -> 
A89: 1983 | B89: =INDEX('Compile Data'!$L$12:$AI$93,$A89-1921,'Report - ALL (DASHBOARD)'!$W$4) -> 0 | C89: =INDEX('Compile Data'!$AL$12:$BI$93,$A89-1921,'Report - ALL (DASHBOARD)'!$W$4) -> 121.7825169 | D89: =INDEX('Compile Data'!$BL$12:$CI$93,$A89-1921,'Report - ALL (DASHBOARD)'!$W$4) -> 122.4901739 | E89: =INDEX('Compile Data'!$CL$12:$DI$93,$A89-1921,'Report - ALL (DASHBOARD)'!$W$4) -> 123.3436172 | F89: =INDEX('Compile Data'!$DL$12:$EI$93,$A89-1921,'Report - ALL (DASHBOARD)'!$W$4) -> 123.3436147 | G89: =INDEX('Compile Data'!$EL$12:$FI$93,$A89-1921,'Report - ALL (DASHBOARD)'!$W$4) ->  | I89: 121.7825169 | J89: 122.4901739 | L89: =Flags_Scn1!C73 -> 1 | O89: 62 | P89: 0.7530864198 | Q89: =INDEX('Compile Data'!$L$123:$AI$204,$O89,'Report - ALL (DASHBOARD)'!$W$4) -> 0 | R89: =INDEX('Compile Data'!$AL$123:$BI$204,$O89,'Report - ALL (DASHBOARD)'!$W$4) -> 121.7825169 | S89: =INDEX('Compile Data'!$BL$123:$CI$204,$O89,'Report - ALL (DASHBOARD)'!$W$4) -> 122.4901739 | T89: =INDEX('Compile Data'!$CL$123:$DI$204,$O89,'Report - ALL (DASHBOARD)'!$W$4) -> 115.6253898 | U89: =INDEX('Compile Data'!$DL$123:$EI$204,$O89,'Report - ALL (DASHBOARD)'!$W$4) -> 115.6253894 | V89: =INDEX('Compile Data'!$EL$123:$FI$204,$O89,'Report - ALL (DASHBOARD)'!$W$4) -> 
A90: 1984 | B90: =INDEX('Compile Data'!$L$12:$AI$93,$A90-1921,'Report - ALL (DASHBOARD)'!$W$4) -> 0 | C90: =INDEX('Compile Data'!$AL$12:$BI$93,$A90-1921,'Report - ALL (DASHBOARD)'!$W$4) -> 149.619929 | D90: =INDEX('Compile Data'!$BL$12:$CI$93,$A90-1921,'Report - ALL (DASHBOARD)'!$W$4) -> 148.8473431 | E90: =INDEX('Compile Data'!$CL$12:$DI$93,$A90-1921,'Report - ALL (DASHBOARD)'!$W$4) -> 113.0473369 | F90: =INDEX('Compile Data'!$DL$12:$EI$93,$A90-1921,'Report - ALL (DASHBOARD)'!$W$4) -> 113.0473369 | G90: =INDEX('Compile Data'!$EL$12:$FI$93,$A90-1921,'Report - ALL (DASHBOARD)'!$W$4) ->  | I90: 149.619929 | J90: 148.8473431 | L90: =Flags_Scn1!C74 -> 1 | O90: 63 | P90: 0.7654320988 | Q90: =INDEX('Compile Data'!$L$123:$AI$204,$O90,'Report - ALL (DASHBOARD)'!$W$4) -> 0 | R90: =INDEX('Compile Data'!$AL$123:$BI$204,$O90,'Report - ALL (DASHBOARD)'!$W$4) -> 118.7427067 | S90: =INDEX('Compile Data'!$BL$123:$CI$204,$O90,'Report - ALL (DASHBOARD)'!$W$4) -> 115.1979527 | T90: =INDEX('Compile Data'!$CL$123:$DI$204,$O90,'Report - ALL (DASHBOARD)'!$W$4) -> 113.0473369 | U90: =INDEX('Compile Data'!$DL$123:$EI$204,$O90,'Report - ALL (DASHBOARD)'!$W$4) -> 113.0473369 | V90: =INDEX('Compile Data'!$EL$123:$FI$204,$O90,'Report - ALL (DASHBOARD)'!$W$4) -> 
A91: 1985 | B91: =INDEX('Compile Data'!$L$12:$AI$93,$A91-1921,'Report - ALL (DASHBOARD)'!$W$4) -> 0 | C91: =INDEX('Compile Data'!$AL$12:$BI$93,$A91-1921,'Report - ALL (DASHBOARD)'!$W$4) -> 96.8581587 | D91: =INDEX('Compile Data'!$BL$12:$CI$93,$A91-1921,'Report - ALL (DASHBOARD)'!$W$4) -> 96.38305675 | E91: =INDEX('Compile Data'!$CL$12:$DI$93,$A91-1921,'Report - ALL (DASHBOARD)'!$W$4) -> 59.53265055 | F91: =INDEX('Compile Data'!$DL$12:$EI$93,$A91-1921,'Report - ALL (DASHBOARD)'!$W$4) -> 59.53272362 | G91: =INDEX('Compile Data'!$EL$12:$FI$93,$A91-1921,'Report - ALL (DASHBOARD)'!$W$4) ->  | I91: 96.8581587 | J91: 96.38305675 | L91: =Flags_Scn1!C75 -> 4 | O91: 64 | P91: 0.7777777778 | Q91: =INDEX('Compile Data'!$L$123:$AI$204,$O91,'Report - ALL (DASHBOARD)'!$W$4) -> 0 | R91: =INDEX('Compile Data'!$AL$123:$BI$204,$O91,'Report - ALL (DASHBOARD)'!$W$4) -> 96.8581587 | S91: =INDEX('Compile Data'!$BL$123:$CI$204,$O91,'Report - ALL (DASHBOARD)'!$W$4) -> 96.38305675 | T91: =INDEX('Compile Data'!$CL$123:$DI$204,$O91,'Report - ALL (DASHBOARD)'!$W$4) -> 97.39763628 | U91: =INDEX('Compile Data'!$DL$123:$EI$204,$O91,'Report - ALL (DASHBOARD)'!$W$4) -> 97.39763628 | V91: =INDEX('Compile Data'!$EL$123:$FI$204,$O91,'Report - ALL (DASHBOARD)'!$W$4) -> 
A92: 1986 | B92: =INDEX('Compile Data'!$L$12:$AI$93,$A92-1921,'Report - ALL (DASHBOARD)'!$W$4) -> 0 | C92: =INDEX('Compile Data'!$AL$12:$BI$93,$A92-1921,'Report - ALL (DASHBOARD)'!$W$4) -> 386.2186726 | D92: =INDEX('Compile Data'!$BL$12:$CI$93,$A92-1921,'Report - ALL (DASHBOARD)'!$W$4) -> 384.5385099 | E92: =INDEX('Compile Data'!$CL$12:$DI$93,$A92-1921,'Report - ALL (DASHBOARD)'!$W$4) -> 381.3990212 | F92: =INDEX('Compile Data'!$DL$12:$EI$93,$A92-1921,'Report - ALL (DASHBOARD)'!$W$4) -> 381.3994954 | G92: =INDEX('Compile Data'!$EL$12:$FI$93,$A92-1921,'Report - ALL (DASHBOARD)'!$W$4) ->  | I92: 386.2186726 | J92: 384.5385099 | L92: =Flags_Scn1!C76 -> 1 | O92: 65 | P92: =(O92-1)/81 -> 0.7901234568 | Q92: =INDEX('Compile Data'!$L$123:$AI$204,$O92,'Report - ALL (DASHBOARD)'!$W$4) -> 0 | R92: =INDEX('Compile Data'!$AL$123:$BI$204,$O92,'Report - ALL (DASHBOARD)'!$W$4) -> 96.355668 | S92: =INDEX('Compile Data'!$BL$123:$CI$204,$O92,'Report - ALL (DASHBOARD)'!$W$4) -> 89.11409788 | T92: =INDEX('Compile Data'!$CL$123:$DI$204,$O92,'Report - ALL (DASHBOARD)'!$W$4) -> 80.02263642 | U92: =INDEX('Compile Data'!$DL$123:$EI$204,$O92,'Report - ALL (DASHBOARD)'!$W$4) -> 80.02263682 | V92: =INDEX('Compile Data'!$EL$123:$FI$204,$O92,'Report - ALL (DASHBOARD)'!$W$4) -> 
A93: 1987 | B93: =INDEX('Compile Data'!$L$12:$AI$93,$A93-1921,'Report - ALL (DASHBOARD)'!$W$4) -> 0 | C93: =INDEX('Compile Data'!$AL$12:$BI$93,$A93-1921,'Report - ALL (DASHBOARD)'!$W$4) -> 173.3897683 | D93: =INDEX('Compile Data'!$BL$12:$CI$93,$A93-1921,'Report - ALL (DASHBOARD)'!$W$4) -> 173.3855302 | E93: =INDEX('Compile Data'!$CL$12:$DI$93,$A93-1921,'Report - ALL (DASHBOARD)'!$W$4) -> 173.418545 | F93: =INDEX('Compile Data'!$DL$12:$EI$93,$A93-1921,'Report - ALL (DASHBOARD)'!$W$4) -> 173.4180124 | G93: =INDEX('Compile Data'!$EL$12:$FI$93,$A93-1921,'Report - ALL (DASHBOARD)'!$W$4) ->  | I93: =C93-$B93 -> 173.3897683 | J93: =D93-$B93 -> 173.3855302 | L93: =Flags_Scn1!C77 -> 4 | O93: 66 | P93: 0.8024691358 | Q93: =INDEX('Compile Data'!$L$123:$AI$204,$O93,'Report - ALL (DASHBOARD)'!$W$4) -> 0 | R93: =INDEX('Compile Data'!$AL$123:$BI$204,$O93,'Report - ALL (DASHBOARD)'!$W$4) -> 87.63092147 | S93: =INDEX('Compile Data'!$BL$123:$CI$204,$O93,'Report - ALL (DASHBOARD)'!$W$4) -> 80.53225729 | T93: =INDEX('Compile Data'!$CL$123:$DI$204,$O93,'Report - ALL (DASHBOARD)'!$W$4) -> 60.22336263 | U93: =INDEX('Compile Data'!$DL$123:$EI$204,$O93,'Report - ALL (DASHBOARD)'!$W$4) -> 60.21871224 | V93: =INDEX('Compile Data'!$EL$123:$FI$204,$O93,'Report - ALL (DASHBOARD)'!$W$4) -> 
A94: =A93+1 -> 1988 | B94: =INDEX('Compile Data'!$L$12:$AI$93,$A94-1921,'Report - ALL (DASHBOARD)'!$W$4) -> 0 | C94: =INDEX('Compile Data'!$AL$12:$BI$93,$A94-1921,'Report - ALL (DASHBOARD)'!$W$4) -> 188.107494 | D94: =INDEX('Compile Data'!$BL$12:$CI$93,$A94-1921,'Report - ALL (DASHBOARD)'!$W$4) -> 188.1217267 | E94: =INDEX('Compile Data'!$CL$12:$DI$93,$A94-1921,'Report - ALL (DASHBOARD)'!$W$4) -> 188.1557444 | F94: =INDEX('Compile Data'!$DL$12:$EI$93,$A94-1921,'Report - ALL (DASHBOARD)'!$W$4) -> 188.155361 | G94: =INDEX('Compile Data'!$EL$12:$FI$93,$A94-1921,'Report - ALL (DASHBOARD)'!$W$4) ->  | I94: 188.107494 | J94: 188.1217267 | L94: =Flags_Scn1!C78 -> 5 | O94: 67 | P94: 0.8148148148 | Q94: =INDEX('Compile Data'!$L$123:$AI$204,$O94,'Report - ALL (DASHBOARD)'!$W$4) -> 0 | R94: =INDEX('Compile Data'!$AL$123:$BI$204,$O94,'Report - ALL (DASHBOARD)'!$W$4) -> 80.10475984 | S94: =INDEX('Compile Data'!$BL$123:$CI$204,$O94,'Report - ALL (DASHBOARD)'!$W$4) -> 62.82751468 | T94: =INDEX('Compile Data'!$CL$123:$DI$204,$O94,'Report - ALL (DASHBOARD)'!$W$4) -> 59.53265055 | U94: =INDEX('Compile Data'!$DL$123:$EI$204,$O94,'Report - ALL (DASHBOARD)'!$W$4) -> 59.53272362 | V94: =INDEX('Compile Data'!$EL$123:$FI$204,$O94,'Report - ALL (DASHBOARD)'!$W$4) -> 
A95: 1989 | B95: =INDEX('Compile Data'!$L$12:$AI$93,$A95-1921,'Report - ALL (DASHBOARD)'!$W$4) -> 0 | C95: =INDEX('Compile Data'!$AL$12:$BI$93,$A95-1921,'Report - ALL (DASHBOARD)'!$W$4) -> 183.3679339 | D95: =INDEX('Compile Data'!$BL$12:$CI$93,$A95-1921,'Report - ALL (DASHBOARD)'!$W$4) -> 183.3679339 | E95: =INDEX('Compile Data'!$CL$12:$DI$93,$A95-1921,'Report - ALL (DASHBOARD)'!$W$4) -> 183.3679339 | F95: =INDEX('Compile Data'!$DL$12:$EI$93,$A95-1921,'Report - ALL (DASHBOARD)'!$W$4) -> 183.3679339 | G95: =INDEX('Compile Data'!$EL$12:$FI$93,$A95-1921,'Report - ALL (DASHBOARD)'!$W$4) ->  | I95: 183.3679339 | J95: 183.3679339 | L95: =Flags_Scn1!C79 -> 4 | O95: 68 | P95: 0.8271604938 | Q95: =INDEX('Compile Data'!$L$123:$AI$204,$O95,'Report - ALL (DASHBOARD)'!$W$4) -> 0 | R95: =INDEX('Compile Data'!$AL$123:$BI$204,$O95,'Report - ALL (DASHBOARD)'!$W$4) -> 60.14014598 | S95: =INDEX('Compile Data'!$BL$123:$CI$204,$O95,'Report - ALL (DASHBOARD)'!$W$4) -> 60.22805553 | T95: =INDEX('Compile Data'!$CL$123:$DI$204,$O95,'Report - ALL (DASHBOARD)'!$W$4) -> 46.10832632 | U95: =INDEX('Compile Data'!$DL$123:$EI$204,$O95,'Report - ALL (DASHBOARD)'!$W$4) -> 46.10545975 | V95: =INDEX('Compile Data'!$EL$123:$FI$204,$O95,'Report - ALL (DASHBOARD)'!$W$4) -> 
A96: 1990 | B96: =INDEX('Compile Data'!$L$12:$AI$93,$A96-1921,'Report - ALL (DASHBOARD)'!$W$4) -> 0 | C96: =INDEX('Compile Data'!$AL$12:$BI$93,$A96-1921,'Report - ALL (DASHBOARD)'!$W$4) -> 0 | D96: =INDEX('Compile Data'!$BL$12:$CI$93,$A96-1921,'Report - ALL (DASHBOARD)'!$W$4) -> 0 | E96: =INDEX('Compile Data'!$CL$12:$DI$93,$A96-1921,'Report - ALL (DASHBOARD)'!$W$4) -> 0 | F96: =INDEX('Compile Data'!$DL$12:$EI$93,$A96-1921,'Report - ALL (DASHBOARD)'!$W$4) -> 0 | G96: =INDEX('Compile Data'!$EL$12:$FI$93,$A96-1921,'Report - ALL (DASHBOARD)'!$W$4) ->  | I96: 0 | J96: 0 | L96: =Flags_Scn1!C80 -> 5 | O96: 69 | P96: 0.8395061728 | Q96: =INDEX('Compile Data'!$L$123:$AI$204,$O96,'Report - ALL (DASHBOARD)'!$W$4) -> 0 | R96: =INDEX('Compile Data'!$AL$123:$BI$204,$O96,'Report - ALL (DASHBOARD)'!$W$4) -> 45.7028649 | S96: =INDEX('Compile Data'!$BL$123:$CI$204,$O96,'Report - ALL (DASHBOARD)'!$W$4) -> 46.09807788 | T96: =INDEX('Compile Data'!$CL$123:$DI$204,$O96,'Report - ALL (DASHBOARD)'!$W$4) -> 38.65172758 | U96: =INDEX('Compile Data'!$DL$123:$EI$204,$O96,'Report - ALL (DASHBOARD)'!$W$4) -> 38.65192223 | V96: =INDEX('Compile Data'!$EL$123:$FI$204,$O96,'Report - ALL (DASHBOARD)'!$W$4) -> 
A97: 1991 | B97: =INDEX('Compile Data'!$L$12:$AI$93,$A97-1921,'Report - ALL (DASHBOARD)'!$W$4) -> 0 | C97: =INDEX('Compile Data'!$AL$12:$BI$93,$A97-1921,'Report - ALL (DASHBOARD)'!$W$4) -> 183.3679339 | D97: =INDEX('Compile Data'!$BL$12:$CI$93,$A97-1921,'Report - ALL (DASHBOARD)'!$W$4) -> 183.3679339 | E97: =INDEX('Compile Data'!$CL$12:$DI$93,$A97-1921,'Report - ALL (DASHBOARD)'!$W$4) -> 183.3679339 | F97: =INDEX('Compile Data'!$DL$12:$EI$93,$A97-1921,'Report - ALL (DASHBOARD)'!$W$4) -> 183.3679339 | G97: =INDEX('Compile Data'!$EL$12:$FI$93,$A97-1921,'Report - ALL (DASHBOARD)'!$W$4) ->  | I97: 183.3679339 | J97: 183.3679339 | L97: =Flags_Scn1!C81 -> 5 | O97: 70 | P97: 0.8518518519 | Q97: =INDEX('Compile Data'!$L$123:$AI$204,$O97,'Report - ALL (DASHBOARD)'!$W$4) -> 0 | R97: =INDEX('Compile Data'!$AL$123:$BI$204,$O97,'Report - ALL (DASHBOARD)'!$W$4) -> 38.53672587 | S97: =INDEX('Compile Data'!$BL$123:$CI$204,$O97,'Report - ALL (DASHBOARD)'!$W$4) -> 38.54883809 | T97: =INDEX('Compile Data'!$CL$123:$DI$204,$O97,'Report - ALL (DASHBOARD)'!$W$4) -> 20.63627019 | U97: =INDEX('Compile Data'!$DL$123:$EI$204,$O97,'Report - ALL (DASHBOARD)'!$W$4) -> 11.90103753 | V97: =INDEX('Compile Data'!$EL$123:$FI$204,$O97,'Report - ALL (DASHBOARD)'!$W$4) -> 
A98: 1992 | B98: =INDEX('Compile Data'!$L$12:$AI$93,$A98-1921,'Report - ALL (DASHBOARD)'!$W$4) -> 0 | C98: =INDEX('Compile Data'!$AL$12:$BI$93,$A98-1921,'Report - ALL (DASHBOARD)'!$W$4) -> 171.4962843 | D98: =INDEX('Compile Data'!$BL$12:$CI$93,$A98-1921,'Report - ALL (DASHBOARD)'!$W$4) -> 171.4955097 | E98: =INDEX('Compile Data'!$CL$12:$DI$93,$A98-1921,'Report - ALL (DASHBOARD)'!$W$4) -> 171.6040824 | F98: =INDEX('Compile Data'!$DL$12:$EI$93,$A98-1921,'Report - ALL (DASHBOARD)'!$W$4) -> 171.5908905 | G98: =INDEX('Compile Data'!$EL$12:$FI$93,$A98-1921,'Report - ALL (DASHBOARD)'!$W$4) ->  | I98: 171.4962843 | J98: 171.4955097 | L98: =Flags_Scn1!C82 -> 5 | O98: 71 | P98: 0.8641975309 | Q98: =INDEX('Compile Data'!$L$123:$AI$204,$O98,'Report - ALL (DASHBOARD)'!$W$4) -> 0 | R98: =INDEX('Compile Data'!$AL$123:$BI$204,$O98,'Report - ALL (DASHBOARD)'!$W$4) -> 15.15175218 | S98: =INDEX('Compile Data'!$BL$123:$CI$204,$O98,'Report - ALL (DASHBOARD)'!$W$4) -> 15.85046534 | T98: =INDEX('Compile Data'!$CL$123:$DI$204,$O98,'Report - ALL (DASHBOARD)'!$W$4) -> 12.20164873 | U98: =INDEX('Compile Data'!$DL$123:$EI$204,$O98,'Report - ALL (DASHBOARD)'!$W$4) -> 8.85028729 | V98: =INDEX('Compile Data'!$EL$123:$FI$204,$O98,'Report - ALL (DASHBOARD)'!$W$4) -> 
A99: 1993 | B99: =INDEX('Compile Data'!$L$12:$AI$93,$A99-1921,'Report - ALL (DASHBOARD)'!$W$4) -> 0 | C99: =INDEX('Compile Data'!$AL$12:$BI$93,$A99-1921,'Report - ALL (DASHBOARD)'!$W$4) -> 569.5044521 | D99: =INDEX('Compile Data'!$BL$12:$CI$93,$A99-1921,'Report - ALL (DASHBOARD)'!$W$4) -> 569.5044521 | E99: =INDEX('Compile Data'!$CL$12:$DI$93,$A99-1921,'Report - ALL (DASHBOARD)'!$W$4) -> 569.5044521 | F99: =INDEX('Compile Data'!$DL$12:$EI$93,$A99-1921,'Report - ALL (DASHBOARD)'!$W$4) -> 569.5044521 | G99: =INDEX('Compile Data'!$EL$12:$FI$93,$A99-1921,'Report - ALL (DASHBOARD)'!$W$4) ->  | I99: 569.5044521 | J99: 569.5044521 | L99: =Flags_Scn1!C83 -> 2 | O99: 72 | P99: 0.8765432099 | Q99: =INDEX('Compile Data'!$L$123:$AI$204,$O99,'Report - ALL (DASHBOARD)'!$W$4) -> 0 | R99: =INDEX('Compile Data'!$AL$123:$BI$204,$O99,'Report - ALL (DASHBOARD)'!$W$4) -> 7.842748178 | S99: =INDEX('Compile Data'!$BL$123:$CI$204,$O99,'Report - ALL (DASHBOARD)'!$W$4) -> 5.369624766 | T99: =INDEX('Compile Data'!$CL$123:$DI$204,$O99,'Report - ALL (DASHBOARD)'!$W$4) -> 1.543471711 | U99: =INDEX('Compile Data'!$DL$123:$EI$204,$O99,'Report - ALL (DASHBOARD)'!$W$4) -> 0.2299417939 | V99: =INDEX('Compile Data'!$EL$123:$FI$204,$O99,'Report - ALL (DASHBOARD)'!$W$4) -> 
A100: 1994 | B100: =INDEX('Compile Data'!$L$12:$AI$93,$A100-1921,'Report - ALL (DASHBOARD)'!$W$4) -> 0 | C100: =INDEX('Compile Data'!$AL$12:$BI$93,$A100-1921,'Report - ALL (DASHBOARD)'!$W$4) -> 60.14014598 | D100: =INDEX('Compile Data'!$BL$12:$CI$93,$A100-1921,'Report - ALL (DASHBOARD)'!$W$4) -> 60.22805553 | E100: =INDEX('Compile Data'!$CL$12:$DI$93,$A100-1921,'Report - ALL (DASHBOARD)'!$W$4) -> 60.22336263 | F100: =INDEX('Compile Data'!$DL$12:$EI$93,$A100-1921,'Report - ALL (DASHBOARD)'!$W$4) -> 60.21871224 | G100: =INDEX('Compile Data'!$EL$12:$FI$93,$A100-1921,'Report - ALL (DASHBOARD)'!$W$4) ->  | I100: 60.14014598 | J100: 60.22805553 | L100: =Flags_Scn1!C84 -> 5 | O100: 73 | P100: 0.8888888889 | Q100: =INDEX('Compile Data'!$L$123:$AI$204,$O100,'Report - ALL (DASHBOARD)'!$W$4) -> 0 | R100: =INDEX('Compile Data'!$AL$123:$BI$204,$O100,'Report - ALL (DASHBOARD)'!$W$4) -> 1.844266989 | S100: =INDEX('Compile Data'!$BL$123:$CI$204,$O100,'Report - ALL (DASHBOARD)'!$W$4) -> 0.007695745382 | T100: =INDEX('Compile Data'!$CL$123:$DI$204,$O100,'Report - ALL (DASHBOARD)'!$W$4) -> 0.001765744794 | U100: =INDEX('Compile Data'!$DL$123:$EI$204,$O100,'Report - ALL (DASHBOARD)'!$W$4) -> 0.001762309258 | V100: =INDEX('Compile Data'!$EL$123:$FI$204,$O100,'Report - ALL (DASHBOARD)'!$W$4) -> 
A101: 1995 | B101: =INDEX('Compile Data'!$L$12:$AI$93,$A101-1921,'Report - ALL (DASHBOARD)'!$W$4) -> 0 | C101: =INDEX('Compile Data'!$AL$12:$BI$93,$A101-1921,'Report - ALL (DASHBOARD)'!$W$4) -> 902.4883961 | D101: =INDEX('Compile Data'!$BL$12:$CI$93,$A101-1921,'Report - ALL (DASHBOARD)'!$W$4) -> 902.4584956 | E101: =INDEX('Compile Data'!$CL$12:$DI$93,$A101-1921,'Report - ALL (DASHBOARD)'!$W$4) -> 902.4166618 | F101: =INDEX('Compile Data'!$DL$12:$EI$93,$A101-1921,'Report - ALL (DASHBOARD)'!$W$4) -> 902.4169705 | G101: =INDEX('Compile Data'!$EL$12:$FI$93,$A101-1921,'Report - ALL (DASHBOARD)'!$W$4) ->  | I101: 902.4883961 | J101: 902.4584956 | L101: =Flags_Scn1!C85 -> 1 | O101: 74 | P101: 0.9012345679 | Q101: =INDEX('Compile Data'!$L$123:$AI$204,$O101,'Report - ALL (DASHBOARD)'!$W$4) -> 0 | R101: =INDEX('Compile Data'!$AL$123:$BI$204,$O101,'Report - ALL (DASHBOARD)'!$W$4) -> 0 | S101: =INDEX('Compile Data'!$BL$123:$CI$204,$O101,'Report - ALL (DASHBOARD)'!$W$4) -> 0 | T101: =INDEX('Compile Data'!$CL$123:$DI$204,$O101,'Report - ALL (DASHBOARD)'!$W$4) -> 0 | U101: =INDEX('Compile Data'!$DL$123:$EI$204,$O101,'Report - ALL (DASHBOARD)'!$W$4) -> 0 | V101: =INDEX('Compile Data'!$EL$123:$FI$204,$O101,'Report - ALL (DASHBOARD)'!$W$4) -> 
A102: 1996 | B102: =INDEX('Compile Data'!$L$12:$AI$93,$A102-1921,'Report - ALL (DASHBOARD)'!$W$4) -> 0 | C102: =INDEX('Compile Data'!$AL$12:$BI$93,$A102-1921,'Report - ALL (DASHBOARD)'!$W$4) -> 580.7184232 | D102: =INDEX('Compile Data'!$BL$12:$CI$93,$A102-1921,'Report - ALL (DASHBOARD)'!$W$4) -> 566.7223131 | E102: =INDEX('Compile Data'!$CL$12:$DI$93,$A102-1921,'Report - ALL (DASHBOARD)'!$W$4) -> 536.1557601 | F102: =INDEX('Compile Data'!$DL$12:$EI$93,$A102-1921,'Report - ALL (DASHBOARD)'!$W$4) -> 534.3737921 | G102: =INDEX('Compile Data'!$EL$12:$FI$93,$A102-1921,'Report - ALL (DASHBOARD)'!$W$4) ->  | I102: 580.7184232 | J102: 566.7223131 | L102: =Flags_Scn1!C86 -> 1 | O102: 75 | P102: 0.9135802469 | Q102: =INDEX('Compile Data'!$L$123:$AI$204,$O102,'Report - ALL (DASHBOARD)'!$W$4) -> 0 | R102: =INDEX('Compile Data'!$AL$123:$BI$204,$O102,'Report - ALL (DASHBOARD)'!$W$4) -> 0 | S102: =INDEX('Compile Data'!$BL$123:$CI$204,$O102,'Report - ALL (DASHBOARD)'!$W$4) -> 0 | T102: =INDEX('Compile Data'!$CL$123:$DI$204,$O102,'Report - ALL (DASHBOARD)'!$W$4) -> 0 | U102: =INDEX('Compile Data'!$DL$123:$EI$204,$O102,'Report - ALL (DASHBOARD)'!$W$4) -> 0 | V102: =INDEX('Compile Data'!$EL$123:$FI$204,$O102,'Report - ALL (DASHBOARD)'!$W$4) -> 
A103: 1997 | B103: =INDEX('Compile Data'!$L$12:$AI$93,$A103-1921,'Report - ALL (DASHBOARD)'!$W$4) -> 0 | C103: =INDEX('Compile Data'!$AL$12:$BI$93,$A103-1921,'Report - ALL (DASHBOARD)'!$W$4) -> 87.63092147 | D103: =INDEX('Compile Data'!$BL$12:$CI$93,$A103-1921,'Report - ALL (DASHBOARD)'!$W$4) -> 115.1979527 | E103: =INDEX('Compile Data'!$CL$12:$DI$93,$A103-1921,'Report - ALL (DASHBOARD)'!$W$4) -> 97.39763628 | F103: =INDEX('Compile Data'!$DL$12:$EI$93,$A103-1921,'Report - ALL (DASHBOARD)'!$W$4) -> 97.39763628 | G103: =INDEX('Compile Data'!$EL$12:$FI$93,$A103-1921,'Report - ALL (DASHBOARD)'!$W$4) ->  | I103: 87.63092147 | J103: 115.1979527 | L103: =Flags_Scn1!C87 -> 1 | O103: 76 | P103: 0.9259259259 | Q103: =INDEX('Compile Data'!$L$123:$AI$204,$O103,'Report - ALL (DASHBOARD)'!$W$4) -> 0 | R103: =INDEX('Compile Data'!$AL$123:$BI$204,$O103,'Report - ALL (DASHBOARD)'!$W$4) -> 0 | S103: =INDEX('Compile Data'!$BL$123:$CI$204,$O103,'Report - ALL (DASHBOARD)'!$W$4) -> 0 | T103: =INDEX('Compile Data'!$CL$123:$DI$204,$O103,'Report - ALL (DASHBOARD)'!$W$4) -> 0 | U103: =INDEX('Compile Data'!$DL$123:$EI$204,$O103,'Report - ALL (DASHBOARD)'!$W$4) -> 0 | V103: =INDEX('Compile Data'!$EL$123:$FI$204,$O103,'Report - ALL (DASHBOARD)'!$W$4) -> 
A104: 1998 | B104: =INDEX('Compile Data'!$L$12:$AI$93,$A104-1921,'Report - ALL (DASHBOARD)'!$W$4) -> 0 | C104: =INDEX('Compile Data'!$AL$12:$BI$93,$A104-1921,'Report - ALL (DASHBOARD)'!$W$4) -> 183.7617067 | D104: =INDEX('Compile Data'!$BL$12:$CI$93,$A104-1921,'Report - ALL (DASHBOARD)'!$W$4) -> 183.9691001 | E104: =INDEX('Compile Data'!$CL$12:$DI$93,$A104-1921,'Report - ALL (DASHBOARD)'!$W$4) -> 191.1321932 | F104: =INDEX('Compile Data'!$DL$12:$EI$93,$A104-1921,'Report - ALL (DASHBOARD)'!$W$4) -> 191.1321983 | G104: =INDEX('Compile Data'!$EL$12:$FI$93,$A104-1921,'Report - ALL (DASHBOARD)'!$W$4) ->  | I104: 183.7617067 | J104: 183.9691001 | L104: =Flags_Scn1!C88 -> 1 | O104: 77 | P104: 0.9382716049 | Q104: =INDEX('Compile Data'!$L$123:$AI$204,$O104,'Report - ALL (DASHBOARD)'!$W$4) -> 0 | R104: =INDEX('Compile Data'!$AL$123:$BI$204,$O104,'Report - ALL (DASHBOARD)'!$W$4) -> 0 | S104: =INDEX('Compile Data'!$BL$123:$CI$204,$O104,'Report - ALL (DASHBOARD)'!$W$4) -> 0 | T104: =INDEX('Compile Data'!$CL$123:$DI$204,$O104,'Report - ALL (DASHBOARD)'!$W$4) -> 0 | U104: =INDEX('Compile Data'!$DL$123:$EI$204,$O104,'Report - ALL (DASHBOARD)'!$W$4) -> 0 | V104: =INDEX('Compile Data'!$EL$123:$FI$204,$O104,'Report - ALL (DASHBOARD)'!$W$4) -> 
A105: 1999 | B105: =INDEX('Compile Data'!$L$12:$AI$93,$A105-1921,'Report - ALL (DASHBOARD)'!$W$4) -> 0 | C105: =INDEX('Compile Data'!$AL$12:$BI$93,$A105-1921,'Report - ALL (DASHBOARD)'!$W$4) -> 80.10475984 | D105: =INDEX('Compile Data'!$BL$12:$CI$93,$A105-1921,'Report - ALL (DASHBOARD)'!$W$4) -> 80.53225729 | E105: =INDEX('Compile Data'!$CL$12:$DI$93,$A105-1921,'Report - ALL (DASHBOARD)'!$W$4) -> 80.02263642 | F105: =INDEX('Compile Data'!$DL$12:$EI$93,$A105-1921,'Report - ALL (DASHBOARD)'!$W$4) -> 80.02263682 | G105: =INDEX('Compile Data'!$EL$12:$FI$93,$A105-1921,'Report - ALL (DASHBOARD)'!$W$4) ->  | I105: 80.10475984 | J105: 80.53225729 | L105: =Flags_Scn1!C89 -> 1 | O105: 78 | P105: 0.950617284 | Q105: =INDEX('Compile Data'!$L$123:$AI$204,$O105,'Report - ALL (DASHBOARD)'!$W$4) -> 0 | R105: =INDEX('Compile Data'!$AL$123:$BI$204,$O105,'Report - ALL (DASHBOARD)'!$W$4) -> 0 | S105: =INDEX('Compile Data'!$BL$123:$CI$204,$O105,'Report - ALL (DASHBOARD)'!$W$4) -> 0 | T105: =INDEX('Compile Data'!$CL$123:$DI$204,$O105,'Report - ALL (DASHBOARD)'!$W$4) -> 0 | U105: =INDEX('Compile Data'!$DL$123:$EI$204,$O105,'Report - ALL (DASHBOARD)'!$W$4) -> 0 | V105: =INDEX('Compile Data'!$EL$123:$FI$204,$O105,'Report - ALL (DASHBOARD)'!$W$4) -> 
A106: 2000 | B106: =INDEX('Compile Data'!$L$12:$AI$93,$A106-1921,'Report - ALL (DASHBOARD)'!$W$4) -> 0 | C106: =INDEX('Compile Data'!$AL$12:$BI$93,$A106-1921,'Report - ALL (DASHBOARD)'!$W$4) -> 185.6666147 | D106: =INDEX('Compile Data'!$BL$12:$CI$93,$A106-1921,'Report - ALL (DASHBOARD)'!$W$4) -> 185.6666042 | E106: =INDEX('Compile Data'!$CL$12:$DI$93,$A106-1921,'Report - ALL (DASHBOARD)'!$W$4) -> 135.783638 | F106: =INDEX('Compile Data'!$DL$12:$EI$93,$A106-1921,'Report - ALL (DASHBOARD)'!$W$4) -> 135.7836469 | G106: =INDEX('Compile Data'!$EL$12:$FI$93,$A106-1921,'Report - ALL (DASHBOARD)'!$W$4) ->  | I106: 185.6666147 | J106: 185.6666042 | L106: =Flags_Scn1!C90 -> 2 | O106: 79 | P106: 0.962962963 | Q106: =INDEX('Compile Data'!$L$123:$AI$204,$O106,'Report - ALL (DASHBOARD)'!$W$4) -> 0 | R106: =INDEX('Compile Data'!$AL$123:$BI$204,$O106,'Report - ALL (DASHBOARD)'!$W$4) -> 0 | S106: =INDEX('Compile Data'!$BL$123:$CI$204,$O106,'Report - ALL (DASHBOARD)'!$W$4) -> 0 | T106: =INDEX('Compile Data'!$CL$123:$DI$204,$O106,'Report - ALL (DASHBOARD)'!$W$4) -> 0 | U106: =INDEX('Compile Data'!$DL$123:$EI$204,$O106,'Report - ALL (DASHBOARD)'!$W$4) -> 0 | V106: =INDEX('Compile Data'!$EL$123:$FI$204,$O106,'Report - ALL (DASHBOARD)'!$W$4) -> 
A107: 2001 | B107: =INDEX('Compile Data'!$L$12:$AI$93,$A107-1921,'Report - ALL (DASHBOARD)'!$W$4) -> 0 | C107: =INDEX('Compile Data'!$AL$12:$BI$93,$A107-1921,'Report - ALL (DASHBOARD)'!$W$4) -> 186.7991105 | D107: =INDEX('Compile Data'!$BL$12:$CI$93,$A107-1921,'Report - ALL (DASHBOARD)'!$W$4) -> 185.7414336 | E107: =INDEX('Compile Data'!$CL$12:$DI$93,$A107-1921,'Report - ALL (DASHBOARD)'!$W$4) -> 185.5820176 | F107: =INDEX('Compile Data'!$DL$12:$EI$93,$A107-1921,'Report - ALL (DASHBOARD)'!$W$4) -> 164.3918305 | G107: =INDEX('Compile Data'!$EL$12:$FI$93,$A107-1921,'Report - ALL (DASHBOARD)'!$W$4) ->  | I107: 186.7991105 | J107: 185.7414336 | L107: =Flags_Scn1!C91 -> 4 | O107: 80 | P107: 0.975308642 | Q107: =INDEX('Compile Data'!$L$123:$AI$204,$O107,'Report - ALL (DASHBOARD)'!$W$4) -> 0 | R107: =INDEX('Compile Data'!$AL$123:$BI$204,$O107,'Report - ALL (DASHBOARD)'!$W$4) -> 0 | S107: =INDEX('Compile Data'!$BL$123:$CI$204,$O107,'Report - ALL (DASHBOARD)'!$W$4) -> 0 | T107: =INDEX('Compile Data'!$CL$123:$DI$204,$O107,'Report - ALL (DASHBOARD)'!$W$4) -> 0 | U107: =INDEX('Compile Data'!$DL$123:$EI$204,$O107,'Report - ALL (DASHBOARD)'!$W$4) -> 0 | V107: =INDEX('Compile Data'!$EL$123:$FI$204,$O107,'Report - ALL (DASHBOARD)'!$W$4) -> 
A108: 2002 | B108: =INDEX('Compile Data'!$L$12:$AI$93,$A108-1921,'Report - ALL (DASHBOARD)'!$W$4) -> 0 | C108: =INDEX('Compile Data'!$AL$12:$BI$93,$A108-1921,'Report - ALL (DASHBOARD)'!$W$4) -> 419.5061157 | D108: =INDEX('Compile Data'!$BL$12:$CI$93,$A108-1921,'Report - ALL (DASHBOARD)'!$W$4) -> 419.5061157 | E108: =INDEX('Compile Data'!$CL$12:$DI$93,$A108-1921,'Report - ALL (DASHBOARD)'!$W$4) -> 419.5061157 | F108: =INDEX('Compile Data'!$DL$12:$EI$93,$A108-1921,'Report - ALL (DASHBOARD)'!$W$4) -> 419.5061157 | G108: =INDEX('Compile Data'!$EL$12:$FI$93,$A108-1921,'Report - ALL (DASHBOARD)'!$W$4) ->  | I108: 419.5061157 | J108: 419.5061157 | L108: =Flags_Scn1!C92 -> 4 | O108: 81 | P108: 0.987654321 | Q108: =INDEX('Compile Data'!$L$123:$AI$204,$O108,'Report - ALL (DASHBOARD)'!$W$4) -> 0 | R108: =INDEX('Compile Data'!$AL$123:$BI$204,$O108,'Report - ALL (DASHBOARD)'!$W$4) -> 0 | S108: =INDEX('Compile Data'!$BL$123:$CI$204,$O108,'Report - ALL (DASHBOARD)'!$W$4) -> 0 | T108: =INDEX('Compile Data'!$CL$123:$DI$204,$O108,'Report - ALL (DASHBOARD)'!$W$4) -> 0 | U108: =INDEX('Compile Data'!$DL$123:$EI$204,$O108,'Report - ALL (DASHBOARD)'!$W$4) -> 0 | V108: =INDEX('Compile Data'!$EL$123:$FI$204,$O108,'Report - ALL (DASHBOARD)'!$W$4) -> 
A109: 2003 | B109: =INDEX('Compile Data'!$L$12:$AI$93,$A109-1921,'Report - ALL (DASHBOARD)'!$W$4) -> 0 | C109: =INDEX('Compile Data'!$AL$12:$BI$93,$A109-1921,'Report - ALL (DASHBOARD)'!$W$4) -> 337.3946195 | D109: =INDEX('Compile Data'!$BL$12:$CI$93,$A109-1921,'Report - ALL (DASHBOARD)'!$W$4) -> 443.9772678 | E109: =INDEX('Compile Data'!$CL$12:$DI$93,$A109-1921,'Report - ALL (DASHBOARD)'!$W$4) -> 444.866461 | F109: =INDEX('Compile Data'!$DL$12:$EI$93,$A109-1921,'Report - ALL (DASHBOARD)'!$W$4) -> 444.8712461 | G109: =INDEX('Compile Data'!$EL$12:$FI$93,$A109-1921,'Report - ALL (DASHBOARD)'!$W$4) ->  | I109: 337.3946195 | J109: 443.9772678 | L109: =Flags_Scn1!C93 -> 2 | O109: 82 | P109: 1 | Q109: =INDEX('Compile Data'!$L$123:$AI$204,$O109,'Report - ALL (DASHBOARD)'!$W$4) -> 0 | R109: =INDEX('Compile Data'!$AL$123:$BI$204,$O109,'Report - ALL (DASHBOARD)'!$W$4) -> 0 | S109: =INDEX('Compile Data'!$BL$123:$CI$204,$O109,'Report - ALL (DASHBOARD)'!$W$4) -> 0 | T109: =INDEX('Compile Data'!$CL$123:$DI$204,$O109,'Report - ALL (DASHBOARD)'!$W$4) -> 0 | U109: =INDEX('Compile Data'!$DL$123:$EI$204,$O109,'Report - ALL (DASHBOARD)'!$W$4) -> 0 | V109: =INDEX('Compile Data'!$EL$123:$FI$204,$O109,'Report - ALL (DASHBOARD)'!$W$4) -> 

Sheet Compile Data
B1: =Control!$B$5 -> NAA 041222 2035 CT | C1: =Control!$B$6 -> ALT 3A 041122 2035 CT | D1: =Control!$B$7 -> ALT 3B 041122 2035 CT | E1: =Control!$B$8 -> ALT 1A 062222 2035 CT | F1: =Control!$B$9 -> ALT 1A 062222 noShaEXCH 2035 CT | G1: =Control!$B$10 -> 0 | AE1: =$B$8 -> PER-AVER | BE1: =$C$8 -> PER-AVER | CE1: =$D$8 -> PER-AVER | DE1: =$E$8 -> PER-AVER | EE1: =$F$8 -> PER-AVER | FE1: =$G$8 -> PER-AVER
A2: Index: | B2: ='Report - ALL (DASHBOARD)'!W2 -> 26 | C2: =B2 -> 26 | D2: 26 | E2: 26 | F2: 26 | G2: 26
A3: Convert? | B3: =IF('Report - ALL (DASHBOARD)'!W5,1,0) -> 1 | C3: 1 | D3: 1 | E3: 1 | F3: 1 | G3: 1
A4: Column: | B4: =TRIM(VLOOKUP(B$2+2,DSSPathnames!$H$7:$K$185,2)) -> AB | C4: AB | D4: AB | E4: AB | F4: AB | G4: AB
A5: Title: | B5: =TRIM(VLOOKUP(B$2+2,DSSPathnames!$H$7:$K$185,4)) -> Total Sites Diversion to Fill | C5: =TRIM(VLOOKUP(C$2+2,DSSPathnames!$H$7:$K$185,4)) -> Total Sites Diversion to Fill | D5: =TRIM(VLOOKUP(D$2+2,DSSPathnames!$H$7:$K$185,4)) -> Total Sites Diversion to Fill | E5: =TRIM(VLOOKUP(E$2+2,DSSPathnames!$H$7:$K$185,4)) -> Total Sites Diversion to Fill | F5: =TRIM(VLOOKUP(F$2+2,DSSPathnames!$H$7:$K$185,4)) -> Total Sites Diversion to Fill | G5: =TRIM(VLOOKUP(G$2+2,DSSPathnames!$H$7:$K$185,4)) -> Total Sites Diversion to Fill
A6: Parameter: | B6: =INDIRECT(CONCATENATE("'",B$1,"'!",B$4,2)) -> C17601 | C6: C17601 | D6: C17601 | E6: C17601 | F6: C17601
B7: =INDIRECT(CONCATENATE("'",B$1,"'!",B$4,3)) -> FLOW-CHANNEL | C7: FLOW-CHANNEL | D7: FLOW-CHANNEL | E7: FLOW-CHANNEL | F7: FLOW-CHANNEL
A8: Type: | B8: =TRIM(VLOOKUP(B$2+2,DSSPathnames!$H$7:$K$185,3)) -> PER-AVER | C8: =TRIM(VLOOKUP(C$2+2,DSSPathnames!$H$7:$K$185,3)) -> PER-AVER | D8: =TRIM(VLOOKUP(D$2+2,DSSPathnames!$H$7:$K$185,3)) -> PER-AVER | E8: =TRIM(VLOOKUP(E$2+2,DSSPathnames!$H$7:$K$185,3)) -> PER-AVER | F8: =TRIM(VLOOKUP(F$2+2,DSSPathnames!$H$7:$K$185,3)) -> PER-AVER | G8: =TRIM(VLOOKUP(G$2+2,DSSPathnames!$H$7:$K$185,3)) -> PER-AVER | K8: =CONCATENATE(TRIM(B$1),": ",TRIM(B$5)," - ",TRIM(B$6)," ",TRIM(B$7)," (",TRIM(B$10),") ",TRIM(B$11)) -> NAA 041222 2035 CT: Total Sites Diversion to Fill - C17601 FLOW-CHANNEL (TAF) | AK8: =CONCATENATE(TRIM(C$1),": ",TRIM(C$5)," - ",TRIM(C$6)," ",TRIM(C$7)," (",TRIM(C$10),") ",TRIM(C$11)) -> ALT 3A 041122 2035 CT: Total Sites Diversion to Fill - C17601 FLOW-CHANNEL (TAF) | BK8: =CONCATENATE(TRIM(D$1),": ",TRIM(D$5)," - ",TRIM(D$6)," ",TRIM(D$7)," (",TRIM(D$10),") ",TRIM(D$11)) -> ALT 3B 041122 2035 CT: Total Sites Diversion to Fill - C17601 FLOW-CHANNEL (TAF) | CK8: =CONCATENATE(TRIM(E$1),": ",TRIM(E$5)," - ",TRIM(E$6)," ",TRIM(E$7)," (",TRIM(E$10),") ",TRIM(E$11)) -> ALT 1A 062222 2035 CT: Total Sites Diversion to Fill - C17601 FLOW-CHANNEL (TAF) | DK8: =CONCATENATE(TRIM(F$1),": ",TRIM(F$5)," - ",TRIM(F$6)," ",TRIM(F$7)," (",TRIM(F$10),") ",TRIM(F$11)) -> ALT 1A 062222 noShaEXCH 2035 CT: Total Sites Diversion to Fill - C17601 FLOW-CHANNEL (TAF) | EK8: =CONCATENATE(TRIM(G$1),": ",TRIM(G$5)," - ",TRIM(G$6)," ",TRIM(G$7)," (",TRIM(G$10),") ",TRIM(G$11)) -> 
A9: Units-native: | B9: =TRIM(INDIRECT(CONCATENATE("'",B$1,"'!",B$4,11))) -> CFS | C9: CFS | D9: CFS | E9: CFS | F9: CFS
A10: Units-shown: | B10: =IF(AND(B$3>0,B$9="CFS"),"TAF",B$9) -> TAF | C10: TAF | D10: TAF | E10: TAF | F10: TAF | Y10: Jan-Dec | Z10: Mar-Feb | AA10: Oct-Sep | AC10: Nov-Mar | AD10: Aug-Oct | AE10: Oct-Jan | AF10: Dec-Feb | AG10: Mar-Jun | AH10: Jun-Sep | AI10: Sep-Nov | AY10: Jan-Dec | AZ10: Mar-Feb | BA10: Oct-Sep | BC10: Nov-Mar | BD10: Aug-Oct | BE10: Oct-Jan | BF10: Dec-Feb | BG10: Mar-Jun | BH10: Jun-Sep | BI10: Sep-Nov | BY10: Jan-Dec | BZ10: Mar-Feb | CA10: Oct-Sep | CC10: Nov-Mar | CD10: Aug-Oct | CE10: Oct-Jan | CF10: Dec-Feb | CG10: Mar-Jun | CH10: Jun-Sep | CI10: Sep-Nov | CY10: Jan-Dec | CZ10: Mar-Feb | DA10: Oct-Sep | DC10: Nov-Mar | DD10: Aug-Oct | DE10: Oct-Jan | DF10: Dec-Feb | DG10: Mar-Jun | DH10: Jun-Sep | DI10: Sep-Nov | DY10: Jan-Dec | DZ10: Mar-Feb | EA10: Oct-Sep | EC10: Nov-Mar | ED10: Aug-Oct | EE10: Oct-Jan | EF10: Dec-Feb | EG10: Mar-Jun | EH10: Jun-Sep | EI10: Sep-Nov | EY10: Jan-Dec | EZ10: Mar-Feb | FA10: Oct-Sep | FC10: Nov-Mar | FD10: Aug-Oct | FE10: Oct-Jan | FF10: Dec-Feb | FG10: Mar-Jun | FH10: Jun-Sep | FI10: Sep-Nov
A11: Date | B11: =IF(ISNUMBER(FIND("PRV",B$6)),"SHIFTED","") ->  | K11: YEAR | L11: OCT | M11: NOV | N11: DEC | O11: JAN | P11: FEB | Q11: MAR | R11: APR | S11: MAY | T11: JUN | U11: JUL | V11: AUG | W11: SEP | Y11: =IF(AND($B$10="TAF",$B$8="PER-AVER"),"TOT","AVG") -> TOT | Z11: =IF(AND($B$10="TAF",$B$8="PER-AVER"),"TOT","AVG") -> TOT | AA11: =IF(AND($B$10="TAF",$B$8="PER-AVER"),"TOT","AVG") -> TOT | AC11: =IF(AND($B$10="TAF",$B$8="PER-AVER"),"TOT","AVG") -> TOT | AD11: TOT | AE11: TOT | AF11: TOT | AG11: TOT | AH11: TOT | AI11: TOT | AK11: YEAR | AL11: OCT | AM11: NOV | AN11: DEC | AO11: JAN | AP11: FEB | AQ11: MAR | AR11: APR | AS11: MAY | AT11: JUN | AU11: JUL | AV11: AUG | AW11: SEP | AY11: =IF(AND($C$10="TAF",$C$8="PER-AVER"),"TOT","AVG") -> TOT | AZ11: =IF(AND($C$10="TAF",$C$8="PER-AVER"),"TOT","AVG") -> TOT | BA11: =IF(AND($C$10="TAF",$C$8="PER-AVER"),"TOT","AVG") -> TOT | BC11: =IF(AND($B$10="TAF",$B$8="PER-AVER"),"TOT","AVG") -> TOT | BD11: =IF(AND($B$10="TAF",$B$8="PER-AVER"),"TOT","AVG") -> TOT | BE11: =IF(AND($C$10="TAF",$C$8="PER-AVER"),"TOT","AVG") -> TOT | BF11: =IF(AND($C$10="TAF",$C$8="PER-AVER"),"TOT","AVG") -> TOT | BG11: =IF(AND($C$10="TAF",$C$8="PER-AVER"),"TOT","AVG") -> TOT | BH11: =IF(AND($C$10="TAF",$C$8="PER-AVER"),"TOT","AVG") -> TOT | BI11: =IF(AND($C$10="TAF",$C$8="PER-AVER"),"TOT","AVG") -> TOT | BK11: YEAR | BL11: OCT | BM11: NOV | BN11: DEC | BO11: JAN | BP11: FEB | BQ11: MAR | BR11: APR | BS11: MAY | BT11: JUN | BU11: JUL | BV11: AUG | BW11: SEP | BY11: =IF(AND($D$10="TAF",$D$8="PER-AVER"),"TOT","AVG") -> TOT | BZ11: =IF(AND($D$10="TAF",$D$8="PER-AVER"),"TOT","AVG") -> TOT | CA11: =IF(AND($D$10="TAF",$D$8="PER-AVER"),"TOT","AVG") -> TOT | CC11: =IF(AND($B$10="TAF",$B$8="PER-AVER"),"TOT","AVG") -> TOT | CD11: =IF(AND($B$10="TAF",$B$8="PER-AVER"),"TOT","AVG") -> TOT | CE11: =IF(AND($D$10="TAF",$D$8="PER-AVER"),"TOT","AVG") -> TOT | CF11: =IF(AND($D$10="TAF",$D$8="PER-AVER"),"TOT","AVG") -> TOT | CG11: =IF(AND($D$10="TAF",$D$8="PER-AVER"),"TOT","AVG") -> TOT | CH11: =IF(AND($D$10="TAF",$D$8="PER-AVER"),"TOT","AVG") -> TOT | CI11: =IF(AND($D$10="TAF",$D$8="PER-AVER"),"TOT","AVG") -> TOT | CK11: YEAR | CL11: OCT | CM11: NOV | CN11: DEC | CO11: JAN | CP11: FEB | CQ11: MAR | CR11: APR | CS11: MAY | CT11: JUN | CU11: JUL | CV11: AUG | CW11: SEP | CY11: =IF(AND($E$10="TAF",$E$8="PER-AVER"),"TOT","AVG") -> TOT | CZ11: =IF(AND($E$10="TAF",$E$8="PER-AVER"),"TOT","AVG") -> TOT | DA11: =IF(AND($E$10="TAF",$E$8="PER-AVER"),"TOT","AVG") -> TOT | DC11: =IF(AND($B$10="TAF",$B$8="PER-AVER"),"TOT","AVG") -> TOT | DD11: =IF(AND($B$10="TAF",$B$8="PER-AVER"),"TOT","AVG") -> TOT | DE11: =IF(AND($E$10="TAF",$E$8="PER-AVER"),"TOT","AVG") -> TOT | DF11: =IF(AND($E$10="TAF",$E$8="PER-AVER"),"TOT","AVG") -> TOT | DG11: =IF(AND($E$10="TAF",$E$8="PER-AVER"),"TOT","AVG") -> TOT | DH11: =IF(AND($E$10="TAF",$E$8="PER-AVER"),"TOT","AVG") -> TOT | DI11: =IF(AND($E$10="TAF",$E$8="PER-AVER"),"TOT","AVG") -> TOT | DK11: YEAR | DL11: OCT | DM11: NOV | DN11: DEC | DO11: JAN | DP11: FEB | DQ11: MAR | DR11: APR | DS11: MAY | DT11: JUN | DU11: JUL | DV11: AUG | DW11: SEP | DY11: =IF(AND($F$10="TAF",$F$8="PER-AVER"),"TOT","AVG") -> TOT | DZ11: =IF(AND($F$10="TAF",$F$8="PER-AVER"),"TOT","AVG") -> TOT | EA11: =IF(AND($F$10="TAF",$F$8="PER-AVER"),"TOT","AVG") -> TOT | EC11: =IF(AND($B$10="TAF",$B$8="PER-AVER"),"TOT","AVG") -> TOT | ED11: =IF(AND($B$10="TAF",$B$8="PER-AVER"),"TOT","AVG") -> TOT | EE11: =IF(AND($F$10="TAF",$F$8="PER-AVER"),"TOT","AVG") -> TOT | EF11: =IF(AND($F$10="TAF",$F$8="PER-AVER"),"TOT","AVG") -> TOT | EG11: =IF(AND($F$10="TAF",$F$8="PER-AVER"),"TOT","AVG") -> TOT | EH11: =IF(AND($F$10="TAF",$F$8="PER-AVER"),"TOT","AVG") -> TOT | EI11: =IF(AND($F$10="TAF",$F$8="PER-AVER"),"TOT","AVG") -> TOT | EK11: YEAR | EL11: OCT | EM11: NOV | EN11: DEC | EO11: JAN | EP11: FEB | EQ11: MAR | ER11: APR | ES11: MAY | ET11: JUN | EU11: JUL | EV11: AUG | EW11: SEP | EY11: =IF(AND($F$10="TAF",$F$8="PER-AVER"),"TOT","AVG") -> TOT | EZ11: =IF(AND($F$10="TAF",$F$8="PER-AVER"),"TOT","AVG") -> TOT | FA11: =IF(AND($F$10="TAF",$F$8="PER-AVER"),"TOT","AVG") -> TOT | FC11: =IF(AND($B$10="TAF",$B$8="PER-AVER"),"TOT","AVG") -> TOT | FD11: =IF(AND($B$10="TAF",$B$8="PER-AVER"),"TOT","AVG") -> TOT | FE11: =IF(AND($F$10="TAF",$F$8="PER-AVER"),"TOT","AVG") -> TOT | FF11: =IF(AND($F$10="TAF",$F$8="PER-AVER"),"TOT","AVG") -> TOT | FG11: =IF(AND($F$10="TAF",$F$8="PER-AVER"),"TOT","AVG") -> TOT | FH11: =IF(AND($F$10="TAF",$F$8="PER-AVER"),"TOT","AVG") -> TOT | FI11: =IF(AND($F$10="TAF",$F$8="PER-AVER"),"TOT","AVG") -> TOT
A12: 1921-09-30 | K12: 1922 | L12: =B13 -> 0 | M12: =B14 -> 0 | N12: =B15 -> 0 | O12: =B16 -> 0 | P12: =B17 -> 0 | Q12: =B18 -> 0 | R12: =B19 -> 0 | S12: =B20 -> 0 | T12: =B21 -> 0 | U12: =B22 -> 0 | V12: =B23 -> 0 | W12: =B24 -> 0 | Y12: =IF(Y$11="AVG",AVERAGE(O12:W12,L13:N13),SUM(O12:W12,L13:N13)) -> 0 | Z12: =IF(Z$11="AVG",AVERAGE(Q12:W12,L13:P13),SUM(Q12:W12,L13:P13)) -> 0 | AA12: =IF(AA$11="AVG",AVERAGE(L12:W12),SUM(L12:W12)) -> 0 | AC12: =IF(AC$11="AVG",IF(AE$1="INST-VAL",AVERAGE(L12:P12,M12:Q12),AVERAGE(M12:Q12)),SUM(M12:Q12)) -> 0 | AD12: =IF(AD$11="AVG",IF(AE$1="INST-VAL",AVERAGE(U12:W12,V12:W12,L13),AVERAGE(V12:W12,L13)),SUM(V12:W12,L13)) -> 0 | AE12: =IF(AE$11="AVG",IF(AE$1="INST-VAL",AVERAGE(W11,L12:N12,L12:O12),AVERAGE(L12:O12)),SUM(L12:O12)) -> 0 | AF12: =IF(AF$11="AVG",IF(AE$1="INST-VAL",AVERAGE(M12:O12,N12:P12),AVERAGE(N12:P12)),SUM(N12:P12)) -> 0 | AG12: =IF(AG$11="AVG",IF(AE$1="INST-VAL",AVERAGE(P12:S12,Q12:T12),AVERAGE(Q12:T12)),SUM(Q12:T12)) -> 0 | AH12: =IF(AH$11="AVG",IF(AE$1="INST-VAL",AVERAGE(S12:V12,T12:W12),AVERAGE(T12:W12)),SUM(T12:W12)) -> 0 | AI12: =IF(AI$11="AVG",IF(AE$1="INST-VAL",AVERAGE(V12:W12,L13,W12,L13:M13),AVERAGE(W12,L13:M13)),SUM(W12,L13:M13)) -> 0 | AK12: 1922 | AL12: =C13 -> 0 | AM12: =C14 -> 0 | AN12: =C15 -> 0 | AO12: =C16 -> 0 | AP12: =C17 -> 143.7024793 | AQ12: =C18 -> 0 | AR12: =C19 -> 0 | AS12: =C20 -> 0 | AT12: =C21 -> 0 | AU12: =C22 -> 0 | AV12: =C23 -> 0 | AW12: =C24 -> 0 | AY12: =IF(AY$11="AVG",AVERAGE(AO12:AW12,AL13:AN13),SUM(AO12:AW12,AL13:AN13)) -> 284.8788673 | AZ12: =IF(AZ$11="AVG",AVERAGE(AQ12:AW12,AL13:AP13),SUM(AQ12:AW12,AL13:AP13)) -> 177.0508472 | BA12: =IF(BA$11="AVG",AVERAGE(AL12:AW12),SUM(AL12:AW12)) -> 143.7024793 | BC12: =IF(BC$11="AVG",IF(BE$1="INST-VAL",AVERAGE(AL12:AP12,AM12:AQ12),AVERAGE(AM12:AQ12)),SUM(AM12:AQ12)) -> 143.7024793 | BD12: =IF(BD$11="AVG",IF(BE$1="INST-VAL",AVERAGE(AU12:AW12,AV12:AW12,AL13),AVERAGE(AV12:AW12,AL13)),SUM(AV12:AW12,AL13)) -> 0 | BE12: =IF(BE$11="AVG",IF(BE$1="INST-VAL",AVERAGE(AW11,AL12:AN12,AL12:AO12),AVERAGE(AL12:AO12)),SUM(AL12:AO12)) -> 0 | BF12: =IF(BF$11="AVG",IF(BE$1="INST-VAL",AVERAGE(AM12:AO12,AN12:AP12),AVERAGE(AN12:AP12)),SUM(AN12:AP12)) -> 143.7024793 | BG12: =IF(BG$11="AVG",IF(BE$1="INST-VAL",AVERAGE(AP12:AS12,AQ12:AT12),AVERAGE(AQ12:AT12)),SUM(AQ12:AT12)) -> 0 | BH12: =IF(BH$11="AVG",IF(BE$1="INST-VAL",AVERAGE(AS12:AV12,AT12:AW12),AVERAGE(AT12:AW12)),SUM(AT12:AW12)) -> 0 | BI12: =IF(BI$11="AVG",IF(BE$1="INST-VAL",AVERAGE(AV12:AW12,AL13,AW12,AL13:AM13),AVERAGE(AW12,AL13:AM13)),SUM(AW12,AL13:AM13)) -> 0 | BK12: 1922 | BL12: =D13 -> 0 | BM12: =D14 -> 0 | BN12: =D15 -> 0 | BO12: =D16 -> 0 | BP12: =D17 -> 143.7024793 | BQ12: =D18 -> 0 | BR12: =D19 -> 0 | BS12: =D20 -> 0 | BT12: =D21 -> 0 | BU12: =D22 -> 0 | BV12: =D23 -> 0 | BW12: =D24 -> 0 | BY12: =IF(BY$11="AVG",AVERAGE(BO12:BW12,BL13:BN13),SUM(BO12:BW12,BL13:BN13)) -> 284.8755084 | BZ12: =IF(BZ$11="AVG",AVERAGE(BQ12:BW12,BL13:BP13),SUM(BQ12:BW12,BL13:BP13)) -> 177.0452349 | CA12: =IF(CA$11="AVG",AVERAGE(BL12:BW12),SUM(BL12:BW12)) -> 143.7024793 | CC12: =IF(CC$11="AVG",IF(CE$1="INST-VAL",AVERAGE(BL12:BP12,BM12:BQ12),AVERAGE(BM12:BQ12)),SUM(BM12:BQ12)) -> 143.7024793 | CD12: =IF(CD$11="AVG",IF(CE$1="INST-VAL",AVERAGE(BU12:BW12,BV12:BW12,BL13),AVERAGE(BV12:BW12,BL13)),SUM(BV12:BW12,BL13)) -> 0 | CE12: =IF(CE$11="AVG",IF(CE$1="INST-VAL",AVERAGE(BW11,BL12:BN12,BL12:BO12),AVERAGE(BL12:BO12)),SUM(BL12:BO12)) -> 0 | CF12: =IF(CF$11="AVG",IF(CE$1="INST-VAL",AVERAGE(BM12:BO12,BN12:BP12),AVERAGE(BN12:BP12)),SUM(BN12:BP12)) -> 143.7024793 | CG12: =IF(CG$11="AVG",IF(CE$1="INST-VAL",AVERAGE(BP12:BS12,BQ12:BT12),AVERAGE(BQ12:BT12)),SUM(BQ12:BT12)) -> 0 | CH12: =IF(CH$11="AVG",IF(CE$1="INST-VAL",AVERAGE(BS12:BV12,BT12:BW12),AVERAGE(BT12:BW12)),SUM(BT12:BW12)) -> 0 | CI12: =IF(CI$11="AVG",IF(CE$1="INST-VAL",AVERAGE(BV12:BW12,BL13,BW12,BL13:BM13),AVERAGE(BW12,BL13:BM13)),SUM(BW12,BL13:BM13)) -> 0 | CK12: 1922 | CL12: =E13 -> 0 | CM12: =E14 -> 0 | CN12: =E15 -> 0 | CO12: =E16 -> 0 | CP12: =E17 -> 143.7024793 | CQ12: =E18 -> 0 | CR12: =E19 -> 0 | CS12: =E20 -> 0 | CT12: =E21 -> 0 | CU12: =E22 -> 0 | CV12: =E23 -> 0 | CW12: =E24 -> 0 | CY12: =IF(CY$11="AVG",AVERAGE(CO12:CW12,CL13:CN13),SUM(CO12:CW12,CL13:CN13)) -> 283.4701704 | CZ12: =IF(CZ$11="AVG",AVERAGE(CQ12:CW12,CL13:CP13),SUM(CQ12:CW12,CL13:CP13)) -> 174.5984138 | DA12: =IF(DA$11="AVG",AVERAGE(CL12:CW12),SUM(CL12:CW12)) -> 143.7024793 | DC12: =IF(DC$11="AVG",IF(DE$1="INST-VAL",AVERAGE(CL12:CP12,CM12:CQ12),AVERAGE(CM12:CQ12)),SUM(CM12:CQ12)) -> 143.7024793 | DD12: =IF(DD$11="AVG",IF(DE$1="INST-VAL",AVERAGE(CU12:CW12,CV12:CW12,CL13),AVERAGE(CV12:CW12,CL13)),SUM(CV12:CW12,CL13)) -> 0 | DE12: =IF(DE$11="AVG",IF(DE$1="INST-VAL",AVERAGE(CW11,CL12:CN12,CL12:CO12),AVERAGE(CL12:CO12)),SUM(CL12:CO12)) -> 0 | DF12: =IF(DF$11="AVG",IF(DE$1="INST-VAL",AVERAGE(CM12:CO12,CN12:CP12),AVERAGE(CN12:CP12)),SUM(CN12:CP12)) -> 143.7024793 | DG12: =IF(DG$11="AVG",IF(DE$1="INST-VAL",AVERAGE(CP12:CS12,CQ12:CT12),AVERAGE(CQ12:CT12)),SUM(CQ12:CT12)) -> 0 | DH12: =IF(DH$11="AVG",IF(DE$1="INST-VAL",AVERAGE(CS12:CV12,CT12:CW12),AVERAGE(CT12:CW12)),SUM(CT12:CW12)) -> 0 | DI12: =IF(DI$11="AVG",IF(DE$1="INST-VAL",AVERAGE(CV12:CW12,CL13,CW12,CL13:CM13),AVERAGE(CW12,CL13:CM13)),SUM(CW12,CL13:CM13)) -> 0 | DK12: 1922 | DL12: =F13 -> 0 | DM12: =F14 -> 0 | DN12: =F15 -> 0 | DO12: =F16 -> 0 | DP12: =F17 -> 143.7024793 | DQ12: =F18 -> 0 | DR12: =F19 -> 0 | DS12: =F20 -> 0 | DT12: =F21 -> 0 | DU12: =F22 -> 0 | DV12: =F23 -> 0 | DW12: =F24 -> 0 | DY12: =IF(DY$11="AVG",AVERAGE(DO12:DW12,DL13:DN13),SUM(DO12:DW12,DL13:DN13)) -> 283.4701704 | DZ12: =IF(DZ$11="AVG",AVERAGE(DQ12:DW12,DL13:DP13),SUM(DQ12:DW12,DL13:DP13)) -> 174.5984138 | EA12: =IF(EA$11="AVG",AVERAGE(DL12:DW12),SUM(DL12:DW12)) -> 143.7024793 | EC12: =IF(EC$11="AVG",IF(EE$1="INST-VAL",AVERAGE(DL12:DP12,DM12:DQ12),AVERAGE(DM12:DQ12)),SUM(DM12:DQ12)) -> 143.7024793 | ED12: =IF(ED$11="AVG",IF(EE$1="INST-VAL",AVERAGE(DU12:DW12,DV12:DW12,DL13),AVERAGE(DV12:DW12,DL13)),SUM(DV12:DW12,DL13)) -> 0 | EE12: =IF(EE$11="AVG",IF(EE$1="INST-VAL",AVERAGE(DW11,DL12:DN12,DL12:DO12),AVERAGE(DL12:DO12)),SUM(DL12:DO12)) -> 0 | EF12: =IF(EF$11="AVG",IF(EE$1="INST-VAL",AVERAGE(DM12:DO12,DN12:DP12),AVERAGE(DN12:DP12)),SUM(DN12:DP12)) -> 143.7024793 | EG12: =IF(EG$11="AVG",IF(EE$1="INST-VAL",AVERAGE(DP12:DS12,DQ12:DT12),AVERAGE(DQ12:DT12)),SUM(DQ12:DT12)) -> 0 | EH12: =IF(EH$11="AVG",IF(EE$1="INST-VAL",AVERAGE(DS12:DV12,DT12:DW12),AVERAGE(DT12:DW12)),SUM(DT12:DW12)) -> 0 | EI12: =IF(EI$11="AVG",IF(EE$1="INST-VAL",AVERAGE(DV12:DW12,DL13,DW12,DL13:DM13),AVERAGE(DW12,DL13:DM13)),SUM(DW12,DL13:DM13)) -> 0 | EK12: 1922 | EL12: =G13 ->  | EM12: =G14 ->  | EN12: =G15 ->  | EO12: =G16 ->  | EP12: =G17 ->  | EQ12: =G18 ->  | ER12: =G19 ->  | ES12: =G20 ->  | ET12: =G21 ->  | EU12: =G22 ->  | EV12: =G23 ->  | EW12: =G24 ->  | EY12: =IF(EY$11="AVG",AVERAGE(EO12:EW12,EL13:EN13),SUM(EO12:EW12,EL13:EN13)) ->  | EZ12: =IF(EZ$11="AVG",AVERAGE(EQ12:EW12,EL13:EP13),SUM(EQ12:EW12,EL13:EP13)) ->  | FA12: =IF(FA$11="AVG",AVERAGE(EL12:EW12),SUM(EL12:EW12)) ->  | FC12: =IF(FC$11="AVG",IF(FE$1="INST-VAL",AVERAGE(EL12:EP12,EM12:EQ12),AVERAGE(EM12:EQ12)),SUM(EM12:EQ12)) ->  | FD12: =IF(FD$11="AVG",IF(FE$1="INST-VAL",AVERAGE(EU12:EW12,EV12:EW12,EL13),AVERAGE(EV12:EW12,EL13)),SUM(EV12:EW12,EL13)) ->  | FE12: =IF(FE$11="AVG",IF(FE$1="INST-VAL",AVERAGE(EW11,EL12:EN12,EL12:EO12),AVERAGE(EL12:EO12)),SUM(EL12:EO12)) ->  | FF12: =IF(FF$11="AVG",IF(FE$1="INST-VAL",AVERAGE(EM12:EO12,EN12:EP12),AVERAGE(EN12:EP12)),SUM(EN12:EP12)) ->  | FG12: =IF(FG$11="AVG",IF(FE$1="INST-VAL",AVERAGE(EP12:ES12,EQ12:ET12),AVERAGE(EQ12:ET12)),SUM(EQ12:ET12)) ->  | FH12: =IF(FH$11="AVG",IF(FE$1="INST-VAL",AVERAGE(ES12:EV12,ET12:EW12),AVERAGE(ET12:EW12)),SUM(ET12:EW12)) ->  | FI12: =IF(FI$11="AVG",IF(FE$1="INST-VAL",AVERAGE(EV12:EW12,EL13,EW12,EL13:EM13),AVERAGE(EW12,EL13:EM13)),SUM(EW12,EL13:EM13)) -> 
A13: 1921-10-31 | B13: =INDIRECT(CONCATENATE("'",B$1,"'!",B$4,(YEAR($A13)-1921)*12+MONTH($A13)+3+IF(ISNUMBER(FIND("PRV",B$6)),1,0)))*IF(AND(B$3>0,TRIM(B$9)="CFS"),Conversions!$C13,1) -> 0 | C13: =INDIRECT(CONCATENATE("'",C$1,"'!",C$4,(YEAR($A13)-1921)*12+MONTH($A13)+3+IF(ISNUMBER(FIND("PRV",C$6)),1,0)))*IF(AND(C$3>0,TRIM(C$9)="CFS"),Conversions!$C13,1) -> 0 | D13: =INDIRECT(CONCATENATE("'",D$1,"'!",D$4,(YEAR($A13)-1921)*12+MONTH($A13)+3+IF(ISNUMBER(FIND("PRV",D$6)),1,0)))*IF(AND(D$3>0,TRIM(D$9)="CFS"),Conversions!$C13,1) -> 0 | E13: =INDIRECT(CONCATENATE("'",E$1,"'!",E$4,(YEAR($A13)-1921)*12+MONTH($A13)+3+IF(ISNUMBER(FIND("PRV",E$6)),1,0)))*IF(AND(E$3>0,TRIM(E$9)="CFS"),Conversions!$C13,1) -> 0 | F13: =INDIRECT(CONCATENATE("'",F$1,"'!",F$4,(YEAR($A13)-1921)*12+MONTH($A13)+3+IF(ISNUMBER(FIND("PRV",F$6)),1,0)))*IF(AND(F$3>0,TRIM(F$9)="CFS"),Conversions!$C13,1) -> 0 | G13: =INDIRECT(CONCATENATE("'",G$1,"'!",G$4,(YEAR($A13)-1921)*12+MONTH($A13)+3+IF(ISNUMBER(FIND("PRV",G$6)),1,0)))*IF(AND(G$3>0,TRIM(G$9)="CFS"),Conversions!$C13,1) ->  | K13: 1923 | L13: =B25 -> 0 | M13: =B26 -> 0 | N13: =B27 -> 0 | O13: =B28 -> 0 | P13: =B29 -> 0 | Q13: =B30 -> 0 | R13: =B31 -> 0 | S13: =B32 -> 0 | T13: =B33 -> 0 | U13: =B34 -> 0 | V13: =B35 -> 0 | W13: =B36 -> 0 | Y13: 0 | Z13: 0 | AA13: 0 | AC13: =IF(AC$11="AVG",IF(AE$1="INST-VAL",AVERAGE(L13:P13,M13:Q13),AVERAGE(M13:Q13)),SUM(M13:Q13)) -> 0 | AD13: =IF(AD$11="AVG",IF(AE$1="INST-VAL",AVERAGE(U13:W13,V13:W13,L14),AVERAGE(V13:W13,L14)),SUM(V13:W13,L14)) -> 0 | AE13: =IF(AE$11="AVG",IF(AE$1="INST-VAL",AVERAGE(W12,L13:N13,L13:O13),AVERAGE(L13:O13)),SUM(L13:O13)) -> 0 | AF13: 0 | AG13: 0 | AH13: 0 | AI13: 0 | AK13: 1923 | AL13: =C25 -> 0 | AM13: =C26 -> 0 | AN13: =C27 -> 141.1763879 | AO13: =C28 -> 35.87445927 | AP13: =C29 -> 0 | AQ13: =C30 -> 0 | AR13: =C31 -> 0 | AS13: =C32 -> 0 | AT13: =C33 -> 0 | AU13: =C34 -> 0 | AV13: =C35 -> 0 | AW13: =C36 -> 0 | AY13: 35.87445927 | AZ13: 0 | BA13: 177.0508472 | BC13: =IF(BC$11="AVG",IF(BE$1="INST-VAL",AVERAGE(AL13:AP13,AM13:AQ13),AVERAGE(AM13:AQ13)),SUM(AM13:AQ13)) -> 177.0508472 | BD13: =IF(BD$11="AVG",IF(BE$1="INST-VAL",AVERAGE(AU13:AW13,AV13:AW13,AL14),AVERAGE(AV13:AW13,AL14)),SUM(AV13:AW13,AL14)) -> 0 | BE13: 177.0508472 | BF13: 177.0508472 | BG13: 0 | BH13: 0 | BI13: 0 | BK13: 1923 | BL13: =D25 -> 0 | BM13: =D26 -> 0 | BN13: =D27 -> 141.173029 | BO13: =D28 -> 35.87220587 | BP13: =D29 -> 0 | BQ13: =D30 -> 0 | BR13: =D31 -> 0 | BS13: =D32 -> 0 | BT13: =D33 -> 0 | BU13: =D34 -> 0 | BV13: =D35 -> 0 | BW13: =D36 -> 0 | BY13: 35.87220587 | BZ13: 0 | CA13: 177.0452349 | CC13: =IF(CC$11="AVG",IF(CE$1="INST-VAL",AVERAGE(BL13:BP13,BM13:BQ13),AVERAGE(BM13:BQ13)),SUM(BM13:BQ13)) -> 177.0452349 | CD13: =IF(CD$11="AVG",IF(CE$1="INST-VAL",AVERAGE(BU13:BW13,BV13:BW13,BL14),AVERAGE(BV13:BW13,BL14)),SUM(BV13:BW13,BL14)) -> 0 | CE13: 177.0452349 | CF13: 177.0452349 | CG13: 0 | CH13: 0 | CI13: 0 | CK13: 1923 | CL13: =E25 -> 0 | CM13: =E26 -> 0 | CN13: =E27 -> 139.767691 | CO13: =E28 -> 34.83072276 | CP13: =E29 -> 0 | CQ13: =E30 -> 0 | CR13: =E31 -> 0 | CS13: =E32 -> 0 | CT13: =E33 -> 0 | CU13: =E34 -> 0 | CV13: =E35 -> 0 | CW13: =E36 -> 0 | CY13: 34.83072276 | CZ13: 0 | DA13: 174.5984138 | DC13: 174.5984138 | DD13: 0 | DE13: 174.5984138 | DF13: 174.5984138 | DG13: 0 | DH13: 0 | DI13: 0 | DK13: 1923 | DL13: =F25 -> 0 | DM13: =F26 -> 0 | DN13: =F27 -> 139.767691 | DO13: =F28 -> 34.83072276 | DP13: =F29 -> 0 | DQ13: =F30 -> 0 | DR13: =F31 -> 0 | DS13: =F32 -> 0 | DT13: =F33 -> 0 | DU13: =F34 -> 0 | DV13: =F35 -> 0 | DW13: =F36 -> 0 | DY13: 34.83072276 | DZ13: 0 | EA13: 174.5984138 | EC13: 174.5984138 | ED13: 0 | EE13: 174.5984138 | EF13: 174.5984138 | EG13: 0 | EH13: 0 | EI13: 0 | EK13: 1923 | EL13: =G25 ->  | EM13: =G26 ->  | EN13: =G27 ->  | EO13: =G28 ->  | EP13: =G29 ->  | EQ13: =G30 ->  | ER13: =G31 ->  | ES13: =G32 ->  | ET13: =G33 ->  | EU13: =G34 ->  | EV13: =G35 ->  | EW13: =G36 -> 
A14: 1921-11-30 | B14: =INDIRECT(CONCATENATE("'",B$1,"'!",B$4,(YEAR($A14)-1921)*12+MONTH($A14)+3+IF(ISNUMBER(FIND("PRV",B$6)),1,0)))*IF(AND(B$3>0,TRIM(B$9)="CFS"),Conversions!$C14,1) -> 0 | C14: =INDIRECT(CONCATENATE("'",C$1,"'!",C$4,(YEAR($A14)-1921)*12+MONTH($A14)+3+IF(ISNUMBER(FIND("PRV",C$6)),1,0)))*IF(AND(C$3>0,TRIM(C$9)="CFS"),Conversions!$C14,1) -> 0 | D14: =INDIRECT(CONCATENATE("'",D$1,"'!",D$4,(YEAR($A14)-1921)*12+MONTH($A14)+3+IF(ISNUMBER(FIND("PRV",D$6)),1,0)))*IF(AND(D$3>0,TRIM(D$9)="CFS"),Conversions!$C14,1) -> 0 | E14: =INDIRECT(CONCATENATE("'",E$1,"'!",E$4,(YEAR($A14)-1921)*12+MONTH($A14)+3+IF(ISNUMBER(FIND("PRV",E$6)),1,0)))*IF(AND(E$3>0,TRIM(E$9)="CFS"),Conversions!$C14,1) -> 0 | F14: =INDIRECT(CONCATENATE("'",F$1,"'!",F$4,(YEAR($A14)-1921)*12+MONTH($A14)+3+IF(ISNUMBER(FIND("PRV",F$6)),1,0)))*IF(AND(F$3>0,TRIM(F$9)="CFS"),Conversions!$C14,1) -> 0 | G14: =INDIRECT(CONCATENATE("'",G$1,"'!",G$4,(YEAR($A14)-1921)*12+MONTH($A14)+3+IF(ISNUMBER(FIND("PRV",G$6)),1,0)))*IF(AND(G$3>0,TRIM(G$9)="CFS"),Conversions!$C14,1) ->  | K14: 1924 | L14: =B37 -> 0 | M14: =B38 -> 0 | N14: =B39 -> 0 | O14: =B40 -> 0 | P14: =B41 -> 0 | Q14: =B42 -> 0 | R14: =B43 -> 0 | S14: =B44 -> 0 | T14: =B45 -> 0 | U14: =B46 -> 0 | V14: =B47 -> 0 | W14: =B48 -> 0 | Y14: 0 | Z14: 0 | AA14: 0 | AC14: =IF(AC$11="AVG",IF(AE$1="INST-VAL",AVERAGE(L14:P14,M14:Q14),AVERAGE(M14:Q14)),SUM(M14:Q14)) -> 0 | AD14: =IF(AD$11="AVG",IF(AE$1="INST-VAL",AVERAGE(U14:W14,V14:W14,L15),AVERAGE(V14:W14,L15)),SUM(V14:W14,L15)) -> 0 | AE14: =IF(AE$11="AVG",IF(AE$1="INST-VAL",AVERAGE(W13,L14:N14,L14:O14),AVERAGE(L14:O14)),SUM(L14:O14)) -> 0 | AF14: 0 | AG14: 0 | AH14: 0 | AI14: 0 | AK14: 1924 | AL14: =C37 -> 0 | AM14: =C38 -> 0 | AN14: =C39 -> 0 | AO14: =C40 -> 0 | AP14: =C41 -> 0 | AQ14: =C42 -> 0 | AR14: =C43 -> 0 | AS14: =C44 -> 0 | AT14: =C45 -> 0 | AU14: =C46 -> 0 | AV14: =C47 -> 0 | AW14: =C48 -> 0 | AY14: 0 | AZ14: 164.231405 | BA14: 0 | BC14: =IF(BC$11="AVG",IF(BE$1="INST-VAL",AVERAGE(AL14:AP14,AM14:AQ14),AVERAGE(AM14:AQ14)),SUM(AM14:AQ14)) -> 0 | BD14: 0 | BE14: 0 | BF14: 0 | BG14: 0 | BH14: 0 | BI14: 0 | BK14: 1924 | BL14: =D37 -> 0 | BM14: =D38 -> 0 | BN14: =D39 -> 0 | BO14: =D40 -> 0 | BP14: =D41 -> 0 | BQ14: =D42 -> 0 | BR14: =D43 -> 0 | BS14: =D44 -> 0 | BT14: =D45 -> 0 | BU14: =D46 -> 0 | BV14: =D47 -> 0 | BW14: =D48 -> 0 | BY14: 0 | BZ14: 164.231405 | CA14: 0 | CC14: =IF(CC$11="AVG",IF(CE$1="INST-VAL",AVERAGE(BL14:BP14,BM14:BQ14),AVERAGE(BM14:BQ14)),SUM(BM14:BQ14)) -> 0 | CD14: 0 | CE14: 0 | CF14: 0 | CG14: 0 | CH14: 0 | CI14: 0 | CK14: 1924 | CL14: =E37 -> 0 | CM14: =E38 -> 0 | CN14: =E39 -> 0 | CO14: =E40 -> 0 | CP14: =E41 -> 0 | CQ14: =E42 -> 0 | CR14: =E43 -> 0 | CS14: =E44 -> 0 | CT14: =E45 -> 0 | CU14: =E46 -> 0 | CV14: =E47 -> 0 | CW14: =E48 -> 0 | CY14: 0 | CZ14: 164.231405 | DA14: 0 | DC14: 0 | DD14: 0 | DE14: 0 | DF14: 0 | DG14: 0 | DH14: 0 | DI14: 0 | DK14: 1924 | DL14: =F37 -> 0 | DM14: =F38 -> 0 | DN14: =F39 -> 0 | DO14: =F40 -> 0 | DP14: =F41 -> 0 | DQ14: =F42 -> 0 | DR14: =F43 -> 0 | DS14: =F44 -> 0 | DT14: =F45 -> 0 | DU14: =F46 -> 0 | DV14: =F47 -> 0 | DW14: =F48 -> 0 | DY14: 0 | DZ14: 164.231405 | EA14: 0 | EC14: 0 | ED14: 0 | EE14: 0 | EF14: 0 | EG14: 0 | EH14: 0 | EI14: 0 | EK14: 1924 | EL14: =G37 ->  | EM14: =G38 ->  | EN14: =G39 ->  | EO14: =G40 ->  | EP14: =G41 ->  | EQ14: =G42 ->  | ER14: =G43 ->  | ES14: =G44 ->  | ET14: =G45 ->  | EU14: =G46 ->  | EV14: =G47 ->  | EW14: =G48 -> 
A15: 1921-12-31 | B15: =INDIRECT(CONCATENATE("'",B$1,"'!",B$4,(YEAR($A15)-1921)*12+MONTH($A15)+3+IF(ISNUMBER(FIND("PRV",B$6)),1,0)))*IF(AND(B$3>0,TRIM(B$9)="CFS"),Conversions!$C15,1) -> 0 | C15: =INDIRECT(CONCATENATE("'",C$1,"'!",C$4,(YEAR($A15)-1921)*12+MONTH($A15)+3+IF(ISNUMBER(FIND("PRV",C$6)),1,0)))*IF(AND(C$3>0,TRIM(C$9)="CFS"),Conversions!$C15,1) -> 0 | D15: =INDIRECT(CONCATENATE("'",D$1,"'!",D$4,(YEAR($A15)-1921)*12+MONTH($A15)+3+IF(ISNUMBER(FIND("PRV",D$6)),1,0)))*IF(AND(D$3>0,TRIM(D$9)="CFS"),Conversions!$C15,1) -> 0 | E15: =INDIRECT(CONCATENATE("'",E$1,"'!",E$4,(YEAR($A15)-1921)*12+MONTH($A15)+3+IF(ISNUMBER(FIND("PRV",E$6)),1,0)))*IF(AND(E$3>0,TRIM(E$9)="CFS"),Conversions!$C15,1) -> 0 | F15: =INDIRECT(CONCATENATE("'",F$1,"'!",F$4,(YEAR($A15)-1921)*12+MONTH($A15)+3+IF(ISNUMBER(FIND("PRV",F$6)),1,0)))*IF(AND(F$3>0,TRIM(F$9)="CFS"),Conversions!$C15,1) -> 0 | G15: =INDIRECT(CONCATENATE("'",G$1,"'!",G$4,(YEAR($A15)-1921)*12+MONTH($A15)+3+IF(ISNUMBER(FIND("PRV",G$6)),1,0)))*IF(AND(G$3>0,TRIM(G$9)="CFS"),Conversions!$C15,1) ->  | K15: 1925 | L15: =B49 -> 0 | M15: =B50 -> 0 | N15: =B51 -> 0 | O15: =B52 -> 0 | P15: =B53 -> 0 | Q15: =B54 -> 0 | R15: =B55 -> 0 | S15: =B56 -> 0 | T15: =B57 -> 0 | U15: =B58 -> 0 | V15: =B59 -> 0 | W15: =B60 -> 0 | Y15: 0 | Z15: 0 | AA15: 0 | AC15: =IF(AC$11="AVG",IF(AE$1="INST-VAL",AVERAGE(L15:P15,M15:Q15),AVERAGE(M15:Q15)),SUM(M15:Q15)) -> 0 | AD15: 0 | AE15: 0 | AF15: 0 | AG15: 0 | AH15: 0 | AI15: 0 | AK15: 1925 | AL15: =C49 -> 0 | AM15: =C50 -> 0 | AN15: =C51 -> 0 | AO15: =C52 -> 0 | AP15: =C53 -> 164.231405 | AQ15: =C54 -> 0 | AR15: =C55 -> 0 | AS15: =C56 -> 0 | AT15: =C57 -> 0 | AU15: =C58 -> 0 | AV15: =C59 -> 0 | AW15: =C60 -> 0 | AY15: 164.231405 | AZ15: 189.2707438 | BA15: 164.231405 | BC15: =IF(BC$11="AVG",IF(BE$1="INST-VAL",AVERAGE(AL15:AP15,AM15:AQ15),AVERAGE(AM15:AQ15)),SUM(AM15:AQ15)) -> 164.231405 | BD15: =IF(BD$11="AVG",IF(BE$1="INST-VAL",AVERAGE(AU15:AW15,AV15:AW15,AL16),AVERAGE(AV15:AW15,AL16)),SUM(AV15:AW15,AL16)) -> 0 | BE15: 0 | BF15: 164.231405 | BG15: 0 | BH15: 0 | BI15: 0 | BK15: 1925 | BL15: =D49 -> 0 | BM15: =D50 -> 0 | BN15: =D51 -> 0 | BO15: =D52 -> 0 | BP15: =D53 -> 164.231405 | BQ15: =D54 -> 0 | BR15: =D55 -> 0 | BS15: =D56 -> 0 | BT15: =D57 -> 0 | BU15: =D58 -> 0 | BV15: =D59 -> 0 | BW15: =D60 -> 0 | BY15: 164.231405 | BZ15: 189.2707438 | CA15: 164.231405 | CC15: 164.231405 | CD15: 0 | CE15: 0 | CF15: 164.231405 | CG15: 0 | CH15: 0 | CI15: 0 | CK15: 1925 | CL15: =E49 -> 0 | CM15: =E50 -> 0 | CN15: =E51 -> 0 | CO15: =E52 -> 0 | CP15: =E53 -> 164.231405 | CQ15: =E54 -> 0 | CR15: =E55 -> 0 | CS15: =E56 -> 0 | CT15: =E57 -> 0 | CU15: =E58 -> 0 | CV15: =E59 -> 0 | CW15: =E60 -> 0 | CY15: 164.231405 | CZ15: 189.2707438 | DA15: 164.231405 | DC15: 164.231405 | DD15: 0 | DE15: 0 | DF15: 164.231405 | DG15: 0 | DH15: 0 | DI15: 0 | DK15: 1925 | DL15: =F49 -> 0 | DM15: =F50 -> 0 | DN15: =F51 -> 0 | DO15: =F52 -> 0 | DP15: =F53 -> 164.231405 | DQ15: =F54 -> 0 | DR15: =F55 -> 0 | DS15: =F56 -> 0 | DT15: =F57 -> 0 | DU15: =F58 -> 0 | DV15: =F59 -> 0 | DW15: =F60 -> 0 | DY15: 164.231405 | DZ15: 189.2707438 | EA15: 164.231405 | EC15: 164.231405 | ED15: 0 | EE15: 0 | EF15: 164.231405 | EG15: 0 | EH15: 0 | EI15: 0 | EK15: 1925 | EL15: =G49 ->  | EM15: =G50 ->  | EN15: =G51 ->  | EO15: =G52 ->  | EP15: =G53 ->  | EQ15: =G54 ->  | ER15: =G55 ->  | ES15: =G56 ->  | ET15: =G57 ->  | EU15: =G58 ->  | EV15: =G59 ->  | EW15: =G60 -> 
A16: 1922-01-31 | B16: =INDIRECT(CONCATENATE("'",B$1,"'!",B$4,(YEAR($A16)-1921)*12+MONTH($A16)+3+IF(ISNUMBER(FIND("PRV",B$6)),1,0)))*IF(AND(B$3>0,TRIM(B$9)="CFS"),Conversions!$C16,1) -> 0 | C16: =INDIRECT(CONCATENATE("'",C$1,"'!",C$4,(YEAR($A16)-1921)*12+MONTH($A16)+3+IF(ISNUMBER(FIND("PRV",C$6)),1,0)))*IF(AND(C$3>0,TRIM(C$9)="CFS"),Conversions!$C16,1) -> 0 | D16: =INDIRECT(CONCATENATE("'",D$1,"'!",D$4,(YEAR($A16)-1921)*12+MONTH($A16)+3+IF(ISNUMBER(FIND("PRV",D$6)),1,0)))*IF(AND(D$3>0,TRIM(D$9)="CFS"),Conversions!$C16,1) -> 0 | E16: =INDIRECT(CONCATENATE("'",E$1,"'!",E$4,(YEAR($A16)-1921)*12+MONTH($A16)+3+IF(ISNUMBER(FIND("PRV",E$6)),1,0)))*IF(AND(E$3>0,TRIM(E$9)="CFS"),Conversions!$C16,1) -> 0 | F16: =INDIRECT(CONCATENATE("'",F$1,"'!",F$4,(YEAR($A16)-1921)*12+MONTH($A16)+3+IF(ISNUMBER(FIND("PRV",F$6)),1,0)))*IF(AND(F$3>0,TRIM(F$9)="CFS"),Conversions!$C16,1) -> 0 | G16: =INDIRECT(CONCATENATE("'",G$1,"'!",G$4,(YEAR($A16)-1921)*12+MONTH($A16)+3+IF(ISNUMBER(FIND("PRV",G$6)),1,0)))*IF(AND(G$3>0,TRIM(G$9)="CFS"),Conversions!$C16,1) ->  | K16: 1926 | L16: =B61 -> 0 | M16: =B62 -> 0 | N16: =B63 -> 0 | O16: =B64 -> 0 | P16: =B65 -> 0 | Q16: =B66 -> 0 | R16: =B67 -> 0 | S16: =B68 -> 0 | T16: =B69 -> 0 | U16: =B70 -> 0 | V16: =B71 -> 0 | W16: =B72 -> 0 | Y16: 0 | Z16: 0 | AA16: 0 | AC16: 0 | AD16: 0 | AE16: 0 | AF16: 0 | AG16: 0 | AH16: 0 | AI16: 0 | AK16: 1926 | AL16: =C61 -> 0 | AM16: =C62 -> 0 | AN16: =C63 -> 0 | AO16: =C64 -> 0 | AP16: =C65 -> 189.2707438 | AQ16: =C66 -> 0 | AR16: =C67 -> 0 | AS16: =C68 -> 0 | AT16: =C69 -> 0 | AU16: =C70 -> 0 | AV16: =C71 -> 0 | AW16: =C72 -> 0 | AY16: 396.8258537 | AZ16: 600.4489942 | BA16: 189.2707438 | BC16: 189.2707438 | BD16: 0 | BE16: 0 | BF16: 189.2707438 | BG16: 0 | BH16: 0 | BI16: 0 | BK16: 1926 | BL16: =D61 -> 0 | BM16: =D62 -> 0 | BN16: =D63 -> 0 | BO16: =D64 -> 0 | BP16: =D65 -> 189.2707438 | BQ16: =D66 -> 0 | BR16: =D67 -> 0 | BS16: =D68 -> 0 | BT16: =D69 -> 0 | BU16: =D70 -> 0 | BV16: =D71 -> 0 | BW16: =D72 -> 0 | BY16: 372.6443686 | BZ16: 576.2675091 | CA16: 189.2707438 | CC16: 189.2707438 | CD16: 0 | CE16: 0 | CF16: 189.2707438 | CG16: 0 | CH16: 0 | CI16: 0 | CK16: 1926 | CL16: =E61 -> 0 | CM16: =E62 -> 0 | CN16: =E63 -> 0 | CO16: =E64 -> 0 | CP16: =E65 -> 189.2707438 | CQ16: =E66 -> 0 | CR16: =E67 -> 0 | CS16: =E68 -> 0 | CT16: =E69 -> 0 | CU16: =E70 -> 0 | CV16: =E71 -> 0 | CW16: =E72 -> 0 | CY16: 333.8540521 | CZ16: 537.4771926 | DA16: 189.2707438 | DC16: 189.2707438 | DD16: 0 | DE16: 0 | DF16: 189.2707438 | DG16: 0 | DH16: 0 | DI16: 0 | DK16: 1926 | DL16: =F61 -> 0 | DM16: =F62 -> 0 | DN16: =F63 -> 0 | DO16: =F64 -> 0 | DP16: =F65 -> 189.2707438 | DQ16: =F66 -> 0 | DR16: =F67 -> 0 | DS16: =F68 -> 0 | DT16: =F69 -> 0 | DU16: =F70 -> 0 | DV16: =F71 -> 0 | DW16: =F72 -> 0 | DY16: 330.444825 | DZ16: 534.0679655 | EA16: 189.2707438 | EC16: 189.2707438 | ED16: 0 | EE16: 0 | EF16: 189.2707438 | EG16: 0 | EH16: 0 | EI16: 0 | EK16: 1926 | EL16: =G61 ->  | EM16: =G62 ->  | EN16: =G63 ->  | EO16: =G64 ->  | EP16: =G65 ->  | EQ16: =G66 ->  | ER16: =G67 ->  | ES16: =G68 ->  | ET16: =G69 ->  | EU16: =G70 ->  | EV16: =G71 ->  | EW16: =G72 -> 
A17: 1922-02-28 | B17: =INDIRECT(CONCATENATE("'",B$1,"'!",B$4,(YEAR($A17)-1921)*12+MONTH($A17)+3+IF(ISNUMBER(FIND("PRV",B$6)),1,0)))*IF(AND(B$3>0,TRIM(B$9)="CFS"),Conversions!$C17,1) -> 0 | C17: =INDIRECT(CONCATENATE("'",C$1,"'!",C$4,(YEAR($A17)-1921)*12+MONTH($A17)+3+IF(ISNUMBER(FIND("PRV",C$6)),1,0)))*IF(AND(C$3>0,TRIM(C$9)="CFS"),Conversions!$C17,1) -> 143.7024793 | D17: =INDIRECT(CONCATENATE("'",D$1,"'!",D$4,(YEAR($A17)-1921)*12+MONTH($A17)+3+IF(ISNUMBER(FIND("PRV",D$6)),1,0)))*IF(AND(D$3>0,TRIM(D$9)="CFS"),Conversions!$C17,1) -> 143.7024793 | E17: =INDIRECT(CONCATENATE("'",E$1,"'!",E$4,(YEAR($A17)-1921)*12+MONTH($A17)+3+IF(ISNUMBER(FIND("PRV",E$6)),1,0)))*IF(AND(E$3>0,TRIM(E$9)="CFS"),Conversions!$C17,1) -> 143.7024793 | F17: =INDIRECT(CONCATENATE("'",F$1,"'!",F$4,(YEAR($A17)-1921)*12+MONTH($A17)+3+IF(ISNUMBER(FIND("PRV",F$6)),1,0)))*IF(AND(F$3>0,TRIM(F$9)="CFS"),Conversions!$C17,1) -> 143.7024793 | G17: =INDIRECT(CONCATENATE("'",G$1,"'!",G$4,(YEAR($A17)-1921)*12+MONTH($A17)+3+IF(ISNUMBER(FIND("PRV",G$6)),1,0)))*IF(AND(G$3>0,TRIM(G$9)="CFS"),Conversions!$C17,1) ->  | K17: 1927 | L17: =B73 -> 0 | M17: =B74 -> 0 | N17: =B75 -> 0 | O17: =B76 -> 0 | P17: =B77 -> 0 | Q17: =B78 -> 0 | R17: =B79 -> 0 | S17: =B80 -> 0 | T17: =B81 -> 0 | U17: =B82 -> 0 | V17: =B83 -> 0 | W17: =B84 -> 0 | Y17: 0 | Z17: 0 | AA17: 0 | AC17: 0 | AD17: 0 | AE17: 0 | AF17: 0 | AG17: 0 | AH17: 0 | AI17: 0 | AK17: 1927 | AL17: =C73 -> 0 | AM17: =C74 -> 0 | AN17: =C75 -> 207.5551099 | AO17: =C76 -> 203.6231405 | AP17: =C77 -> 189.2707438 | AQ17: =C78 -> 167.3045993 | AR17: =C79 -> 199.3772559 | AS17: =C80 -> 0 | AT17: =C81 -> 0 | AU17: =C82 -> 0 | AV17: =C83 -> 0 | AW17: =C84 -> 0 | AY17: 759.5757395 | AZ17: 504.6902317 | BA17: 967.1308494 | BC17: 767.7535935 | BD17: 0 | BE17: 411.1782504 | BF17: 600.4489942 | BG17: 366.6818552 | BH17: 0 | BI17: 0 | BK17: 1927 | BL17: =D73 -> 0 | BM17: =D74 -> 0 | BN17: =D75 -> 183.3736248 | BO17: =D76 -> 203.6231405 | BP17: =D77 -> 189.2707438 | BQ17: =D78 -> 167.2167663 | BR17: =D79 -> 199.3772559 | BS17: =D80 -> 0 | BT17: =D81 -> 0 | BU17: =D82 -> 0 | BV17: =D83 -> 0 | BW17: =D84 -> 0 | BY17: 759.4879065 | BZ17: 499.1360717 | CA17: 942.8615313 | CC17: =IF(CC$11="AVG",IF(CE$1="INST-VAL",AVERAGE(BL17:BP17,BM17:BQ17),AVERAGE(BM17:BQ17)),SUM(BM17:BQ17)) -> 743.4842754 | CD17: =IF(CD$11="AVG",IF(CE$1="INST-VAL",AVERAGE(BU17:BW17,BV17:BW17,BL18),AVERAGE(BV17:BW17,BL18)),SUM(BV17:BW17,BL18)) -> 0 | CE17: 386.9967653 | CF17: 576.2675091 | CG17: 366.5940222 | CH17: 0 | CI17: 0 | CK17: 1927 | CL17: =E73 -> 0 | CM17: =E74 -> 0 | CN17: =E75 -> 144.5833083 | CO17: =E76 -> 203.6231405 | CP17: =E77 -> 189.2707438 | CQ17: =E78 -> 167.0983433 | CR17: =E79 -> 199.3772559 | CS17: =E80 -> 0 | CT17: =E81 -> 0 | CU17: =E82 -> 0 | CV17: =E83 -> 0 | CW17: =E84 -> 0 | CY17: 759.3694835 | CZ17: 484.2274464 | DA17: 903.9527918 | DC17: 704.5755359 | DD17: 0 | DE17: 348.2064488 | DF17: 537.4771926 | DG17: 366.4755992 | DH17: 0 | DI17: 0 | DK17: 1927 | DL17: =F73 -> 0 | DM17: =F74 -> 0 | DN17: =F75 -> 141.1740812 | DO17: =F76 -> 203.6231405 | DP17: =F77 -> 189.2707438 | DQ17: =F78 -> 167.0858635 | DR17: =F79 -> 199.3772559 | DS17: =F80 -> 0 | DT17: =F81 -> 0 | DU17: =F82 -> 0 | DV17: =F83 -> 0 | DW17: =F84 -> 0 | DY17: 759.3570037 | DZ17: 484.2146603 | EA17: 900.5310848 | EC17: 701.1538289 | ED17: 0 | EE17: 344.7972217 | EF17: 534.0679655 | EG17: 366.4631194 | EH17: 0 | EI17: 0 | EK17: 1927 | EL17: =G73 ->  | EM17: =G74 ->  | EN17: =G75 ->  | EO17: =G76 ->  | EP17: =G77 ->  | EQ17: =G78 ->  | ER17: =G79 ->  | ES17: =G80 ->  | ET17: =G81 ->  | EU17: =G82 ->  | EV17: =G83 ->  | EW17: =G84 -> 
A18: 1922-03-31 | B18: =INDIRECT(CONCATENATE("'",B$1,"'!",B$4,(YEAR($A18)-1921)*12+MONTH($A18)+3+IF(ISNUMBER(FIND("PRV",B$6)),1,0)))*IF(AND(B$3>0,TRIM(B$9)="CFS"),Conversions!$C18,1) -> 0 | C18: =INDIRECT(CONCATENATE("'",C$1,"'!",C$4,(YEAR($A18)-1921)*12+MONTH($A18)+3+IF(ISNUMBER(FIND("PRV",C$6)),1,0)))*IF(AND(C$3>0,TRIM(C$9)="CFS"),Conversions!$C18,1) -> 0 | D18: =INDIRECT(CONCATENATE("'",D$1,"'!",D$4,(YEAR($A18)-1921)*12+MONTH($A18)+3+IF(ISNUMBER(FIND("PRV",D$6)),1,0)))*IF(AND(D$3>0,TRIM(D$9)="CFS"),Conversions!$C18,1) -> 0 | E18: =INDIRECT(CONCATENATE("'",E$1,"'!",E$4,(YEAR($A18)-1921)*12+MONTH($A18)+3+IF(ISNUMBER(FIND("PRV",E$6)),1,0)))*IF(AND(E$3>0,TRIM(E$9)="CFS"),Conversions!$C18,1) -> 0 | F18: =INDIRECT(CONCATENATE("'",F$1,"'!",F$4,(YEAR($A18)-1921)*12+MONTH($A18)+3+IF(ISNUMBER(FIND("PRV",F$6)),1,0)))*IF(AND(F$3>0,TRIM(F$9)="CFS"),Conversions!$C18,1) -> 0 | G18: =INDIRECT(CONCATENATE("'",G$1,"'!",G$4,(YEAR($A18)-1921)*12+MONTH($A18)+3+IF(ISNUMBER(FIND("PRV",G$6)),1,0)))*IF(AND(G$3>0,TRIM(G$9)="CFS"),Conversions!$C18,1) ->  | K18: 1928 | L18: =B85 -> 0 | M18: =B86 -> 0 | N18: =B87 -> 0 | O18: =B88 -> 0 | P18: =B89 -> 0 | Q18: =B90 -> 0 | R18: =B91 -> 0 | S18: =B92 -> 0 | T18: =B93 -> 0 | U18: =B94 -> 0 | V18: =B95 -> 0 | W18: =B96 -> 0 | Y18: 0 | Z18: 0 | AA18: 0 | AC18: 0 | AD18: 0 | AE18: 0 | AF18: 0 | AG18: 0 | AH18: 0 | AI18: 0 | AK18: 1928 | AL18: =C85 -> 0 | AM18: =C86 -> 0 | AN18: =C87 -> 0 | AO18: =C88 -> 0 | AP18: =C89 -> 138.0083765 | AQ18: =C90 -> 183.3679339 | AR18: =C91 -> 0 | AS18: =C92 -> 0 | AT18: =C93 -> 0 | AU18: =C94 -> 0 | AV18: =C95 -> 0 | AW18: =C96 -> 0 | AY18: 321.3763104 | AZ18: 183.3679339 | BA18: 321.3763104 | BC18: 321.3763104 | BD18: 0 | BE18: 0 | BF18: 138.0083765 | BG18: 183.3679339 | BH18: 0 | BI18: 0 | BK18: 1928 | BL18: =D85 -> 0 | BM18: =D86 -> 0 | BN18: =D87 -> 0 | BO18: =D88 -> 0 | BP18: =D89 -> 132.5420495 | BQ18: =D90 -> 183.3679339 | BR18: =D91 -> 0 | BS18: =D92 -> 0 | BT18: =D93 -> 0 | BU18: =D94 -> 0 | BV18: =D95 -> 0 | BW18: =D96 -> 0 | BY18: 315.9099834 | BZ18: 183.3679339 | CA18: 315.9099834 | CC18: 315.9099834 | CD18: 0 | CE18: 0 | CF18: 132.5420495 | CG18: 183.3679339 | CH18: 0 | CI18: 0 | CK18: 1928 | CL18: =E85 -> 0 | CM18: =E86 -> 0 | CN18: =E87 -> 0 | CO18: =E88 -> 0 | CP18: =E89 -> 117.7518472 | CQ18: =E90 -> 183.3679339 | CR18: =E91 -> 0 | CS18: =E92 -> 0 | CT18: =E93 -> 0 | CU18: =E94 -> 0 | CV18: =E95 -> 0 | CW18: =E96 -> 0 | CY18: 301.1197811 | CZ18: 183.3679339 | DA18: 301.1197811 | DC18: =IF(DC$11="AVG",IF(DE$1="INST-VAL",AVERAGE(CL18:CP18,CM18:CQ18),AVERAGE(CM18:CQ18)),SUM(CM18:CQ18)) -> 301.1197811 | DD18: =IF(DD$11="AVG",IF(DE$1="INST-VAL",AVERAGE(CU18:CW18,CV18:CW18,CL19),AVERAGE(CV18:CW18,CL19)),SUM(CV18:CW18,CL19)) -> 0 | DE18: 0 | DF18: 117.7518472 | DG18: 183.3679339 | DH18: 0 | DI18: 0 | DK18: 1928 | DL18: =F85 -> 0 | DM18: =F86 -> 0 | DN18: =F87 -> 0 | DO18: =F88 -> 0 | DP18: =F89 -> 117.751541 | DQ18: =F90 -> 183.3679339 | DR18: =F91 -> 0 | DS18: =F92 -> 0 | DT18: =F93 -> 0 | DU18: =F94 -> 0 | DV18: =F95 -> 0 | DW18: =F96 -> 0 | DY18: 301.1194748 | DZ18: 183.3679339 | EA18: 301.1194748 | EC18: =IF(EC$11="AVG",IF(EE$1="INST-VAL",AVERAGE(DL18:DP18,DM18:DQ18),AVERAGE(DM18:DQ18)),SUM(DM18:DQ18)) -> 301.1194748 | ED18: =IF(ED$11="AVG",IF(EE$1="INST-VAL",AVERAGE(DU18:DW18,DV18:DW18,DL19),AVERAGE(DV18:DW18,DL19)),SUM(DV18:DW18,DL19)) -> 0 | EE18: 0 | EF18: 117.751541 | EG18: 183.3679339 | EH18: 0 | EI18: 0 | EK18: 1928 | EL18: =G85 ->  | EM18: =G86 ->  | EN18: =G87 ->  | EO18: =G88 ->  | EP18: =G89 ->  | EQ18: =G90 ->  | ER18: =G91 ->  | ES18: =G92 ->  | ET18: =G93 ->  | EU18: =G94 ->  | EV18: =G95 ->  | EW18: =G96 ->  | FC18: =IF(FC$11="AVG",IF(FE$1="INST-VAL",AVERAGE(EL18:EP18,EM18:EQ18),AVERAGE(EM18:EQ18)),SUM(EM18:EQ18)) -> 
A19: 1922-04-30 | B19: =INDIRECT(CONCATENATE("'",B$1,"'!",B$4,(YEAR($A19)-1921)*12+MONTH($A19)+3+IF(ISNUMBER(FIND("PRV",B$6)),1,0)))*IF(AND(B$3>0,TRIM(B$9)="CFS"),Conversions!$C19,1) -> 0 | C19: =INDIRECT(CONCATENATE("'",C$1,"'!",C$4,(YEAR($A19)-1921)*12+MONTH($A19)+3+IF(ISNUMBER(FIND("PRV",C$6)),1,0)))*IF(AND(C$3>0,TRIM(C$9)="CFS"),Conversions!$C19,1) -> 0 | D19: =INDIRECT(CONCATENATE("'",D$1,"'!",D$4,(YEAR($A19)-1921)*12+MONTH($A19)+3+IF(ISNUMBER(FIND("PRV",D$6)),1,0)))*IF(AND(D$3>0,TRIM(D$9)="CFS"),Conversions!$C19,1) -> 0 | E19: =INDIRECT(CONCATENATE("'",E$1,"'!",E$4,(YEAR($A19)-1921)*12+MONTH($A19)+3+IF(ISNUMBER(FIND("PRV",E$6)),1,0)))*IF(AND(E$3>0,TRIM(E$9)="CFS"),Conversions!$C19,1) -> 0 | F19: =INDIRECT(CONCATENATE("'",F$1,"'!",F$4,(YEAR($A19)-1921)*12+MONTH($A19)+3+IF(ISNUMBER(FIND("PRV",F$6)),1,0)))*IF(AND(F$3>0,TRIM(F$9)="CFS"),Conversions!$C19,1) -> 0 | G19: =INDIRECT(CONCATENATE("'",G$1,"'!",G$4,(YEAR($A19)-1921)*12+MONTH($A19)+3+IF(ISNUMBER(FIND("PRV",G$6)),1,0)))*IF(AND(G$3>0,TRIM(G$9)="CFS"),Conversions!$C19,1) ->  | K19: 1929 | L19: =B97 -> 0 | M19: =B98 -> 0 | N19: =B99 -> 0 | O19: =B100 -> 0 | P19: =B101 -> 0 | Q19: =B102 -> 0 | R19: =B103 -> 0 | S19: =B104 -> 0 | T19: =B105 -> 0 | U19: =B106 -> 0 | V19: =B107 -> 0 | W19: =B108 -> 0 | Y19: 0 | Z19: 0 | AA19: 0 | AC19: 0 | AD19: 0 | AE19: 0 | AF19: 0 | AG19: 0 | AH19: 0 | AI19: 0 | AK19: 1929 | AL19: =C97 -> 0 | AM19: =C98 -> 0 | AN19: =C99 -> 0 | AO19: =C100 -> 0 | AP19: =C101 -> 0 | AQ19: =C102 -> 0 | AR19: =C103 -> 0 | AS19: =C104 -> 0 | AT19: =C105 -> 0 | AU19: =C106 -> 0 | AV19: =C107 -> 0 | AW19: =C108 -> 0 | AY19: 0 | AZ19: 0 | BA19: 0 | BC19: 0 | BD19: 0 | BE19: 0 | BF19: 0 | BG19: 0 | BH19: 0 | BI19: 0 | BK19: 1929 | BL19: =D97 -> 0 | BM19: =D98 -> 0 | BN19: =D99 -> 0 | BO19: =D100 -> 0 | BP19: =D101 -> 0 | BQ19: =D102 -> 0 | BR19: =D103 -> 0 | BS19: =D104 -> 0 | BT19: =D105 -> 0 | BU19: =D106 -> 0 | BV19: =D107 -> 0 | BW19: =D108 -> 0 | BY19: 0 | BZ19: 0 | CA19: 0 | CC19: 0 | CD19: 0 | CE19: 0 | CF19: 0 | CG19: 0 | CH19: 0 | CI19: 0 | CK19: 1929 | CL19: =E97 -> 0 | CM19: =E98 -> 0 | CN19: =E99 -> 0 | CO19: =E100 -> 0 | CP19: =E101 -> 0 | CQ19: =E102 -> 0 | CR19: =E103 -> 0 | CS19: =E104 -> 0 | CT19: =E105 -> 0 | CU19: =E106 -> 0 | CV19: =E107 -> 0 | CW19: =E108 -> 0 | CY19: 0 | CZ19: 0 | DA19: 0 | DC19: 0 | DD19: 0 | DE19: 0 | DF19: 0 | DG19: 0 | DH19: 0 | DI19: 0 | DK19: 1929 | DL19: =F97 -> 0 | DM19: =F98 -> 0 | DN19: =F99 -> 0 | DO19: =F100 -> 0 | DP19: =F101 -> 0 | DQ19: =F102 -> 0 | DR19: =F103 -> 0 | DS19: =F104 -> 0 | DT19: =F105 -> 0 | DU19: =F106 -> 0 | DV19: =F107 -> 0 | DW19: =F108 -> 0 | DY19: 0 | DZ19: 0 | EA19: 0 | EC19: 0 | ED19: 0 | EE19: 0 | EF19: 0 | EG19: 0 | EH19: 0 | EI19: 0 | EK19: 1929 | EL19: =G97 ->  | EM19: =G98 ->  | EN19: =G99 ->  | EO19: =G100 ->  | EP19: =G101 ->  | EQ19: =G102 ->  | ER19: =G103 ->  | ES19: =G104 ->  | ET19: =G105 ->  | EU19: =G106 ->  | EV19: =G107 ->  | EW19: =G108 -> 
A20: 1922-05-31 | B20: =INDIRECT(CONCATENATE("'",B$1,"'!",B$4,(YEAR($A20)-1921)*12+MONTH($A20)+3+IF(ISNUMBER(FIND("PRV",B$6)),1,0)))*IF(AND(B$3>0,TRIM(B$9)="CFS"),Conversions!$C20,1) -> 0 | C20: =INDIRECT(CONCATENATE("'",C$1,"'!",C$4,(YEAR($A20)-1921)*12+MONTH($A20)+3+IF(ISNUMBER(FIND("PRV",C$6)),1,0)))*IF(AND(C$3>0,TRIM(C$9)="CFS"),Conversions!$C20,1) -> 0 | D20: =INDIRECT(CONCATENATE("'",D$1,"'!",D$4,(YEAR($A20)-1921)*12+MONTH($A20)+3+IF(ISNUMBER(FIND("PRV",D$6)),1,0)))*IF(AND(D$3>0,TRIM(D$9)="CFS"),Conversions!$C20,1) -> 0 | E20: =INDIRECT(CONCATENATE("'",E$1,"'!",E$4,(YEAR($A20)-1921)*12+MONTH($A20)+3+IF(ISNUMBER(FIND("PRV",E$6)),1,0)))*IF(AND(E$3>0,TRIM(E$9)="CFS"),Conversions!$C20,1) -> 0 | F20: =INDIRECT(CONCATENATE("'",F$1,"'!",F$4,(YEAR($A20)-1921)*12+MONTH($A20)+3+IF(ISNUMBER(FIND("PRV",F$6)),1,0)))*IF(AND(F$3>0,TRIM(F$9)="CFS"),Conversions!$C20,1) -> 0 | G20: =INDIRECT(CONCATENATE("'",G$1,"'!",G$4,(YEAR($A20)-1921)*12+MONTH($A20)+3+IF(ISNUMBER(FIND("PRV",G$6)),1,0)))*IF(AND(G$3>0,TRIM(G$9)="CFS"),Conversions!$C20,1) ->  | K20: 1930 | L20: =B109 -> 0 | M20: =B110 -> 0 | N20: =B111 -> 0 | O20: =B112 -> 0 | P20: =B113 -> 0 | Q20: =B114 -> 0 | R20: =B115 -> 0 | S20: =B116 -> 0 | T20: =B117 -> 0 | U20: =B118 -> 0 | V20: =B119 -> 0 | W20: =B120 -> 0 | Y20: 0 | Z20: 0 | AA20: 0 | AC20: 0 | AD20: 0 | AE20: 0 | AF20: 0 | AG20: 0 | AH20: 0 | AI20: 0 | AK20: 1930 | AL20: =C109 -> 0 | AM20: =C110 -> 0 | AN20: =C111 -> 0 | AO20: =C112 -> 0 | AP20: =C113 -> 0 | AQ20: =C114 -> 122.6906765 | AR20: =C115 -> 0 | AS20: =C116 -> 0 | AT20: =C117 -> 0 | AU20: =C118 -> 0 | AV20: =C119 -> 0 | AW20: =C120 -> 0 | AY20: 122.6906765 | AZ20: 122.6906765 | BA20: 122.6906765 | BC20: 122.6906765 | BD20: 0 | BE20: 0 | BF20: 0 | BG20: 122.6906765 | BH20: 0 | BI20: 0 | BK20: 1930 | BL20: =D109 -> 0 | BM20: =D110 -> 0 | BN20: =D111 -> 0 | BO20: =D112 -> 0 | BP20: =D113 -> 0 | BQ20: =D114 -> 122.6926496 | BR20: =D115 -> 0 | BS20: =D116 -> 0 | BT20: =D117 -> 0 | BU20: =D118 -> 0 | BV20: =D119 -> 0 | BW20: =D120 -> 0 | BY20: 122.6926496 | BZ20: 122.6926496 | CA20: 122.6926496 | CC20: 122.6926496 | CD20: 0 | CE20: 0 | CF20: 0 | CG20: 122.6926496 | CH20: 0 | CI20: 0 | CK20: 1930 | CL20: =E109 -> 0 | CM20: =E110 -> 0 | CN20: =E111 -> 0 | CO20: =E112 -> 0 | CP20: =E113 -> 0 | CQ20: =E114 -> 122.7162421 | CR20: =E115 -> 0 | CS20: =E116 -> 0 | CT20: =E117 -> 0 | CU20: =E118 -> 0 | CV20: =E119 -> 0 | CW20: =E120 -> 0 | CY20: 122.7162421 | CZ20: 122.7162421 | DA20: 122.7162421 | DC20: 122.7162421 | DD20: 0 | DE20: 0 | DF20: 0 | DG20: 122.7162421 | DH20: 0 | DI20: 0 | DK20: 1930 | DL20: =F109 -> 0 | DM20: =F110 -> 0 | DN20: =F111 -> 0 | DO20: =F112 -> 0 | DP20: =F113 -> 0 | DQ20: =F114 -> 122.5622041 | DR20: =F115 -> 0 | DS20: =F116 -> 0 | DT20: =F117 -> 0 | DU20: =F118 -> 0 | DV20: =F119 -> 0 | DW20: =F120 -> 0 | DY20: 122.5622041 | DZ20: 122.5622041 | EA20: 122.5622041 | EC20: 122.5622041 | ED20: 0 | EE20: 0 | EF20: 0 | EG20: 122.5622041 | EH20: 0 | EI20: 0 | EK20: 1930 | EL20: =G109 ->  | EM20: =G110 ->  | EN20: =G111 ->  | EO20: =G112 ->  | EP20: =G113 ->  | EQ20: =G114 ->  | ER20: =G115 ->  | ES20: =G116 ->  | ET20: =G117 ->  | EU20: =G118 ->  | EV20: =G119 ->  | EW20: =G120 -> 
A21: 1922-06-30 | B21: =INDIRECT(CONCATENATE("'",B$1,"'!",B$4,(YEAR($A21)-1921)*12+MONTH($A21)+3+IF(ISNUMBER(FIND("PRV",B$6)),1,0)))*IF(AND(B$3>0,TRIM(B$9)="CFS"),Conversions!$C21,1) -> 0 | C21: =INDIRECT(CONCATENATE("'",C$1,"'!",C$4,(YEAR($A21)-1921)*12+MONTH($A21)+3+IF(ISNUMBER(FIND("PRV",C$6)),1,0)))*IF(AND(C$3>0,TRIM(C$9)="CFS"),Conversions!$C21,1) -> 0 | D21: =INDIRECT(CONCATENATE("'",D$1,"'!",D$4,(YEAR($A21)-1921)*12+MONTH($A21)+3+IF(ISNUMBER(FIND("PRV",D$6)),1,0)))*IF(AND(D$3>0,TRIM(D$9)="CFS"),Conversions!$C21,1) -> 0 | E21: =INDIRECT(CONCATENATE("'",E$1,"'!",E$4,(YEAR($A21)-1921)*12+MONTH($A21)+3+IF(ISNUMBER(FIND("PRV",E$6)),1,0)))*IF(AND(E$3>0,TRIM(E$9)="CFS"),Conversions!$C21,1) -> 0 | F21: =INDIRECT(CONCATENATE("'",F$1,"'!",F$4,(YEAR($A21)-1921)*12+MONTH($A21)+3+IF(ISNUMBER(FIND("PRV",F$6)),1,0)))*IF(AND(F$3>0,TRIM(F$9)="CFS"),Conversions!$C21,1) -> 0 | G21: =INDIRECT(CONCATENATE("'",G$1,"'!",G$4,(YEAR($A21)-1921)*12+MONTH($A21)+3+IF(ISNUMBER(FIND("PRV",G$6)),1,0)))*IF(AND(G$3>0,TRIM(G$9)="CFS"),Conversions!$C21,1) ->  | K21: 1931 | L21: =B121 -> 0 | M21: =B122 -> 0 | N21: =B123 -> 0 | O21: =B124 -> 0 | P21: =B125 -> 0 | Q21: =B126 -> 0 | R21: =B127 -> 0 | S21: =B128 -> 0 | T21: =B129 -> 0 | U21: =B130 -> 0 | V21: =B131 -> 0 | W21: =B132 -> 0 | Y21: 0 | Z21: 0 | AA21: 0 | AC21: 0 | AD21: 0 | AE21: 0 | AF21: 0 | AG21: 0 | AH21: 0 | AI21: 0 | AK21: 1931 | AL21: =C121 -> 0 | AM21: =C122 -> 0 | AN21: =C123 -> 0 | AO21: =C124 -> 0 | AP21: =C125 -> 0 | AQ21: =C126 -> 0 | AR21: =C127 -> 0 | AS21: =C128 -> 0 | AT21: =C129 -> 0 | AU21: =C130 -> 0 | AV21: =C131 -> 0 | AW21: =C132 -> 0 | AY21: 45.7028649 | AZ21: 45.7028649 | BA21: 0 | BC21: 0 | BD21: 0 | BE21: 0 | BF21: 0 | BG21: 0 | BH21: 0 | BI21: 0 | BK21: 1931 | BL21: =D121 -> 0 | BM21: =D122 -> 0 | BN21: =D123 -> 0 | BO21: =D124 -> 0 | BP21: =D125 -> 0 | BQ21: =D126 -> 0 | BR21: =D127 -> 0 | BS21: =D128 -> 0 | BT21: =D129 -> 0 | BU21: =D130 -> 0 | BV21: =D131 -> 0 | BW21: =D132 -> 0 | BY21: 46.09807788 | BZ21: 46.09807788 | CA21: 0 | CC21: 0 | CD21: 0 | CE21: 0 | CF21: 0 | CG21: 0 | CH21: 0 | CI21: 0 | CK21: 1931 | CL21: =E121 -> 0 | CM21: =E122 -> 0 | CN21: =E123 -> 0 | CO21: =E124 -> 0 | CP21: =E125 -> 0 | CQ21: =E126 -> 0 | CR21: =E127 -> 0 | CS21: =E128 -> 0 | CT21: =E129 -> 0 | CU21: =E130 -> 0 | CV21: =E131 -> 0 | CW21: =E132 -> 0 | CY21: 46.10832632 | CZ21: 46.10832632 | DA21: 0 | DC21: 0 | DD21: 0 | DE21: 0 | DF21: 0 | DG21: 0 | DH21: 0 | DI21: 0 | DK21: 1931 | DL21: =F121 -> 0 | DM21: =F122 -> 0 | DN21: =F123 -> 0 | DO21: =F124 -> 0 | DP21: =F125 -> 0 | DQ21: =F126 -> 0 | DR21: =F127 -> 0 | DS21: =F128 -> 0 | DT21: =F129 -> 0 | DU21: =F130 -> 0 | DV21: =F131 -> 0 | DW21: =F132 -> 0 | DY21: 46.10545975 | DZ21: 46.10545975 | EA21: 0 | EC21: 0 | ED21: 0 | EE21: 0 | EF21: 0 | EG21: 0 | EH21: 0 | EI21: 0 | EK21: 1931 | EL21: =G121 ->  | EM21: =G122 ->  | EN21: =G123 ->  | EO21: =G124 ->  | EP21: =G125 ->  | EQ21: =G126 ->  | ER21: =G127 ->  | ES21: =G128 ->  | ET21: =G129 ->  | EU21: =G130 ->  | EV21: =G131 ->  | EW21: =G132 -> 
A22: 1922-07-31 | B22: =INDIRECT(CONCATENATE("'",B$1,"'!",B$4,(YEAR($A22)-1921)*12+MONTH($A22)+3+IF(ISNUMBER(FIND("PRV",B$6)),1,0)))*IF(AND(B$3>0,TRIM(B$9)="CFS"),Conversions!$C22,1) -> 0 | C22: =INDIRECT(CONCATENATE("'",C$1,"'!",C$4,(YEAR($A22)-1921)*12+MONTH($A22)+3+IF(ISNUMBER(FIND("PRV",C$6)),1,0)))*IF(AND(C$3>0,TRIM(C$9)="CFS"),Conversions!$C22,1) -> 0 | D22: =INDIRECT(CONCATENATE("'",D$1,"'!",D$4,(YEAR($A22)-1921)*12+MONTH($A22)+3+IF(ISNUMBER(FIND("PRV",D$6)),1,0)))*IF(AND(D$3>0,TRIM(D$9)="CFS"),Conversions!$C22,1) -> 0 | E22: =INDIRECT(CONCATENATE("'",E$1,"'!",E$4,(YEAR($A22)-1921)*12+MONTH($A22)+3+IF(ISNUMBER(FIND("PRV",E$6)),1,0)))*IF(AND(E$3>0,TRIM(E$9)="CFS"),Conversions!$C22,1) -> 0 | F22: =INDIRECT(CONCATENATE("'",F$1,"'!",F$4,(YEAR($A22)-1921)*12+MONTH($A22)+3+IF(ISNUMBER(FIND("PRV",F$6)),1,0)))*IF(AND(F$3>0,TRIM(F$9)="CFS"),Conversions!$C22,1) -> 0 | G22: =INDIRECT(CONCATENATE("'",G$1,"'!",G$4,(YEAR($A22)-1921)*12+MONTH($A22)+3+IF(ISNUMBER(FIND("PRV",G$6)),1,0)))*IF(AND(G$3>0,TRIM(G$9)="CFS"),Conversions!$C22,1) ->  | K22: 1932 | L22: =B133 -> 0 | M22: =B134 -> 0 | N22: =B135 -> 0 | O22: =B136 -> 0 | P22: =B137 -> 0 | Q22: =B138 -> 0 | R22: =B139 -> 0 | S22: =B140 -> 0 | T22: =B141 -> 0 | U22: =B142 -> 0 | V22: =B143 -> 0 | W22: =B144 -> 0 | Y22: 0 | Z22: 0 | AA22: 0 | AC22: 0 | AD22: 0 | AE22: 0 | AF22: 0 | AG22: 0 | AH22: 0 | AI22: 0 | AK22: 1932 | AL22: =C133 -> 0 | AM22: =C134 -> 0 | AN22: =C135 -> 45.7028649 | AO22: =C136 -> 0 | AP22: =C137 -> 0 | AQ22: =C138 -> 0 | AR22: =C139 -> 0 | AS22: =C140 -> 0 | AT22: =C141 -> 0 | AU22: =C142 -> 0 | AV22: =C143 -> 0 | AW22: =C144 -> 0 | AY22: 0 | AZ22: 0 | BA22: 45.7028649 | BC22: 45.7028649 | BD22: 0 | BE22: 45.7028649 | BF22: 45.7028649 | BG22: 0 | BH22: 0 | BI22: 0 | BK22: 1932 | BL22: =D133 -> 0 | BM22: =D134 -> 0 | BN22: =D135 -> 46.09807788 | BO22: =D136 -> 0 | BP22: =D137 -> 0 | BQ22: =D138 -> 0 | BR22: =D139 -> 0 | BS22: =D140 -> 0 | BT22: =D141 -> 0 | BU22: =D142 -> 0 | BV22: =D143 -> 0 | BW22: =D144 -> 0 | BY22: 0 | BZ22: 0 | CA22: 46.09807788 | CC22: 46.09807788 | CD22: 0 | CE22: 46.09807788 | CF22: 46.09807788 | CG22: 0 | CH22: 0 | CI22: 0 | CK22: 1932 | CL22: =E133 -> 0 | CM22: =E134 -> 0 | CN22: =E135 -> 46.10832632 | CO22: =E136 -> 0 | CP22: =E137 -> 0 | CQ22: =E138 -> 0 | CR22: =E139 -> 0 | CS22: =E140 -> 0 | CT22: =E141 -> 0 | CU22: =E142 -> 0 | CV22: =E143 -> 0 | CW22: =E144 -> 0 | CY22: 0 | CZ22: 0 | DA22: 46.10832632 | DC22: 46.10832632 | DD22: 0 | DE22: 46.10832632 | DF22: 46.10832632 | DG22: 0 | DH22: 0 | DI22: 0 | DK22: 1932 | DL22: =F133 -> 0 | DM22: =F134 -> 0 | DN22: =F135 -> 46.10545975 | DO22: =F136 -> 0 | DP22: =F137 -> 0 | DQ22: =F138 -> 0 | DR22: =F139 -> 0 | DS22: =F140 -> 0 | DT22: =F141 -> 0 | DU22: =F142 -> 0 | DV22: =F143 -> 0 | DW22: =F144 -> 0 | DY22: 0 | DZ22: 0 | EA22: 46.10545975 | EC22: 46.10545975 | ED22: 0 | EE22: 46.10545975 | EF22: 46.10545975 | EG22: 0 | EH22: 0 | EI22: 0 | EK22: 1932 | EL22: =G133 ->  | EM22: =G134 ->  | EN22: =G135 ->  | EO22: =G136 ->  | EP22: =G137 ->  | EQ22: =G138 ->  | ER22: =G139 ->  | ES22: =G140 ->  | ET22: =G141 ->  | EU22: =G142 ->  | EV22: =G143 ->  | EW22: =G144 -> 
A23: 1922-08-31 | B23: =INDIRECT(CONCATENATE("'",B$1,"'!",B$4,(YEAR($A23)-1921)*12+MONTH($A23)+3+IF(ISNUMBER(FIND("PRV",B$6)),1,0)))*IF(AND(B$3>0,TRIM(B$9)="CFS"),Conversions!$C23,1) -> 0 | C23: =INDIRECT(CONCATENATE("'",C$1,"'!",C$4,(YEAR($A23)-1921)*12+MONTH($A23)+3+IF(ISNUMBER(FIND("PRV",C$6)),1,0)))*IF(AND(C$3>0,TRIM(C$9)="CFS"),Conversions!$C23,1) -> 0 | D23: =INDIRECT(CONCATENATE("'",D$1,"'!",D$4,(YEAR($A23)-1921)*12+MONTH($A23)+3+IF(ISNUMBER(FIND("PRV",D$6)),1,0)))*IF(AND(D$3>0,TRIM(D$9)="CFS"),Conversions!$C23,1) -> 0 | E23: =INDIRECT(CONCATENATE("'",E$1,"'!",E$4,(YEAR($A23)-1921)*12+MONTH($A23)+3+IF(ISNUMBER(FIND("PRV",E$6)),1,0)))*IF(AND(E$3>0,TRIM(E$9)="CFS"),Conversions!$C23,1) -> 0 | F23: =INDIRECT(CONCATENATE("'",F$1,"'!",F$4,(YEAR($A23)-1921)*12+MONTH($A23)+3+IF(ISNUMBER(FIND("PRV",F$6)),1,0)))*IF(AND(F$3>0,TRIM(F$9)="CFS"),Conversions!$C23,1) -> 0 | G23: =INDIRECT(CONCATENATE("'",G$1,"'!",G$4,(YEAR($A23)-1921)*12+MONTH($A23)+3+IF(ISNUMBER(FIND("PRV",G$6)),1,0)))*IF(AND(G$3>0,TRIM(G$9)="CFS"),Conversions!$C23,1) ->  | K23: 1933 | L23: =B145 -> 0 | M23: =B146 -> 0 | N23: =B147 -> 0 | O23: =B148 -> 0 | P23: =B149 -> 0 | Q23: =B150 -> 0 | R23: =B151 -> 0 | S23: =B152 -> 0 | T23: =B153 -> 0 | U23: =B154 -> 0 | V23: =B155 -> 0 | W23: =B156 -> 0 | Y23: 0 | Z23: 0 | AA23: 0 | AC23: 0 | AD23: 0 | AE23: 0 | AF23: 0 | AG23: 0 | AH23: 0 | AI23: 0 | AK23: 1933 | AL23: =C145 -> 0 | AM23: =C146 -> 0 | AN23: =C147 -> 0 | AO23: =C148 -> 0 | AP23: =C149 -> 0 | AQ23: =C150 -> 1.844266989 | AR23: =C151 -> 0 | AS23: =C152 -> 0 | AT23: =C153 -> 0 | AU23: =C154 -> 0 | AV23: =C155 -> 0 | AW23: =C156 -> 0 | AY23: 1.844266989 | AZ23: 9.687015167 | BA23: 1.844266989 | BC23: 1.844266989 | BD23: 0 | BE23: 0 | BF23: 0 | BG23: 1.844266989 | BH23: 0 | BI23: 0 | BK23: 1933 | BL23: =D145 -> 0 | BM23: =D146 -> 0 | BN23: =D147 -> 0 | BO23: =D148 -> 0 | BP23: =D149 -> 0 | BQ23: =D150 -> 0.007695745382 | BR23: =D151 -> 0 | BS23: =D152 -> 0 | BT23: =D153 -> 0 | BU23: =D154 -> 0 | BV23: =D155 -> 0 | BW23: =D156 -> 0 | BY23: 0.007695745382 | BZ23: 5.377320512 | CA23: 0.007695745382 | CC23: 0.007695745382 | CD23: 0 | CE23: 0 | CF23: 0 | CG23: 0.007695745382 | CH23: 0 | CI23: 0 | CK23: 1933 | CL23: =E145 -> 0 | CM23: =E146 -> 0 | CN23: =E147 -> 0 | CO23: =E148 -> 0 | CP23: =E149 -> 0 | CQ23: =E150 -> 0 | CR23: =E151 -> 0 | CS23: =E152 -> 0 | CT23: =E153 -> 0 | CU23: =E154 -> 0 | CV23: =E155 -> 0 | CW23: =E156 -> 0 | CY23: 0 | CZ23: 1.543471711 | DA23: 0 | DC23: 0 | DD23: 0 | DE23: 0 | DF23: 0 | DG23: 0 | DH23: 0 | DI23: 0 | DK23: 1933 | DL23: =F145 -> 0 | DM23: =F146 -> 0 | DN23: =F147 -> 0 | DO23: =F148 -> 0 | DP23: =F149 -> 0 | DQ23: =F150 -> 0 | DR23: =F151 -> 0 | DS23: =F152 -> 0 | DT23: =F153 -> 0 | DU23: =F154 -> 0 | DV23: =F155 -> 0 | DW23: =F156 -> 0 | DY23: 0 | DZ23: 0.2299417939 | EA23: 0 | EC23: 0 | ED23: 0 | EE23: 0 | EF23: 0 | EG23: 0 | EH23: 0 | EI23: 0 | EK23: 1933 | EL23: =G145 ->  | EM23: =G146 ->  | EN23: =G147 ->  | EO23: =G148 ->  | EP23: =G149 ->  | EQ23: =G150 ->  | ER23: =G151 ->  | ES23: =G152 ->  | ET23: =G153 ->  | EU23: =G154 ->  | EV23: =G155 ->  | EW23: =G156 -> 
A24: 1922-09-30 | B24: =INDIRECT(CONCATENATE("'",B$1,"'!",B$4,(YEAR($A24)-1921)*12+MONTH($A24)+3+IF(ISNUMBER(FIND("PRV",B$6)),1,0)))*IF(AND(B$3>0,TRIM(B$9)="CFS"),Conversions!$C24,1) -> 0 | C24: =INDIRECT(CONCATENATE("'",C$1,"'!",C$4,(YEAR($A24)-1921)*12+MONTH($A24)+3+IF(ISNUMBER(FIND("PRV",C$6)),1,0)))*IF(AND(C$3>0,TRIM(C$9)="CFS"),Conversions!$C24,1) -> 0 | D24: =INDIRECT(CONCATENATE("'",D$1,"'!",D$4,(YEAR($A24)-1921)*12+MONTH($A24)+3+IF(ISNUMBER(FIND("PRV",D$6)),1,0)))*IF(AND(D$3>0,TRIM(D$9)="CFS"),Conversions!$C24,1) -> 0 | E24: =INDIRECT(CONCATENATE("'",E$1,"'!",E$4,(YEAR($A24)-1921)*12+MONTH($A24)+3+IF(ISNUMBER(FIND("PRV",E$6)),1,0)))*IF(AND(E$3>0,TRIM(E$9)="CFS"),Conversions!$C24,1) -> 0 | F24: =INDIRECT(CONCATENATE("'",F$1,"'!",F$4,(YEAR($A24)-1921)*12+MONTH($A24)+3+IF(ISNUMBER(FIND("PRV",F$6)),1,0)))*IF(AND(F$3>0,TRIM(F$9)="CFS"),Conversions!$C24,1) -> 0 | G24: =INDIRECT(CONCATENATE("'",G$1,"'!",G$4,(YEAR($A24)-1921)*12+MONTH($A24)+3+IF(ISNUMBER(FIND("PRV",G$6)),1,0)))*IF(AND(G$3>0,TRIM(G$9)="CFS"),Conversions!$C24,1) ->  | K24: 1934 | L24: =B157 -> 0 | M24: =B158 -> 0 | N24: =B159 -> 0 | O24: =B160 -> 0 | P24: =B161 -> 0 | Q24: =B162 -> 0 | R24: =B163 -> 0 | S24: =B164 -> 0 | T24: =B165 -> 0 | U24: =B166 -> 0 | V24: =B167 -> 0 | W24: =B168 -> 0 | Y24: 0 | Z24: 0 | AA24: 0 | AC24: 0 | AD24: 0 | AE24: 0 | AF24: 0 | AG24: 0 | AH24: 0 | AI24: 0 | AK24: 1934 | AL24: =C157 -> 0 | AM24: =C158 -> 0 | AN24: =C159 -> 0 | AO24: =C160 -> 7.842748178 | AP24: =C161 -> 0 | AQ24: =C162 -> 0 | AR24: =C163 -> 0 | AS24: =C164 -> 0 | AT24: =C165 -> 0 | AU24: =C166 -> 0 | AV24: =C167 -> 0 | AW24: =C168 -> 0 | AY24: 7.842748178 | AZ24: 166.3044521 | BA24: 7.842748178 | BC24: 7.842748178 | BD24: 0 | BE24: 7.842748178 | BF24: 7.842748178 | BG24: 0 | BH24: 0 | BI24: 0 | BK24: 1934 | BL24: =D157 -> 0 | BM24: =D158 -> 0 | BN24: =D159 -> 0 | BO24: =D160 -> 0 | BP24: =D161 -> 5.369624766 | BQ24: =D162 -> 0 | BR24: =D163 -> 0 | BS24: =D164 -> 0 | BT24: =D165 -> 0 | BU24: =D166 -> 0 | BV24: =D167 -> 0 | BW24: =D168 -> 0 | BY24: 5.369624766 | BZ24: 166.3044521 | CA24: 5.369624766 | CC24: 5.369624766 | CD24: 0 | CE24: 0 | CF24: 5.369624766 | CG24: 0 | CH24: 0 | CI24: 0 | CK24: 1934 | CL24: =E157 -> 0 | CM24: =E158 -> 0 | CN24: =E159 -> 0 | CO24: =E160 -> 0 | CP24: =E161 -> 1.543471711 | CQ24: =E162 -> 0 | CR24: =E163 -> 0 | CS24: =E164 -> 0 | CT24: =E165 -> 0 | CU24: =E166 -> 0 | CV24: =E167 -> 0 | CW24: =E168 -> 0 | CY24: 1.543471711 | CZ24: 166.3044521 | DA24: 1.543471711 | DC24: 1.543471711 | DD24: 0 | DE24: 0 | DF24: 1.543471711 | DG24: 0 | DH24: 0 | DI24: 0 | DK24: 1934 | DL24: =F157 -> 0 | DM24: =F158 -> 0 | DN24: =F159 -> 0 | DO24: =F160 -> 0 | DP24: =F161 -> 0.2299417939 | DQ24: =F162 -> 0 | DR24: =F163 -> 0 | DS24: =F164 -> 0 | DT24: =F165 -> 0 | DU24: =F166 -> 0 | DV24: =F167 -> 0 | DW24: =F168 -> 0 | DY24: 0.2299417939 | DZ24: 166.3044521 | EA24: 0.2299417939 | EC24: 0.2299417939 | ED24: 0 | EE24: 0 | EF24: 0.2299417939 | EG24: 0 | EH24: 0 | EI24: 0 | EK24: 1934 | EL24: =G157 ->  | EM24: =G158 ->  | EN24: =G159 ->  | EO24: =G160 ->  | EP24: =G161 ->  | EQ24: =G162 ->  | ER24: =G163 ->  | ES24: =G164 ->  | ET24: =G165 ->  | EU24: =G166 ->  | EV24: =G167 ->  | EW24: =G168 -> 
A25: 1922-10-31 | B25: =INDIRECT(CONCATENATE("'",B$1,"'!",B$4,(YEAR($A25)-1921)*12+MONTH($A25)+3+IF(ISNUMBER(FIND("PRV",B$6)),1,0)))*IF(AND(B$3>0,TRIM(B$9)="CFS"),Conversions!$C25,1) -> 0 | C25: =INDIRECT(CONCATENATE("'",C$1,"'!",C$4,(YEAR($A25)-1921)*12+MONTH($A25)+3+IF(ISNUMBER(FIND("PRV",C$6)),1,0)))*IF(AND(C$3>0,TRIM(C$9)="CFS"),Conversions!$C25,1) -> 0 | D25: =INDIRECT(CONCATENATE("'",D$1,"'!",D$4,(YEAR($A25)-1921)*12+MONTH($A25)+3+IF(ISNUMBER(FIND("PRV",D$6)),1,0)))*IF(AND(D$3>0,TRIM(D$9)="CFS"),Conversions!$C25,1) -> 0 | E25: =INDIRECT(CONCATENATE("'",E$1,"'!",E$4,(YEAR($A25)-1921)*12+MONTH($A25)+3+IF(ISNUMBER(FIND("PRV",E$6)),1,0)))*IF(AND(E$3>0,TRIM(E$9)="CFS"),Conversions!$C25,1) -> 0 | F25: =INDIRECT(CONCATENATE("'",F$1,"'!",F$4,(YEAR($A25)-1921)*12+MONTH($A25)+3+IF(ISNUMBER(FIND("PRV",F$6)),1,0)))*IF(AND(F$3>0,TRIM(F$9)="CFS"),Conversions!$C25,1) -> 0 | G25: =INDIRECT(CONCATENATE("'",G$1,"'!",G$4,(YEAR($A25)-1921)*12+MONTH($A25)+3+IF(ISNUMBER(FIND("PRV",G$6)),1,0)))*IF(AND(G$3>0,TRIM(G$9)="CFS"),Conversions!$C25,1) ->  | K25: 1935 | L25: =B169 -> 0 | M25: =B170 -> 0 | N25: =B171 -> 0 | O25: =B172 -> 0 | P25: =B173 -> 0 | Q25: =B174 -> 0 | R25: =B175 -> 0 | S25: =B176 -> 0 | T25: =B177 -> 0 | U25: =B178 -> 0 | V25: =B179 -> 0 | W25: =B180 -> 0 | Y25: 0 | Z25: 0 | AA25: 0 | AC25: 0 | AD25: 0 | AE25: 0 | AF25: 0 | AG25: 0 | AH25: 0 | AI25: 0 | AK25: 1935 | AL25: =C169 -> 0 | AM25: =C170 -> 0 | AN25: =C171 -> 0 | AO25: =C172 -> 166.3044521 | AP25: =C173 -> 0 | AQ25: =C174 -> 76.05961333 | AR25: =C175 -> 201.1239669 | AS25: =C176 -> 0 | AT25: =C177 -> 0 | AU25: =C178 -> 0 | AV25: =C179 -> 0 | AW25: =C180 -> 0 | AY25: 443.4880324 | AZ25: 483.4788909 | BA25: 443.4880324 | BC25: 242.3640655 | BD25: 0 | BE25: 166.3044521 | BF25: 166.3044521 | BG25: 277.1835803 | BH25: 0 | BI25: 0 | BK25: 1935 | BL25: =D169 -> 0 | BM25: =D170 -> 0 | BN25: =D171 -> 0 | BO25: =D172 -> 166.3044521 | BP25: =D173 -> 0 | BQ25: =D174 -> 76.05834197 | BR25: =D175 -> 201.1239669 | BS25: =D176 -> 0 | BT25: =D177 -> 0 | BU25: =D178 -> 0 | BV25: =D179 -> 0 | BW25: =D180 -> 0 | BY25: 443.4867611 | BZ25: 484.4065257 | CA25: 443.4867611 | CC25: 242.3627941 | CD25: 0 | CE25: 166.3044521 | CF25: 166.3044521 | CG25: 277.1823089 | CH25: 0 | CI25: 0 | CK25: 1935 | CL25: =E169 -> 0 | CM25: =E170 -> 0 | CN25: =E171 -> 0 | CO25: =E172 -> 166.3044521 | CP25: =E173 -> 0 | CQ25: =E174 -> 76.05420688 | CR25: =E175 -> 201.1239669 | CS25: =E176 -> 0 | CT25: =E177 -> 0 | CU25: =E178 -> 0 | CV25: =E179 -> 0 | CW25: =E180 -> 0 | CY25: 443.482626 | CZ25: 482.7574675 | DA25: 443.482626 | DC25: 242.358659 | DD25: 0 | DE25: 166.3044521 | DF25: 166.3044521 | DG25: 277.1781738 | DH25: 0 | DI25: 0 | DK25: 1935 | DL25: =F169 -> 0 | DM25: =F170 -> 0 | DN25: =F171 -> 0 | DO25: =F172 -> 166.3044521 | DP25: =F173 -> 0 | DQ25: =F174 -> 76.05378929 | DR25: =F175 -> 201.1239669 | DS25: =F176 -> 0 | DT25: =F177 -> 0 | DU25: =F178 -> 0 | DV25: =F179 -> 0 | DW25: =F180 -> 0 | DY25: 443.4822084 | DZ25: 483.3623919 | EA25: 443.4822084 | EC25: 242.3582414 | ED25: 0 | EE25: 166.3044521 | EF25: 166.3044521 | EG25: 277.1777562 | EH25: 0 | EI25: 0 | EK25: 1935 | EL25: =G169 ->  | EM25: =G170 ->  | EN25: =G171 ->  | EO25: =G172 ->  | EP25: =G173 ->  | EQ25: =G174 ->  | ER25: =G175 ->  | ES25: =G176 ->  | ET25: =G177 ->  | EU25: =G178 ->  | EV25: =G179 ->  | EW25: =G180 -> 
A26: 1922-11-30 | B26: =INDIRECT(CONCATENATE("'",B$1,"'!",B$4,(YEAR($A26)-1921)*12+MONTH($A26)+3+IF(ISNUMBER(FIND("PRV",B$6)),1,0)))*IF(AND(B$3>0,TRIM(B$9)="CFS"),Conversions!$C26,1) -> 0 | C26: =INDIRECT(CONCATENATE("'",C$1,"'!",C$4,(YEAR($A26)-1921)*12+MONTH($A26)+3+IF(ISNUMBER(FIND("PRV",C$6)),1,0)))*IF(AND(C$3>0,TRIM(C$9)="CFS"),Conversions!$C26,1) -> 0 | D26: =INDIRECT(CONCATENATE("'",D$1,"'!",D$4,(YEAR($A26)-1921)*12+MONTH($A26)+3+IF(ISNUMBER(FIND("PRV",D$6)),1,0)))*IF(AND(D$3>0,TRIM(D$9)="CFS"),Conversions!$C26,1) -> 0 | E26: =INDIRECT(CONCATENATE("'",E$1,"'!",E$4,(YEAR($A26)-1921)*12+MONTH($A26)+3+IF(ISNUMBER(FIND("PRV",E$6)),1,0)))*IF(AND(E$3>0,TRIM(E$9)="CFS"),Conversions!$C26,1) -> 0 | F26: =INDIRECT(CONCATENATE("'",F$1,"'!",F$4,(YEAR($A26)-1921)*12+MONTH($A26)+3+IF(ISNUMBER(FIND("PRV",F$6)),1,0)))*IF(AND(F$3>0,TRIM(F$9)="CFS"),Conversions!$C26,1) -> 0 | G26: =INDIRECT(CONCATENATE("'",G$1,"'!",G$4,(YEAR($A26)-1921)*12+MONTH($A26)+3+IF(ISNUMBER(FIND("PRV",G$6)),1,0)))*IF(AND(G$3>0,TRIM(G$9)="CFS"),Conversions!$C26,1) ->  | K26: 1936 | L26: =B181 -> 0 | M26: =B182 -> 0 | N26: =B183 -> 0 | O26: =B184 -> 0 | P26: =B185 -> 0 | Q26: =B186 -> 0 | R26: =B187 -> 0 | S26: =B188 -> 0 | T26: =B189 -> 0 | U26: =B190 -> 0 | V26: =B191 -> 0 | W26: =B192 -> 0 | Y26: 0 | Z26: 0 | AA26: 0 | AC26: 0 | AD26: 0 | AE26: 0 | AF26: 0 | AG26: 0 | AH26: 0 | AI26: 0 | AK26: 1936 | AL26: =C181 -> 0 | AM26: =C182 -> 0 | AN26: =C183 -> 0 | AO26: =C184 -> 57.78120408 | AP26: =C185 -> 148.5141066 | AQ26: =C186 -> 0 | AR26: =C187 -> 0 | AS26: =C188 -> 0 | AT26: =C189 -> 0 | AU26: =C190 -> 0 | AV26: =C191 -> 0 | AW26: =C192 -> 0 | AY26: 206.2953107 | AZ26: 75.91278254 | BA26: 206.2953107 | BC26: 206.2953107 | BD26: 0 | BE26: 57.78120408 | BF26: 206.2953107 | BG26: 0 | BH26: 0 | BI26: 0 | BK26: 1936 | BL26: =D181 -> 0 | BM26: =D182 -> 0 | BN26: =D183 -> 0 | BO26: =D184 -> 58.7101102 | BP26: =D185 -> 148.5141066 | BQ26: =D186 -> 0 | BR26: =D187 -> 0 | BS26: =D188 -> 0 | BT26: =D189 -> 0 | BU26: =D190 -> 0 | BV26: =D191 -> 0 | BW26: =D192 -> 0 | BY26: 207.2242168 | BZ26: 75.88139856 | CA26: 207.2242168 | CC26: 207.2242168 | CD26: 0 | CE26: 58.7101102 | CF26: 207.2242168 | CG26: 0 | CH26: 0 | CI26: 0 | CK26: 1936 | CL26: =E181 -> 0 | CM26: =E182 -> 0 | CN26: =E183 -> 0 | CO26: =E184 -> 57.06518713 | CP26: =E185 -> 148.5141066 | CQ26: =E186 -> 0 | CR26: =E187 -> 0 | CS26: =E188 -> 0 | CT26: =E189 -> 0 | CU26: =E190 -> 0 | CV26: =E191 -> 0 | CW26: =E192 -> 0 | CY26: 205.5792937 | CZ26: 75.36593274 | DA26: 205.5792937 | DC26: 205.5792937 | DD26: 0 | DE26: 57.06518713 | DF26: 205.5792937 | DG26: 0 | DH26: 0 | DI26: 0 | DK26: 1936 | DL26: =F181 -> 0 | DM26: =F182 -> 0 | DN26: =F183 -> 0 | DO26: =F184 -> 57.6705291 | DP26: =F185 -> 148.5141066 | DQ26: =F186 -> 0 | DR26: =F187 -> 0 | DS26: =F188 -> 0 | DT26: =F189 -> 0 | DU26: =F190 -> 0 | DV26: =F191 -> 0 | DW26: =F192 -> 0 | DY26: 206.1846357 | DZ26: 75.36613999 | EA26: 206.1846357 | EC26: 206.1846357 | ED26: 0 | EE26: 57.6705291 | EF26: 206.1846357 | EG26: 0 | EH26: 0 | EI26: 0 | EK26: 1936 | EL26: =G181 ->  | EM26: =G182 ->  | EN26: =G183 ->  | EO26: =G184 ->  | EP26: =G185 ->  | EQ26: =G186 ->  | ER26: =G187 ->  | ES26: =G188 ->  | ET26: =G189 ->  | EU26: =G190 ->  | EV26: =G191 ->  | EW26: =G192 -> 
A27: 1922-12-31 | B27: =INDIRECT(CONCATENATE("'",B$1,"'!",B$4,(YEAR($A27)-1921)*12+MONTH($A27)+3+IF(ISNUMBER(FIND("PRV",B$6)),1,0)))*IF(AND(B$3>0,TRIM(B$9)="CFS"),Conversions!$C27,1) -> 0 | C27: =INDIRECT(CONCATENATE("'",C$1,"'!",C$4,(YEAR($A27)-1921)*12+MONTH($A27)+3+IF(ISNUMBER(FIND("PRV",C$6)),1,0)))*IF(AND(C$3>0,TRIM(C$9)="CFS"),Conversions!$C27,1) -> 141.1763879 | D27: =INDIRECT(CONCATENATE("'",D$1,"'!",D$4,(YEAR($A27)-1921)*12+MONTH($A27)+3+IF(ISNUMBER(FIND("PRV",D$6)),1,0)))*IF(AND(D$3>0,TRIM(D$9)="CFS"),Conversions!$C27,1) -> 141.173029 | E27: =INDIRECT(CONCATENATE("'",E$1,"'!",E$4,(YEAR($A27)-1921)*12+MONTH($A27)+3+IF(ISNUMBER(FIND("PRV",E$6)),1,0)))*IF(AND(E$3>0,TRIM(E$9)="CFS"),Conversions!$C27,1) -> 139.767691 | F27: =INDIRECT(CONCATENATE("'",F$1,"'!",F$4,(YEAR($A27)-1921)*12+MONTH($A27)+3+IF(ISNUMBER(FIND("PRV",F$6)),1,0)))*IF(AND(F$3>0,TRIM(F$9)="CFS"),Conversions!$C27,1) -> 139.767691 | G27: =INDIRECT(CONCATENATE("'",G$1,"'!",G$4,(YEAR($A27)-1921)*12+MONTH($A27)+3+IF(ISNUMBER(FIND("PRV",G$6)),1,0)))*IF(AND(G$3>0,TRIM(G$9)="CFS"),Conversions!$C27,1) ->  | K27: 1937 | L27: =B193 -> 0 | M27: =B194 -> 0 | N27: =B195 -> 0 | O27: =B196 -> 0 | P27: =B197 -> 0 | Q27: =B198 -> 0 | R27: =B199 -> 0 | S27: =B200 -> 0 | T27: =B201 -> 0 | U27: =B202 -> 0 | V27: =B203 -> 0 | W27: =B204 -> 0 | Y27: 0 | Z27: 0 | AA27: 0 | AC27: 0 | AD27: 0 | AE27: 0 | AF27: 0 | AG27: 0 | AH27: 0 | AI27: 0 | AK27: 1937 | AL27: =C193 -> 0 | AM27: =C194 -> 0 | AN27: =C195 -> 0 | AO27: =C196 -> 0 | AP27: =C197 -> 75.91278254 | AQ27: =C198 -> 219.162859 | AR27: =C199 -> 0 | AS27: =C200 -> 0 | AT27: =C201 -> 0 | AU27: =C202 -> 0 | AV27: =C203 -> 0 | AW27: =C204 -> 0 | AY27: 568.9043404 | AZ27: 717.9801767 | BA27: 295.0756416 | BC27: 295.0756416 | BD27: 0 | BE27: 0 | BF27: 75.91278254 | BG27: 219.162859 | BH27: 0 | BI27: 125.5757463 | BK27: 1937 | BL27: =D193 -> 0 | BM27: =D194 -> 0 | BN27: =D195 -> 0 | BO27: =D196 -> 0 | BP27: =D197 -> 75.88139856 | BQ27: =D198 -> 219.1527078 | BR27: =D199 -> 0 | BS27: =D200 -> 0 | BT27: =D201 -> 0 | BU27: =D202 -> 0 | BV27: =D203 -> 0 | BW27: =D204 -> 0 | BY27: 569.1149988 | BZ27: 718.1543308 | CA27: 295.0341064 | CC27: 295.0341064 | CD27: 0 | CE27: 0 | CF27: 75.88139856 | CG27: 219.1527078 | CH27: 0 | CI27: 125.9752512 | CK27: 1937 | CL27: =E193 -> 0 | CM27: =E194 -> 0 | CN27: =E195 -> 0 | CO27: =E196 -> 0 | CP27: =E197 -> 75.36593274 | CQ27: =E198 -> 218.8383339 | CR27: =E199 -> 0 | CS27: =E200 -> 0 | CT27: =E201 -> 0 | CU27: =E202 -> 0 | CV27: =E203 -> 0 | CW27: =E204 -> 0 | CY27: 561.3354641 | CZ27: 710.7364783 | DA27: 294.2042667 | DC27: 294.2042667 | DD27: 0 | DE27: 0 | DF27: 75.36593274 | DG27: 218.8383339 | DH27: 0 | DI27: 119.1082112 | DK27: 1937 | DL27: =F193 -> 0 | DM27: =F194 -> 0 | DN27: =F195 -> 0 | DO27: =F196 -> 0 | DP27: =F197 -> 75.36613999 | DQ27: =F198 -> 218.8385638 | DR27: =F199 -> 0 | DS27: =F200 -> 0 | DT27: =F201 -> 0 | DU27: =F202 -> 0 | DV27: =F203 -> 0 | DW27: =F204 -> 0 | DY27: 561.3426704 | DZ27: 710.7437864 | EA27: 294.2047038 | EC27: 294.2047038 | ED27: 0 | EE27: 0 | EF27: 75.36613999 | EG27: 218.8385638 | EH27: 0 | EI27: 119.1146607 | EK27: 1937 | EL27: =G193 ->  | EM27: =G194 ->  | EN27: =G195 ->  | EO27: =G196 ->  | EP27: =G197 ->  | EQ27: =G198 ->  | ER27: =G199 ->  | ES27: =G200 ->  | ET27: =G201 ->  | EU27: =G202 ->  | EV27: =G203 ->  | EW27: =G204 -> 
A28: 1923-01-31 | B28: =INDIRECT(CONCATENATE("'",B$1,"'!",B$4,(YEAR($A28)-1921)*12+MONTH($A28)+3+IF(ISNUMBER(FIND("PRV",B$6)),1,0)))*IF(AND(B$3>0,TRIM(B$9)="CFS"),Conversions!$C28,1) -> 0 | C28: =INDIRECT(CONCATENATE("'",C$1,"'!",C$4,(YEAR($A28)-1921)*12+MONTH($A28)+3+IF(ISNUMBER(FIND("PRV",C$6)),1,0)))*IF(AND(C$3>0,TRIM(C$9)="CFS"),Conversions!$C28,1) -> 35.87445927 | D28: =INDIRECT(CONCATENATE("'",D$1,"'!",D$4,(YEAR($A28)-1921)*12+MONTH($A28)+3+IF(ISNUMBER(FIND("PRV",D$6)),1,0)))*IF(AND(D$3>0,TRIM(D$9)="CFS"),Conversions!$C28,1) -> 35.87220587 | E28: =INDIRECT(CONCATENATE("'",E$1,"'!",E$4,(YEAR($A28)-1921)*12+MONTH($A28)+3+IF(ISNUMBER(FIND("PRV",E$6)),1,0)))*IF(AND(E$3>0,TRIM(E$9)="CFS"),Conversions!$C28,1) -> 34.83072276 | F28: =INDIRECT(CONCATENATE("'",F$1,"'!",F$4,(YEAR($A28)-1921)*12+MONTH($A28)+3+IF(ISNUMBER(FIND("PRV",F$6)),1,0)))*IF(AND(F$3>0,TRIM(F$9)="CFS"),Conversions!$C28,1) -> 34.83072276 | G28: =INDIRECT(CONCATENATE("'",G$1,"'!",G$4,(YEAR($A28)-1921)*12+MONTH($A28)+3+IF(ISNUMBER(FIND("PRV",G$6)),1,0)))*IF(AND(G$3>0,TRIM(G$9)="CFS"),Conversions!$C28,1) ->  | K28: 1938 | L28: =B205 -> 0 | M28: =B206 -> 0 | N28: =B207 -> 0 | O28: =B208 -> 0 | P28: =B209 -> 0 | Q28: =B210 -> 0 | R28: =B211 -> 0 | S28: =B212 -> 0 | T28: =B213 -> 0 | U28: =B214 -> 0 | V28: =B215 -> 0 | W28: =B216 -> 0 | Y28: 0 | Z28: 0 | AA28: 0 | AC28: 0 | AD28: 0 | AE28: 0 | AF28: 0 | AG28: 0 | AH28: 0 | AI28: 0 | AK28: 1938 | AL28: =C205 -> 0 | AM28: =C206 -> 125.5757463 | AN28: =C207 -> 148.2529525 | AO28: =C208 -> 35.717875 | AP28: =C209 -> 189.2707438 | AQ28: =C210 -> 213.9292562 | AR28: =C211 -> 218.0804457 | AS28: =C212 -> 0 | AT28: =C213 -> 0 | AU28: =C214 -> 0 | AV28: =C215 -> 0 | AW28: =C216 -> 0.0003542054482 | AY28: 656.9986749 | AZ28: 432.0100561 | BA28: 930.8273737 | BC28: 712.7465739 | BD28: 0.0003542054482 | BE28: 309.5465739 | BF28: 373.2415713 | BG28: 432.0097019 | BH28: 0.0003542054482 | BI28: 0.0003542054482 | BK28: 1938 | BL28: =D205 -> 0 | BM28: =D206 -> 125.9752512 | BN28: =D207 -> 148.1056412 | BO28: =D208 -> 35.64998675 | BP28: =D209 -> 189.2707438 | BQ28: =D210 -> 213.9292562 | BR28: =D211 -> 218.0804457 | BS28: =D212 -> 0 | BT28: =D213 -> 0 | BU28: =D214 -> 0 | BV28: =D215 -> 0 | BW28: =D216 -> 0.0003392499363 | BY28: 656.9307717 | BZ28: 432.0100411 | CA28: 931.0116641 | CC28: 712.9308791 | CD28: 0.0003392499363 | CE28: 309.7308791 | CF28: 373.0263717 | CG28: 432.0097019 | CH28: 0.0003392499363 | CI28: 0.0003392499363 | CK28: 1938 | CL28: =E205 -> 0 | CM28: =E206 -> 119.1082112 | CN28: =E207 -> 148.0229863 | CO28: =E208 -> 35.49620308 | CP28: =E209 -> 189.2707438 | CQ28: =E210 -> 213.9292562 | CR28: =E211 -> 218.0804457 | CS28: =E212 -> 0 | CT28: =E213 -> 0 | CU28: =E214 -> 0 | CV28: =E215 -> 0 | CW28: =E216 -> 0.000326662732 | CY28: 656.7769754 | CZ28: 432.0100285 | DA28: 923.9081729 | DC28: 705.8274005 | DD28: 0.000326662732 | DE28: 302.6274005 | DF28: 372.7899332 | DG28: 432.0097019 | DH28: 0.000326662732 | DI28: 0.000326662732 | DK28: 1938 | DL28: =F205 -> 0 | DM28: =F206 -> 119.1146607 | DN28: =F207 -> 148.0233059 | DO28: =F208 -> 35.49651219 | DP28: =F209 -> 189.2707438 | DQ28: =F210 -> 213.9292562 | DR28: =F211 -> 218.0804457 | DS28: =F212 -> 0 | DT28: =F213 -> 0 | DU28: =F214 -> 0 | DV28: =F215 -> 0 | DW28: =F216 -> 0.0003266052174 | DY28: 656.7772845 | DZ28: 432.0100285 | EA28: 923.9152511 | EC28: 705.8344788 | ED28: 0.0003266052174 | EE28: 302.6344788 | EF28: 372.7905619 | EG28: 432.0097019 | EH28: 0.0003266052174 | EI28: 0.0003266052174 | EK28: 1938 | EL28: =G205 ->  | EM28: =G206 ->  | EN28: =G207 ->  | EO28: =G208 ->  | EP28: =G209 ->  | EQ28: =G210 ->  | ER28: =G211 ->  | ES28: =G212 ->  | ET28: =G213 ->  | EU28: =G214 ->  | EV28: =G215 ->  | EW28: =G216 -> 
A29: 1923-02-28 | B29: =INDIRECT(CONCATENATE("'",B$1,"'!",B$4,(YEAR($A29)-1921)*12+MONTH($A29)+3+IF(ISNUMBER(FIND("PRV",B$6)),1,0)))*IF(AND(B$3>0,TRIM(B$9)="CFS"),Conversions!$C29,1) -> 0 | C29: =INDIRECT(CONCATENATE("'",C$1,"'!",C$4,(YEAR($A29)-1921)*12+MONTH($A29)+3+IF(ISNUMBER(FIND("PRV",C$6)),1,0)))*IF(AND(C$3>0,TRIM(C$9)="CFS"),Conversions!$C29,1) -> 0 | D29: =INDIRECT(CONCATENATE("'",D$1,"'!",D$4,(YEAR($A29)-1921)*12+MONTH($A29)+3+IF(ISNUMBER(FIND("PRV",D$6)),1,0)))*IF(AND(D$3>0,TRIM(D$9)="CFS"),Conversions!$C29,1) -> 0 | E29: =INDIRECT(CONCATENATE("'",E$1,"'!",E$4,(YEAR($A29)-1921)*12+MONTH($A29)+3+IF(ISNUMBER(FIND("PRV",E$6)),1,0)))*IF(AND(E$3>0,TRIM(E$9)="CFS"),Conversions!$C29,1) -> 0 | F29: =INDIRECT(CONCATENATE("'",F$1,"'!",F$4,(YEAR($A29)-1921)*12+MONTH($A29)+3+IF(ISNUMBER(FIND("PRV",F$6)),1,0)))*IF(AND(F$3>0,TRIM(F$9)="CFS"),Conversions!$C29,1) -> 0 | G29: =INDIRECT(CONCATENATE("'",G$1,"'!",G$4,(YEAR($A29)-1921)*12+MONTH($A29)+3+IF(ISNUMBER(FIND("PRV",G$6)),1,0)))*IF(AND(G$3>0,TRIM(G$9)="CFS"),Conversions!$C29,1) ->  | K29: 1939 | L29: =B217 -> 0 | M29: =B218 -> 0 | N29: =B219 -> 0 | O29: =B220 -> 0 | P29: =B221 -> 0 | Q29: =B222 -> 0 | R29: =B223 -> 0 | S29: =B224 -> 0 | T29: =B225 -> 0 | U29: =B226 -> 0 | V29: =B227 -> 0 | W29: =B228 -> 0 | Y29: 0 | Z29: 0 | AA29: 0 | AC29: 0 | AD29: 0 | AE29: 0 | AF29: 0 | AG29: 0 | AH29: 0 | AI29: 0 | AK29: 1939 | AL29: =C217 -> 0 | AM29: =C218 -> 0 | AN29: =C219 -> 0 | AO29: =C220 -> 0 | AP29: =C221 -> 0 | AQ29: =C222 -> 0 | AR29: =C223 -> 0 | AS29: =C224 -> 0 | AT29: =C225 -> 0 | AU29: =C226 -> 0 | AV29: =C227 -> 0 | AW29: =C228 -> 0 | AY29: 0 | AZ29: 376.9790193 | BA29: 0 | BC29: 0 | BD29: 0 | BE29: 0 | BF29: 0 | BG29: 0 | BH29: 0 | BI29: 0 | BK29: 1939 | BL29: =D217 -> 0 | BM29: =D218 -> 0 | BN29: =D219 -> 0 | BO29: =D220 -> 0 | BP29: =D221 -> 0 | BQ29: =D222 -> 0 | BR29: =D223 -> 0 | BS29: =D224 -> 0 | BT29: =D225 -> 0 | BU29: =D226 -> 0 | BV29: =D227 -> 0 | BW29: =D228 -> 0 | BY29: 0 | BZ29: 377.0334283 | CA29: 0 | CC29: 0 | CD29: 0 | CE29: 0 | CF29: 0 | CG29: 0 | CH29: 0 | CI29: 0 | CK29: 1939 | CL29: =E217 -> 0 | CM29: =E218 -> 0 | CN29: =E219 -> 0 | CO29: =E220 -> 0 | CP29: =E221 -> 0 | CQ29: =E222 -> 0 | CR29: =E223 -> 0 | CS29: =E224 -> 0 | CT29: =E225 -> 0 | CU29: =E226 -> 0 | CV29: =E227 -> 0 | CW29: =E228 -> 0 | CY29: 0 | CZ29: 377.1256739 | DA29: 0 | DC29: 0 | DD29: 0 | DE29: 0 | DF29: 0 | DG29: 0 | DH29: 0 | DI29: 0 | DK29: 1939 | DL29: =F217 -> 0 | DM29: =F218 -> 0 | DN29: =F219 -> 0 | DO29: =F220 -> 0 | DP29: =F221 -> 0 | DQ29: =F222 -> 0 | DR29: =F223 -> 0 | DS29: =F224 -> 0 | DT29: =F225 -> 0 | DU29: =F226 -> 0 | DV29: =F227 -> 0 | DW29: =F228 -> 0 | DY29: 0 | DZ29: 377.1258887 | EA29: 0 | EC29: 0 | ED29: 0 | EE29: 0 | EF29: 0 | EG29: 0 | EH29: 0 | EI29: 0 | EK29: 1939 | EL29: =G217 ->  | EM29: =G218 ->  | EN29: =G219 ->  | EO29: =G220 ->  | EP29: =G221 ->  | EQ29: =G222 ->  | ER29: =G223 ->  | ES29: =G224 ->  | ET29: =G225 ->  | EU29: =G226 ->  | EV29: =G227 ->  | EW29: =G228 -> 
A30: 1923-03-31 | B30: =INDIRECT(CONCATENATE("'",B$1,"'!",B$4,(YEAR($A30)-1921)*12+MONTH($A30)+3+IF(ISNUMBER(FIND("PRV",B$6)),1,0)))*IF(AND(B$3>0,TRIM(B$9)="CFS"),Conversions!$C30,1) -> 0 | C30: =INDIRECT(CONCATENATE("'",C$1,"'!",C$4,(YEAR($A30)-1921)*12+MONTH($A30)+3+IF(ISNUMBER(FIND("PRV",C$6)),1,0)))*IF(AND(C$3>0,TRIM(C$9)="CFS"),Conversions!$C30,1) -> 0 | D30: =INDIRECT(CONCATENATE("'",D$1,"'!",D$4,(YEAR($A30)-1921)*12+MONTH($A30)+3+IF(ISNUMBER(FIND("PRV",D$6)),1,0)))*IF(AND(D$3>0,TRIM(D$9)="CFS"),Conversions!$C30,1) -> 0 | E30: =INDIRECT(CONCATENATE("'",E$1,"'!",E$4,(YEAR($A30)-1921)*12+MONTH($A30)+3+IF(ISNUMBER(FIND("PRV",E$6)),1,0)))*IF(AND(E$3>0,TRIM(E$9)="CFS"),Conversions!$C30,1) -> 0 | F30: =INDIRECT(CONCATENATE("'",F$1,"'!",F$4,(YEAR($A30)-1921)*12+MONTH($A30)+3+IF(ISNUMBER(FIND("PRV",F$6)),1,0)))*IF(AND(F$3>0,TRIM(F$9)="CFS"),Conversions!$C30,1) -> 0 | G30: =INDIRECT(CONCATENATE("'",G$1,"'!",G$4,(YEAR($A30)-1921)*12+MONTH($A30)+3+IF(ISNUMBER(FIND("PRV",G$6)),1,0)))*IF(AND(G$3>0,TRIM(G$9)="CFS"),Conversions!$C30,1) ->  | K30: 1940 | L30: =B229 -> 0 | M30: =B230 -> 0 | N30: =B231 -> 0 | O30: =B232 -> 0 | P30: =B233 -> 0 | Q30: =B234 -> 0 | R30: =B235 -> 0 | S30: =B236 -> 0 | T30: =B237 -> 0 | U30: =B238 -> 0 | V30: =B239 -> 0 | W30: =B240 -> 0 | Y30: 0 | Z30: 0 | AA30: 0 | AC30: 0 | AD30: 0 | AE30: 0 | AF30: 0 | AG30: 0 | AH30: 0 | AI30: 0 | AK30: 1940 | AL30: =C229 -> 0 | AM30: =C230 -> 0 | AN30: =C231 -> 0 | AO30: =C232 -> 183.5429863 | AP30: =C233 -> 193.4360331 | AQ30: =C234 -> 213.9292562 | AR30: =C235 -> 212.8658494 | AS30: =C236 -> 0 | AT30: =C237 -> 0 | AU30: =C238 -> 0 | AV30: =C239 -> 0 | AW30: =C240 -> 0 | AY30: 883.8663194 | AZ30: 899.7811844 | BA30: 803.7741249 | BC30: 590.9082755 | BD30: 0 | BE30: 183.5429863 | BF30: 376.9790193 | BG30: 426.7951056 | BH30: 0 | BI30: 0 | BK30: 1940 | BL30: =D229 -> 0 | BM30: =D230 -> 0 | BN30: =D231 -> 0 | BO30: =D232 -> 183.5973952 | BP30: =D233 -> 193.4360331 | BQ30: =D234 -> 213.9292562 | BR30: =D235 -> 212.8063103 | BS30: =D236 -> 0 | BT30: =D237 -> 0 | BU30: =D238 -> 0 | BV30: =D239 -> 0 | BW30: =D240 -> 0 | BY30: 839.1054838 | BZ30: 854.9659398 | CA30: 803.7689948 | CC30: 590.9626845 | CD30: 0 | CE30: 183.5973952 | CF30: 377.0334283 | CG30: 426.7355665 | CH30: 0 | CI30: 0 | CK30: 1940 | CL30: =E229 -> 0 | CM30: =E230 -> 0 | CN30: =E231 -> 0 | CO30: =E232 -> 183.6896408 | CP30: =E233 -> 193.4360331 | CQ30: =E234 -> 213.9292562 | CR30: =E235 -> 212.6613547 | CS30: =E236 -> 0 | CT30: =E237 -> 0 | CU30: =E238 -> 0 | CV30: =E239 -> 0 | CW30: =E240 -> 0 | CY30: 812.0658797 | CZ30: 827.8340901 | DA30: 803.7162847 | DC30: 591.0549301 | DD30: 0 | DE30: 183.6896408 | DF30: 377.1256739 | DG30: 426.5906109 | DH30: 0 | DI30: 0 | DK30: 1940 | DL30: =F229 -> 0 | DM30: =F230 -> 0 | DN30: =F231 -> 0 | DO30: =F232 -> 183.6898556 | DP30: =F233 -> 193.4360331 | DQ30: =F234 -> 213.9292562 | DR30: =F235 -> 212.661403 | DS30: =F236 -> 0 | DT30: =F237 -> 0 | DU30: =F238 -> 0 | DV30: =F239 -> 0 | DW30: =F240 -> 0 | DY30: 812.0664344 | DZ30: 827.83443 | EA30: 803.7165478 | EC30: 591.0551449 | ED30: 0 | EE30: 183.6898556 | EF30: 377.1258887 | EG30: 426.5906592 | EH30: 0 | EI30: 0 | EK30: 1940 | EL30: =G229 ->  | EM30: =G230 ->  | EN30: =G231 ->  | EO30: =G232 ->  | EP30: =G233 ->  | EQ30: =G234 ->  | ER30: =G235 ->  | ES30: =G236 ->  | ET30: =G237 ->  | EU30: =G238 ->  | EV30: =G239 ->  | EW30: =G240 -> 
A31: 1923-04-30 | B31: =INDIRECT(CONCATENATE("'",B$1,"'!",B$4,(YEAR($A31)-1921)*12+MONTH($A31)+3+IF(ISNUMBER(FIND("PRV",B$6)),1,0)))*IF(AND(B$3>0,TRIM(B$9)="CFS"),Conversions!$C31,1) -> 0 | C31: =INDIRECT(CONCATENATE("'",C$1,"'!",C$4,(YEAR($A31)-1921)*12+MONTH($A31)+3+IF(ISNUMBER(FIND("PRV",C$6)),1,0)))*IF(AND(C$3>0,TRIM(C$9)="CFS"),Conversions!$C31,1) -> 0 | D31: =INDIRECT(CONCATENATE("'",D$1,"'!",D$4,(YEAR($A31)-1921)*12+MONTH($A31)+3+IF(ISNUMBER(FIND("PRV",D$6)),1,0)))*IF(AND(D$3>0,TRIM(D$9)="CFS"),Conversions!$C31,1) -> 0 | E31: =INDIRECT(CONCATENATE("'",E$1,"'!",E$4,(YEAR($A31)-1921)*12+MONTH($A31)+3+IF(ISNUMBER(FIND("PRV",E$6)),1,0)))*IF(AND(E$3>0,TRIM(E$9)="CFS"),Conversions!$C31,1) -> 0 | F31: =INDIRECT(CONCATENATE("'",F$1,"'!",F$4,(YEAR($A31)-1921)*12+MONTH($A31)+3+IF(ISNUMBER(FIND("PRV",F$6)),1,0)))*IF(AND(F$3>0,TRIM(F$9)="CFS"),Conversions!$C31,1) -> 0 | G31: =INDIRECT(CONCATENATE("'",G$1,"'!",G$4,(YEAR($A31)-1921)*12+MONTH($A31)+3+IF(ISNUMBER(FIND("PRV",G$6)),1,0)))*IF(AND(G$3>0,TRIM(G$9)="CFS"),Conversions!$C31,1) ->  | K31: 1941 | L31: =B241 -> 0 | M31: =B242 -> 0 | N31: =B243 -> 0 | O31: =B244 -> 0 | P31: =B245 -> 0 | Q31: =B246 -> 0 | R31: =B247 -> 0 | S31: =B248 -> 0 | T31: =B249 -> 0 | U31: =B250 -> 0 | V31: =B251 -> 0 | W31: =B252 -> 0 | Y31: 0 | Z31: 0 | AA31: 0 | AC31: 0 | AD31: 0 | AE31: 0 | AF31: 0 | AG31: 0 | AH31: 0 | AI31: 0 | AK31: 1941 | AL31: =C241 -> 0 | AM31: =C242 -> 0 | AN31: =C243 -> 80.09219445 | AO31: =C244 -> 203.6231405 | AP31: =C245 -> 189.2707438 | AQ31: =C246 -> 213.9292562 | AR31: =C247 -> 202.0997953 | AS31: =C248 -> 0 | AT31: =C249 -> 0 | AU31: =C250 -> 0 | AV31: =C251 -> 0 | AW31: =C252 -> 0.0002428729537 | AY31: 933.0160613 | AZ31: 540.122177 | BA31: 889.0153731 | BC31: 686.9153349 | BD31: 0.0002428729537 | BE31: 283.7153349 | BF31: 472.9860787 | BG31: 416.0290515 | BH31: 0.0002428729537 | BI31: 0.0002428729537 | BK31: 1941 | BL31: =D241 -> 0 | BM31: =D242 -> 0 | BN31: =D243 -> 35.33648902 | BO31: =D244 -> 203.6231405 | BP31: =D245 -> 189.2707438 | BQ31: =D246 -> 213.9292562 | BR31: =D247 -> 117.2751158 | BS31: =D248 -> 0 | BT31: =D249 -> 0 | BU31: =D250 -> 0 | BV31: =D251 -> 0 | BW31: =D252 -> 0 | BY31: 848.1867753 | BZ31: 455.292891 | CA31: 759.4347453 | CC31: 642.1596295 | CD31: 0 | CE31: 238.9596295 | CF31: 428.2303733 | CG31: 331.204372 | CH31: 0 | CI31: 0 | CK31: 1941 | CL31: =E241 -> 0 | CM31: =E242 -> 0 | CN31: =E243 -> 8.349594983 | CO31: =E244 -> 203.6231405 | CP31: =E245 -> 189.2707438 | CQ31: =E246 -> 55.08798748 | CR31: =E247 -> 0.01851920795 | CS31: =E248 -> 0 | CT31: =E249 -> 0 | CU31: =E250 -> 0 | CV31: =E251 -> 0 | CW31: =E252 -> 0 | CY31: 572.0889101 | CZ31: 179.1950258 | DA31: 456.349986 | DC31: 456.3314668 | DD31: 0 | DE31: 211.9727355 | DF31: 401.2434793 | DG31: 55.10650669 | DH31: 0 | DI31: 0 | DK31: 1941 | DL31: =F241 -> 0 | DM31: =F242 -> 0 | DN31: =F243 -> 8.349886541 | DO31: =F244 -> 203.6231405 | DP31: =F245 -> 189.2707438 | DQ31: =F246 -> 46.75013409 | DR31: =F247 -> 0.01851933761 | DS31: =F248 -> 0 | DT31: =F249 -> 0 | DU31: =F250 -> 0 | DV31: =F251 -> 0 | DW31: =F252 -> 0 | DY31: 563.7510567 | DZ31: 170.8571724 | EA31: 448.0124243 | EC31: 447.9939049 | ED31: 0 | EE31: 211.973027 | EF31: 401.2437708 | EG31: 46.76865343 | EH31: 0 | EI31: 0 | EK31: 1941 | EL31: =G241 ->  | EM31: =G242 ->  | EN31: =G243 ->  | EO31: =G244 ->  | EP31: =G245 ->  | EQ31: =G246 ->  | ER31: =G247 ->  | ES31: =G248 ->  | ET31: =G249 ->  | EU31: =G250 ->  | EV31: =G251 ->  | EW31: =G252 -> 
A32: 1923-05-31 | B32: =INDIRECT(CONCATENATE("'",B$1,"'!",B$4,(YEAR($A32)-1921)*12+MONTH($A32)+3+IF(ISNUMBER(FIND("PRV",B$6)),1,0)))*IF(AND(B$3>0,TRIM(B$9)="CFS"),Conversions!$C32,1) -> 0 | C32: =INDIRECT(CONCATENATE("'",C$1,"'!",C$4,(YEAR($A32)-1921)*12+MONTH($A32)+3+IF(ISNUMBER(FIND("PRV",C$6)),1,0)))*IF(AND(C$3>0,TRIM(C$9)="CFS"),Conversions!$C32,1) -> 0 | D32: =INDIRECT(CONCATENATE("'",D$1,"'!",D$4,(YEAR($A32)-1921)*12+MONTH($A32)+3+IF(ISNUMBER(FIND("PRV",D$6)),1,0)))*IF(AND(D$3>0,TRIM(D$9)="CFS"),Conversions!$C32,1) -> 0 | E32: =INDIRECT(CONCATENATE("'",E$1,"'!",E$4,(YEAR($A32)-1921)*12+MONTH($A32)+3+IF(ISNUMBER(FIND("PRV",E$6)),1,0)))*IF(AND(E$3>0,TRIM(E$9)="CFS"),Conversions!$C32,1) -> 0 | F32: =INDIRECT(CONCATENATE("'",F$1,"'!",F$4,(YEAR($A32)-1921)*12+MONTH($A32)+3+IF(ISNUMBER(FIND("PRV",F$6)),1,0)))*IF(AND(F$3>0,TRIM(F$9)="CFS"),Conversions!$C32,1) -> 0 | G32: =INDIRECT(CONCATENATE("'",G$1,"'!",G$4,(YEAR($A32)-1921)*12+MONTH($A32)+3+IF(ISNUMBER(FIND("PRV",G$6)),1,0)))*IF(AND(G$3>0,TRIM(G$9)="CFS"),Conversions!$C32,1) ->  | K32: 1942 | L32: =B253 -> 0 | M32: =B254 -> 0 | N32: =B255 -> 0 | O32: =B256 -> 0 | P32: =B257 -> 0 | Q32: =B258 -> 0 | R32: =B259 -> 0 | S32: =B260 -> 0 | T32: =B261 -> 0 | U32: =B262 -> 0 | V32: =B263 -> 0 | W32: =B264 -> 0 | Y32: 0 | Z32: 0 | AA32: 0 | AC32: 0 | AD32: 0 | AE32: 0 | AF32: 0 | AG32: 0 | AH32: 0 | AI32: 0 | AK32: 1942 | AL32: =C253 -> 0 | AM32: =C254 -> 0 | AN32: =C255 -> 124.0928826 | AO32: =C256 -> 0 | AP32: =C257 -> 0 | AQ32: =C258 -> 0 | AR32: =C259 -> 0.5475907341 | AS32: =C260 -> 0 | AT32: =C261 -> 0 | AU32: =C262 -> 0 | AV32: =C263 -> 0 | AW32: =C264 -> 0.0002428917771 | AY32: 71.08224421 | AZ32: 126.7443751 | BA32: 124.6407162 | BC32: 124.0928826 | BD32: 0.0002428917771 | BE32: 124.0928826 | BF32: 124.0928826 | BG32: 0.5475907341 | BH32: 0.0002428917771 | BI32: 0.0002428917771 | BK32: 1942 | BL32: =D253 -> 0 | BM32: =D254 -> 0 | BN32: =D255 -> 124.088519 | BO32: =D256 -> 0 | BP32: =D257 -> 0 | BQ32: =D258 -> 0 | BR32: =D259 -> 0.5475907341 | BS32: =D260 -> 0 | BT32: =D261 -> 0 | BU32: =D262 -> 0 | BV32: =D263 -> 0 | BW32: =D264 -> 0.000240676144 | BY32: 71.08037448 | BZ32: 127.2555323 | CA32: 124.6363504 | CC32: 124.088519 | CD32: 0.000240676144 | CE32: 124.088519 | CF32: 124.088519 | CG32: 0.5475907341 | CH32: 0.000240676144 | CI32: 0.000240676144 | CK32: 1942 | CL32: =E253 -> 0 | CM32: =E254 -> 0 | CN32: =E255 -> 124.0885191 | CO32: =E256 -> 0 | CP32: =E257 -> 0 | CQ32: =E258 -> 0 | CR32: =E259 -> 0.5475907341 | CS32: =E260 -> 0 | CT32: =E261 -> 0 | CU32: =E262 -> 0 | CV32: =E263 -> 0 | CW32: =E264 -> 0 | CY32: 71.15249784 | CZ32: 123.2179758 | DA32: 124.6361099 | DC32: 124.0885191 | DD32: 0 | DE32: 124.0885191 | DF32: 124.0885191 | DG32: 0.5475907341 | DH32: 0 | DI32: 0 | DK32: 1942 | DL32: =F253 -> 0 | DM32: =F254 -> 0 | DN32: =F255 -> 124.088519 | DO32: =F256 -> 0 | DP32: =F257 -> 0 | DQ32: =F258 -> 0 | DR32: =F259 -> 0.5475907341 | DS32: =F260 -> 0 | DT32: =F261 -> 0 | DU32: =F262 -> 0 | DV32: =F263 -> 0 | DW32: =F264 -> 0 | DY32: 71.15263918 | DZ32: 123.2179756 | EA32: 124.6361097 | EC32: 124.088519 | ED32: 0 | EE32: 124.088519 | EF32: 124.088519 | EG32: 0.5475907341 | EH32: 0 | EI32: 0 | EK32: 1942 | EL32: =G253 ->  | EM32: =G254 ->  | EN32: =G255 ->  | EO32: =G256 ->  | EP32: =G257 ->  | EQ32: =G258 ->  | ER32: =G259 ->  | ES32: =G260 ->  | ET32: =G261 ->  | EU32: =G262 ->  | EV32: =G263 ->  | EW32: =G264 -> 
A33: 1923-06-30 | B33: =INDIRECT(CONCATENATE("'",B$1,"'!",B$4,(YEAR($A33)-1921)*12+MONTH($A33)+3+IF(ISNUMBER(FIND("PRV",B$6)),1,0)))*IF(AND(B$3>0,TRIM(B$9)="CFS"),Conversions!$C33,1) -> 0 | C33: =INDIRECT(CONCATENATE("'",C$1,"'!",C$4,(YEAR($A33)-1921)*12+MONTH($A33)+3+IF(ISNUMBER(FIND("PRV",C$6)),1,0)))*IF(AND(C$3>0,TRIM(C$9)="CFS"),Conversions!$C33,1) -> 0 | D33: =INDIRECT(CONCATENATE("'",D$1,"'!",D$4,(YEAR($A33)-1921)*12+MONTH($A33)+3+IF(ISNUMBER(FIND("PRV",D$6)),1,0)))*IF(AND(D$3>0,TRIM(D$9)="CFS"),Conversions!$C33,1) -> 0 | E33: =INDIRECT(CONCATENATE("'",E$1,"'!",E$4,(YEAR($A33)-1921)*12+MONTH($A33)+3+IF(ISNUMBER(FIND("PRV",E$6)),1,0)))*IF(AND(E$3>0,TRIM(E$9)="CFS"),Conversions!$C33,1) -> 0 | F33: =INDIRECT(CONCATENATE("'",F$1,"'!",F$4,(YEAR($A33)-1921)*12+MONTH($A33)+3+IF(ISNUMBER(FIND("PRV",F$6)),1,0)))*IF(AND(F$3>0,TRIM(F$9)="CFS"),Conversions!$C33,1) -> 0 | G33: =INDIRECT(CONCATENATE("'",G$1,"'!",G$4,(YEAR($A33)-1921)*12+MONTH($A33)+3+IF(ISNUMBER(FIND("PRV",G$6)),1,0)))*IF(AND(G$3>0,TRIM(G$9)="CFS"),Conversions!$C33,1) ->  | K33: 1943 | L33: =B265 -> 0 | M33: =B266 -> 0 | N33: =B267 -> 0 | O33: =B268 -> 0 | P33: =B269 -> 0 | Q33: =B270 -> 0 | R33: =B271 -> 0 | S33: =B272 -> 0 | T33: =B273 -> 0 | U33: =B274 -> 0 | V33: =B275 -> 0 | W33: =B276 -> 0 | Y33: 0 | Z33: 0 | AA33: 0 | AC33: 0 | AD33: 0 | AE33: 0 | AF33: 0 | AG33: 0 | AH33: 0 | AI33: 0 | AK33: 1943 | AL33: =C265 -> 0 | AM33: =C266 -> 0 | AN33: =C267 -> 70.53441058 | AO33: =C268 -> 55.66213093 | AP33: =C269 -> 0 | AQ33: =C270 -> 0 | AR33: =C271 -> 0 | AS33: =C272 -> 0 | AT33: =C273 -> 0 | AU33: =C274 -> 0 | AV33: =C275 -> 0 | AW33: =C276 -> 0 | AY33: 55.66213093 | AZ33: 38.53672587 | BA33: 126.1965415 | BC33: 126.1965415 | BD33: 0 | BE33: 126.1965415 | BF33: 126.1965415 | BG33: 0 | BH33: 0 | BI33: 0 | BK33: 1943 | BL33: =D265 -> 0 | BM33: =D266 -> 0 | BN33: =D267 -> 70.53254307 | BO33: =D268 -> 56.17515783 | BP33: =D269 -> 0 | BQ33: =D270 -> 0 | BR33: =D271 -> 0 | BS33: =D272 -> 0 | BT33: =D273 -> 0 | BU33: =D274 -> 0 | BV33: =D275 -> 0 | BW33: =D276 -> 0 | BY33: 56.17515783 | BZ33: 38.54883809 | CA33: 126.7077009 | CC33: 126.7077009 | CD33: 0 | CE33: 126.7077009 | CF33: 126.7077009 | CG33: 0 | CH33: 0 | CI33: 0 | CK33: 1943 | CL33: =E265 -> 0 | CM33: =E266 -> 0 | CN33: =E267 -> 70.6049071 | CO33: =E268 -> 52.06547794 | CP33: =E269 -> 0 | CQ33: =E270 -> 0 | CR33: =E271 -> 0 | CS33: =E272 -> 0 | CT33: =E273 -> 0 | CU33: =E274 -> 0 | CV33: =E275 -> 0 | CW33: =E276 -> 0 | CY33: 52.06547794 | CZ33: 38.65172758 | DA33: 122.670385 | DC33: 122.670385 | DD33: 0 | DE33: 122.670385 | DF33: 122.670385 | DG33: 0 | DH33: 0 | DI33: 0 | DK33: 1943 | DL33: =F265 -> 0 | DM33: =F266 -> 0 | DN33: =F267 -> 70.60504844 | DO33: =F268 -> 52.06533638 | DP33: =F269 -> 0 | DQ33: =F270 -> 0 | DR33: =F271 -> 0 | DS33: =F272 -> 0 | DT33: =F273 -> 0 | DU33: =F274 -> 0 | DV33: =F275 -> 0 | DW33: =F276 -> 0 | DY33: 52.06533638 | DZ33: 38.65192223 | EA33: 122.6703848 | EC33: 122.6703848 | ED33: 0 | EE33: 122.6703848 | EF33: 122.6703848 | EG33: 0 | EH33: 0 | EI33: 0 | EK33: 1943 | EL33: =G265 ->  | EM33: =G266 ->  | EN33: =G267 ->  | EO33: =G268 ->  | EP33: =G269 ->  | EQ33: =G270 ->  | ER33: =G271 ->  | ES33: =G272 ->  | ET33: =G273 ->  | EU33: =G274 ->  | EV33: =G275 ->  | EW33: =G276 -> 
A34: 1923-07-31 | B34: =INDIRECT(CONCATENATE("'",B$1,"'!",B$4,(YEAR($A34)-1921)*12+MONTH($A34)+3+IF(ISNUMBER(FIND("PRV",B$6)),1,0)))*IF(AND(B$3>0,TRIM(B$9)="CFS"),Conversions!$C34,1) -> 0 | C34: =INDIRECT(CONCATENATE("'",C$1,"'!",C$4,(YEAR($A34)-1921)*12+MONTH($A34)+3+IF(ISNUMBER(FIND("PRV",C$6)),1,0)))*IF(AND(C$3>0,TRIM(C$9)="CFS"),Conversions!$C34,1) -> 0 | D34: =INDIRECT(CONCATENATE("'",D$1,"'!",D$4,(YEAR($A34)-1921)*12+MONTH($A34)+3+IF(ISNUMBER(FIND("PRV",D$6)),1,0)))*IF(AND(D$3>0,TRIM(D$9)="CFS"),Conversions!$C34,1) -> 0 | E34: =INDIRECT(CONCATENATE("'",E$1,"'!",E$4,(YEAR($A34)-1921)*12+MONTH($A34)+3+IF(ISNUMBER(FIND("PRV",E$6)),1,0)))*IF(AND(E$3>0,TRIM(E$9)="CFS"),Conversions!$C34,1) -> 0 | F34: =INDIRECT(CONCATENATE("'",F$1,"'!",F$4,(YEAR($A34)-1921)*12+MONTH($A34)+3+IF(ISNUMBER(FIND("PRV",F$6)),1,0)))*IF(AND(F$3>0,TRIM(F$9)="CFS"),Conversions!$C34,1) -> 0 | G34: =INDIRECT(CONCATENATE("'",G$1,"'!",G$4,(YEAR($A34)-1921)*12+MONTH($A34)+3+IF(ISNUMBER(FIND("PRV",G$6)),1,0)))*IF(AND(G$3>0,TRIM(G$9)="CFS"),Conversions!$C34,1) ->  | K34: 1944 | L34: =B277 -> 0 | M34: =B278 -> 0 | N34: =B279 -> 0 | O34: =B280 -> 0 | P34: =B281 -> 0 | Q34: =B282 -> 0 | R34: =B283 -> 0 | S34: =B284 -> 0 | T34: =B285 -> 0 | U34: =B286 -> 0 | V34: =B287 -> 0 | W34: =B288 -> 0 | Y34: 0 | Z34: 0 | AA34: 0 | AC34: 0 | AD34: 0 | AE34: 0 | AF34: 0 | AG34: 0 | AH34: 0 | AI34: 0 | AK34: 1944 | AL34: =C277 -> 0 | AM34: =C278 -> 0 | AN34: =C279 -> 0 | AO34: =C280 -> 0 | AP34: =C281 -> 38.53672587 | AQ34: =C282 -> 0 | AR34: =C283 -> 0 | AS34: =C284 -> 0 | AT34: =C285 -> 0 | AU34: =C286 -> 0 | AV34: =C287 -> 0 | AW34: =C288 -> 0 | AY34: 38.53672587 | AZ34: 177.9173554 | BA34: 38.53672587 | BC34: 38.53672587 | BD34: 0 | BE34: 0 | BF34: 38.53672587 | BG34: 0 | BH34: 0 | BI34: 0 | BK34: 1944 | BL34: =D277 -> 0 | BM34: =D278 -> 0 | BN34: =D279 -> 0 | BO34: =D280 -> 0 | BP34: =D281 -> 38.54883809 | BQ34: =D282 -> 0 | BR34: =D283 -> 0 | BS34: =D284 -> 0 | BT34: =D285 -> 0 | BU34: =D286 -> 0 | BV34: =D287 -> 0 | BW34: =D288 -> 0 | BY34: 38.54883809 | BZ34: 177.9173554 | CA34: 38.54883809 | CC34: 38.54883809 | CD34: 0 | CE34: 0 | CF34: 38.54883809 | CG34: 0 | CH34: 0 | CI34: 0 | CK34: 1944 | CL34: =E277 -> 0 | CM34: =E278 -> 0 | CN34: =E279 -> 0 | CO34: =E280 -> 0 | CP34: =E281 -> 38.65172758 | CQ34: =E282 -> 0 | CR34: =E283 -> 0 | CS34: =E284 -> 0 | CT34: =E285 -> 0 | CU34: =E286 -> 0 | CV34: =E287 -> 0 | CW34: =E288 -> 0 | CY34: 38.65172758 | CZ34: 177.9173554 | DA34: 38.65172758 | DC34: 38.65172758 | DD34: 0 | DE34: 0 | DF34: 38.65172758 | DG34: 0 | DH34: 0 | DI34: 0 | DK34: 1944 | DL34: =F277 -> 0 | DM34: =F278 -> 0 | DN34: =F279 -> 0 | DO34: =F280 -> 0 | DP34: =F281 -> 38.65192223 | DQ34: =F282 -> 0 | DR34: =F283 -> 0 | DS34: =F284 -> 0 | DT34: =F285 -> 0 | DU34: =F286 -> 0 | DV34: =F287 -> 0 | DW34: =F288 -> 0 | DY34: 38.65192223 | DZ34: 177.9173554 | EA34: 38.65192223 | EC34: 38.65192223 | ED34: 0 | EE34: 0 | EF34: 38.65192223 | EG34: 0 | EH34: 0 | EI34: 0 | EK34: 1944 | EL34: =G277 ->  | EM34: =G278 ->  | EN34: =G279 ->  | EO34: =G280 ->  | EP34: =G281 ->  | EQ34: =G282 ->  | ER34: =G283 ->  | ES34: =G284 ->  | ET34: =G285 ->  | EU34: =G286 ->  | EV34: =G287 ->  | EW34: =G288 -> 
A35: 1923-08-31 | B35: =INDIRECT(CONCATENATE("'",B$1,"'!",B$4,(YEAR($A35)-1921)*12+MONTH($A35)+3+IF(ISNUMBER(FIND("PRV",B$6)),1,0)))*IF(AND(B$3>0,TRIM(B$9)="CFS"),Conversions!$C35,1) -> 0 | C35: =INDIRECT(CONCATENATE("'",C$1,"'!",C$4,(YEAR($A35)-1921)*12+MONTH($A35)+3+IF(ISNUMBER(FIND("PRV",C$6)),1,0)))*IF(AND(C$3>0,TRIM(C$9)="CFS"),Conversions!$C35,1) -> 0 | D35: =INDIRECT(CONCATENATE("'",D$1,"'!",D$4,(YEAR($A35)-1921)*12+MONTH($A35)+3+IF(ISNUMBER(FIND("PRV",D$6)),1,0)))*IF(AND(D$3>0,TRIM(D$9)="CFS"),Conversions!$C35,1) -> 0 | E35: =INDIRECT(CONCATENATE("'",E$1,"'!",E$4,(YEAR($A35)-1921)*12+MONTH($A35)+3+IF(ISNUMBER(FIND("PRV",E$6)),1,0)))*IF(AND(E$3>0,TRIM(E$9)="CFS"),Conversions!$C35,1) -> 0 | F35: =INDIRECT(CONCATENATE("'",F$1,"'!",F$4,(YEAR($A35)-1921)*12+MONTH($A35)+3+IF(ISNUMBER(FIND("PRV",F$6)),1,0)))*IF(AND(F$3>0,TRIM(F$9)="CFS"),Conversions!$C35,1) -> 0 | G35: =INDIRECT(CONCATENATE("'",G$1,"'!",G$4,(YEAR($A35)-1921)*12+MONTH($A35)+3+IF(ISNUMBER(FIND("PRV",G$6)),1,0)))*IF(AND(G$3>0,TRIM(G$9)="CFS"),Conversions!$C35,1) ->  | K35: 1945 | L35: =B289 -> 0 | M35: =B290 -> 0 | N35: =B291 -> 0 | O35: =B292 -> 0 | P35: =B293 -> 0 | Q35: =B294 -> 0 | R35: =B295 -> 0 | S35: =B296 -> 0 | T35: =B297 -> 0 | U35: =B298 -> 0 | V35: =B299 -> 0 | W35: =B300 -> 0 | Y35: 0 | Z35: 0 | AA35: 0 | AC35: 0 | AD35: 0 | AE35: 0 | AF35: 0 | AG35: 0 | AH35: 0 | AI35: 0 | AK35: 1945 | AL35: =C289 -> 0 | AM35: =C290 -> 0 | AN35: =C291 -> 0 | AO35: =C292 -> 0 | AP35: =C293 -> 177.9173554 | AQ35: =C294 -> 0 | AR35: =C295 -> 0 | AS35: =C296 -> 0 | AT35: =C297 -> 0 | AU35: =C298 -> 0 | AV35: =C299 -> 0 | AW35: =C300 -> 0 | AY35: 358.9804959 | AZ35: 384.686281 | BA35: 177.9173554 | BC35: 177.9173554 | BD35: 0 | BE35: 0 | BF35: 177.9173554 | BG35: 0 | BH35: 0 | BI35: 0 | BK35: 1945 | BL35: =D289 -> 0 | BM35: =D290 -> 0 | BN35: =D291 -> 0 | BO35: =D292 -> 0 | BP35: =D293 -> 177.9173554 | BQ35: =D294 -> 0 | BR35: =D295 -> 0 | BS35: =D296 -> 0 | BT35: =D297 -> 0 | BU35: =D298 -> 0 | BV35: =D299 -> 0 | BW35: =D300 -> 0 | BY35: 358.9804959 | BZ35: 384.686281 | CA35: 177.9173554 | CC35: 177.9173554 | CD35: 0 | CE35: 0 | CF35: 177.9173554 | CG35: 0 | CH35: 0 | CI35: 0 | CK35: 1945 | CL35: =E289 -> 0 | CM35: =E290 -> 0 | CN35: =E291 -> 0 | CO35: =E292 -> 0 | CP35: =E293 -> 177.9173554 | CQ35: =E294 -> 0 | CR35: =E295 -> 0 | CS35: =E296 -> 0 | CT35: =E297 -> 0 | CU35: =E298 -> 0 | CV35: =E299 -> 0 | CW35: =E300 -> 0 | CY35: 358.9804959 | CZ35: 384.686281 | DA35: 177.9173554 | DC35: 177.9173554 | DD35: 0 | DE35: 0 | DF35: 177.9173554 | DG35: 0 | DH35: 0 | DI35: 0 | DK35: 1945 | DL35: =F289 -> 0 | DM35: =F290 -> 0 | DN35: =F291 -> 0 | DO35: =F292 -> 0 | DP35: =F293 -> 177.9173554 | DQ35: =F294 -> 0 | DR35: =F295 -> 0 | DS35: =F296 -> 0 | DT35: =F297 -> 0 | DU35: =F298 -> 0 | DV35: =F299 -> 0 | DW35: =F300 -> 0 | DY35: 358.9804959 | DZ35: 384.686281 | EA35: 177.9173554 | EC35: 177.9173554 | ED35: 0 | EE35: 0 | EF35: 177.9173554 | EG35: 0 | EH35: 0 | EI35: 0 | EK35: 1945 | EL35: =G289 ->  | EM35: =G290 ->  | EN35: =G291 ->  | EO35: =G292 ->  | EP35: =G293 ->  | EQ35: =G294 ->  | ER35: =G295 ->  | ES35: =G296 ->  | ET35: =G297 ->  | EU35: =G298 ->  | EV35: =G299 ->  | EW35: =G300 -> 
A36: 1923-09-30 | B36: =INDIRECT(CONCATENATE("'",B$1,"'!",B$4,(YEAR($A36)-1921)*12+MONTH($A36)+3+IF(ISNUMBER(FIND("PRV",B$6)),1,0)))*IF(AND(B$3>0,TRIM(B$9)="CFS"),Conversions!$C36,1) -> 0 | C36: =INDIRECT(CONCATENATE("'",C$1,"'!",C$4,(YEAR($A36)-1921)*12+MONTH($A36)+3+IF(ISNUMBER(FIND("PRV",C$6)),1,0)))*IF(AND(C$3>0,TRIM(C$9)="CFS"),Conversions!$C36,1) -> 0 | D36: =INDIRECT(CONCATENATE("'",D$1,"'!",D$4,(YEAR($A36)-1921)*12+MONTH($A36)+3+IF(ISNUMBER(FIND("PRV",D$6)),1,0)))*IF(AND(D$3>0,TRIM(D$9)="CFS"),Conversions!$C36,1) -> 0 | E36: =INDIRECT(CONCATENATE("'",E$1,"'!",E$4,(YEAR($A36)-1921)*12+MONTH($A36)+3+IF(ISNUMBER(FIND("PRV",E$6)),1,0)))*IF(AND(E$3>0,TRIM(E$9)="CFS"),Conversions!$C36,1) -> 0 | F36: =INDIRECT(CONCATENATE("'",F$1,"'!",F$4,(YEAR($A36)-1921)*12+MONTH($A36)+3+IF(ISNUMBER(FIND("PRV",F$6)),1,0)))*IF(AND(F$3>0,TRIM(F$9)="CFS"),Conversions!$C36,1) -> 0 | G36: =INDIRECT(CONCATENATE("'",G$1,"'!",G$4,(YEAR($A36)-1921)*12+MONTH($A36)+3+IF(ISNUMBER(FIND("PRV",G$6)),1,0)))*IF(AND(G$3>0,TRIM(G$9)="CFS"),Conversions!$C36,1) ->  | K36: 1946 | L36: =B301 -> 0 | M36: =B302 -> 0 | N36: =B303 -> 0 | O36: =B304 -> 0 | P36: =B305 -> 0 | Q36: =B306 -> 0 | R36: =B307 -> 0 | S36: =B308 -> 0 | T36: =B309 -> 0 | U36: =B310 -> 0 | V36: =B311 -> 0 | W36: =B312 -> 0 | Y36: 0 | Z36: 0 | AA36: 0 | AC36: 0 | AD36: 0 | AE36: 0 | AF36: 0 | AG36: 0 | AH36: 0 | AI36: 0 | AK36: 1946 | AL36: =C301 -> 0 | AM36: =C302 -> 0 | AN36: =C303 -> 181.0631405 | AO36: =C304 -> 203.6231405 | AP36: =C305 -> 0 | AQ36: =C306 -> 0 | AR36: =C307 -> 0 | AS36: =C308 -> 0 | AT36: =C309 -> 0 | AU36: =C310 -> 0 | AV36: =C311 -> 0 | AW36: =C312 -> 0 | AY36: 203.6231405 | AZ36: 0 | BA36: 384.686281 | BC36: 384.686281 | BD36: 0 | BE36: 384.686281 | BF36: 384.686281 | BG36: 0 | BH36: 0 | BI36: 0 | BK36: 1946 | BL36: =D301 -> 0 | BM36: =D302 -> 0 | BN36: =D303 -> 181.0631405 | BO36: =D304 -> 203.6231405 | BP36: =D305 -> 0 | BQ36: =D306 -> 0 | BR36: =D307 -> 0 | BS36: =D308 -> 0 | BT36: =D309 -> 0 | BU36: =D310 -> 0 | BV36: =D311 -> 0 | BW36: =D312 -> 0 | BY36: 203.6231405 | BZ36: 0 | CA36: 384.686281 | CC36: 384.686281 | CD36: 0 | CE36: 384.686281 | CF36: 384.686281 | CG36: 0 | CH36: 0 | CI36: 0 | CK36: 1946 | CL36: =E301 -> 0 | CM36: =E302 -> 0 | CN36: =E303 -> 181.0631405 | CO36: =E304 -> 203.6231405 | CP36: =E305 -> 0 | CQ36: =E306 -> 0 | CR36: =E307 -> 0 | CS36: =E308 -> 0 | CT36: =E309 -> 0 | CU36: =E310 -> 0 | CV36: =E311 -> 0 | CW36: =E312 -> 0 | CY36: 203.6231405 | CZ36: 0 | DA36: 384.686281 | DC36: 384.686281 | DD36: 0 | DE36: 384.686281 | DF36: 384.686281 | DG36: 0 | DH36: 0 | DI36: 0 | DK36: 1946 | DL36: =F301 -> 0 | DM36: =F302 -> 0 | DN36: =F303 -> 181.0631405 | DO36: =F304 -> 203.6231405 | DP36: =F305 -> 0 | DQ36: =F306 -> 0 | DR36: =F307 -> 0 | DS36: =F308 -> 0 | DT36: =F309 -> 0 | DU36: =F310 -> 0 | DV36: =F311 -> 0 | DW36: =F312 -> 0 | DY36: 203.6231405 | DZ36: 0 | EA36: 384.686281 | EC36: 384.686281 | ED36: 0 | EE36: 384.686281 | EF36: 384.686281 | EG36: 0 | EH36: 0 | EI36: 0 | EK36: 1946 | EL36: =G301 ->  | EM36: =G302 ->  | EN36: =G303 ->  | EO36: =G304 ->  | EP36: =G305 ->  | EQ36: =G306 ->  | ER36: =G307 ->  | ES36: =G308 ->  | ET36: =G309 ->  | EU36: =G310 ->  | EV36: =G311 ->  | EW36: =G312 -> 
A37: 1923-10-31 | B37: =INDIRECT(CONCATENATE("'",B$1,"'!",B$4,(YEAR($A37)-1921)*12+MONTH($A37)+3+IF(ISNUMBER(FIND("PRV",B$6)),1,0)))*IF(AND(B$3>0,TRIM(B$9)="CFS"),Conversions!$C37,1) -> 0 | C37: =INDIRECT(CONCATENATE("'",C$1,"'!",C$4,(YEAR($A37)-1921)*12+MONTH($A37)+3+IF(ISNUMBER(FIND("PRV",C$6)),1,0)))*IF(AND(C$3>0,TRIM(C$9)="CFS"),Conversions!$C37,1) -> 0 | D37: =INDIRECT(CONCATENATE("'",D$1,"'!",D$4,(YEAR($A37)-1921)*12+MONTH($A37)+3+IF(ISNUMBER(FIND("PRV",D$6)),1,0)))*IF(AND(D$3>0,TRIM(D$9)="CFS"),Conversions!$C37,1) -> 0 | E37: =INDIRECT(CONCATENATE("'",E$1,"'!",E$4,(YEAR($A37)-1921)*12+MONTH($A37)+3+IF(ISNUMBER(FIND("PRV",E$6)),1,0)))*IF(AND(E$3>0,TRIM(E$9)="CFS"),Conversions!$C37,1) -> 0 | F37: =INDIRECT(CONCATENATE("'",F$1,"'!",F$4,(YEAR($A37)-1921)*12+MONTH($A37)+3+IF(ISNUMBER(FIND("PRV",F$6)),1,0)))*IF(AND(F$3>0,TRIM(F$9)="CFS"),Conversions!$C37,1) -> 0 | G37: =INDIRECT(CONCATENATE("'",G$1,"'!",G$4,(YEAR($A37)-1921)*12+MONTH($A37)+3+IF(ISNUMBER(FIND("PRV",G$6)),1,0)))*IF(AND(G$3>0,TRIM(G$9)="CFS"),Conversions!$C37,1) ->  | K37: 1947 | L37: =B313 -> 0 | M37: =B314 -> 0 | N37: =B315 -> 0 | O37: =B316 -> 0 | P37: =B317 -> 0 | Q37: =B318 -> 0 | R37: =B319 -> 0 | S37: =B320 -> 0 | T37: =B321 -> 0 | U37: =B322 -> 0 | V37: =B323 -> 0 | W37: =B324 -> 0 | Y37: 0 | Z37: 0 | AA37: 0 | AC37: 0 | AD37: 0 | AE37: 0 | AF37: 0 | AG37: 0 | AH37: 0 | AI37: 0 | AK37: 1947 | AL37: =C313 -> 0 | AM37: =C314 -> 0 | AN37: =C315 -> 0 | AO37: =C316 -> 0 | AP37: =C317 -> 0 | AQ37: =C318 -> 0 | AR37: =C319 -> 0 | AS37: =C320 -> 0 | AT37: =C321 -> 0 | AU37: =C322 -> 0 | AV37: =C323 -> 0 | AW37: =C324 -> 0 | AY37: 0 | AZ37: 0 | BA37: 0 | BC37: 0 | BD37: 0 | BE37: 0 | BF37: 0 | BG37: 0 | BH37: 0 | BI37: 0 | BK37: 1947 | BL37: =D313 -> 0 | BM37: =D314 -> 0 | BN37: =D315 -> 0 | BO37: =D316 -> 0 | BP37: =D317 -> 0 | BQ37: =D318 -> 0 | BR37: =D319 -> 0 | BS37: =D320 -> 0 | BT37: =D321 -> 0 | BU37: =D322 -> 0 | BV37: =D323 -> 0 | BW37: =D324 -> 0 | BY37: 0 | BZ37: 0 | CA37: 0 | CC37: 0 | CD37: 0 | CE37: 0 | CF37: 0 | CG37: 0 | CH37: 0 | CI37: 0 | CK37: 1947 | CL37: =E313 -> 0 | CM37: =E314 -> 0 | CN37: =E315 -> 0 | CO37: =E316 -> 0 | CP37: =E317 -> 0 | CQ37: =E318 -> 0 | CR37: =E319 -> 0 | CS37: =E320 -> 0 | CT37: =E321 -> 0 | CU37: =E322 -> 0 | CV37: =E323 -> 0 | CW37: =E324 -> 0 | CY37: 0 | CZ37: 0 | DA37: 0 | DC37: 0 | DD37: 0 | DE37: 0 | DF37: 0 | DG37: 0 | DH37: 0 | DI37: 0 | DK37: 1947 | DL37: =F313 -> 0 | DM37: =F314 -> 0 | DN37: =F315 -> 0 | DO37: =F316 -> 0 | DP37: =F317 -> 0 | DQ37: =F318 -> 0 | DR37: =F319 -> 0 | DS37: =F320 -> 0 | DT37: =F321 -> 0 | DU37: =F322 -> 0 | DV37: =F323 -> 0 | DW37: =F324 -> 0 | DY37: 0 | DZ37: 0 | EA37: 0 | EC37: 0 | ED37: 0 | EE37: 0 | EF37: 0 | EG37: 0 | EH37: 0 | EI37: 0 | EK37: 1947 | EL37: =G313 ->  | EM37: =G314 ->  | EN37: =G315 ->  | EO37: =G316 ->  | EP37: =G317 ->  | EQ37: =G318 ->  | ER37: =G319 ->  | ES37: =G320 ->  | ET37: =G321 ->  | EU37: =G322 ->  | EV37: =G323 ->  | EW37: =G324 -> 
A38: 1923-11-30 | B38: =INDIRECT(CONCATENATE("'",B$1,"'!",B$4,(YEAR($A38)-1921)*12+MONTH($A38)+3+IF(ISNUMBER(FIND("PRV",B$6)),1,0)))*IF(AND(B$3>0,TRIM(B$9)="CFS"),Conversions!$C38,1) -> 0 | C38: =INDIRECT(CONCATENATE("'",C$1,"'!",C$4,(YEAR($A38)-1921)*12+MONTH($A38)+3+IF(ISNUMBER(FIND("PRV",C$6)),1,0)))*IF(AND(C$3>0,TRIM(C$9)="CFS"),Conversions!$C38,1) -> 0 | D38: =INDIRECT(CONCATENATE("'",D$1,"'!",D$4,(YEAR($A38)-1921)*12+MONTH($A38)+3+IF(ISNUMBER(FIND("PRV",D$6)),1,0)))*IF(AND(D$3>0,TRIM(D$9)="CFS"),Conversions!$C38,1) -> 0 | E38: =INDIRECT(CONCATENATE("'",E$1,"'!",E$4,(YEAR($A38)-1921)*12+MONTH($A38)+3+IF(ISNUMBER(FIND("PRV",E$6)),1,0)))*IF(AND(E$3>0,TRIM(E$9)="CFS"),Conversions!$C38,1) -> 0 | F38: =INDIRECT(CONCATENATE("'",F$1,"'!",F$4,(YEAR($A38)-1921)*12+MONTH($A38)+3+IF(ISNUMBER(FIND("PRV",F$6)),1,0)))*IF(AND(F$3>0,TRIM(F$9)="CFS"),Conversions!$C38,1) -> 0 | G38: =INDIRECT(CONCATENATE("'",G$1,"'!",G$4,(YEAR($A38)-1921)*12+MONTH($A38)+3+IF(ISNUMBER(FIND("PRV",G$6)),1,0)))*IF(AND(G$3>0,TRIM(G$9)="CFS"),Conversions!$C38,1) ->  | K38: 1948 | L38: =B325 -> 0 | M38: =B326 -> 0 | N38: =B327 -> 0 | O38: =B328 -> 0 | P38: =B329 -> 0 | Q38: =B330 -> 0 | R38: =B331 -> 0 | S38: =B332 -> 0 | T38: =B333 -> 0 | U38: =B334 -> 0 | V38: =B335 -> 0 | W38: =B336 -> 0 | Y38: 0 | Z38: 0 | AA38: 0 | AC38: 0 | AD38: 0 | AE38: 0 | AF38: 0 | AG38: 0 | AH38: 0 | AI38: 0 | AK38: 1948 | AL38: =C325 -> 0 | AM38: =C326 -> 0 | AN38: =C327 -> 0 | AO38: =C328 -> 0 | AP38: =C329 -> 0 | AQ38: =C330 -> 0 | AR38: =C331 -> 0 | AS38: =C332 -> 0 | AT38: =C333 -> 0 | AU38: =C334 -> 0 | AV38: =C335 -> 0 | AW38: =C336 -> 0 | AY38: 0 | AZ38: 0 | BA38: 0 | BC38: 0 | BD38: 0 | BE38: 0 | BF38: 0 | BG38: 0 | BH38: 0 | BI38: 0 | BK38: 1948 | BL38: =D325 -> 0 | BM38: =D326 -> 0 | BN38: =D327 -> 0 | BO38: =D328 -> 0 | BP38: =D329 -> 0 | BQ38: =D330 -> 0 | BR38: =D331 -> 0 | BS38: =D332 -> 0 | BT38: =D333 -> 0 | BU38: =D334 -> 0 | BV38: =D335 -> 0 | BW38: =D336 -> 0 | BY38: 0 | BZ38: 0 | CA38: 0 | CC38: 0 | CD38: 0 | CE38: 0 | CF38: 0 | CG38: 0 | CH38: 0 | CI38: 0 | CK38: 1948 | CL38: =E325 -> 0 | CM38: =E326 -> 0 | CN38: =E327 -> 0 | CO38: =E328 -> 0 | CP38: =E329 -> 0 | CQ38: =E330 -> 0 | CR38: =E331 -> 0 | CS38: =E332 -> 0 | CT38: =E333 -> 0 | CU38: =E334 -> 0 | CV38: =E335 -> 0 | CW38: =E336 -> 0.001765744794 | CY38: 0.001765744794 | CZ38: 0.001765744794 | DA38: 0.001765744794 | DC38: 0 | DD38: 0.001765744794 | DE38: 0 | DF38: 0 | DG38: 0 | DH38: 0.001765744794 | DI38: 0.001765744794 | DK38: 1948 | DL38: =F325 -> 0 | DM38: =F326 -> 0 | DN38: =F327 -> 0 | DO38: =F328 -> 0 | DP38: =F329 -> 0 | DQ38: =F330 -> 0 | DR38: =F331 -> 0 | DS38: =F332 -> 0 | DT38: =F333 -> 0 | DU38: =F334 -> 0 | DV38: =F335 -> 0 | DW38: =F336 -> 0.001762309258 | DY38: 0.001762309258 | DZ38: 0.001762309258 | EA38: 0.001762309258 | EC38: 0 | ED38: 0.001762309258 | EE38: 0 | EF38: 0 | EG38: 0 | EH38: 0.001762309258 | EI38: 0.001762309258 | EK38: 1948 | EL38: =G325 ->  | EM38: =G326 ->  | EN38: =G327 ->  | EO38: =G328 ->  | EP38: =G329 ->  | EQ38: =G330 ->  | ER38: =G331 ->  | ES38: =G332 ->  | ET38: =G333 ->  | EU38: =G334 ->  | EV38: =G335 ->  | EW38: =G336 -> 
A39: 1923-12-31 | B39: =INDIRECT(CONCATENATE("'",B$1,"'!",B$4,(YEAR($A39)-1921)*12+MONTH($A39)+3+IF(ISNUMBER(FIND("PRV",B$6)),1,0)))*IF(AND(B$3>0,TRIM(B$9)="CFS"),Conversions!$C39,1) -> 0 | C39: =INDIRECT(CONCATENATE("'",C$1,"'!",C$4,(YEAR($A39)-1921)*12+MONTH($A39)+3+IF(ISNUMBER(FIND("PRV",C$6)),1,0)))*IF(AND(C$3>0,TRIM(C$9)="CFS"),Conversions!$C39,1) -> 0 | D39: =INDIRECT(CONCATENATE("'",D$1,"'!",D$4,(YEAR($A39)-1921)*12+MONTH($A39)+3+IF(ISNUMBER(FIND("PRV",D$6)),1,0)))*IF(AND(D$3>0,TRIM(D$9)="CFS"),Conversions!$C39,1) -> 0 | E39: =INDIRECT(CONCATENATE("'",E$1,"'!",E$4,(YEAR($A39)-1921)*12+MONTH($A39)+3+IF(ISNUMBER(FIND("PRV",E$6)),1,0)))*IF(AND(E$3>0,TRIM(E$9)="CFS"),Conversions!$C39,1) -> 0 | F39: =INDIRECT(CONCATENATE("'",F$1,"'!",F$4,(YEAR($A39)-1921)*12+MONTH($A39)+3+IF(ISNUMBER(FIND("PRV",F$6)),1,0)))*IF(AND(F$3>0,TRIM(F$9)="CFS"),Conversions!$C39,1) -> 0 | G39: =INDIRECT(CONCATENATE("'",G$1,"'!",G$4,(YEAR($A39)-1921)*12+MONTH($A39)+3+IF(ISNUMBER(FIND("PRV",G$6)),1,0)))*IF(AND(G$3>0,TRIM(G$9)="CFS"),Conversions!$C39,1) ->  | K39: 1949 | L39: =B337 -> 0 | M39: =B338 -> 0 | N39: =B339 -> 0 | O39: =B340 -> 0 | P39: =B341 -> 0 | Q39: =B342 -> 0 | R39: =B343 -> 0 | S39: =B344 -> 0 | T39: =B345 -> 0 | U39: =B346 -> 0 | V39: =B347 -> 0 | W39: =B348 -> 0 | Y39: 0 | Z39: 0 | AA39: 0 | AC39: 0 | AD39: 0 | AE39: 0 | AF39: 0 | AG39: 0 | AH39: 0 | AI39: 0 | AK39: 1949 | AL39: =C337 -> 0 | AM39: =C338 -> 0 | AN39: =C339 -> 0 | AO39: =C340 -> 0 | AP39: =C341 -> 0 | AQ39: =C342 -> 213.9292562 | AR39: =C343 -> 0 | AS39: =C344 -> 0 | AT39: =C345 -> 0 | AU39: =C346 -> 0 | AV39: =C347 -> 0 | AW39: =C348 -> 0 | AY39: 213.9292562 | AZ39: 356.8169195 | BA39: 213.9292562 | BC39: 213.9292562 | BD39: 0 | BE39: 0 | BF39: 0 | BG39: 213.9292562 | BH39: 0 | BI39: 0 | BK39: 1949 | BL39: =D337 -> 0 | BM39: =D338 -> 0 | BN39: =D339 -> 0 | BO39: =D340 -> 0 | BP39: =D341 -> 0 | BQ39: =D342 -> 213.9292562 | BR39: =D343 -> 0 | BS39: =D344 -> 0 | BT39: =D345 -> 0 | BU39: =D346 -> 0 | BV39: =D347 -> 0 | BW39: =D348 -> 0 | BY39: 213.9292562 | BZ39: 356.7934871 | CA39: 213.9292562 | CC39: 213.9292562 | CD39: 0 | CE39: 0 | CF39: 0 | CG39: 213.9292562 | CH39: 0 | CI39: 0 | CK39: 1949 | CL39: =E337 -> 0 | CM39: =E338 -> 0 | CN39: =E339 -> 0 | CO39: =E340 -> 0 | CP39: =E341 -> 0 | CQ39: =E342 -> 213.9292562 | CR39: =E343 -> 0 | CS39: =E344 -> 0 | CT39: =E345 -> 0 | CU39: =E346 -> 0 | CV39: =E347 -> 0 | CW39: =E348 -> 0 | CY39: 213.9292562 | CZ39: 356.0080275 | DA39: 213.9292562 | DC39: 213.9292562 | DD39: 0 | DE39: 0 | DF39: 0 | DG39: 213.9292562 | DH39: 0 | DI39: 0 | DK39: 1949 | DL39: =F337 -> 0 | DM39: =F338 -> 0 | DN39: =F339 -> 0 | DO39: =F340 -> 0 | DP39: =F341 -> 0 | DQ39: =F342 -> 213.9292562 | DR39: =F343 -> 0 | DS39: =F344 -> 0 | DT39: =F345 -> 0 | DU39: =F346 -> 0 | DV39: =F347 -> 0 | DW39: =F348 -> 0 | DY39: 213.9292562 | DZ39: 356.0079834 | EA39: 213.9292562 | EC39: 213.9292562 | ED39: 0 | EE39: 0 | EF39: 0 | EG39: 213.9292562 | EH39: 0 | EI39: 0 | EK39: 1949 | EL39: =G337 ->  | EM39: =G338 ->  | EN39: =G339 ->  | EO39: =G340 ->  | EP39: =G341 ->  | EQ39: =G342 ->  | ER39: =G343 ->  | ES39: =G344 ->  | ET39: =G345 ->  | EU39: =G346 ->  | EV39: =G347 ->  | EW39: =G348 -> 
A40: 1924-01-31 | B40: =INDIRECT(CONCATENATE("'",B$1,"'!",B$4,(YEAR($A40)-1921)*12+MONTH($A40)+3+IF(ISNUMBER(FIND("PRV",B$6)),1,0)))*IF(AND(B$3>0,TRIM(B$9)="CFS"),Conversions!$C40,1) -> 0 | C40: =INDIRECT(CONCATENATE("'",C$1,"'!",C$4,(YEAR($A40)-1921)*12+MONTH($A40)+3+IF(ISNUMBER(FIND("PRV",C$6)),1,0)))*IF(AND(C$3>0,TRIM(C$9)="CFS"),Conversions!$C40,1) -> 0 | D40: =INDIRECT(CONCATENATE("'",D$1,"'!",D$4,(YEAR($A40)-1921)*12+MONTH($A40)+3+IF(ISNUMBER(FIND("PRV",D$6)),1,0)))*IF(AND(D$3>0,TRIM(D$9)="CFS"),Conversions!$C40,1) -> 0 | E40: =INDIRECT(CONCATENATE("'",E$1,"'!",E$4,(YEAR($A40)-1921)*12+MONTH($A40)+3+IF(ISNUMBER(FIND("PRV",E$6)),1,0)))*IF(AND(E$3>0,TRIM(E$9)="CFS"),Conversions!$C40,1) -> 0 | F40: =INDIRECT(CONCATENATE("'",F$1,"'!",F$4,(YEAR($A40)-1921)*12+MONTH($A40)+3+IF(ISNUMBER(FIND("PRV",F$6)),1,0)))*IF(AND(F$3>0,TRIM(F$9)="CFS"),Conversions!$C40,1) -> 0 | G40: =INDIRECT(CONCATENATE("'",G$1,"'!",G$4,(YEAR($A40)-1921)*12+MONTH($A40)+3+IF(ISNUMBER(FIND("PRV",G$6)),1,0)))*IF(AND(G$3>0,TRIM(G$9)="CFS"),Conversions!$C40,1) ->  | K40: 1950 | L40: =B349 -> 0 | M40: =B350 -> 0 | N40: =B351 -> 0 | O40: =B352 -> 0 | P40: =B353 -> 0 | Q40: =B354 -> 0 | R40: =B355 -> 0 | S40: =B356 -> 0 | T40: =B357 -> 0 | U40: =B358 -> 0 | V40: =B359 -> 0 | W40: =B360 -> 0 | Y40: 0 | Z40: 0 | AA40: 0 | AC40: 0 | AD40: 0 | AE40: 0 | AF40: 0 | AG40: 0 | AH40: 0 | AI40: 0 | AK40: 1950 | AL40: =C349 -> 0 | AM40: =C350 -> 0 | AN40: =C351 -> 0 | AO40: =C352 -> 0 | AP40: =C353 -> 142.8876633 | AQ40: =C354 -> 0 | AR40: =C355 -> 0 | AS40: =C356 -> 0 | AT40: =C357 -> 0 | AU40: =C358 -> 0 | AV40: =C359 -> 0 | AW40: =C360 -> 0 | AY40: 449.8070787 | AZ40: 699.8132997 | BA40: 142.8876633 | BC40: 142.8876633 | BD40: 0 | BE40: 0 | BF40: 142.8876633 | BG40: 0 | BH40: 0 | BI40: 91.03644018 | BK40: 1950 | BL40: =D349 -> 0 | BM40: =D350 -> 0 | BN40: =D351 -> 0 | BO40: =D352 -> 0 | BP40: =D353 -> 142.8642309 | BQ40: =D354 -> 0 | BR40: =D355 -> 0 | BS40: =D356 -> 0 | BT40: =D357 -> 0 | BU40: =D358 -> 0 | BV40: =D359 -> 0 | BW40: =D360 -> 0 | BY40: 450.0242881 | BZ40: 700.0539415 | CA40: 142.8642309 | CC40: 142.8642309 | CD40: 0 | CE40: 0 | CF40: 142.8642309 | CG40: 0 | CH40: 0 | CI40: 91.277082 | CK40: 1950 | CL40: =E349 -> 0 | CM40: =E350 -> 0 | CN40: =E351 -> 0 | CO40: =E352 -> 0 | CP40: =E353 -> 142.0787713 | CQ40: =E354 -> 0 | CR40: =E355 -> 0 | CS40: =E356 -> 0 | CT40: =E357 -> 0 | CU40: =E358 -> 0 | CV40: =E359 -> 0 | CW40: =E360 -> 0 | CY40: 449.2053074 | CZ40: 700.0204205 | DA40: 142.0787713 | DC40: 142.0787713 | DD40: 0 | DE40: 0 | DF40: 142.0787713 | DG40: 0 | DH40: 0 | DI40: 91.24356098 | DK40: 1950 | DL40: =F349 -> 0 | DM40: =F350 -> 0 | DN40: =F351 -> 0 | DO40: =F352 -> 0 | DP40: =F353 -> 142.0787272 | DQ40: =F354 -> 0 | DR40: =F355 -> 0 | DS40: =F356 -> 0 | DT40: =F357 -> 0 | DU40: =F358 -> 0 | DV40: =F359 -> 0 | DW40: =F360 -> 0 | DY40: 449.2051322 | DZ40: 700.0202893 | EA40: 142.0787272 | EC40: 142.0787272 | ED40: 0 | EE40: 0 | EF40: 142.0787272 | EG40: 0 | EH40: 0 | EI40: 91.24342982 | EK40: 1950 | EL40: =G349 ->  | EM40: =G350 ->  | EN40: =G351 ->  | EO40: =G352 ->  | EP40: =G353 ->  | EQ40: =G354 ->  | ER40: =G355 ->  | ES40: =G356 ->  | ET40: =G357 ->  | EU40: =G358 ->  | EV40: =G359 ->  | EW40: =G360 -> 
A41: 1924-02-29 | B41: =INDIRECT(CONCATENATE("'",B$1,"'!",B$4,(YEAR($A41)-1921)*12+MONTH($A41)+3+IF(ISNUMBER(FIND("PRV",B$6)),1,0)))*IF(AND(B$3>0,TRIM(B$9)="CFS"),Conversions!$C41,1) -> 0 | C41: =INDIRECT(CONCATENATE("'",C$1,"'!",C$4,(YEAR($A41)-1921)*12+MONTH($A41)+3+IF(ISNUMBER(FIND("PRV",C$6)),1,0)))*IF(AND(C$3>0,TRIM(C$9)="CFS"),Conversions!$C41,1) -> 0 | D41: =INDIRECT(CONCATENATE("'",D$1,"'!",D$4,(YEAR($A41)-1921)*12+MONTH($A41)+3+IF(ISNUMBER(FIND("PRV",D$6)),1,0)))*IF(AND(D$3>0,TRIM(D$9)="CFS"),Conversions!$C41,1) -> 0 | E41: =INDIRECT(CONCATENATE("'",E$1,"'!",E$4,(YEAR($A41)-1921)*12+MONTH($A41)+3+IF(ISNUMBER(FIND("PRV",E$6)),1,0)))*IF(AND(E$3>0,TRIM(E$9)="CFS"),Conversions!$C41,1) -> 0 | F41: =INDIRECT(CONCATENATE("'",F$1,"'!",F$4,(YEAR($A41)-1921)*12+MONTH($A41)+3+IF(ISNUMBER(FIND("PRV",F$6)),1,0)))*IF(AND(F$3>0,TRIM(F$9)="CFS"),Conversions!$C41,1) -> 0 | G41: =INDIRECT(CONCATENATE("'",G$1,"'!",G$4,(YEAR($A41)-1921)*12+MONTH($A41)+3+IF(ISNUMBER(FIND("PRV",G$6)),1,0)))*IF(AND(G$3>0,TRIM(G$9)="CFS"),Conversions!$C41,1) ->  | K41: 1951 | L41: =B361 -> 0 | M41: =B362 -> 0 | N41: =B363 -> 0 | O41: =B364 -> 0 | P41: =B365 -> 0 | Q41: =B366 -> 0 | R41: =B367 -> 0 | S41: =B368 -> 0 | T41: =B369 -> 0 | U41: =B370 -> 0 | V41: =B371 -> 0 | W41: =B372 -> 0 | Y41: 0 | Z41: 0 | AA41: 0 | AC41: 0 | AD41: 0 | AE41: 0 | AF41: 0 | AG41: 0 | AH41: 0 | AI41: 0 | AK41: 1951 | AL41: =C361 -> 0 | AM41: =C362 -> 91.03644018 | AN41: =C363 -> 215.8829752 | AO41: =C364 -> 203.6231405 | AP41: =C365 -> 189.2707438 | AQ41: =C366 -> 19.95297807 | AR41: =C367 -> 0 | AS41: =C368 -> 0 | AT41: =C369 -> 0 | AU41: =C370 -> 0 | AV41: =C371 -> 0 | AW41: =C372 -> 0 | AY41: 621.7658706 | AZ41: 625.9311599 | BA41: 719.7662778 | BC41: 719.7662778 | BD41: 0 | BE41: 510.5425559 | BF41: 608.7768595 | BG41: 19.95297807 | BH41: 0 | BI41: 0 | BK41: 1951 | BL41: =D361 -> 0 | BM41: =D362 -> 91.277082 | BN41: =D363 -> 215.8829752 | BO41: =D364 -> 203.6231405 | BP41: =D365 -> 189.2707438 | BQ41: =D366 -> 19.93286363 | BR41: =D367 -> 0 | BS41: =D368 -> 0 | BT41: =D369 -> 0 | BU41: =D370 -> 0 | BV41: =D371 -> 0 | BW41: =D372 -> 0 | BY41: 621.7457562 | BZ41: 625.9110455 | CA41: 719.9868051 | CC41: 719.9868051 | CD41: 0 | CE41: 510.7831977 | CF41: 608.7768595 | CG41: 19.93286363 | CH41: 0 | CI41: 0 | CK41: 1951 | CL41: =E361 -> 0 | CM41: =E362 -> 91.24356098 | CN41: =E363 -> 215.8829752 | CO41: =E364 -> 203.6231405 | CP41: =E365 -> 189.2707438 | CQ41: =E366 -> 19.93445707 | CR41: =E367 -> 0 | CS41: =E368 -> 0 | CT41: =E369 -> 0 | CU41: =E370 -> 0 | CV41: =E371 -> 0 | CW41: =E372 -> 0 | CY41: 621.7473496 | CZ41: 625.9126389 | DA41: 719.9548776 | DC41: 719.9548776 | DD41: 0 | DE41: 510.7496767 | DF41: 608.7768595 | DG41: 19.93445707 | DH41: 0 | DI41: 0 | DK41: 1951 | DL41: =F361 -> 0 | DM41: =F362 -> 91.24342982 | DN41: =F363 -> 215.8829752 | DO41: =F364 -> 203.6231405 | DP41: =F365 -> 189.2707438 | DQ41: =F366 -> 19.93444623 | DR41: =F367 -> 0 | DS41: =F368 -> 0 | DT41: =F369 -> 0 | DU41: =F370 -> 0 | DV41: =F371 -> 0 | DW41: =F372 -> 0 | DY41: 621.7473388 | DZ41: 625.912628 | EA41: 719.9547356 | EC41: 719.9547356 | ED41: 0 | EE41: 510.7495455 | EF41: 608.7768595 | EG41: 19.93444623 | EH41: 0 | EI41: 0 | EK41: 1951 | EL41: =G361 ->  | EM41: =G362 ->  | EN41: =G363 ->  | EO41: =G364 ->  | EP41: =G365 ->  | EQ41: =G366 ->  | ER41: =G367 ->  | ES41: =G368 ->  | ET41: =G369 ->  | EU41: =G370 ->  | EV41: =G371 ->  | EW41: =G372 -> 
A42: 1924-03-31 | B42: =INDIRECT(CONCATENATE("'",B$1,"'!",B$4,(YEAR($A42)-1921)*12+MONTH($A42)+3+IF(ISNUMBER(FIND("PRV",B$6)),1,0)))*IF(AND(B$3>0,TRIM(B$9)="CFS"),Conversions!$C42,1) -> 0 | C42: =INDIRECT(CONCATENATE("'",C$1,"'!",C$4,(YEAR($A42)-1921)*12+MONTH($A42)+3+IF(ISNUMBER(FIND("PRV",C$6)),1,0)))*IF(AND(C$3>0,TRIM(C$9)="CFS"),Conversions!$C42,1) -> 0 | D42: =INDIRECT(CONCATENATE("'",D$1,"'!",D$4,(YEAR($A42)-1921)*12+MONTH($A42)+3+IF(ISNUMBER(FIND("PRV",D$6)),1,0)))*IF(AND(D$3>0,TRIM(D$9)="CFS"),Conversions!$C42,1) -> 0 | E42: =INDIRECT(CONCATENATE("'",E$1,"'!",E$4,(YEAR($A42)-1921)*12+MONTH($A42)+3+IF(ISNUMBER(FIND("PRV",E$6)),1,0)))*IF(AND(E$3>0,TRIM(E$9)="CFS"),Conversions!$C42,1) -> 0 | F42: =INDIRECT(CONCATENATE("'",F$1,"'!",F$4,(YEAR($A42)-1921)*12+MONTH($A42)+3+IF(ISNUMBER(FIND("PRV",F$6)),1,0)))*IF(AND(F$3>0,TRIM(F$9)="CFS"),Conversions!$C42,1) -> 0 | G42: =INDIRECT(CONCATENATE("'",G$1,"'!",G$4,(YEAR($A42)-1921)*12+MONTH($A42)+3+IF(ISNUMBER(FIND("PRV",G$6)),1,0)))*IF(AND(G$3>0,TRIM(G$9)="CFS"),Conversions!$C42,1) ->  | K42: 1952 | L42: =B373 -> 0 | M42: =B374 -> 0 | N42: =B375 -> 0 | O42: =B376 -> 0 | P42: =B377 -> 0 | Q42: =B378 -> 0 | R42: =B379 -> 0 | S42: =B380 -> 0 | T42: =B381 -> 0 | U42: =B382 -> 0 | V42: =B383 -> 0 | W42: =B384 -> 0 | Y42: 0 | Z42: 0 | AA42: 0 | AC42: 0 | AD42: 0 | AE42: 0 | AF42: 0 | AG42: 0 | AH42: 0 | AI42: 0 | AK42: 1952 | AL42: =C373 -> 0 | AM42: =C374 -> 0 | AN42: =C375 -> 208.9190083 | AO42: =C376 -> 203.6231405 | AP42: =C377 -> 193.4360331 | AQ42: =C378 -> 142.5282776 | AR42: =C379 -> 3.601339812 | AS42: =C380 -> 0 | AT42: =C381 -> 0 | AU42: =C382 -> 0 | AV42: =C383 -> 0 | AW42: =C384 -> 0.000267687636 | AY42: 639.5447267 | AZ42: 242.4855531 | BA42: 752.108067 | BC42: 748.5064595 | BD42: 0.000267687636 | BE42: 412.5421488 | BF42: 605.9781818 | BG42: 146.1296175 | BH42: 0.000267687636 | BI42: 0.000267687636 | BK42: 1952 | BL42: =D373 -> 0 | BM42: =D374 -> 0 | BN42: =D375 -> 208.9190083 | BO42: =D376 -> 203.6231405 | BP42: =D377 -> 193.4360331 | BQ42: =D378 -> 140.9006508 | BR42: =D379 -> 3.778860148 | BS42: =D380 -> 0 | BT42: =D381 -> 0 | BU42: =D382 -> 0 | BV42: =D383 -> 0 | BW42: =D384 -> 0.0002652319506 | BY42: 665.4884999 | BZ42: 268.4293263 | CA42: 750.657958 | CC42: 746.8788326 | CD42: 0.0002652319506 | CE42: 412.5421488 | CF42: 605.9781818 | CG42: 144.679511 | CH42: 0.0002652319506 | CI42: 0.0002652319506 | CK42: 1952 | CL42: =E373 -> 0 | CM42: =E374 -> 0 | CN42: =E375 -> 208.9190083 | CO42: =E376 -> 203.6231405 | CP42: =E377 -> 193.4360331 | CQ42: =E378 -> 119.6975689 | CR42: =E379 -> 4.100706987 | CS42: =E380 -> 0 | CT42: =E381 -> 0 | CU42: =E382 -> 0 | CV42: =E383 -> 0 | CW42: =E384 -> 0.0002621888607 | CY42: 644.289057 | CZ42: 247.2298834 | DA42: 729.7767199 | DC42: 725.6757507 | DD42: 0.0002621888607 | DE42: 412.5421488 | DF42: 605.9781818 | DG42: 123.7982759 | DH42: 0.0002621888607 | DI42: 0.0002621888607 | DK42: 1952 | DL42: =F373 -> 0 | DM42: =F374 -> 0 | DN42: =F375 -> 208.9190083 | DO42: =F376 -> 203.6231405 | DP42: =F377 -> 193.4360331 | DQ42: =F378 -> 119.835112 | DR42: =F379 -> 4.100706987 | DS42: =F380 -> 0 | DT42: =F381 -> 0 | DU42: =F382 -> 0 | DV42: =F383 -> 0 | DW42: =F384 -> 0.0002621888608 | DY42: 644.4266001 | DZ42: 247.3674265 | EA42: 729.914263 | EC42: 725.8132938 | ED42: 0.0002621888608 | EE42: 412.5421488 | EF42: 605.9781818 | EG42: 123.935819 | EH42: 0.0002621888608 | EI42: 0.0002621888608 | EK42: 1952 | EL42: =G373 ->  | EM42: =G374 ->  | EN42: =G375 ->  | EO42: =G376 ->  | EP42: =G377 ->  | EQ42: =G378 ->  | ER42: =G379 ->  | ES42: =G380 ->  | ET42: =G381 ->  | EU42: =G382 ->  | EV42: =G383 ->  | EW42: =G384 -> 
A43: 1924-04-30 | B43: =INDIRECT(CONCATENATE("'",B$1,"'!",B$4,(YEAR($A43)-1921)*12+MONTH($A43)+3+IF(ISNUMBER(FIND("PRV",B$6)),1,0)))*IF(AND(B$3>0,TRIM(B$9)="CFS"),Conversions!$C43,1) -> 0 | C43: =INDIRECT(CONCATENATE("'",C$1,"'!",C$4,(YEAR($A43)-1921)*12+MONTH($A43)+3+IF(ISNUMBER(FIND("PRV",C$6)),1,0)))*IF(AND(C$3>0,TRIM(C$9)="CFS"),Conversions!$C43,1) -> 0 | D43: =INDIRECT(CONCATENATE("'",D$1,"'!",D$4,(YEAR($A43)-1921)*12+MONTH($A43)+3+IF(ISNUMBER(FIND("PRV",D$6)),1,0)))*IF(AND(D$3>0,TRIM(D$9)="CFS"),Conversions!$C43,1) -> 0 | E43: =INDIRECT(CONCATENATE("'",E$1,"'!",E$4,(YEAR($A43)-1921)*12+MONTH($A43)+3+IF(ISNUMBER(FIND("PRV",E$6)),1,0)))*IF(AND(E$3>0,TRIM(E$9)="CFS"),Conversions!$C43,1) -> 0 | F43: =INDIRECT(CONCATENATE("'",F$1,"'!",F$4,(YEAR($A43)-1921)*12+MONTH($A43)+3+IF(ISNUMBER(FIND("PRV",F$6)),1,0)))*IF(AND(F$3>0,TRIM(F$9)="CFS"),Conversions!$C43,1) -> 0 | G43: =INDIRECT(CONCATENATE("'",G$1,"'!",G$4,(YEAR($A43)-1921)*12+MONTH($A43)+3+IF(ISNUMBER(FIND("PRV",G$6)),1,0)))*IF(AND(G$3>0,TRIM(G$9)="CFS"),Conversions!$C43,1) ->  | K43: 1953 | L43: =B385 -> 0 | M43: =B386 -> 0 | N43: =B387 -> 0 | O43: =B388 -> 0 | P43: =B389 -> 0 | Q43: =B390 -> 0 | R43: =B391 -> 0 | S43: =B392 -> 0 | T43: =B393 -> 0 | U43: =B394 -> 0 | V43: =B395 -> 0 | W43: =B396 -> 0 | Y43: 0 | Z43: 0 | AA43: 0 | AC43: 0 | AD43: 0 | AE43: 0 | AF43: 0 | AG43: 0 | AH43: 0 | AI43: 0 | AK43: 1953 | AL43: =C385 -> 0 | AM43: =C386 -> 0 | AN43: =C387 -> 96.355668 | AO43: =C388 -> 0 | AP43: =C389 -> 0 | AQ43: =C390 -> 0 | AR43: =C391 -> 0 | AS43: =C392 -> 0 | AT43: =C393 -> 0 | AU43: =C394 -> 0 | AV43: =C395 -> 0 | AW43: =C396 -> 0 | AY43: 0 | AZ43: 135.2884739 | BA43: 96.355668 | BC43: 96.355668 | BD43: 0 | BE43: 96.355668 | BF43: 96.355668 | BG43: 0 | BH43: 0 | BI43: 0 | BK43: 1953 | BL43: =D385 -> 0 | BM43: =D386 -> 0 | BN43: =D387 -> 123.7495501 | BO43: =D388 -> 0 | BP43: =D389 -> 0 | BQ43: =D390 -> 0 | BR43: =D391 -> 0 | BS43: =D392 -> 0 | BT43: =D393 -> 0 | BU43: =D394 -> 0 | BV43: =D395 -> 0 | BW43: =D396 -> 0 | BY43: 0 | BZ43: 145.8327432 | CA43: 123.7495501 | CC43: 123.7495501 | CD43: 0 | CE43: 123.7495501 | CF43: 123.7495501 | CG43: 0 | CH43: 0 | CI43: 0 | CK43: 1953 | CL43: =E385 -> 0 | CM43: =E386 -> 0 | CN43: =E387 -> 123.4313454 | CO43: =E388 -> 0 | CP43: =E389 -> 0 | CQ43: =E390 -> 0 | CR43: =E391 -> 0 | CS43: =E392 -> 0 | CT43: =E393 -> 0 | CU43: =E394 -> 0 | CV43: =E395 -> 0 | CW43: =E396 -> 0 | CY43: 0 | CZ43: 145.0718187 | DA43: 123.4313454 | DC43: 123.4313454 | DD43: 0 | DE43: 123.4313454 | DF43: 123.4313454 | DG43: 0 | DH43: 0 | DI43: 0 | DK43: 1953 | DL43: =F385 -> 0 | DM43: =F386 -> 0 | DN43: =F387 -> 123.4313454 | DO43: =F388 -> 0 | DP43: =F389 -> 0 | DQ43: =F390 -> 0 | DR43: =F391 -> 0 | DS43: =F392 -> 0 | DT43: =F393 -> 0 | DU43: =F394 -> 0 | DV43: =F395 -> 0 | DW43: =F396 -> 0 | DY43: 0 | DZ43: 144.2463297 | EA43: 123.4313454 | EC43: 123.4313454 | ED43: 0 | EE43: 123.4313454 | EF43: 123.4313454 | EG43: 0 | EH43: 0 | EI43: 0 | EK43: 1953 | EL43: =G385 ->  | EM43: =G386 ->  | EN43: =G387 ->  | EO43: =G388 ->  | EP43: =G389 ->  | EQ43: =G390 ->  | ER43: =G391 ->  | ES43: =G392 ->  | ET43: =G393 ->  | EU43: =G394 ->  | EV43: =G395 ->  | EW43: =G396 -> 
A44: 1924-05-31 | B44: =INDIRECT(CONCATENATE("'",B$1,"'!",B$4,(YEAR($A44)-1921)*12+MONTH($A44)+3+IF(ISNUMBER(FIND("PRV",B$6)),1,0)))*IF(AND(B$3>0,TRIM(B$9)="CFS"),Conversions!$C44,1) -> 0 | C44: =INDIRECT(CONCATENATE("'",C$1,"'!",C$4,(YEAR($A44)-1921)*12+MONTH($A44)+3+IF(ISNUMBER(FIND("PRV",C$6)),1,0)))*IF(AND(C$3>0,TRIM(C$9)="CFS"),Conversions!$C44,1) -> 0 | D44: =INDIRECT(CONCATENATE("'",D$1,"'!",D$4,(YEAR($A44)-1921)*12+MONTH($A44)+3+IF(ISNUMBER(FIND("PRV",D$6)),1,0)))*IF(AND(D$3>0,TRIM(D$9)="CFS"),Conversions!$C44,1) -> 0 | E44: =INDIRECT(CONCATENATE("'",E$1,"'!",E$4,(YEAR($A44)-1921)*12+MONTH($A44)+3+IF(ISNUMBER(FIND("PRV",E$6)),1,0)))*IF(AND(E$3>0,TRIM(E$9)="CFS"),Conversions!$C44,1) -> 0 | F44: =INDIRECT(CONCATENATE("'",F$1,"'!",F$4,(YEAR($A44)-1921)*12+MONTH($A44)+3+IF(ISNUMBER(FIND("PRV",F$6)),1,0)))*IF(AND(F$3>0,TRIM(F$9)="CFS"),Conversions!$C44,1) -> 0 | G44: =INDIRECT(CONCATENATE("'",G$1,"'!",G$4,(YEAR($A44)-1921)*12+MONTH($A44)+3+IF(ISNUMBER(FIND("PRV",G$6)),1,0)))*IF(AND(G$3>0,TRIM(G$9)="CFS"),Conversions!$C44,1) ->  | K44: 1954 | L44: =B397 -> 0 | M44: =B398 -> 0 | N44: =B399 -> 0 | O44: =B400 -> 0 | P44: =B401 -> 0 | Q44: =B402 -> 0 | R44: =B403 -> 0 | S44: =B404 -> 0 | T44: =B405 -> 0 | U44: =B406 -> 0 | V44: =B407 -> 0 | W44: =B408 -> 0 | Y44: 0 | Z44: 0 | AA44: 0 | AC44: 0 | AD44: 0 | AE44: =IF(AE$11="AVG",IF(AE$1="INST-VAL",AVERAGE(W43,L44:N44,L44:O44),AVERAGE(L44:O44)),SUM(L44:O44)) -> 0 | AF44: 0 | AG44: 0 | AH44: 0 | AI44: 0 | AK44: 1954 | AL44: =C397 -> 0 | AM44: =C398 -> 0 | AN44: =C399 -> 0 | AO44: =C400 -> 135.2884739 | AP44: =C401 -> 0 | AQ44: =C402 -> 0 | AR44: =C403 -> 0 | AS44: =C404 -> 0 | AT44: =C405 -> 0 | AU44: =C406 -> 0 | AV44: =C407 -> 0 | AW44: =C408 -> 0 | AY44: 257.894074 | AZ44: 122.6056001 | BA44: 135.2884739 | BC44: 135.2884739 | BD44: 0 | BE44: 135.2884739 | BF44: 135.2884739 | BG44: 0 | BH44: 0 | BI44: 0 | BK44: 1954 | BL44: =D397 -> 0 | BM44: =D398 -> 0 | BN44: =D399 -> 0 | BO44: =D400 -> 145.8327432 | BP44: =D401 -> 0 | BQ44: =D402 -> 0 | BR44: =D403 -> 0 | BS44: =D404 -> 0 | BT44: =D405 -> 0 | BU44: =D406 -> 0 | BV44: =D407 -> 0 | BW44: =D408 -> 0 | BY44: 208.6602579 | BZ44: 62.82751468 | CA44: 145.8327432 | CC44: 145.8327432 | CD44: 0 | CE44: =IF(CE$11="AVG",IF(CE$1="INST-VAL",AVERAGE(BW43,BL44:BN44,BL44:BO44),AVERAGE(BL44:BO44)),SUM(BL44:BO44)) -> 145.8327432 | CF44: =IF(CF$11="AVG",IF(CE$1="INST-VAL",AVERAGE(BM44:BO44,BN44:BP44),AVERAGE(BN44:BP44)),SUM(BN44:BP44)) -> 145.8327432 | CG44: =IF(CG$11="AVG",IF(CE$1="INST-VAL",AVERAGE(BP44:BS44,BQ44:BT44),AVERAGE(BQ44:BT44)),SUM(BQ44:BT44)) -> 0 | CH44: =IF(CH$11="AVG",IF(CE$1="INST-VAL",AVERAGE(BS44:BV44,BT44:BW44),AVERAGE(BT44:BW44)),SUM(BT44:BW44)) -> 0 | CI44: =IF(CI$11="AVG",IF(CE$1="INST-VAL",AVERAGE(BV44:BW44,BL45,BW44,BL45:BM45),AVERAGE(BW44,BL45:BM45)),SUM(BW44,BL45:BM45)) -> 0 | CK44: 1954 | CL44: =E397 -> 0 | CM44: =E398 -> 0 | CN44: =E399 -> 0 | CO44: =E400 -> 145.0718187 | CP44: =E401 -> 0 | CQ44: =E402 -> 0 | CR44: =E403 -> 0 | CS44: =E404 -> 0 | CT44: =E405 -> 0 | CU44: =E406 -> 0 | CV44: =E407 -> 0 | CW44: =E408 -> 0 | CY44: 165.7080889 | CZ44: 20.63627019 | DA44: 145.0718187 | DC44: 145.0718187 | DD44: 0 | DE44: 145.0718187 | DF44: 145.0718187 | DG44: 0 | DH44: 0 | DI44: 0 | DK44: 1954 | DL44: =F397 -> 0 | DM44: =F398 -> 0 | DN44: =F399 -> 0 | DO44: =F400 -> 144.2463297 | DP44: =F401 -> 0 | DQ44: =F402 -> 0 | DR44: =F403 -> 0 | DS44: =F404 -> 0 | DT44: =F405 -> 0 | DU44: =F406 -> 0 | DV44: =F407 -> 0 | DW44: =F408 -> 0 | DY44: 153.096617 | DZ44: 8.85028729 | EA44: 144.2463297 | EC44: 144.2463297 | ED44: 0 | EE44: 144.2463297 | EF44: 144.2463297 | EG44: 0 | EH44: 0 | EI44: 0 | EK44: 1954 | EL44: =G397 ->  | EM44: =G398 ->  | EN44: =G399 ->  | EO44: =G400 ->  | EP44: =G401 ->  | EQ44: =G402 ->  | ER44: =G403 ->  | ES44: =G404 ->  | ET44: =G405 ->  | EU44: =G406 ->  | EV44: =G407 ->  | EW44: =G408 -> 
A45: 1924-06-30 | B45: =INDIRECT(CONCATENATE("'",B$1,"'!",B$4,(YEAR($A45)-1921)*12+MONTH($A45)+3+IF(ISNUMBER(FIND("PRV",B$6)),1,0)))*IF(AND(B$3>0,TRIM(B$9)="CFS"),Conversions!$C45,1) -> 0 | C45: =INDIRECT(CONCATENATE("'",C$1,"'!",C$4,(YEAR($A45)-1921)*12+MONTH($A45)+3+IF(ISNUMBER(FIND("PRV",C$6)),1,0)))*IF(AND(C$3>0,TRIM(C$9)="CFS"),Conversions!$C45,1) -> 0 | D45: =INDIRECT(CONCATENATE("'",D$1,"'!",D$4,(YEAR($A45)-1921)*12+MONTH($A45)+3+IF(ISNUMBER(FIND("PRV",D$6)),1,0)))*IF(AND(D$3>0,TRIM(D$9)="CFS"),Conversions!$C45,1) -> 0 | E45: =INDIRECT(CONCATENATE("'",E$1,"'!",E$4,(YEAR($A45)-1921)*12+MONTH($A45)+3+IF(ISNUMBER(FIND("PRV",E$6)),1,0)))*IF(AND(E$3>0,TRIM(E$9)="CFS"),Conversions!$C45,1) -> 0 | F45: =INDIRECT(CONCATENATE("'",F$1,"'!",F$4,(YEAR($A45)-1921)*12+MONTH($A45)+3+IF(ISNUMBER(FIND("PRV",F$6)),1,0)))*IF(AND(F$3>0,TRIM(F$9)="CFS"),Conversions!$C45,1) -> 0 | G45: =INDIRECT(CONCATENATE("'",G$1,"'!",G$4,(YEAR($A45)-1921)*12+MONTH($A45)+3+IF(ISNUMBER(FIND("PRV",G$6)),1,0)))*IF(AND(G$3>0,TRIM(G$9)="CFS"),Conversions!$C45,1) ->  | K45: 1955 | L45: =B409 -> 0 | M45: =B410 -> 0 | N45: =B411 -> 0 | O45: =B412 -> 0 | P45: =B413 -> 0 | Q45: =B414 -> 0 | R45: =B415 -> 0 | S45: =B416 -> 0 | T45: =B417 -> 0 | U45: =B418 -> 0 | V45: =B419 -> 0 | W45: =B420 -> 0 | Y45: 0 | Z45: 0 | AA45: 0 | AC45: 0 | AD45: 0 | AE45: 0 | AF45: 0 | AG45: 0 | AH45: 0 | AI45: 0 | AK45: 1955 | AL45: =C409 -> 0 | AM45: =C410 -> 0 | AN45: =C411 -> 122.6056001 | AO45: =C412 -> 0 | AP45: =C413 -> 0 | AQ45: =C414 -> 0 | AR45: =C415 -> 0 | AS45: =C416 -> 0 | AT45: =C417 -> 0 | AU45: =C418 -> 0 | AV45: =C419 -> 0 | AW45: =C420 -> 0 | AY45: 167.1352066 | AZ45: 564.1943802 | BA45: 122.6056001 | BC45: 122.6056001 | BD45: 0 | BE45: 122.6056001 | BF45: 122.6056001 | BG45: 0 | BH45: 0 | BI45: 0 | BK45: 1955 | BL45: =D409 -> 0 | BM45: =D410 -> 0 | BN45: =D411 -> 62.82751468 | BO45: =D412 -> 0 | BP45: =D413 -> 0 | BQ45: =D414 -> 0 | BR45: =D415 -> 0 | BS45: =D416 -> 0 | BT45: =D417 -> 0 | BU45: =D418 -> 0 | BV45: =D419 -> 0 | BW45: =D420 -> 0 | BY45: 167.1352066 | BZ45: 564.1943802 | CA45: 62.82751468 | CC45: 62.82751468 | CD45: 0 | CE45: 62.82751468 | CF45: 62.82751468 | CG45: 0 | CH45: 0 | CI45: 0 | CK45: 1955 | CL45: =E409 -> 0 | CM45: =E410 -> 0 | CN45: =E411 -> 20.63627019 | CO45: =E412 -> 0 | CP45: =E413 -> 0 | CQ45: =E414 -> 0 | CR45: =E415 -> 0 | CS45: =E416 -> 0 | CT45: =E417 -> 0 | CU45: =E418 -> 0 | CV45: =E419 -> 0 | CW45: =E420 -> 0 | CY45: 167.1352066 | CZ45: 564.1943802 | DA45: 20.63627019 | DC45: 20.63627019 | DD45: 0 | DE45: 20.63627019 | DF45: 20.63627019 | DG45: 0 | DH45: 0 | DI45: 0 | DK45: 1955 | DL45: =F409 -> 0 | DM45: =F410 -> 0 | DN45: =F411 -> 8.85028729 | DO45: =F412 -> 0 | DP45: =F413 -> 0 | DQ45: =F414 -> 0 | DR45: =F415 -> 0 | DS45: =F416 -> 0 | DT45: =F417 -> 0 | DU45: =F418 -> 0 | DV45: =F419 -> 0 | DW45: =F420 -> 0 | DY45: 167.1352066 | DZ45: 564.1943802 | EA45: 8.85028729 | EC45: 8.85028729 | ED45: 0 | EE45: 8.85028729 | EF45: 8.85028729 | EG45: 0 | EH45: 0 | EI45: 0 | EK45: 1955 | EL45: =G409 ->  | EM45: =G410 ->  | EN45: =G411 ->  | EO45: =G412 ->  | EP45: =G413 ->  | EQ45: =G414 ->  | ER45: =G415 ->  | ES45: =G416 ->  | ET45: =G417 ->  | EU45: =G418 ->  | EV45: =G419 ->  | EW45: =G420 -> 
A46: 1924-07-31 | B46: =INDIRECT(CONCATENATE("'",B$1,"'!",B$4,(YEAR($A46)-1921)*12+MONTH($A46)+3+IF(ISNUMBER(FIND("PRV",B$6)),1,0)))*IF(AND(B$3>0,TRIM(B$9)="CFS"),Conversions!$C46,1) -> 0 | C46: =INDIRECT(CONCATENATE("'",C$1,"'!",C$4,(YEAR($A46)-1921)*12+MONTH($A46)+3+IF(ISNUMBER(FIND("PRV",C$6)),1,0)))*IF(AND(C$3>0,TRIM(C$9)="CFS"),Conversions!$C46,1) -> 0 | D46: =INDIRECT(CONCATENATE("'",D$1,"'!",D$4,(YEAR($A46)-1921)*12+MONTH($A46)+3+IF(ISNUMBER(FIND("PRV",D$6)),1,0)))*IF(AND(D$3>0,TRIM(D$9)="CFS"),Conversions!$C46,1) -> 0 | E46: =INDIRECT(CONCATENATE("'",E$1,"'!",E$4,(YEAR($A46)-1921)*12+MONTH($A46)+3+IF(ISNUMBER(FIND("PRV",E$6)),1,0)))*IF(AND(E$3>0,TRIM(E$9)="CFS"),Conversions!$C46,1) -> 0 | F46: =INDIRECT(CONCATENATE("'",F$1,"'!",F$4,(YEAR($A46)-1921)*12+MONTH($A46)+3+IF(ISNUMBER(FIND("PRV",F$6)),1,0)))*IF(AND(F$3>0,TRIM(F$9)="CFS"),Conversions!$C46,1) -> 0 | G46: =INDIRECT(CONCATENATE("'",G$1,"'!",G$4,(YEAR($A46)-1921)*12+MONTH($A46)+3+IF(ISNUMBER(FIND("PRV",G$6)),1,0)))*IF(AND(G$3>0,TRIM(G$9)="CFS"),Conversions!$C46,1) ->  | K46: 1956 | L46: =B421 -> 0 | M46: =B422 -> 0 | N46: =B423 -> 0 | O46: =B424 -> 0 | P46: =B425 -> 0 | Q46: =B426 -> 0 | R46: =B427 -> 0 | S46: =B428 -> 0 | T46: =B429 -> 0 | U46: =B430 -> 0 | V46: =B431 -> 0 | W46: =B432 -> 0 | Y46: 0 | Z46: 0 | AA46: 0 | AC46: 0 | AD46: 0 | AE46: 0 | AF46: 0 | AG46: 0 | AH46: 0 | AI46: 0 | AK46: 1956 | AL46: =C421 -> 0 | AM46: =C422 -> 0 | AN46: =C423 -> 167.1352066 | AO46: =C424 -> 203.6231405 | AP46: =C425 -> 193.4360331 | AQ46: =C426 -> 159.7699557 | AR46: =C427 -> 0 | AS46: =C428 -> 0 | AT46: =C429 -> 0 | AU46: =C430 -> 0 | AV46: =C431 -> 0 | AW46: =C432 -> 0.0003284051571 | AY46: 556.8294577 | AZ46: 191.3034818 | BA46: 723.9646643 | BC46: 723.9643359 | BD46: 0.0003284051571 | BE46: 370.7583471 | BF46: 564.1943802 | BG46: 159.7699557 | BH46: 0.0003284051571 | BI46: 0.0003284051571 | BK46: 1956 | BL46: =D421 -> 0 | BM46: =D422 -> 0 | BN46: =D423 -> 167.1352066 | BO46: =D424 -> 203.6231405 | BP46: =D425 -> 193.4360331 | BQ46: =D426 -> 159.7440186 | BR46: =D427 -> 0 | BS46: =D428 -> 0 | BT46: =D429 -> 0 | BU46: =D430 -> 0 | BV46: =D431 -> 0 | BW46: =D432 -> 0.0003121892909 | BY46: 556.8035044 | BZ46: 182.9102871 | CA46: 723.938711 | CC46: 723.9383988 | CD46: 0.0003121892909 | CE46: 370.7583471 | CF46: 564.1943802 | CG46: 159.7440186 | CH46: 0.0003121892909 | CI46: 0.0003121892909 | CK46: 1956 | CL46: =E421 -> 0 | CM46: =E422 -> 0 | CN46: =E423 -> 167.1352066 | CO46: =E424 -> 203.6231405 | CP46: =E425 -> 193.4360331 | CQ46: =E426 -> 159.5731854 | CR46: =E427 -> 0 | CS46: =E428 -> 0 | CT46: =E429 -> 0 | CU46: =E430 -> 0 | CV46: =E431 -> 0 | CW46: =E432 -> 0.0002953784333 | CY46: 556.6326543 | CZ46: 180.1251876 | DA46: 723.7678609 | DC46: 723.7675655 | DD46: 0.0002953784333 | DE46: 370.7583471 | DF46: 564.1943802 | DG46: 159.5731854 | DH46: 0.0002953784333 | DI46: 0.0002953784333 | DK46: 1956 | DL46: =F421 -> 0 | DM46: =F422 -> 0 | DN46: =F423 -> 167.1352066 | DO46: =F424 -> 203.6231405 | DP46: =F425 -> 193.4360331 | DQ46: =F426 -> 154.340405 | DR46: =F427 -> 0 | DS46: =F428 -> 0 | DT46: =F429 -> 0 | DU46: =F430 -> 0 | DV46: =F431 -> 0 | DW46: =F432 -> 0.0002830354727 | DY46: 551.3998616 | DZ46: 174.8875867 | EA46: 718.5350682 | EC46: 718.5347852 | ED46: 0.0002830354727 | EE46: 370.7583471 | EF46: 564.1943802 | EG46: 154.340405 | EH46: 0.0002830354727 | EI46: 0.0002830354727 | EK46: 1956 | EL46: =G421 ->  | EM46: =G422 ->  | EN46: =G423 ->  | EO46: =G424 ->  | EP46: =G425 ->  | EQ46: =G426 ->  | ER46: =G427 ->  | ES46: =G428 ->  | ET46: =G429 ->  | EU46: =G430 ->  | EV46: =G431 ->  | EW46: =G432 -> 
A47: 1924-08-31 | B47: =INDIRECT(CONCATENATE("'",B$1,"'!",B$4,(YEAR($A47)-1921)*12+MONTH($A47)+3+IF(ISNUMBER(FIND("PRV",B$6)),1,0)))*IF(AND(B$3>0,TRIM(B$9)="CFS"),Conversions!$C47,1) -> 0 | C47: =INDIRECT(CONCATENATE("'",C$1,"'!",C$4,(YEAR($A47)-1921)*12+MONTH($A47)+3+IF(ISNUMBER(FIND("PRV",C$6)),1,0)))*IF(AND(C$3>0,TRIM(C$9)="CFS"),Conversions!$C47,1) -> 0 | D47: =INDIRECT(CONCATENATE("'",D$1,"'!",D$4,(YEAR($A47)-1921)*12+MONTH($A47)+3+IF(ISNUMBER(FIND("PRV",D$6)),1,0)))*IF(AND(D$3>0,TRIM(D$9)="CFS"),Conversions!$C47,1) -> 0 | E47: =INDIRECT(CONCATENATE("'",E$1,"'!",E$4,(YEAR($A47)-1921)*12+MONTH($A47)+3+IF(ISNUMBER(FIND("PRV",E$6)),1,0)))*IF(AND(E$3>0,TRIM(E$9)="CFS"),Conversions!$C47,1) -> 0 | F47: =INDIRECT(CONCATENATE("'",F$1,"'!",F$4,(YEAR($A47)-1921)*12+MONTH($A47)+3+IF(ISNUMBER(FIND("PRV",F$6)),1,0)))*IF(AND(F$3>0,TRIM(F$9)="CFS"),Conversions!$C47,1) -> 0 | G47: =INDIRECT(CONCATENATE("'",G$1,"'!",G$4,(YEAR($A47)-1921)*12+MONTH($A47)+3+IF(ISNUMBER(FIND("PRV",G$6)),1,0)))*IF(AND(G$3>0,TRIM(G$9)="CFS"),Conversions!$C47,1) ->  | K47: 1957 | L47: =B433 -> 0 | M47: =B434 -> 0 | N47: =B435 -> 0 | O47: =B436 -> 0 | P47: =B437 -> 0 | Q47: =B438 -> 0 | R47: =B439 -> 0 | S47: =B440 -> 0 | T47: =B441 -> 0 | U47: =B442 -> 0 | V47: =B443 -> 0 | W47: =B444 -> 0 | Y47: 0 | Z47: 0 | AA47: 0 | AC47: 0 | AD47: 0 | AE47: 0 | AF47: 0 | AG47: 0 | AH47: 0 | AI47: 0 | AK47: 1957 | AL47: =C433 -> 0 | AM47: =C434 -> 0 | AN47: =C435 -> 0 | AO47: =C436 -> 0 | AP47: =C437 -> 31.53319765 | AQ47: =C438 -> 213.9292562 | AR47: =C439 -> 0 | AS47: =C440 -> 0 | AT47: =C441 -> 0 | AU47: =C442 -> 0 | AV47: =C443 -> 0 | AW47: =C444 -> 0.0003094611062 | AY47: 495.8823802 | AZ47: 820.0459278 | BA47: 245.4627633 | BC47: 245.4624538 | BD47: 67.07853076 | BE47: 0 | BF47: 31.53319765 | BG47: 213.9292562 | BH47: 0.0003094611062 | BI47: 67.07853076 | BK47: 1957 | BL47: =D433 -> 0 | BM47: =D434 -> 0 | BN47: =D435 -> 0 | BO47: =D436 -> 0 | BP47: =D437 -> 23.16595627 | BQ47: =D438 -> 213.9292562 | BR47: =D439 -> 0 | BS47: =D440 -> 0 | BT47: =D441 -> 0 | BU47: =D442 -> 0 | BV47: =D443 -> 0 | BW47: =D444 -> 97.50226955 | BY47: 583.8684522 | BZ47: 646.7284742 | CA47: 334.597482 | CC47: 237.0952125 | CD47: 168.8935499 | CE47: 0 | CF47: 23.16595627 | CG47: 213.9292562 | CH47: 97.50226955 | CI47: 168.8935499 | CK47: 1957 | CL47: =E433 -> 0 | CM47: =E434 -> 0 | CN47: =E435 -> 0 | CO47: =E436 -> 0 | CP47: =E437 -> 20.55170681 | CQ47: =E438 -> 211.804708 | CR47: =E439 -> 0 | CS47: =E440 -> 0 | CT47: =E441 -> 0 | CU47: =E442 -> 0 | CV47: =E443 -> 0 | CW47: =E444 -> 0 | CY47: 486.6498791 | CZ47: 502.8751227 | DA47: 232.3564148 | DC47: 232.3564148 | DD47: 73.18530877 | DE47: 0 | DF47: 20.55170681 | DG47: 211.804708 | DH47: 0 | DI47: 73.18530877 | DK47: 1957 | DL47: =F433 -> 0 | DM47: =F434 -> 0 | DN47: =F435 -> 0 | DO47: =F436 -> 0 | DP47: =F437 -> 20.54689867 | DQ47: =F438 -> 119.2131872 | DR47: =F439 -> 0 | DS47: =F440 -> 0 | DT47: =F441 -> 0 | DU47: =F442 -> 0 | DV47: =F443 -> 0 | DW47: =F444 -> 0 | DY47: 326.9270747 | DZ47: 306.3801761 | EA47: 139.7600859 | EC47: 139.7600859 | ED47: 60.08103864 | EE47: 0 | EF47: 20.54689867 | EG47: 119.2131872 | EH47: 0 | EI47: 60.08103864 | EK47: 1957 | EL47: =G433 ->  | EM47: =G434 ->  | EN47: =G435 ->  | EO47: =G436 ->  | EP47: =G437 ->  | EQ47: =G438 ->  | ER47: =G439 ->  | ES47: =G440 ->  | ET47: =G441 ->  | EU47: =G442 ->  | EV47: =G443 ->  | EW47: =G444 -> 
A48: 1924-09-30 | B48: =INDIRECT(CONCATENATE("'",B$1,"'!",B$4,(YEAR($A48)-1921)*12+MONTH($A48)+3+IF(ISNUMBER(FIND("PRV",B$6)),1,0)))*IF(AND(B$3>0,TRIM(B$9)="CFS"),Conversions!$C48,1) -> 0 | C48: =INDIRECT(CONCATENATE("'",C$1,"'!",C$4,(YEAR($A48)-1921)*12+MONTH($A48)+3+IF(ISNUMBER(FIND("PRV",C$6)),1,0)))*IF(AND(C$3>0,TRIM(C$9)="CFS"),Conversions!$C48,1) -> 0 | D48: =INDIRECT(CONCATENATE("'",D$1,"'!",D$4,(YEAR($A48)-1921)*12+MONTH($A48)+3+IF(ISNUMBER(FIND("PRV",D$6)),1,0)))*IF(AND(D$3>0,TRIM(D$9)="CFS"),Conversions!$C48,1) -> 0 | E48: =INDIRECT(CONCATENATE("'",E$1,"'!",E$4,(YEAR($A48)-1921)*12+MONTH($A48)+3+IF(ISNUMBER(FIND("PRV",E$6)),1,0)))*IF(AND(E$3>0,TRIM(E$9)="CFS"),Conversions!$C48,1) -> 0 | F48: =INDIRECT(CONCATENATE("'",F$1,"'!",F$4,(YEAR($A48)-1921)*12+MONTH($A48)+3+IF(ISNUMBER(FIND("PRV",F$6)),1,0)))*IF(AND(F$3>0,TRIM(F$9)="CFS"),Conversions!$C48,1) -> 0 | G48: =INDIRECT(CONCATENATE("'",G$1,"'!",G$4,(YEAR($A48)-1921)*12+MONTH($A48)+3+IF(ISNUMBER(FIND("PRV",G$6)),1,0)))*IF(AND(G$3>0,TRIM(G$9)="CFS"),Conversions!$C48,1) ->  | K48: 1958 | L48: =B445 -> 0 | M48: =B446 -> 0 | N48: =B447 -> 0 | O48: =B448 -> 0 | P48: =B449 -> 0 | Q48: =B450 -> 0 | R48: =B451 -> 0 | S48: =B452 -> 0 | T48: =B453 -> 0 | U48: =B454 -> 0 | V48: =B455 -> 0 | W48: =B456 -> 0 | Y48: 0 | Z48: 0 | AA48: 0 | AC48: 0 | AD48: 0 | AE48: 0 | AF48: 0 | AG48: 0 | AH48: 0 | AI48: 0 | AK48: 1958 | AL48: =C445 -> 67.0782213 | AM48: =C446 -> 0 | AN48: =C447 -> 183.3413956 | AO48: =C448 -> 203.6231405 | AP48: =C449 -> 152.0736047 | AQ48: =C450 -> 0 | AR48: =C451 -> 2.384621479 | AS48: =C452 -> 0 | AT48: =C453 -> 0 | AU48: =C454 -> 0 | AV48: =C455 -> 0 | AW48: =C456 -> 0.0002622025051 | AY48: 358.0816289 | AZ48: 141.6991792 | BA48: 608.5012458 | BC48: 539.0381408 | BD48: 0.0002622025051 | BE48: 454.0427574 | BF48: 539.0381408 | BG48: 2.384621479 | BH48: 0.0002622025051 | BI48: 0.0002622025051 | BK48: 1958 | BL48: =D445 -> 71.39128034 | BM48: =D446 -> 0 | BN48: =D447 -> 177.8796899 | BO48: =D448 -> 86.02597825 | BP48: =D449 -> 0 | BQ48: =D450 -> 0 | BR48: =D451 -> 2.145598344 | BS48: =D452 -> 0 | BT48: =D453 -> 0 | BU48: =D454 -> 0 | BV48: =D455 -> 0 | BW48: =D456 -> 0.0002598015247 | BY48: 88.1718364 | BZ48: 141.6976859 | CA48: 337.4428066 | CC48: 263.9056681 | CD48: 0.0002598015247 | CE48: 335.2969485 | CF48: 263.9056681 | CG48: 2.145598344 | CH48: 0.0002598015247 | CI48: 0.0002598015247 | CK48: 1958 | CL48: =E445 -> 73.18530877 | CM48: =E446 -> 0 | CN48: =E447 -> 181.1081555 | CO48: =E448 -> 0 | CP48: =E449 -> 36.77695035 | CQ48: =E450 -> 0 | CR48: =E451 -> 2.38460692 | CS48: =E452 -> 0 | CT48: =E453 -> 0 | CU48: =E454 -> 0 | CV48: =E455 -> 0 | CW48: =E456 -> 0.000256829097 | CY48: 39.1618141 | CZ48: 141.7025805 | DA48: 293.4552784 | DC48: 217.8851059 | DD48: 0.000256829097 | DE48: 254.2934643 | DF48: 217.8851059 | DG48: 2.38460692 | DH48: 0.000256829097 | DI48: 0.000256829097 | DK48: 1958 | DL48: =F445 -> 60.08103864 | DM48: =F446 -> 0 | DN48: =F447 -> 127.0859502 | DO48: =F448 -> 0 | DP48: =F449 -> 0 | DQ48: =F450 -> 0 | DR48: =F451 -> 2.38460692 | DS48: =F452 -> 0 | DT48: =F453 -> 0 | DU48: =F454 -> 0 | DV48: =F455 -> 0 | DW48: =F456 -> 0.000256829097 | DY48: 2.384863749 | DZ48: 141.7056172 | EA48: 189.5518526 | EC48: 127.0859502 | ED48: 0.000256829097 | EE48: 187.1669888 | EF48: 127.0859502 | EG48: 2.38460692 | EH48: 0.000256829097 | EI48: 0.000256829097 | EK48: 1958 | EL48: =G445 ->  | EM48: =G446 ->  | EN48: =G447 ->  | EO48: =G448 ->  | EP48: =G449 ->  | EQ48: =G450 ->  | ER48: =G451 ->  | ES48: =G452 ->  | ET48: =G453 ->  | EU48: =G454 ->  | EV48: =G455 ->  | EW48: =G456 -> 
A49: 1924-10-31 | B49: =INDIRECT(CONCATENATE("'",B$1,"'!",B$4,(YEAR($A49)-1921)*12+MONTH($A49)+3+IF(ISNUMBER(FIND("PRV",B$6)),1,0)))*IF(AND(B$3>0,TRIM(B$9)="CFS"),Conversions!$C49,1) -> 0 | C49: =INDIRECT(CONCATENATE("'",C$1,"'!",C$4,(YEAR($A49)-1921)*12+MONTH($A49)+3+IF(ISNUMBER(FIND("PRV",C$6)),1,0)))*IF(AND(C$3>0,TRIM(C$9)="CFS"),Conversions!$C49,1) -> 0 | D49: =INDIRECT(CONCATENATE("'",D$1,"'!",D$4,(YEAR($A49)-1921)*12+MONTH($A49)+3+IF(ISNUMBER(FIND("PRV",D$6)),1,0)))*IF(AND(D$3>0,TRIM(D$9)="CFS"),Conversions!$C49,1) -> 0 | E49: =INDIRECT(CONCATENATE("'",E$1,"'!",E$4,(YEAR($A49)-1921)*12+MONTH($A49)+3+IF(ISNUMBER(FIND("PRV",E$6)),1,0)))*IF(AND(E$3>0,TRIM(E$9)="CFS"),Conversions!$C49,1) -> 0 | F49: =INDIRECT(CONCATENATE("'",F$1,"'!",F$4,(YEAR($A49)-1921)*12+MONTH($A49)+3+IF(ISNUMBER(FIND("PRV",F$6)),1,0)))*IF(AND(F$3>0,TRIM(F$9)="CFS"),Conversions!$C49,1) -> 0 | G49: =INDIRECT(CONCATENATE("'",G$1,"'!",G$4,(YEAR($A49)-1921)*12+MONTH($A49)+3+IF(ISNUMBER(FIND("PRV",G$6)),1,0)))*IF(AND(G$3>0,TRIM(G$9)="CFS"),Conversions!$C49,1) ->  | K49: 1959 | L49: =B457 -> 0 | M49: =B458 -> 0 | N49: =B459 -> 0 | O49: =B460 -> 0 | P49: =B461 -> 0 | Q49: =B462 -> 0 | R49: =B463 -> 0 | S49: =B464 -> 0 | T49: =B465 -> 0 | U49: =B466 -> 0 | V49: =B467 -> 0 | W49: =B468 -> 0 | Y49: 0 | Z49: 0 | AA49: 0 | AC49: 0 | AD49: 0 | AE49: 0 | AF49: 0 | AG49: 0 | AH49: 0 | AI49: 0 | AK49: 1959 | AL49: =C457 -> 0 | AM49: =C458 -> 0 | AN49: =C459 -> 0 | AO49: =C460 -> 139.3142956 | AP49: =C461 -> 0 | AQ49: =C462 -> 0 | AR49: =C463 -> 0 | AS49: =C464 -> 0 | AT49: =C465 -> 0 | AU49: =C466 -> 0 | AV49: =C467 -> 0 | AW49: =C468 -> 0 | AY49: 139.3142956 | AZ49: 125.9202672 | BA49: 139.3142956 | BC49: 139.3142956 | BD49: 0 | BE49: 139.3142956 | BF49: 139.3142956 | BG49: 0 | BH49: 0 | BI49: 0 | BK49: 1959 | BL49: =D457 -> 0 | BM49: =D458 -> 0 | BN49: =D459 -> 0 | BO49: =D460 -> 139.5518277 | BP49: =D461 -> 0 | BQ49: =D462 -> 0 | BR49: =D463 -> 0 | BS49: =D464 -> 0 | BT49: =D465 -> 0 | BU49: =D466 -> 0 | BV49: =D467 -> 0 | BW49: =D468 -> 0 | BY49: 139.5518277 | BZ49: 125.0008373 | CA49: 139.5518277 | CC49: 139.5518277 | CD49: 0 | CE49: 139.5518277 | CF49: 139.5518277 | CG49: 0 | CH49: 0 | CI49: 0 | CK49: 1959 | CL49: =E457 -> 0 | CM49: =E458 -> 0 | CN49: =E459 -> 0 | CO49: =E460 -> 139.3177168 | CP49: =E461 -> 0 | CQ49: =E462 -> 0 | CR49: =E463 -> 0 | CS49: =E464 -> 0 | CT49: =E465 -> 0 | CU49: =E466 -> 0 | CV49: =E467 -> 0 | CW49: =E468 -> 0 | CY49: 139.3177168 | CZ49: 124.9221181 | DA49: 139.3177168 | DC49: 139.3177168 | DD49: 0 | DE49: 139.3177168 | DF49: 139.3177168 | DG49: 0 | DH49: 0 | DI49: 0 | DK49: 1959 | DL49: =F457 -> 0 | DM49: =F458 -> 0 | DN49: =F459 -> 0 | DO49: =F460 -> 139.3207534 | DP49: =F461 -> 0 | DQ49: =F462 -> 0 | DR49: =F463 -> 0 | DS49: =F464 -> 0 | DT49: =F465 -> 0 | DU49: =F466 -> 0 | DV49: =F467 -> 0 | DW49: =F468 -> 0 | DY49: 139.3207534 | DZ49: 124.7748035 | EA49: 139.3207534 | EC49: 139.3207534 | ED49: 0 | EE49: 139.3207534 | EF49: 139.3207534 | EG49: 0 | EH49: 0 | EI49: 0 | EK49: 1959 | EL49: =G457 ->  | EM49: =G458 ->  | EN49: =G459 ->  | EO49: =G460 ->  | EP49: =G461 ->  | EQ49: =G462 ->  | ER49: =G463 ->  | ES49: =G464 ->  | ET49: =G465 ->  | EU49: =G466 ->  | EV49: =G467 ->  | EW49: =G468 -> 
A50: 1924-11-30 | B50: =INDIRECT(CONCATENATE("'",B$1,"'!",B$4,(YEAR($A50)-1921)*12+MONTH($A50)+3+IF(ISNUMBER(FIND("PRV",B$6)),1,0)))*IF(AND(B$3>0,TRIM(B$9)="CFS"),Conversions!$C50,1) -> 0 | C50: =INDIRECT(CONCATENATE("'",C$1,"'!",C$4,(YEAR($A50)-1921)*12+MONTH($A50)+3+IF(ISNUMBER(FIND("PRV",C$6)),1,0)))*IF(AND(C$3>0,TRIM(C$9)="CFS"),Conversions!$C50,1) -> 0 | D50: =INDIRECT(CONCATENATE("'",D$1,"'!",D$4,(YEAR($A50)-1921)*12+MONTH($A50)+3+IF(ISNUMBER(FIND("PRV",D$6)),1,0)))*IF(AND(D$3>0,TRIM(D$9)="CFS"),Conversions!$C50,1) -> 0 | E50: =INDIRECT(CONCATENATE("'",E$1,"'!",E$4,(YEAR($A50)-1921)*12+MONTH($A50)+3+IF(ISNUMBER(FIND("PRV",E$6)),1,0)))*IF(AND(E$3>0,TRIM(E$9)="CFS"),Conversions!$C50,1) -> 0 | F50: =INDIRECT(CONCATENATE("'",F$1,"'!",F$4,(YEAR($A50)-1921)*12+MONTH($A50)+3+IF(ISNUMBER(FIND("PRV",F$6)),1,0)))*IF(AND(F$3>0,TRIM(F$9)="CFS"),Conversions!$C50,1) -> 0 | G50: =INDIRECT(CONCATENATE("'",G$1,"'!",G$4,(YEAR($A50)-1921)*12+MONTH($A50)+3+IF(ISNUMBER(FIND("PRV",G$6)),1,0)))*IF(AND(G$3>0,TRIM(G$9)="CFS"),Conversions!$C50,1) ->  | K50: 1960 | L50: =B469 -> 0 | M50: =B470 -> 0 | N50: =B471 -> 0 | O50: =B472 -> 0 | P50: =B473 -> 0 | Q50: =B474 -> 0 | R50: =B475 -> 0 | S50: =B476 -> 0 | T50: =B477 -> 0 | U50: =B478 -> 0 | V50: =B479 -> 0 | W50: =B480 -> 0 | Y50: 0 | Z50: 0 | AA50: 0 | AC50: 0 | AD50: 0 | AE50: 0 | AF50: 0 | AG50: 0 | AH50: 0 | AI50: 0 | AK50: 1960 | AL50: =C469 -> 0 | AM50: =C470 -> 0 | AN50: =C471 -> 0 | AO50: =C472 -> 0 | AP50: =C473 -> 125.9202672 | AQ50: =C474 -> 206.4450821 | AR50: =C475 -> 0 | AS50: =C476 -> 0 | AT50: =C477 -> 0 | AU50: =C478 -> 0 | AV50: =C479 -> 0 | AW50: =C480 -> 0 | AY50: 509.2746267 | AZ50: 568.1146901 | BA50: 332.3653493 | BC50: 332.3653493 | BD50: 0 | BE50: 0 | BF50: 125.9202672 | BG50: 206.4450821 | BH50: 0 | BI50: 0 | BK50: 1960 | BL50: =D469 -> 0 | BM50: =D470 -> 0 | BN50: =D471 -> 0 | BO50: =D472 -> 0 | BP50: =D473 -> 125.0008373 | BQ50: =D474 -> 213.9292562 | BR50: =D475 -> 0 | BS50: =D476 -> 0 | BT50: =D477 -> 0 | BU50: =D478 -> 0 | BV50: =D479 -> 0 | BW50: =D480 -> 0 | BY50: 509.8150263 | BZ50: 569.5745196 | CA50: 338.9300935 | CC50: 338.9300935 | CD50: 0 | CE50: 0 | CF50: 125.0008373 | CG50: 213.9292562 | CH50: 0 | CI50: 0 | CK50: 1960 | CL50: =E469 -> 0 | CM50: =E470 -> 0 | CN50: =E471 -> 0 | CO50: =E472 -> 0 | CP50: =E473 -> 124.9221181 | CQ50: =E474 -> 123.5007938 | CR50: =E475 -> 0 | CS50: =E476 -> 0 | CT50: =E477 -> 0 | CU50: =E478 -> 0 | CV50: =E479 -> 0 | CW50: =E480 -> 0 | CY50: 390.1731232 | CZ50: 450.0113356 | DA50: 248.4229119 | DC50: 248.4229119 | DD50: 0 | DE50: 0 | DF50: 124.9221181 | DG50: 123.5007938 | DH50: 0 | DI50: 0 | DK50: 1960 | DL50: =F469 -> 0 | DM50: =F470 -> 0 | DN50: =F471 -> 0 | DO50: =F472 -> 0 | DP50: =F473 -> 124.7748035 | DQ50: =F474 -> 92.867145 | DR50: =F475 -> 0 | DS50: =F476 -> 0 | DT50: =F477 -> 0 | DU50: =F478 -> 0 | DV50: =F479 -> 0 | DW50: =F480 -> 0 | DY50: 356.6581925 | DZ50: 416.6437196 | EA50: 217.6419485 | EC50: 217.6419485 | ED50: 0 | EE50: 0 | EF50: 124.7748035 | EG50: 92.867145 | EH50: 0 | EI50: 0 | EK50: 1960 | EL50: =G469 ->  | EM50: =G470 ->  | EN50: =G471 ->  | EO50: =G472 ->  | EP50: =G473 ->  | EQ50: =G474 ->  | ER50: =G475 ->  | ES50: =G476 ->  | ET50: =G477 ->  | EU50: =G478 ->  | EV50: =G479 ->  | EW50: =G480 -> 
A51: 1924-12-31 | B51: =INDIRECT(CONCATENATE("'",B$1,"'!",B$4,(YEAR($A51)-1921)*12+MONTH($A51)+3+IF(ISNUMBER(FIND("PRV",B$6)),1,0)))*IF(AND(B$3>0,TRIM(B$9)="CFS"),Conversions!$C51,1) -> 0 | C51: =INDIRECT(CONCATENATE("'",C$1,"'!",C$4,(YEAR($A51)-1921)*12+MONTH($A51)+3+IF(ISNUMBER(FIND("PRV",C$6)),1,0)))*IF(AND(C$3>0,TRIM(C$9)="CFS"),Conversions!$C51,1) -> 0 | D51: =INDIRECT(CONCATENATE("'",D$1,"'!",D$4,(YEAR($A51)-1921)*12+MONTH($A51)+3+IF(ISNUMBER(FIND("PRV",D$6)),1,0)))*IF(AND(D$3>0,TRIM(D$9)="CFS"),Conversions!$C51,1) -> 0 | E51: =INDIRECT(CONCATENATE("'",E$1,"'!",E$4,(YEAR($A51)-1921)*12+MONTH($A51)+3+IF(ISNUMBER(FIND("PRV",E$6)),1,0)))*IF(AND(E$3>0,TRIM(E$9)="CFS"),Conversions!$C51,1) -> 0 | F51: =INDIRECT(CONCATENATE("'",F$1,"'!",F$4,(YEAR($A51)-1921)*12+MONTH($A51)+3+IF(ISNUMBER(FIND("PRV",F$6)),1,0)))*IF(AND(F$3>0,TRIM(F$9)="CFS"),Conversions!$C51,1) -> 0 | G51: =INDIRECT(CONCATENATE("'",G$1,"'!",G$4,(YEAR($A51)-1921)*12+MONTH($A51)+3+IF(ISNUMBER(FIND("PRV",G$6)),1,0)))*IF(AND(G$3>0,TRIM(G$9)="CFS"),Conversions!$C51,1) ->  | K51: 1961 | L51: =B481 -> 0 | M51: =B482 -> 0 | N51: =B483 -> 0 | O51: =B484 -> 0 | P51: =B485 -> 0 | Q51: =B486 -> 0 | R51: =B487 -> 0 | S51: =B488 -> 0 | T51: =B489 -> 0 | U51: =B490 -> 0 | V51: =B491 -> 0 | W51: =B492 -> 0 | Y51: 0 | Z51: 0 | AA51: 0 | AC51: 0 | AD51: 0 | AE51: 0 | AF51: 0 | AG51: 0 | AH51: 0 | AI51: 0 | AK51: 1961 | AL51: =C481 -> 0 | AM51: =C482 -> 0 | AN51: =C483 -> 176.9092774 | AO51: =C484 -> 0 | AP51: =C485 -> 184.7603306 | AQ51: =C486 -> 0 | AR51: =C487 -> 0 | AS51: =C488 -> 0 | AT51: =C489 -> 0 | AU51: =C490 -> 0 | AV51: =C491 -> 0 | AW51: =C492 -> 0 | AY51: 184.7603306 | AZ51: 157.3884298 | BA51: 361.669608 | BC51: 361.669608 | BD51: 0 | BE51: 176.9092774 | BF51: 361.669608 | BG51: 0 | BH51: 0 | BI51: 0 | BK51: 1961 | BL51: =D481 -> 0 | BM51: =D482 -> 0 | BN51: =D483 -> 170.8849328 | BO51: =D484 -> 0 | BP51: =D485 -> 184.7603306 | BQ51: =D486 -> 0 | BR51: =D487 -> 0 | BS51: =D488 -> 0 | BT51: =D489 -> 0 | BU51: =D490 -> 0 | BV51: =D491 -> 0 | BW51: =D492 -> 0 | BY51: 184.7603306 | BZ51: 157.3884298 | CA51: 355.6452634 | CC51: 355.6452634 | CD51: 0 | CE51: 170.8849328 | CF51: 355.6452634 | CG51: 0 | CH51: 0 | CI51: 0 | CK51: 1961 | CL51: =E481 -> 0 | CM51: =E482 -> 0 | CN51: =E483 -> 141.7502113 | CO51: =E484 -> 0 | CP51: =E485 -> 184.7603306 | CQ51: =E486 -> 0 | CR51: =E487 -> 0 | CS51: =E488 -> 0 | CT51: =E489 -> 0 | CU51: =E490 -> 0 | CV51: =E491 -> 0 | CW51: =E492 -> 0 | CY51: 184.7603306 | CZ51: 157.3884298 | DA51: 326.5105419 | DC51: 326.5105419 | DD51: 0 | DE51: 141.7502113 | DF51: 326.5105419 | DG51: 0 | DH51: 0 | DI51: 0 | DK51: 1961 | DL51: =F481 -> 0 | DM51: =F482 -> 0 | DN51: =F483 -> 139.016244 | DO51: =F484 -> 0 | DP51: =F485 -> 184.7603306 | DQ51: =F486 -> 0 | DR51: =F487 -> 0 | DS51: =F488 -> 0 | DT51: =F489 -> 0 | DU51: =F490 -> 0 | DV51: =F491 -> 0 | DW51: =F492 -> 0 | DY51: 184.7603306 | DZ51: 157.3884298 | EA51: 323.7765746 | EC51: 323.7765746 | ED51: 0 | EE51: 139.016244 | EF51: 323.7765746 | EG51: 0 | EH51: 0 | EI51: 0 | EK51: 1961 | EL51: =G481 ->  | EM51: =G482 ->  | EN51: =G483 ->  | EO51: =G484 ->  | EP51: =G485 ->  | EQ51: =G486 ->  | ER51: =G487 ->  | ES51: =G488 ->  | ET51: =G489 ->  | EU51: =G490 ->  | EV51: =G491 ->  | EW51: =G492 -> 
A52: 1925-01-31 | B52: =INDIRECT(CONCATENATE("'",B$1,"'!",B$4,(YEAR($A52)-1921)*12+MONTH($A52)+3+IF(ISNUMBER(FIND("PRV",B$6)),1,0)))*IF(AND(B$3>0,TRIM(B$9)="CFS"),Conversions!$C52,1) -> 0 | C52: =INDIRECT(CONCATENATE("'",C$1,"'!",C$4,(YEAR($A52)-1921)*12+MONTH($A52)+3+IF(ISNUMBER(FIND("PRV",C$6)),1,0)))*IF(AND(C$3>0,TRIM(C$9)="CFS"),Conversions!$C52,1) -> 0 | D52: =INDIRECT(CONCATENATE("'",D$1,"'!",D$4,(YEAR($A52)-1921)*12+MONTH($A52)+3+IF(ISNUMBER(FIND("PRV",D$6)),1,0)))*IF(AND(D$3>0,TRIM(D$9)="CFS"),Conversions!$C52,1) -> 0 | E52: =INDIRECT(CONCATENATE("'",E$1,"'!",E$4,(YEAR($A52)-1921)*12+MONTH($A52)+3+IF(ISNUMBER(FIND("PRV",E$6)),1,0)))*IF(AND(E$3>0,TRIM(E$9)="CFS"),Conversions!$C52,1) -> 0 | F52: =INDIRECT(CONCATENATE("'",F$1,"'!",F$4,(YEAR($A52)-1921)*12+MONTH($A52)+3+IF(ISNUMBER(FIND("PRV",F$6)),1,0)))*IF(AND(F$3>0,TRIM(F$9)="CFS"),Conversions!$C52,1) -> 0 | G52: =INDIRECT(CONCATENATE("'",G$1,"'!",G$4,(YEAR($A52)-1921)*12+MONTH($A52)+3+IF(ISNUMBER(FIND("PRV",G$6)),1,0)))*IF(AND(G$3>0,TRIM(G$9)="CFS"),Conversions!$C52,1) ->  | K52: 1962 | L52: =B493 -> 0 | M52: =B494 -> 0 | N52: =B495 -> 0 | O52: =B496 -> 0 | P52: =B497 -> 0 | Q52: =B498 -> 0 | R52: =B499 -> 0 | S52: =B500 -> 0 | T52: =B501 -> 0 | U52: =B502 -> 0 | V52: =B503 -> 0 | W52: =B504 -> 0 | Y52: 0 | Z52: 0 | AA52: 0 | AC52: 0 | AD52: 0 | AE52: 0 | AF52: 0 | AG52: 0 | AH52: 0 | AI52: 0 | AK52: 1962 | AL52: =C493 -> 0 | AM52: =C494 -> 0 | AN52: =C495 -> 0 | AO52: =C496 -> 0 | AP52: =C497 -> 157.3884298 | AQ52: =C498 -> 97.449043 | AR52: =C499 -> 0 | AS52: =C500 -> 0 | AT52: =C501 -> 0 | AU52: =C502 -> 0 | AV52: =C503 -> 0 | AW52: =C504 -> 0 | AY52: 439.6920313 | AZ52: 471.5743454 | BA52: 254.8374728 | BC52: 254.8374728 | BD52: 23.47840972 | BE52: 0 | BF52: 157.3884298 | BG52: 97.449043 | BH52: 0 | BI52: 23.47840972 | BK52: 1962 | BL52: =D493 -> 0 | BM52: =D494 -> 0 | BN52: =D495 -> 0 | BO52: =D496 -> 0 | BP52: =D497 -> 157.3884298 | BQ52: =D498 -> 96.31442285 | BR52: =D499 -> 0 | BS52: =D500 -> 0 | BT52: =D501 -> 0 | BU52: =D502 -> 0 | BV52: =D503 -> 0 | BW52: =D504 -> 0 | BY52: 463.3396224 | BZ52: 495.2219364 | CA52: 253.7028526 | CC52: 253.7028526 | CD52: 48.14793927 | CE52: 0 | CF52: 157.3884298 | CG52: 96.31442285 | CH52: 0 | CI52: 48.14793927 | CK52: 1962 | CL52: =E493 -> 0 | CM52: =E494 -> 0 | CN52: =E495 -> 0 | CO52: =E496 -> 0 | CP52: =E497 -> 157.3884298 | CQ52: =E498 -> 96.80400772 | CR52: =E499 -> 0 | CS52: =E500 -> 0 | CT52: =E501 -> 0 | CU52: =E502 -> 0 | CV52: =E503 -> 0 | CW52: =E504 -> 0 | CY52: 443.8873248 | CZ52: 475.7696389 | DA52: 254.1924375 | DC52: 254.1924375 | DD52: 28.33889688 | DE52: 0 | DF52: 157.3884298 | DG52: 96.80400772 | DH52: 0 | DI52: 28.33889688 | DK52: 1962 | DL52: =F493 -> 0 | DM52: =F494 -> 0 | DN52: =F495 -> 0 | DO52: =F496 -> 0 | DP52: =F497 -> 157.3884298 | DQ52: =F498 -> 96.80678135 | DR52: =F499 -> 0 | DS52: =F500 -> 0 | DT52: =F501 -> 0 | DU52: =F502 -> 0 | DV52: =F503 -> 0 | DW52: =F504 -> 0 | DY52: 443.1193901 | DZ52: 475.0017042 | EA52: 254.1952111 | EC52: 254.1952111 | ED52: 27.5697048 | EE52: 0 | EF52: 157.3884298 | EG52: 96.80678135 | EH52: 0 | EI52: 27.5697048 | EK52: 1962 | EL52: =G493 ->  | EM52: =G494 ->  | EN52: =G495 ->  | EO52: =G496 ->  | EP52: =G497 ->  | EQ52: =G498 ->  | ER52: =G499 ->  | ES52: =G500 ->  | ET52: =G501 ->  | EU52: =G502 ->  | EV52: =G503 ->  | EW52: =G504 -> 
A53: 1925-02-28 | B53: =INDIRECT(CONCATENATE("'",B$1,"'!",B$4,(YEAR($A53)-1921)*12+MONTH($A53)+3+IF(ISNUMBER(FIND("PRV",B$6)),1,0)))*IF(AND(B$3>0,TRIM(B$9)="CFS"),Conversions!$C53,1) -> 0 | C53: =INDIRECT(CONCATENATE("'",C$1,"'!",C$4,(YEAR($A53)-1921)*12+MONTH($A53)+3+IF(ISNUMBER(FIND("PRV",C$6)),1,0)))*IF(AND(C$3>0,TRIM(C$9)="CFS"),Conversions!$C53,1) -> 164.231405 | D53: =INDIRECT(CONCATENATE("'",D$1,"'!",D$4,(YEAR($A53)-1921)*12+MONTH($A53)+3+IF(ISNUMBER(FIND("PRV",D$6)),1,0)))*IF(AND(D$3>0,TRIM(D$9)="CFS"),Conversions!$C53,1) -> 164.231405 | E53: =INDIRECT(CONCATENATE("'",E$1,"'!",E$4,(YEAR($A53)-1921)*12+MONTH($A53)+3+IF(ISNUMBER(FIND("PRV",E$6)),1,0)))*IF(AND(E$3>0,TRIM(E$9)="CFS"),Conversions!$C53,1) -> 164.231405 | F53: =INDIRECT(CONCATENATE("'",F$1,"'!",F$4,(YEAR($A53)-1921)*12+MONTH($A53)+3+IF(ISNUMBER(FIND("PRV",F$6)),1,0)))*IF(AND(F$3>0,TRIM(F$9)="CFS"),Conversions!$C53,1) -> 164.231405 | G53: =INDIRECT(CONCATENATE("'",G$1,"'!",G$4,(YEAR($A53)-1921)*12+MONTH($A53)+3+IF(ISNUMBER(FIND("PRV",G$6)),1,0)))*IF(AND(G$3>0,TRIM(G$9)="CFS"),Conversions!$C53,1) ->  | K53: 1963 | L53: =B505 -> 0 | M53: =B506 -> 0 | N53: =B507 -> 0 | O53: =B508 -> 0 | P53: =B509 -> 0 | Q53: =B510 -> 0 | R53: =B511 -> 0 | S53: =B512 -> 0 | T53: =B513 -> 0 | U53: =B514 -> 0 | V53: =B515 -> 0 | W53: =B516 -> 0 | Y53: 0 | Z53: 0 | AA53: 0 | AC53: 0 | AD53: 0 | AE53: 0 | AF53: 0 | AG53: 0 | AH53: 0 | AI53: 0 | AK53: 1963 | AL53: =C505 -> 23.47840972 | AM53: =C506 -> 0 | AN53: =C507 -> 161.3761488 | AO53: =C508 -> 0 | AP53: =C509 -> 189.2707438 | AQ53: =C510 -> 75.39880926 | AR53: =C511 -> 225.5097958 | AS53: =C512 -> 0 | AT53: =C513 -> 0 | AU53: =C514 -> 0 | AV53: =C515 -> 0 | AW53: =C516 -> 0 | AY53: 505.331101 | AZ53: 316.0603572 | BA53: 675.0339074 | BC53: 426.0457019 | BD53: 0 | BE53: 184.8545586 | BF53: 350.6468926 | BG53: 300.9086051 | BH53: 0 | BI53: 15.15175218 | BK53: 1963 | BL53: =D505 -> 48.14793927 | BM53: =D506 -> 0 | BN53: =D507 -> 161.4888305 | BO53: =D508 -> 0 | BP53: =D509 -> 189.2707438 | BQ53: =D510 -> 75.40320018 | BR53: =D511 -> 225.5097958 | BS53: =D512 -> 0 | BT53: =D513 -> 0 | BU53: =D514 -> 0 | BV53: =D515 -> 0 | BW53: =D516 -> 0 | BY53: 506.0342051 | BZ53: 316.7634613 | CA53: 699.8205096 | CC53: 426.1627745 | CD53: 0 | CE53: 209.6367698 | CF53: 350.7595743 | CG53: 300.912996 | CH53: 0 | CI53: 15.85046534 | CK53: 1963 | CL53: =E505 -> 28.33889688 | CM53: =E506 -> 0 | CN53: =E507 -> 161.3559905 | CO53: =E508 -> 0 | CP53: =E509 -> 189.2707438 | CQ53: =E510 -> 75.35903662 | CR53: =E511 -> 225.5097958 | CS53: =E512 -> 0 | CT53: =E513 -> 0 | CU53: =E514 -> 0 | CV53: =E515 -> 0 | CW53: =E516 -> 0 | CY53: 502.341225 | CZ53: 313.0704812 | DA53: 679.8344636 | DC53: 425.9857709 | DD53: 0 | DE53: 189.6948874 | DF53: 350.6267343 | DG53: 300.8688324 | DH53: 0 | DI53: 12.20164873 | DK53: 1963 | DL53: =F505 -> 27.5697048 | DM53: =F506 -> 0 | DN53: =F507 -> 161.3544742 | DO53: =F508 -> 0 | DP53: =F509 -> 189.2707438 | DQ53: =F510 -> 75.35876597 | DR53: =F511 -> 225.5097958 | DS53: =F512 -> 0 | DT53: =F513 -> 0 | DU53: =F514 -> 0 | DV53: =F515 -> 0 | DW53: =F516 -> 0 | DY53: 502.0403431 | DZ53: 312.7695993 | EA53: 679.0634846 | EC53: 425.983984 | ED53: 0 | EE53: 188.924179 | EF53: 350.625218 | EG53: 300.8685618 | EH53: 0 | EI53: 11.90103753 | EK53: 1963 | EL53: =G505 ->  | EM53: =G506 ->  | EN53: =G507 ->  | EO53: =G508 ->  | EP53: =G509 ->  | EQ53: =G510 ->  | ER53: =G511 ->  | ES53: =G512 ->  | ET53: =G513 ->  | EU53: =G514 ->  | EV53: =G515 ->  | EW53: =G516 -> 
A54: 1925-03-31 | B54: =INDIRECT(CONCATENATE("'",B$1,"'!",B$4,(YEAR($A54)-1921)*12+MONTH($A54)+3+IF(ISNUMBER(FIND("PRV",B$6)),1,0)))*IF(AND(B$3>0,TRIM(B$9)="CFS"),Conversions!$C54,1) -> 0 | C54: =INDIRECT(CONCATENATE("'",C$1,"'!",C$4,(YEAR($A54)-1921)*12+MONTH($A54)+3+IF(ISNUMBER(FIND("PRV",C$6)),1,0)))*IF(AND(C$3>0,TRIM(C$9)="CFS"),Conversions!$C54,1) -> 0 | D54: =INDIRECT(CONCATENATE("'",D$1,"'!",D$4,(YEAR($A54)-1921)*12+MONTH($A54)+3+IF(ISNUMBER(FIND("PRV",D$6)),1,0)))*IF(AND(D$3>0,TRIM(D$9)="CFS"),Conversions!$C54,1) -> 0 | E54: =INDIRECT(CONCATENATE("'",E$1,"'!",E$4,(YEAR($A54)-1921)*12+MONTH($A54)+3+IF(ISNUMBER(FIND("PRV",E$6)),1,0)))*IF(AND(E$3>0,TRIM(E$9)="CFS"),Conversions!$C54,1) -> 0 | F54: =INDIRECT(CONCATENATE("'",F$1,"'!",F$4,(YEAR($A54)-1921)*12+MONTH($A54)+3+IF(ISNUMBER(FIND("PRV",F$6)),1,0)))*IF(AND(F$3>0,TRIM(F$9)="CFS"),Conversions!$C54,1) -> 0 | G54: =INDIRECT(CONCATENATE("'",G$1,"'!",G$4,(YEAR($A54)-1921)*12+MONTH($A54)+3+IF(ISNUMBER(FIND("PRV",G$6)),1,0)))*IF(AND(G$3>0,TRIM(G$9)="CFS"),Conversions!$C54,1) ->  | K54: 1964 | L54: =B517 -> 0 | M54: =B518 -> 0 | N54: =B519 -> 0 | O54: =B520 -> 0 | P54: =B521 -> 0 | Q54: =B522 -> 0 | R54: =B523 -> 0 | S54: =B524 -> 0 | T54: =B525 -> 0 | U54: =B526 -> 0 | V54: =B527 -> 0 | W54: =B528 -> 0 | Y54: 0 | Z54: 0 | AA54: 0 | AC54: 0 | AD54: 0 | AE54: 0 | AF54: 0 | AG54: 0 | AH54: 0 | AI54: 0 | AK54: 1964 | AL54: =C517 -> 0 | AM54: =C518 -> 15.15175218 | AN54: =C519 -> 0 | AO54: =C520 -> 0 | AP54: =C521 -> 0 | AQ54: =C522 -> 0 | AR54: =C523 -> 0 | AS54: =C524 -> 0 | AT54: =C525 -> 0 | AU54: =C526 -> 0 | AV54: =C527 -> 0 | AW54: =C528 -> 0 | AY54: 138.4211232 | AZ54: 373.0105722 | BA54: 15.15175218 | BC54: 15.15175218 | BD54: 0 | BE54: 15.15175218 | BF54: 0 | BG54: 0 | BH54: 0 | BI54: 0 | BK54: 1964 | BL54: =D517 -> 0 | BM54: =D518 -> 15.85046534 | BN54: =D519 -> 0 | BO54: =D520 -> 0 | BP54: =D521 -> 0 | BQ54: =D522 -> 0 | BR54: =D523 -> 0 | BS54: =D524 -> 0 | BT54: =D525 -> 0 | BU54: =D526 -> 0 | BV54: =D527 -> 0 | BW54: =D528 -> 0 | BY54: 145.4352304 | BZ54: 379.8764526 | CA54: 15.85046534 | CC54: 15.85046534 | CD54: 0 | CE54: 15.85046534 | CF54: 0 | CG54: 0 | CH54: 0 | CI54: 0 | CK54: 1964 | CL54: =E517 -> 0 | CM54: =E518 -> 12.20164873 | CN54: =E519 -> 0 | CO54: =E520 -> 0 | CP54: =E521 -> 0 | CQ54: =E522 -> 0 | CR54: =E523 -> 0 | CS54: =E524 -> 0 | CT54: =E525 -> 0 | CU54: =E526 -> 0 | CV54: =E527 -> 0 | CW54: =E528 -> 0 | CY54: 121.6563428 | CZ54: 355.7891222 | DA54: 12.20164873 | DC54: 12.20164873 | DD54: 0 | DE54: 12.20164873 | DF54: 0 | DG54: 0 | DH54: 0 | DI54: 0 | DK54: 1964 | DL54: =F517 -> 0 | DM54: =F518 -> 11.90103753 | DN54: =F519 -> 0 | DO54: =F520 -> 0 | DP54: =F521 -> 0 | DQ54: =F522 -> 0 | DR54: =F523 -> 0 | DS54: =F524 -> 0 | DT54: =F525 -> 0 | DU54: =F526 -> 0 | DV54: =F527 -> 0 | DW54: =F528 -> 0 | DY54: 121.6566708 | DZ54: 355.788594 | EA54: 11.90103753 | EC54: 11.90103753 | ED54: 0 | EE54: 11.90103753 | EF54: 0 | EG54: 0 | EH54: 0 | EI54: 0 | EK54: 1964 | EL54: =G517 ->  | EM54: =G518 ->  | EN54: =G519 ->  | EO54: =G520 ->  | EP54: =G521 ->  | EQ54: =G522 ->  | ER54: =G523 ->  | ES54: =G524 ->  | ET54: =G525 ->  | EU54: =G526 ->  | EV54: =G527 ->  | EW54: =G528 -> 
A55: 1925-04-30 | B55: =INDIRECT(CONCATENATE("'",B$1,"'!",B$4,(YEAR($A55)-1921)*12+MONTH($A55)+3+IF(ISNUMBER(FIND("PRV",B$6)),1,0)))*IF(AND(B$3>0,TRIM(B$9)="CFS"),Conversions!$C55,1) -> 0 | C55: =INDIRECT(CONCATENATE("'",C$1,"'!",C$4,(YEAR($A55)-1921)*12+MONTH($A55)+3+IF(ISNUMBER(FIND("PRV",C$6)),1,0)))*IF(AND(C$3>0,TRIM(C$9)="CFS"),Conversions!$C55,1) -> 0 | D55: =INDIRECT(CONCATENATE("'",D$1,"'!",D$4,(YEAR($A55)-1921)*12+MONTH($A55)+3+IF(ISNUMBER(FIND("PRV",D$6)),1,0)))*IF(AND(D$3>0,TRIM(D$9)="CFS"),Conversions!$C55,1) -> 0 | E55: =INDIRECT(CONCATENATE("'",E$1,"'!",E$4,(YEAR($A55)-1921)*12+MONTH($A55)+3+IF(ISNUMBER(FIND("PRV",E$6)),1,0)))*IF(AND(E$3>0,TRIM(E$9)="CFS"),Conversions!$C55,1) -> 0 | F55: =INDIRECT(CONCATENATE("'",F$1,"'!",F$4,(YEAR($A55)-1921)*12+MONTH($A55)+3+IF(ISNUMBER(FIND("PRV",F$6)),1,0)))*IF(AND(F$3>0,TRIM(F$9)="CFS"),Conversions!$C55,1) -> 0 | G55: =INDIRECT(CONCATENATE("'",G$1,"'!",G$4,(YEAR($A55)-1921)*12+MONTH($A55)+3+IF(ISNUMBER(FIND("PRV",G$6)),1,0)))*IF(AND(G$3>0,TRIM(G$9)="CFS"),Conversions!$C55,1) ->  | K55: 1965 | L55: =B529 -> 0 | M55: =B530 -> 0 | N55: =B531 -> 0 | O55: =B532 -> 0 | P55: =B533 -> 0 | Q55: =B534 -> 0 | R55: =B535 -> 0 | S55: =B536 -> 0 | T55: =B537 -> 0 | U55: =B538 -> 0 | V55: =B539 -> 0 | W55: =B540 -> 0 | Y55: 0 | Z55: 0 | AA55: 0 | AC55: 0 | AD55: 0 | AE55: 0 | AF55: 0 | AG55: 0 | AH55: 0 | AI55: 0 | AK55: 1965 | AL55: =C529 -> 0 | AM55: =C530 -> 0 | AN55: =C531 -> 138.4211232 | AO55: =C532 -> 203.6231405 | AP55: =C533 -> 30.96630859 | AQ55: =C534 -> 0 | AR55: =C535 -> 177.9173554 | AS55: =C536 -> 0 | AT55: =C537 -> 0 | AU55: =C538 -> 0 | AV55: =C539 -> 0 | AW55: =C540 -> 0 | AY55: 412.5068045 | AZ55: 508.6259664 | BA55: 550.9279276 | BC55: 373.0105722 | BD55: 0 | BE55: 342.0442637 | BF55: 373.0105722 | BG55: 177.9173554 | BH55: 0 | BI55: 0 | BK55: 1965 | BL55: =D529 -> 0 | BM55: =D530 -> 0 | BN55: =D531 -> 145.4352304 | BO55: =D532 -> 203.6231405 | BP55: =D533 -> 30.81808174 | BQ55: =D534 -> 0 | BR55: =D535 -> 177.9173554 | BS55: =D536 -> 0 | BT55: =D537 -> 0 | BU55: =D538 -> 0 | BV55: =D539 -> 0 | BW55: =D540 -> 0 | BY55: 412.3585776 | BZ55: 508.6259664 | CA55: 557.793808 | CC55: 379.8764526 | CD55: 0 | CE55: 349.0583709 | CF55: 379.8764526 | CG55: 177.9173554 | CH55: 0 | CI55: 0 | CK55: 1965 | CL55: =E529 -> 0 | CM55: =E530 -> 0 | CN55: =E531 -> 121.6563428 | CO55: =E532 -> 203.6231405 | CP55: =E533 -> 30.50963882 | CQ55: =E534 -> 0 | CR55: =E535 -> 177.9173554 | CS55: =E536 -> 0 | CT55: =E537 -> 0 | CU55: =E538 -> 0 | CV55: =E539 -> 0 | CW55: =E540 -> 0 | CY55: 412.0501347 | CZ55: 508.6259664 | DA55: 533.7064775 | DC55: 355.7891222 | DD55: 0 | DE55: 325.2794833 | DF55: 355.7891222 | DG55: 177.9173554 | DH55: 0 | DI55: 0 | DK55: 1965 | DL55: =F529 -> 0 | DM55: =F530 -> 0 | DN55: =F531 -> 121.6566708 | DO55: =F532 -> 203.6231405 | DP55: =F533 -> 30.5087827 | DQ55: =F534 -> 0 | DR55: =F535 -> 177.9173554 | DS55: =F536 -> 0 | DT55: =F537 -> 0 | DU55: =F538 -> 0 | DV55: =F539 -> 0 | DW55: =F540 -> 0 | DY55: 412.0492786 | DZ55: 508.6259664 | EA55: 533.7059493 | EC55: 355.788594 | ED55: 0 | EE55: 325.2798113 | EF55: 355.788594 | EG55: 177.9173554 | EH55: 0 | EI55: 0 | EK55: 1965 | EL55: =G529 ->  | EM55: =G530 ->  | EN55: =G531 ->  | EO55: =G532 ->  | EP55: =G533 ->  | EQ55: =G534 ->  | ER55: =G535 ->  | ES55: =G536 ->  | ET55: =G537 ->  | EU55: =G538 ->  | EV55: =G539 ->  | EW55: =G540 -> 
A56: 1925-05-31 | B56: =INDIRECT(CONCATENATE("'",B$1,"'!",B$4,(YEAR($A56)-1921)*12+MONTH($A56)+3+IF(ISNUMBER(FIND("PRV",B$6)),1,0)))*IF(AND(B$3>0,TRIM(B$9)="CFS"),Conversions!$C56,1) -> 0 | C56: =INDIRECT(CONCATENATE("'",C$1,"'!",C$4,(YEAR($A56)-1921)*12+MONTH($A56)+3+IF(ISNUMBER(FIND("PRV",C$6)),1,0)))*IF(AND(C$3>0,TRIM(C$9)="CFS"),Conversions!$C56,1) -> 0 | D56: =INDIRECT(CONCATENATE("'",D$1,"'!",D$4,(YEAR($A56)-1921)*12+MONTH($A56)+3+IF(ISNUMBER(FIND("PRV",D$6)),1,0)))*IF(AND(D$3>0,TRIM(D$9)="CFS"),Conversions!$C56,1) -> 0 | E56: =INDIRECT(CONCATENATE("'",E$1,"'!",E$4,(YEAR($A56)-1921)*12+MONTH($A56)+3+IF(ISNUMBER(FIND("PRV",E$6)),1,0)))*IF(AND(E$3>0,TRIM(E$9)="CFS"),Conversions!$C56,1) -> 0 | F56: =INDIRECT(CONCATENATE("'",F$1,"'!",F$4,(YEAR($A56)-1921)*12+MONTH($A56)+3+IF(ISNUMBER(FIND("PRV",F$6)),1,0)))*IF(AND(F$3>0,TRIM(F$9)="CFS"),Conversions!$C56,1) -> 0 | G56: =INDIRECT(CONCATENATE("'",G$1,"'!",G$4,(YEAR($A56)-1921)*12+MONTH($A56)+3+IF(ISNUMBER(FIND("PRV",G$6)),1,0)))*IF(AND(G$3>0,TRIM(G$9)="CFS"),Conversions!$C56,1) ->  | K56: 1966 | L56: =B541 -> 0 | M56: =B542 -> 0 | N56: =B543 -> 0 | O56: =B544 -> 0 | P56: =B545 -> 0 | Q56: =B546 -> 0 | R56: =B547 -> 0 | S56: =B548 -> 0 | T56: =B549 -> 0 | U56: =B550 -> 0 | V56: =B551 -> 0 | W56: =B552 -> 0 | Y56: 0 | Z56: 0 | AA56: 0 | AC56: 0 | AD56: 0 | AE56: 0 | AF56: 0 | AG56: 0 | AH56: 0 | AI56: 0 | AK56: 1966 | AL56: =C541 -> 0 | AM56: =C542 -> 0 | AN56: =C543 -> 0 | AO56: =C544 -> 180.1631565 | AP56: =C545 -> 150.5454545 | AQ56: =C546 -> 213.9292562 | AR56: =C547 -> 0 | AS56: =C548 -> 0 | AT56: =C549 -> 0 | AU56: =C550 -> 0 | AV56: =C551 -> 0 | AW56: =C552 -> 0 | AY56: 760.5208424 | AZ56: 822.7061157 | BA56: 544.6378672 | BC56: 544.6378672 | BD56: 0 | BE56: 180.1631565 | BF56: 330.708611 | BG56: 213.9292562 | BH56: 0 | BI56: 0 | BK56: 1966 | BL56: =D541 -> 0 | BM56: =D542 -> 0 | BN56: =D543 -> 0 | BO56: =D544 -> 180.1631565 | BP56: =D545 -> 150.5454545 | BQ56: =D546 -> 213.9292562 | BR56: =D547 -> 0 | BS56: =D548 -> 0 | BT56: =D549 -> 0 | BU56: =D550 -> 0 | BV56: =D551 -> 0 | BW56: =D552 -> 0 | BY56: 760.5208424 | BZ56: 822.7061157 | CA56: 544.6378672 | CC56: 544.6378672 | CD56: 0 | CE56: 180.1631565 | CF56: 330.708611 | CG56: 213.9292562 | CH56: 0 | CI56: 0 | CK56: 1966 | CL56: =E541 -> 0 | CM56: =E542 -> 0 | CN56: =E543 -> 0 | CO56: =E544 -> 180.1631565 | CP56: =E545 -> 150.5454545 | CQ56: =E546 -> 209.3516721 | CR56: =E547 -> 0 | CS56: =E548 -> 0 | CT56: =E549 -> 0 | CU56: =E550 -> 0 | CV56: =E551 -> 0 | CW56: =E552 -> 0 | CY56: 755.9432583 | CZ56: 560.4419642 | DA56: 540.0602831 | DC56: 540.0602831 | DD56: 0 | DE56: 180.1631565 | DF56: 330.708611 | DG56: 209.3516721 | DH56: 0 | DI56: 0 | DK56: 1966 | DL56: =F541 -> 0 | DM56: =F542 -> 0 | DN56: =F543 -> 0 | DO56: =F544 -> 180.1631565 | DP56: =F545 -> 150.5454545 | DQ56: =F546 -> 178.7188957 | DR56: =F547 -> 0 | DS56: =F548 -> 0 | DT56: =F549 -> 0 | DU56: =F550 -> 0 | DV56: =F551 -> 0 | DW56: =F552 -> 0 | DY56: 725.310482 | DZ56: 449.88368 | EA56: 509.4275068 | EC56: 509.4275068 | ED56: 0 | EE56: 180.1631565 | EF56: 330.708611 | EG56: 178.7188957 | EH56: 0 | EI56: 0 | EK56: 1966 | EL56: =G541 ->  | EM56: =G542 ->  | EN56: =G543 ->  | EO56: =G544 ->  | EP56: =G545 ->  | EQ56: =G546 ->  | ER56: =G547 ->  | ES56: =G548 ->  | ET56: =G549 ->  | EU56: =G550 ->  | EV56: =G551 ->  | EW56: =G552 -> 
A57: 1925-06-30 | B57: =INDIRECT(CONCATENATE("'",B$1,"'!",B$4,(YEAR($A57)-1921)*12+MONTH($A57)+3+IF(ISNUMBER(FIND("PRV",B$6)),1,0)))*IF(AND(B$3>0,TRIM(B$9)="CFS"),Conversions!$C57,1) -> 0 | C57: =INDIRECT(CONCATENATE("'",C$1,"'!",C$4,(YEAR($A57)-1921)*12+MONTH($A57)+3+IF(ISNUMBER(FIND("PRV",C$6)),1,0)))*IF(AND(C$3>0,TRIM(C$9)="CFS"),Conversions!$C57,1) -> 0 | D57: =INDIRECT(CONCATENATE("'",D$1,"'!",D$4,(YEAR($A57)-1921)*12+MONTH($A57)+3+IF(ISNUMBER(FIND("PRV",D$6)),1,0)))*IF(AND(D$3>0,TRIM(D$9)="CFS"),Conversions!$C57,1) -> 0 | E57: =INDIRECT(CONCATENATE("'",E$1,"'!",E$4,(YEAR($A57)-1921)*12+MONTH($A57)+3+IF(ISNUMBER(FIND("PRV",E$6)),1,0)))*IF(AND(E$3>0,TRIM(E$9)="CFS"),Conversions!$C57,1) -> 0 | F57: =INDIRECT(CONCATENATE("'",F$1,"'!",F$4,(YEAR($A57)-1921)*12+MONTH($A57)+3+IF(ISNUMBER(FIND("PRV",F$6)),1,0)))*IF(AND(F$3>0,TRIM(F$9)="CFS"),Conversions!$C57,1) -> 0 | G57: =INDIRECT(CONCATENATE("'",G$1,"'!",G$4,(YEAR($A57)-1921)*12+MONTH($A57)+3+IF(ISNUMBER(FIND("PRV",G$6)),1,0)))*IF(AND(G$3>0,TRIM(G$9)="CFS"),Conversions!$C57,1) ->  | K57: 1967 | L57: =B553 -> 0 | M57: =B554 -> 0 | N57: =B555 -> 0 | O57: =B556 -> 0 | P57: =B557 -> 0 | Q57: =B558 -> 0 | R57: =B559 -> 0 | S57: =B560 -> 0 | T57: =B561 -> 0 | U57: =B562 -> 0 | V57: =B563 -> 0 | W57: =B564 -> 0 | Y57: 0 | Z57: 0 | AA57: 0 | AC57: 0 | AD57: 0 | AE57: 0 | AF57: 0 | AG57: 0 | AH57: 0 | AI57: 0 | AK57: 1967 | AL57: =C553 -> 0 | AM57: =C554 -> 0 | AN57: =C555 -> 215.8829752 | AO57: =C556 -> 203.6231405 | AP57: =C557 -> 189.2707438 | AQ57: =C558 -> 198.648595 | AR57: =C559 -> 76.25380687 | AS57: =C560 -> 5.846836992 | AT57: =C561 -> 0 | AU57: =C562 -> 0 | AV57: =C563 -> 0 | AW57: =C564 -> 0.0002281056713 | AY57: 673.6433513 | AZ57: 398.0920307 | BA57: 889.5263265 | BC57: 807.4254545 | BD57: 0.0002281056713 | BE57: 419.5061157 | BF57: 608.7768595 | BG57: 280.7492389 | BH57: 0.0002281056713 | BI57: 0.0002281056713 | BK57: 1967 | BL57: =D553 -> 0 | BM57: =D554 -> 0 | BN57: =D555 -> 215.8829752 | BO57: =D556 -> 203.6231405 | BP57: =D557 -> 189.2707438 | BQ57: =D558 -> 144.7001841 | BR57: =D559 -> 0 | BS57: =D560 -> 5.873953984 | BT57: =D561 -> 0 | BU57: =D562 -> 0 | BV57: =D563 -> 0 | BW57: =D564 -> 0.0002260336789 | BY57: 543.4682484 | BZ57: 238.2883189 | CA57: 759.3512236 | CC57: 753.4770436 | CD57: 0.0002260336789 | CE57: 419.5061157 | CF57: 608.7768595 | CG57: 150.574138 | CH57: 0.0002260336789 | CI57: 0.0002260336789 | CK57: 1967 | CL57: =E553 -> 0 | CM57: =E554 -> 0 | CN57: =E555 -> 215.8829752 | CO57: =E556 -> 133.5174297 | CP57: =E557 -> 1.689887183 | CQ57: =E558 -> 0 | CR57: =E559 -> 0 | CS57: =E560 -> 6.879230536 | CT57: =E561 -> 0 | CU57: =E562 -> 0 | CV57: =E563 -> 0 | CW57: =E564 -> 0.0002234144586 | CY57: 142.0867708 | CZ57: 121.1047105 | DA57: 357.969746 | DC57: 351.0902921 | DD57: 0.0002234144586 | DE57: 349.4004049 | DF57: 351.0902921 | DG57: 6.879230536 | DH57: 0.0002234144586 | DI57: 0.0002234144586 | DK57: 1967 | DL57: =F553 -> 0 | DM57: =F554 -> 0 | DN57: =F555 -> 215.8829752 | DO57: =F556 -> 53.59192189 | DP57: =F557 -> 1.689887183 | DQ57: =F558 -> 0 | DR57: =F559 -> 0 | DS57: =F560 -> 6.879230536 | DT57: =F561 -> 0 | DU57: =F562 -> 0 | DV57: =F563 -> 0 | DW57: =F564 -> 0.000223414459 | DY57: 62.16126303 | DZ57: 121.1047101 | EA57: 278.0442382 | EC57: 271.1647843 | ED57: 0.000223414459 | EE57: 269.4748971 | EF57: 271.1647843 | EG57: 6.879230536 | EH57: 0.000223414459 | EI57: 0.000223414459 | EK57: 1967 | EL57: =G553 ->  | EM57: =G554 ->  | EN57: =G555 ->  | EO57: =G556 ->  | EP57: =G557 ->  | EQ57: =G558 ->  | ER57: =G559 ->  | ES57: =G560 ->  | ET57: =G561 ->  | EU57: =G562 ->  | EV57: =G563 ->  | EW57: =G564 -> 
A58: 1925-07-31 | B58: =INDIRECT(CONCATENATE("'",B$1,"'!",B$4,(YEAR($A58)-1921)*12+MONTH($A58)+3+IF(ISNUMBER(FIND("PRV",B$6)),1,0)))*IF(AND(B$3>0,TRIM(B$9)="CFS"),Conversions!$C58,1) -> 0 | C58: =INDIRECT(CONCATENATE("'",C$1,"'!",C$4,(YEAR($A58)-1921)*12+MONTH($A58)+3+IF(ISNUMBER(FIND("PRV",C$6)),1,0)))*IF(AND(C$3>0,TRIM(C$9)="CFS"),Conversions!$C58,1) -> 0 | D58: =INDIRECT(CONCATENATE("'",D$1,"'!",D$4,(YEAR($A58)-1921)*12+MONTH($A58)+3+IF(ISNUMBER(FIND("PRV",D$6)),1,0)))*IF(AND(D$3>0,TRIM(D$9)="CFS"),Conversions!$C58,1) -> 0 | E58: =INDIRECT(CONCATENATE("'",E$1,"'!",E$4,(YEAR($A58)-1921)*12+MONTH($A58)+3+IF(ISNUMBER(FIND("PRV",E$6)),1,0)))*IF(AND(E$3>0,TRIM(E$9)="CFS"),Conversions!$C58,1) -> 0 | F58: =INDIRECT(CONCATENATE("'",F$1,"'!",F$4,(YEAR($A58)-1921)*12+MONTH($A58)+3+IF(ISNUMBER(FIND("PRV",F$6)),1,0)))*IF(AND(F$3>0,TRIM(F$9)="CFS"),Conversions!$C58,1) -> 0 | G58: =INDIRECT(CONCATENATE("'",G$1,"'!",G$4,(YEAR($A58)-1921)*12+MONTH($A58)+3+IF(ISNUMBER(FIND("PRV",G$6)),1,0)))*IF(AND(G$3>0,TRIM(G$9)="CFS"),Conversions!$C58,1) ->  | K58: 1968 | L58: =B565 -> 0 | M58: =B566 -> 0 | N58: =B567 -> 0 | O58: =B568 -> 0 | P58: =B569 -> 0 | Q58: =B570 -> 0 | R58: =B571 -> 0 | S58: =B572 -> 0 | T58: =B573 -> 0 | U58: =B574 -> 0 | V58: =B575 -> 0 | W58: =B576 -> 0 | Y58: 0 | Z58: 0 | AA58: 0 | AC58: 0 | AD58: 0 | AE58: 0 | AF58: 0 | AG58: 0 | AH58: 0 | AI58: 0 | AK58: 1968 | AL58: =C565 -> 0 | AM58: =C566 -> 0 | AN58: =C567 -> 0 | AO58: =C568 -> 62.31542133 | AP58: =C569 -> 55.02714235 | AQ58: =C570 -> 1.400143019 | AR58: =C571 -> 0 | AS58: =C572 -> 0 | AT58: =C573 -> 0 | AU58: =C574 -> 0 | AV58: =C575 -> 0 | AW58: =C576 -> 0 | AY58: 285.8779133 | AZ58: 561.4292339 | BA58: 118.7427067 | BC58: 118.7427067 | BD58: 0 | BE58: 62.31542133 | BF58: 117.3425637 | BG58: 1.400143019 | BH58: 0 | BI58: 0 | BK58: 1968 | BL58: =D565 -> 0 | BM58: =D566 -> 0 | BN58: =D567 -> 0 | BO58: =D568 -> 62.28497491 | BP58: =D569 -> 25.42897995 | BQ58: =D570 -> 1.400143019 | BR58: =D571 -> 0 | BS58: =D572 -> 0 | BT58: =D573 -> 0 | BU58: =D574 -> 0 | BV58: =D575 -> 0 | BW58: =D576 -> 0 | BY58: 256.2493045 | BZ58: 561.4292339 | CA58: 89.11409788 | CC58: 89.11409788 | CD58: 0 | CE58: 62.28497491 | CF58: 87.71395486 | CG58: 1.400143019 | CH58: 0 | CI58: 0 | CK58: 1968 | CL58: =E565 -> 0 | CM58: =E566 -> 0 | CN58: =E567 -> 0 | CO58: =E568 -> 62.1639954 | CP58: =E569 -> 52.06126118 | CQ58: =E570 -> 1.400133215 | CR58: =E571 -> 0 | CS58: =E572 -> 0 | CT58: =E573 -> 0 | CU58: =E574 -> 0 | CV58: =E575 -> 0 | CW58: =E576 -> 0 | CY58: 282.7605964 | CZ58: 421.8946236 | DA58: 115.6253898 | DC58: 115.6253898 | DD58: 0 | DE58: 62.1639954 | DF58: 114.2252566 | DG58: 1.400133215 | DH58: 0 | DI58: 0 | DK58: 1968 | DL58: =F565 -> 0 | DM58: =F566 -> 0 | DN58: =F567 -> 0 | DO58: =F568 -> 62.16429452 | DP58: =F569 -> 52.06096163 | DQ58: =F570 -> 1.400133215 | DR58: =F571 -> 0 | DS58: =F572 -> 0 | DT58: =F573 -> 0 | DU58: =F574 -> 0 | DV58: =F575 -> 0 | DW58: =F576 -> 0 | DY58: 282.760596 | DZ58: 326.7402479 | EA58: 115.6253894 | EC58: 115.6253894 | ED58: 0 | EE58: 62.16429452 | EF58: 114.2252561 | EG58: 1.400133215 | EH58: 0 | EI58: 0 | EK58: 1968 | EL58: =G565 ->  | EM58: =G566 ->  | EN58: =G567 ->  | EO58: =G568 ->  | EP58: =G569 ->  | EQ58: =G570 ->  | ER58: =G571 ->  | ES58: =G572 ->  | ET58: =G573 ->  | EU58: =G574 ->  | EV58: =G575 ->  | EW58: =G576 -> 
A59: 1925-08-31 | B59: =INDIRECT(CONCATENATE("'",B$1,"'!",B$4,(YEAR($A59)-1921)*12+MONTH($A59)+3+IF(ISNUMBER(FIND("PRV",B$6)),1,0)))*IF(AND(B$3>0,TRIM(B$9)="CFS"),Conversions!$C59,1) -> 0 | C59: =INDIRECT(CONCATENATE("'",C$1,"'!",C$4,(YEAR($A59)-1921)*12+MONTH($A59)+3+IF(ISNUMBER(FIND("PRV",C$6)),1,0)))*IF(AND(C$3>0,TRIM(C$9)="CFS"),Conversions!$C59,1) -> 0 | D59: =INDIRECT(CONCATENATE("'",D$1,"'!",D$4,(YEAR($A59)-1921)*12+MONTH($A59)+3+IF(ISNUMBER(FIND("PRV",D$6)),1,0)))*IF(AND(D$3>0,TRIM(D$9)="CFS"),Conversions!$C59,1) -> 0 | E59: =INDIRECT(CONCATENATE("'",E$1,"'!",E$4,(YEAR($A59)-1921)*12+MONTH($A59)+3+IF(ISNUMBER(FIND("PRV",E$6)),1,0)))*IF(AND(E$3>0,TRIM(E$9)="CFS"),Conversions!$C59,1) -> 0 | F59: =INDIRECT(CONCATENATE("'",F$1,"'!",F$4,(YEAR($A59)-1921)*12+MONTH($A59)+3+IF(ISNUMBER(FIND("PRV",F$6)),1,0)))*IF(AND(F$3>0,TRIM(F$9)="CFS"),Conversions!$C59,1) -> 0 | G59: =INDIRECT(CONCATENATE("'",G$1,"'!",G$4,(YEAR($A59)-1921)*12+MONTH($A59)+3+IF(ISNUMBER(FIND("PRV",G$6)),1,0)))*IF(AND(G$3>0,TRIM(G$9)="CFS"),Conversions!$C59,1) ->  | K59: 1969 | L59: =B577 -> 0 | M59: =B578 -> 0 | N59: =B579 -> 0 | O59: =B580 -> 0 | P59: =B581 -> 0 | Q59: =B582 -> 0 | R59: =B583 -> 0 | S59: =B584 -> 0 | T59: =B585 -> 0 | U59: =B586 -> 0 | V59: =B587 -> 0 | W59: =B588 -> 0 | Y59: 0 | Z59: 0 | AA59: 0 | AC59: 0 | AD59: 0 | AE59: 0 | AF59: 0 | AG59: 0 | AH59: 0 | AI59: 0 | AK59: 1969 | AL59: =C577 -> 0 | AM59: =C578 -> 0 | AN59: =C579 -> 167.1352066 | AO59: =C580 -> 203.6231405 | AP59: =C581 -> 189.2707438 | AQ59: =C582 -> 155.6279113 | AR59: =C583 -> 3.016637312 | AS59: =C584 -> 0 | AT59: =C585 -> 0 | AU59: =C586 -> 0 | AV59: =C587 -> 0 | AW59: =C588 -> 0.0002835735285 | AY59: 684.2809614 | AZ59: 291.3870771 | BA59: 718.6739231 | BC59: 715.6570022 | BD59: 0.0002835735285 | BE59: 370.7583471 | BF59: 560.0290909 | BG59: 158.6445486 | BH59: 0.0002835735285 | BI59: 0.0002835735285 | BK59: 1969 | BL59: =D577 -> 0 | BM59: =D578 -> 0 | BN59: =D579 -> 167.1352066 | BO59: =D580 -> 203.6231405 | BP59: =D581 -> 189.2707438 | BQ59: =D582 -> 85.76568649 | BR59: =D583 -> 3.361021167 | BS59: =D584 -> 0 | BT59: =D585 -> 0 | BU59: =D586 -> 0 | BV59: =D587 -> 0 | BW59: =D588 -> 0.000280919748 | BY59: 614.1351768 | BZ59: 221.2412925 | CA59: 649.1560795 | CC59: 645.7947774 | CD59: 0.000280919748 | CE59: 370.7583471 | CF59: 560.0290909 | CG59: 89.12670766 | CH59: 0.000280919748 | CI59: 0.000280919748 | CK59: 1969 | CL59: =E577 -> 0 | CM59: =E578 -> 0 | CN59: =E579 -> 167.1352066 | CO59: =E580 -> 203.6231405 | CP59: =E581 -> 49.73614328 | CQ59: =E582 -> 1.187374402 | CR59: =E583 -> 3.585307427 | CS59: =E584 -> 0 | CT59: =E585 -> 0 | CU59: =E586 -> 0 | CV59: =E587 -> 0 | CW59: =E588 -> 0.0002777003574 | CY59: 390.0250949 | CZ59: 136.6658111 | DA59: 425.2674499 | DC59: 421.6818648 | DD59: 0.0002777003574 | DE59: 370.7583471 | DF59: 420.4944904 | DG59: 4.77268183 | DH59: 0.0002777003574 | DI59: 0.0002777003574 | DK59: 1969 | DL59: =F577 -> 0 | DM59: =F578 -> 0 | DN59: =F579 -> 167.1352066 | DO59: =F580 -> 158.204908 | DP59: =F581 -> 0 | DQ59: =F582 -> 1.187374402 | DR59: =F583 -> 3.585307427 | DS59: =F584 -> 0 | DT59: =F585 -> 0 | DU59: =F586 -> 0 | DV59: =F587 -> 0 | DW59: =F588 -> 0.0002777003585 | DY59: 294.8707192 | DZ59: 136.6658111 | EA59: 330.1130742 | EC59: 326.527489 | ED59: 0.0002777003585 | EE59: 325.3401146 | EF59: 325.3401146 | EG59: 4.77268183 | EH59: 0.0002777003585 | EI59: 0.0002777003585 | EK59: 1969 | EL59: =G577 ->  | EM59: =G578 ->  | EN59: =G579 ->  | EO59: =G580 ->  | EP59: =G581 ->  | EQ59: =G582 ->  | ER59: =G583 ->  | ES59: =G584 ->  | ET59: =G585 ->  | EU59: =G586 ->  | EV59: =G587 ->  | EW59: =G588 -> 
A60: 1925-09-30 | B60: =INDIRECT(CONCATENATE("'",B$1,"'!",B$4,(YEAR($A60)-1921)*12+MONTH($A60)+3+IF(ISNUMBER(FIND("PRV",B$6)),1,0)))*IF(AND(B$3>0,TRIM(B$9)="CFS"),Conversions!$C60,1) -> 0 | C60: =INDIRECT(CONCATENATE("'",C$1,"'!",C$4,(YEAR($A60)-1921)*12+MONTH($A60)+3+IF(ISNUMBER(FIND("PRV",C$6)),1,0)))*IF(AND(C$3>0,TRIM(C$9)="CFS"),Conversions!$C60,1) -> 0 | D60: =INDIRECT(CONCATENATE("'",D$1,"'!",D$4,(YEAR($A60)-1921)*12+MONTH($A60)+3+IF(ISNUMBER(FIND("PRV",D$6)),1,0)))*IF(AND(D$3>0,TRIM(D$9)="CFS"),Conversions!$C60,1) -> 0 | E60: =INDIRECT(CONCATENATE("'",E$1,"'!",E$4,(YEAR($A60)-1921)*12+MONTH($A60)+3+IF(ISNUMBER(FIND("PRV",E$6)),1,0)))*IF(AND(E$3>0,TRIM(E$9)="CFS"),Conversions!$C60,1) -> 0 | F60: =INDIRECT(CONCATENATE("'",F$1,"'!",F$4,(YEAR($A60)-1921)*12+MONTH($A60)+3+IF(ISNUMBER(FIND("PRV",F$6)),1,0)))*IF(AND(F$3>0,TRIM(F$9)="CFS"),Conversions!$C60,1) -> 0 | G60: =INDIRECT(CONCATENATE("'",G$1,"'!",G$4,(YEAR($A60)-1921)*12+MONTH($A60)+3+IF(ISNUMBER(FIND("PRV",G$6)),1,0)))*IF(AND(G$3>0,TRIM(G$9)="CFS"),Conversions!$C60,1) ->  | K60: 1970 | L60: =B589 -> 0 | M60: =B590 -> 0 | N60: =B591 -> 0 | O60: =B592 -> 0 | P60: =B593 -> 0 | Q60: =B594 -> 0 | R60: =B595 -> 0 | S60: =B596 -> 0 | T60: =B597 -> 0 | U60: =B598 -> 0 | V60: =B599 -> 0 | W60: =B600 -> 0 | Y60: 0 | Z60: 0 | AA60: 0 | AC60: 0 | AD60: 0 | AE60: 0 | AF60: 0 | AG60: 0 | AH60: 0 | AI60: 0 | AK60: 1970 | AL60: =C589 -> 0 | AM60: =C590 -> 0 | AN60: =C591 -> 132.7422449 | AO60: =C592 -> 0 | AP60: =C593 -> 0 | AQ60: =C594 -> 1.984645923 | AR60: =C595 -> 0 | AS60: =C596 -> 0 | AT60: =C597 -> 0 | AU60: =C598 -> 0 | AV60: =C599 -> 0 | AW60: =C600 -> 0 | AY60: 217.8676211 | AZ60: 228.6377807 | BA60: 134.7268908 | BC60: 134.7268908 | BD60: 0 | BE60: 132.7422449 | BF60: 132.7422449 | BG60: 1.984645923 | BH60: 0 | BI60: 0 | BK60: 1970 | BL60: =D589 -> 0 | BM60: =D590 -> 0 | BN60: =D591 -> 132.1143039 | BO60: =D592 -> 0 | BP60: =D593 -> 0 | BQ60: =D594 -> 1.984645923 | BR60: =D595 -> 0 | BS60: =D596 -> 0 | BT60: =D597 -> 0 | BU60: =D598 -> 0 | BV60: =D599 -> 0 | BW60: =D600 -> 0 | BY60: 217.8676211 | BZ60: 228.7439568 | CA60: 134.0989498 | CC60: 134.0989498 | CD60: 0 | CE60: 132.1143039 | CF60: 132.1143039 | CG60: 1.984645923 | CH60: 0 | CI60: 0 | CK60: 1970 | CL60: =E589 -> 0 | CM60: =E590 -> 0 | CN60: =E591 -> 131.8928516 | CO60: =E592 -> 0 | CP60: =E593 -> 0 | CQ60: =E594 -> 1.984632024 | CR60: =E595 -> 0 | CS60: =E596 -> 0 | CT60: =E597 -> 0 | CU60: =E598 -> 0 | CV60: =E599 -> 0 | CW60: =E600 -> 0 | CY60: 184.5006108 | CZ60: 184.5006108 | DA60: 133.8774836 | DC60: 133.8774836 | DD60: 0 | DE60: 131.8928516 | DF60: 131.8928516 | DG60: 1.984632024 | DH60: 0 | DI60: 0 | DK60: 1970 | DL60: =F589 -> 0 | DM60: =F590 -> 0 | DN60: =F591 -> 131.8928516 | DO60: =F592 -> 0 | DP60: =F593 -> 0 | DQ60: =F594 -> 1.984632024 | DR60: =F595 -> 0 | DS60: =F596 -> 0 | DT60: =F597 -> 0 | DU60: =F598 -> 0 | DV60: =F599 -> 0 | DW60: =F600 -> 0 | DY60: 184.5006108 | DZ60: 184.5006108 | EA60: 133.8774836 | EC60: 133.8774836 | ED60: 0 | EE60: 131.8928516 | EF60: 131.8928516 | EG60: 1.984632024 | EH60: 0 | EI60: 0 | EK60: 1970 | EL60: =G589 ->  | EM60: =G590 ->  | EN60: =G591 ->  | EO60: =G592 ->  | EP60: =G593 ->  | EQ60: =G594 ->  | ER60: =G595 ->  | ES60: =G596 ->  | ET60: =G597 ->  | EU60: =G598 ->  | EV60: =G599 ->  | EW60: =G600 -> 
